Workbook

Sheet Overview (READ ME)
B2: Caregiver Data
B4: Column Name on Tab 2 | C4: Column Meaning | D4: Special Notes | E4: Example(s)
B5: First Name | C5: Caregiver's first name | E5: John
B6: Date of Birth | C6: Caregiver's last name | E6: Doe
B7: Caregiver Status Code | C7: The status of the caregiver. This has been pre-entered for you. | D7: Ankota only enters active caregivers unless you specially request to upload historic data. Please be sure to contact your Ankota representative if you would like historic information included. | E7: Active
B8: Caregiver ID | C8: Caregiver ID | D8: This can include both letters and numbers; any length is ok. This ID must be unique to the Caregiver and must be consistent across all files. Please avoid a zero at the beginning. Notify Ankota if you must use an ID with a zero at the beginning. | E8: DN8891
B9: Create User ID | C9: Is this caregiver going to be a mobile user? If so, enter TRUE. If not, enter FALSE. | D9: TRUE or FALSE | E9: TRUE
B10: Web User Name | C10: This is the web user name caregivers will be assigned if they need ankota.net access.In other words, this will be their log-in. This is mostly intended for office administrators. Most caregivers (field workers) will not need this web access. For this reason the previous column is pre-filled as FALSE. | D10: If you do have a caregiver who will need web access to ankota.net, please change the answer to TRUE in the previous column. Ankota will create a user ID for that caregiver, starting with 10001. In other words, 10001, 10002, 10003… | E10: This information will automatically be entered for you.
B11: Password | C11: All caregivers who will be webusers will need a password. | D11: This will be assigned based on birthdate. For example, a 1/1/1980 date of birth would result in a password of 0101. | E11: This information will automatically be entered for you.
B12: Address | C12: Caregiver's main, standard street address | D12: Street address (for GPS mapping) | E12: 123 Main St.
B13: Address 2 | C13: Caregiver's apartment, unit or suite number | E13: Apt. 120, Unit 120, Trailer 120, Floor 2, #2
B14: City | C14: Caregiver's city of resident | E14: Boston
B15: State Abbreviation | C15: Caregiver's state of resident | D15: XX (the 2-letter abbreviation) | E15: MA
B16: Zip Code | C16: Caregiver's zip code of residence | D16: ##### (initial 5 numbers only) | E16: 63125
B17: Sex | C17: Caregiver's gender | D17: Please note there are three options, M, F, and U (unidentified) | E17: M, F, U
B18: Date of Birth | C18: Caregiver's date of birth | D18: MM/DD/YYYY | E18: 5/19/1950
B19: Cell Phone | C19: Caregiver's cell phone number | D19: Phone numbers must include a country code to be used for matching. For example, a 1 must precede a phone number in the United States. | E19: 1-555-567-8910 15555678910 +44 555 412 4653
B20: Home Phone | C20: Caregiver's home phone number | D20: Phone numbers must include a country code to be used for matching. For example, a 1 must precede a phone number in the United States. | E20: 1-555-444-3333 15554443333 +44 555 444 3333
B22: IVR ID Number | C22: Every caregiver will normally need an IVR number. For this reason your caregiver will automatically be assigned an IVR ID number. | D22: Numbers only, unique to each user. | E22: This information will automatically be entered for you.
B23: IVR PIN | C23: A PIN is required for each caregiver's IVR. | D23: The password is usually assigned as the caregiver's day and month of birth OR as the last 4 digits of their social security number. | E23: Click the button that relates to your preferred password choice and it will automatically fill out the column for you.
B24: Email | C24: Caregiver's email | E24: jdoe@gmail.com
B25: Role | C25: The caregiver's role | D25: Standard roles include caregiver, staff, and office. If you do not specify the person's role, they will be entered as a caregiver. | E25: caregiver
B26: SSN | C26: Caregiver's Social Security Number | D26: ##-##-#### (include dashes please) | E26: 555-44-3333
B27: Pay Amount | C27: The amount paid to this employee for a standard session | D27: Please format as ##.##, without the dollar sign. The number after the dollar is cents, not a percentage. | E27: 10.25
B28: Employment Start Date | C28: Caregiver's start date of employment with agency | D28: MM/DD/YYYY | E28: 4/12/2015
B29: OPTIONAL Skills | C29: The caregiver's skill set | D29: Any skill, including but not limited to languages. | E29: Russian
B30: OPTIONAL Expiration | C30: The date the previous skill expires | D30: Do not fill out this cell unless there is an actual expiration; please use MM/DD/YYYY forma, omitting any leading zeros. | E30: 4/12/2022

Sheet Caregiver Tab (FILL THIS OUT)
B2: Caregiver Data (Fill this out)
B4: First Name | C4: Last Name | D4: Caregiver Status | E4: Caregiver ID | F4: Create Mobile App | G4: Web User Name/Mobile App User ID | H4: Password | I4: Address | J4: Address 2 | K4: City | L4: State | M4: Zip Code | N4: Sex | O4: Date of Birth | P4: Cell Phone | Q4: Home Phone | R4: IVR/Telephony Number | S4: IVR/MOBILE PIN | T4: Email | U4: Role | V4: SSN | W4: Pay Amount | X4: Employment Start Date
D5: Active | F5: TRUE | H5: password | U5: caregiver
D6: Active | F6: TRUE | H6: password | U6: caregiver
D7: Active | F7: TRUE | H7: password | U7: caregiver
D8: Active | F8: TRUE | H8: password | U8: caregiver
D9: Active | F9: TRUE | H9: password | U9: caregiver
D10: Active | F10: TRUE | H10: password | U10: caregiver
D11: Active | F11: TRUE | H11: password | U11: caregiver
D12: Active | F12: TRUE | H12: password | U12: caregiver
D13: Active | F13: TRUE | H13: password | U13: caregiver
D14: Active | F14: TRUE | H14: password | U14: caregiver
D15: Active | F15: TRUE | H15: password | U15: caregiver
D16: Active | F16: TRUE | H16: password | U16: caregiver
D17: Active | F17: TRUE | H17: password | U17: caregiver
D18: Active | F18: TRUE | H18: password | U18: caregiver
D19: Active | F19: TRUE | H19: password | U19: caregiver
D20: Active | F20: TRUE | H20: password | U20: caregiver
D21: Active | F21: TRUE | H21: password | U21: caregiver
D22: Active | F22: TRUE | H22: password | U22: caregiver
D23: Active | F23: TRUE | H23: password | U23: caregiver
D24: Active | F24: TRUE | H24: password | U24: caregiver
D25: Active | F25: TRUE | H25: password | U25: caregiver
D26: Active | F26: TRUE | H26: password | U26: caregiver
D27: Active | F27: TRUE | U27: caregiver
D28: Active | F28: TRUE | U28: caregiver
D29: Active | F29: TRUE | U29: caregiver
D30: Active | F30: TRUE | U30: caregiver
D31: Active | F31: TRUE | U31: caregiver
D32: Active | F32: TRUE | U32: caregiver
D33: Active | F33: TRUE | U33: caregiver
D34: Active | F34: TRUE | U34: caregiver
D35: Active | F35: TRUE | U35: caregiver
D36: Active | F36: TRUE | U36: caregiver
D37: Active | F37: TRUE | U37: caregiver
D38: Active | F38: TRUE | U38: caregiver
D39: Active | F39: TRUE | U39: caregiver
D40: Active | F40: TRUE | U40: caregiver
D41: Active | F41: TRUE | U41: caregiver
D42: Active | F42: TRUE | U42: caregiver
D43: Active | F43: TRUE | U43: caregiver
D44: Active | F44: TRUE | U44: caregiver
D45: Active | F45: TRUE | U45: caregiver
D46: Active | F46: TRUE | U46: caregiver
D47: Active | F47: TRUE | U47: caregiver
D48: Active | F48: TRUE | U48: caregiver
D49: Active | F49: TRUE | U49: caregiver
D50: Active | F50: TRUE | U50: caregiver
D51: Active | F51: TRUE | U51: caregiver
D52: Active | F52: TRUE | U52: caregiver
D53: Active | F53: TRUE | U53: caregiver
D54: Active | F54: TRUE | U54: caregiver
D55: Active | F55: TRUE | U55: caregiver
D56: Active | F56: TRUE | U56: caregiver
D57: Active | F57: TRUE | U57: caregiver
D58: Active | F58: TRUE | U58: caregiver
D59: Active | F59: TRUE | U59: caregiver
D60: Active | F60: TRUE | U60: caregiver
D61: Active | F61: TRUE | U61: caregiver
D62: Active | F62: TRUE | U62: caregiver
D63: Active | F63: TRUE | U63: caregiver
D64: Active | F64: TRUE | U64: caregiver
D65: Active | F65: TRUE | U65: caregiver
D66: Active | F66: TRUE | U66: caregiver
D67: Active | F67: TRUE | U67: caregiver
D68: Active | F68: TRUE | U68: caregiver
D69: Active | F69: TRUE | U69: caregiver
D70: Active | F70: TRUE | U70: caregiver
D71: Active | F71: TRUE | U71: caregiver
D72: Active | F72: TRUE | U72: caregiver
D73: Active | F73: TRUE | U73: caregiver
D74: Active | F74: TRUE | U74: caregiver
D75: Active | F75: TRUE | U75: caregiver
D76: Active | F76: TRUE | U76: caregiver
D77: Active | F77: TRUE | U77: caregiver
D78: Active | F78: TRUE | U78: caregiver
D79: Active | F79: TRUE | U79: caregiver
D80: Active | F80: TRUE | U80: caregiver
D81: Active | F81: TRUE | U81: caregiver
D82: Active | F82: TRUE | U82: caregiver
D83: Active | F83: TRUE | U83: caregiver
D84: Active | F84: TRUE | U84: caregiver
D85: Active | F85: TRUE | U85: caregiver
D86: Active | F86: TRUE | U86: caregiver
D87: Active | F87: TRUE | U87: caregiver
D88: Active | F88: TRUE | U88: caregiver
D89: Active | F89: TRUE | U89: caregiver
D90: Active | F90: TRUE | U90: caregiver
D91: Active | F91: TRUE | U91: caregiver
D92: Active | F92: TRUE | U92: caregiver
D93: Active | F93: TRUE | U93: caregiver
D94: Active | F94: TRUE | U94: caregiver
D95: Active | F95: TRUE | U95: caregiver
D96: Active | F96: TRUE | U96: caregiver
D97: Active | F97: TRUE | U97: caregiver
D98: Active | F98: TRUE | U98: caregiver
D99: Active | F99: TRUE | U99: caregiver
D100: Active | F100: TRUE | U100: caregiver
D101: Active | F101: TRUE | U101: caregiver
D102: Active | F102: TRUE | U102: caregiver
D103: Active | F103: TRUE | U103: caregiver
D104: Active | F104: TRUE | U104: caregiver
D105: Active | F105: TRUE | U105: caregiver
D106: Active | F106: TRUE | U106: caregiver
D107: Active | F107: TRUE | U107: caregiver
D108: Active | F108: TRUE | U108: caregiver
D109: Active | F109: TRUE | U109: caregiver
D110: Active | F110: TRUE | U110: caregiver
D111: Active | F111: TRUE | U111: caregiver
D112: Active | F112: TRUE | U112: caregiver
D113: Active | F113: TRUE | U113: caregiver
D114: Active | F114: TRUE | U114: caregiver
D115: Active | F115: TRUE | U115: caregiver
D116: Active | F116: TRUE | U116: caregiver
D117: Active | F117: TRUE | U117: caregiver
D118: Active | F118: TRUE | U118: caregiver
D119: Active | F119: TRUE | U119: caregiver
D120: Active | F120: TRUE | U120: caregiver
D121: Active | F121: TRUE | U121: caregiver
D122: Active | F122: TRUE
D123: Active | F123: TRUE
D124: Active | F124: TRUE
D125: Active | F125: TRUE
D126: Active | F126: TRUE
D127: Active | F127: TRUE
D128: Active | F128: TRUE
D129: Active | F129: TRUE
D130: Active | F130: TRUE
D131: Active | F131: TRUE
D132: Active | F132: TRUE
D133: Active | F133: TRUE
D134: Active | F134: TRUE
D135: Active | F135: TRUE
D136: Active | F136: TRUE
D137: Active | F137: TRUE
D138: Active | F138: TRUE
D139: Active | F139: TRUE
D140: Active | F140: TRUE
D141: Active | F141: TRUE
D142: Active | F142: TRUE
D143: Active | F143: TRUE
D144: Active | F144: TRUE
D145: Active | F145: TRUE
D146: Active | F146: TRUE
D147: Active | F147: TRUE
D148: Active | F148: TRUE
D149: Active | F149: TRUE
D150: Active | F150: TRUE
D151: Active | F151: TRUE
D152: Active | F152: TRUE
D153: Active | F153: TRUE
D154: Active | F154: TRUE
D155: Active | F155: TRUE
D156: Active | F156: TRUE
D157: Active | F157: TRUE
D158: Active | F158: TRUE
D159: Active | F159: TRUE
D160: Active | F160: TRUE
D161: Active | F161: TRUE
D162: Active | F162: TRUE
D163: Active | F163: TRUE
D164: Active | F164: TRUE
D165: Active | F165: TRUE
D166: Active | F166: TRUE
D167: Active | F167: TRUE
D168: Active | F168: TRUE
D169: Active | F169: TRUE
D170: Active | F170: TRUE
D171: Active | F171: TRUE
D172: Active | F172: TRUE
D173: Active | F173: TRUE
D174: Active | F174: TRUE
D175: Active | F175: TRUE
D176: Active | F176: TRUE
D177: Active | F177: TRUE
D178: Active | F178: TRUE
D179: Active | F179: TRUE
D180: Active | F180: TRUE
D181: Active | F181: TRUE
D182: Active
D183: Active
D184: Active
D185: Active
D186: Active
D187: Active
D188: Active
D189: Active
D190: Active
D191: Active
D192: Active
D193: Active
D194: Active
D195: Active
D196: Active
D197: Active
D198: Active
D199: Active
D200: Active
D201: Active
D202: Active
... 5798 more rows

Sheet Ankota Tab (IGNORE) (hidden)
A1: Resource Insert
A2: Organization | B2: FirstName | C2: LastName | D2: MemberTypeCode | E2: MemberStatusCode | F2: WorkerID | G2: CreateUserInd | H2: UserName | I2: Password | J2: Address1 | K2: Address2 | L2: City | M2: State | N2: PostalCode | O2: Sex | P2: DateOfBirth | Q2: CellPhone | R2: HomePhone | S2: MobileUserNumber | T2: MobileUserPin | U2: Email | V2: Role | W2: SSN | X2: PayAmount | Y2: EmploymentStartDate | Z2: SkillList
B3: =IF('Caregiver Tab (FILL THIS OUT)'!B6="","",'Caregiver Tab (FILL THIS OUT)'!B6) ->  | C3: =IF('Caregiver Tab (FILL THIS OUT)'!C6="","",'Caregiver Tab (FILL THIS OUT)'!C6) ->  | D3: 3 | E3: 1 | F3: =IF('Caregiver Tab (FILL THIS OUT)'!E6="","",'Caregiver Tab (FILL THIS OUT)'!E6) ->  | G3: =IF('Caregiver Tab (FILL THIS OUT)'!F6="","",'Caregiver Tab (FILL THIS OUT)'!F6) -> TRUE | H3: =IF('Caregiver Tab (FILL THIS OUT)'!G6="","",'Caregiver Tab (FILL THIS OUT)'!G6) ->  | I3: =IF('Caregiver Tab (FILL THIS OUT)'!H6="","",'Caregiver Tab (FILL THIS OUT)'!H6) -> password | J3: =IF('Caregiver Tab (FILL THIS OUT)'!I6="","",'Caregiver Tab (FILL THIS OUT)'!I6) ->  | K3: =IF('Caregiver Tab (FILL THIS OUT)'!K6="","",'Caregiver Tab (FILL THIS OUT)'!K6) ->  | L3: =IF('Caregiver Tab (FILL THIS OUT)'!L6="","",'Caregiver Tab (FILL THIS OUT)'!L6) ->  | M3: =IF('Caregiver Tab (FILL THIS OUT)'!M6="","",'Caregiver Tab (FILL THIS OUT)'!M6) ->  | N3: =IF('Caregiver Tab (FILL THIS OUT)'!M6="","",'Caregiver Tab (FILL THIS OUT)'!M6) ->  | O3: =IF('Caregiver Tab (FILL THIS OUT)'!N6="","",'Caregiver Tab (FILL THIS OUT)'!N6) ->  | P3: =IF('Caregiver Tab (FILL THIS OUT)'!O6="","",'Caregiver Tab (FILL THIS OUT)'!O6) ->  | Q3: =IF('Caregiver Tab (FILL THIS OUT)'!P6="","",'Caregiver Tab (FILL THIS OUT)'!P6) ->  | R3: =IF('Caregiver Tab (FILL THIS OUT)'!Q6="","",'Caregiver Tab (FILL THIS OUT)'!Q6) ->  | S3: =IF('Caregiver Tab (FILL THIS OUT)'!R6="","",'Caregiver Tab (FILL THIS OUT)'!R6) ->  | T3: =IF('Caregiver Tab (FILL THIS OUT)'!S6="","",'Caregiver Tab (FILL THIS OUT)'!S6) ->  | U3: =IF('Caregiver Tab (FILL THIS OUT)'!T6="","",'Caregiver Tab (FILL THIS OUT)'!T6) ->  | V3: =IF('Caregiver Tab (FILL THIS OUT)'!U6="","",'Caregiver Tab (FILL THIS OUT)'!U6) -> caregiver | W3: =IF('Caregiver Tab (FILL THIS OUT)'!V6="","",'Caregiver Tab (FILL THIS OUT)'!V6) ->  | X3: =IF('Caregiver Tab (FILL THIS OUT)'!W6="","",'Caregiver Tab (FILL THIS OUT)'!W6) ->  | Y3: =IF('Caregiver Tab (FILL THIS OUT)'!X6="","",'Caregiver Tab (FILL THIS OUT)'!X6) ->  | Z3: ='Caregiver Tab (FILL THIS OUT)'!#REF!&IF('Caregiver Tab (FILL THIS OUT)'!#REF!="","","#"&'Caregiver Tab (FILL THIS OUT)'!#REF!)&";"&'Caregiver Tab (FILL THIS OUT)'!#REF!&IF('Caregiver Tab (FILL THIS OUT)'!#REF!="","","#"&'Caregiver Tab (FILL THIS OUT)'!#REF!)&";"&'Caregiver Tab (FILL THIS OUT)'!#REF!&IF('Caregiver Tab (FILL THIS OUT)'!#REF!="","","#"&'Caregiver Tab (FILL THIS OUT)'!#REF!)&";"&'Caregiver Tab (FILL THIS OUT)'!#REF!&IF('Caregiver Tab (FILL THIS OUT)'!#REF!="","","#"&'Caregiver Tab (FILL THIS OUT)'!#REF!)&";"&'Caregiver Tab (FILL THIS OUT)'!#REF!&IF('Caregiver Tab (FILL THIS OUT)'!#REF!="","","#"&'Caregiver Tab (FILL THIS OUT)'!#REF!)&";" -> 
B4: =IF('Caregiver Tab (FILL THIS OUT)'!B7="","",'Caregiver Tab (FILL THIS OUT)'!B7) ->  | C4: =IF('Caregiver Tab (FILL THIS OUT)'!C7="","",'Caregiver Tab (FILL THIS OUT)'!C7) ->  | D4: 3 | E4: 1 | F4: =IF('Caregiver Tab (FILL THIS OUT)'!E7="","",'Caregiver Tab (FILL THIS OUT)'!E7) ->  | G4: =IF('Caregiver Tab (FILL THIS OUT)'!F7="","",'Caregiver Tab (FILL THIS OUT)'!F7) -> TRUE | H4: =IF('Caregiver Tab (FILL THIS OUT)'!G7="","",'Caregiver Tab (FILL THIS OUT)'!G7) ->  | I4: =IF('Caregiver Tab (FILL THIS OUT)'!H7="","",'Caregiver Tab (FILL THIS OUT)'!H7) -> password | J4: =IF('Caregiver Tab (FILL THIS OUT)'!I7="","",'Caregiver Tab (FILL THIS OUT)'!I7) ->  | K4: =IF('Caregiver Tab (FILL THIS OUT)'!K7="","",'Caregiver Tab (FILL THIS OUT)'!K7) ->  | L4: =IF('Caregiver Tab (FILL THIS OUT)'!L7="","",'Caregiver Tab (FILL THIS OUT)'!L7) ->  | M4: =IF('Caregiver Tab (FILL THIS OUT)'!M7="","",'Caregiver Tab (FILL THIS OUT)'!M7) ->  | N4: =IF('Caregiver Tab (FILL THIS OUT)'!M7="","",'Caregiver Tab (FILL THIS OUT)'!M7) ->  | O4: =IF('Caregiver Tab (FILL THIS OUT)'!N7="","",'Caregiver Tab (FILL THIS OUT)'!N7) ->  | P4: =IF('Caregiver Tab (FILL THIS OUT)'!O7="","",'Caregiver Tab (FILL THIS OUT)'!O7) ->  | Q4: =IF('Caregiver Tab (FILL THIS OUT)'!P7="","",'Caregiver Tab (FILL THIS OUT)'!P7) ->  | R4: =IF('Caregiver Tab (FILL THIS OUT)'!Q7="","",'Caregiver Tab (FILL THIS OUT)'!Q7) ->  | S4: =IF('Caregiver Tab (FILL THIS OUT)'!R7="","",'Caregiver Tab (FILL THIS OUT)'!R7) ->  | T4: =IF('Caregiver Tab (FILL THIS OUT)'!S7="","",'Caregiver Tab (FILL THIS OUT)'!S7) ->  | U4: =IF('Caregiver Tab (FILL THIS OUT)'!T7="","",'Caregiver Tab (FILL THIS OUT)'!T7) ->  | V4: =IF('Caregiver Tab (FILL THIS OUT)'!U7="","",'Caregiver Tab (FILL THIS OUT)'!U7) -> caregiver | W4: =IF('Caregiver Tab (FILL THIS OUT)'!V7="","",'Caregiver Tab (FILL THIS OUT)'!V7) ->  | X4: =IF('Caregiver Tab (FILL THIS OUT)'!W7="","",'Caregiver Tab (FILL THIS OUT)'!W7) ->  | Y4: =IF('Caregiver Tab (FILL THIS OUT)'!X7="","",'Caregiver Tab (FILL THIS OUT)'!X7) ->  | Z4: ='Caregiver Tab (FILL THIS OUT)'!#REF!&IF('Caregiver Tab (FILL THIS OUT)'!#REF!="","","#"&'Caregiver Tab (FILL THIS OUT)'!#REF!)&";"&'Caregiver Tab (FILL THIS OUT)'!#REF!&IF('Caregiver Tab (FILL THIS OUT)'!#REF!="","","#"&'Caregiver Tab (FILL THIS OUT)'!#REF!)&";"&'Caregiver Tab (FILL THIS OUT)'!#REF!&IF('Caregiver Tab (FILL THIS OUT)'!#REF!="","","#"&'Caregiver Tab (FILL THIS OUT)'!#REF!)&";" -> 
B5: =IF('Caregiver Tab (FILL THIS OUT)'!B8="","",'Caregiver Tab (FILL THIS OUT)'!B8) ->  | C5: =IF('Caregiver Tab (FILL THIS OUT)'!C8="","",'Caregiver Tab (FILL THIS OUT)'!C8) ->  | D5: 3 | E5: 1 | F5: =IF('Caregiver Tab (FILL THIS OUT)'!E8="","",'Caregiver Tab (FILL THIS OUT)'!E8) ->  | G5: =IF('Caregiver Tab (FILL THIS OUT)'!F8="","",'Caregiver Tab (FILL THIS OUT)'!F8) -> TRUE | H5: =IF('Caregiver Tab (FILL THIS OUT)'!G8="","",'Caregiver Tab (FILL THIS OUT)'!G8) ->  | I5: =IF('Caregiver Tab (FILL THIS OUT)'!H8="","",'Caregiver Tab (FILL THIS OUT)'!H8) -> password | J5: =IF('Caregiver Tab (FILL THIS OUT)'!I8="","",'Caregiver Tab (FILL THIS OUT)'!I8) ->  | K5: =IF('Caregiver Tab (FILL THIS OUT)'!K8="","",'Caregiver Tab (FILL THIS OUT)'!K8) ->  | L5: =IF('Caregiver Tab (FILL THIS OUT)'!L8="","",'Caregiver Tab (FILL THIS OUT)'!L8) ->  | M5: =IF('Caregiver Tab (FILL THIS OUT)'!M8="","",'Caregiver Tab (FILL THIS OUT)'!M8) ->  | N5: =IF('Caregiver Tab (FILL THIS OUT)'!M8="","",'Caregiver Tab (FILL THIS OUT)'!M8) ->  | O5: =IF('Caregiver Tab (FILL THIS OUT)'!N8="","",'Caregiver Tab (FILL THIS OUT)'!N8) ->  | P5: =IF('Caregiver Tab (FILL THIS OUT)'!O8="","",'Caregiver Tab (FILL THIS OUT)'!O8) ->  | Q5: =IF('Caregiver Tab (FILL THIS OUT)'!P8="","",'Caregiver Tab (FILL THIS OUT)'!P8) ->  | R5: =IF('Caregiver Tab (FILL THIS OUT)'!Q8="","",'Caregiver Tab (FILL THIS OUT)'!Q8) ->  | S5: =IF('Caregiver Tab (FILL THIS OUT)'!R8="","",'Caregiver Tab (FILL THIS OUT)'!R8) ->  | T5: =IF('Caregiver Tab (FILL THIS OUT)'!S8="","",'Caregiver Tab (FILL THIS OUT)'!S8) ->  | U5: =IF('Caregiver Tab (FILL THIS OUT)'!T8="","",'Caregiver Tab (FILL THIS OUT)'!T8) ->  | V5: =IF('Caregiver Tab (FILL THIS OUT)'!U8="","",'Caregiver Tab (FILL THIS OUT)'!U8) -> caregiver | W5: =IF('Caregiver Tab (FILL THIS OUT)'!V8="","",'Caregiver Tab (FILL THIS OUT)'!V8) ->  | X5: =IF('Caregiver Tab (FILL THIS OUT)'!W8="","",'Caregiver Tab (FILL THIS OUT)'!W8) ->  | Y5: =IF('Caregiver Tab (FILL THIS OUT)'!X8="","",'Caregiver Tab (FILL THIS OUT)'!X8) ->  | Z5: ='Caregiver Tab (FILL THIS OUT)'!#REF!&IF('Caregiver Tab (FILL THIS OUT)'!#REF!="","","#"&'Caregiver Tab (FILL THIS OUT)'!#REF!)&";"&'Caregiver Tab (FILL THIS OUT)'!#REF!&IF('Caregiver Tab (FILL THIS OUT)'!#REF!="","","#"&'Caregiver Tab (FILL THIS OUT)'!#REF!)&";"&'Caregiver Tab (FILL THIS OUT)'!#REF!&IF('Caregiver Tab (FILL THIS OUT)'!#REF!="","","#"&'Caregiver Tab (FILL THIS OUT)'!#REF!)&";" -> 
B6: =IF('Caregiver Tab (FILL THIS OUT)'!B9="","",'Caregiver Tab (FILL THIS OUT)'!B9) ->  | C6: =IF('Caregiver Tab (FILL THIS OUT)'!C9="","",'Caregiver Tab (FILL THIS OUT)'!C9) ->  | D6: 3 | E6: 1 | F6: =IF('Caregiver Tab (FILL THIS OUT)'!E9="","",'Caregiver Tab (FILL THIS OUT)'!E9) ->  | G6: =IF('Caregiver Tab (FILL THIS OUT)'!F9="","",'Caregiver Tab (FILL THIS OUT)'!F9) -> TRUE | H6: =IF('Caregiver Tab (FILL THIS OUT)'!G9="","",'Caregiver Tab (FILL THIS OUT)'!G9) ->  | I6: =IF('Caregiver Tab (FILL THIS OUT)'!H9="","",'Caregiver Tab (FILL THIS OUT)'!H9) -> password | J6: =IF('Caregiver Tab (FILL THIS OUT)'!I9="","",'Caregiver Tab (FILL THIS OUT)'!I9) ->  | K6: =IF('Caregiver Tab (FILL THIS OUT)'!K9="","",'Caregiver Tab (FILL THIS OUT)'!K9) ->  | L6: =IF('Caregiver Tab (FILL THIS OUT)'!L9="","",'Caregiver Tab (FILL THIS OUT)'!L9) ->  | M6: =IF('Caregiver Tab (FILL THIS OUT)'!M9="","",'Caregiver Tab (FILL THIS OUT)'!M9) ->  | N6: =IF('Caregiver Tab (FILL THIS OUT)'!M9="","",'Caregiver Tab (FILL THIS OUT)'!M9) ->  | O6: =IF('Caregiver Tab (FILL THIS OUT)'!N9="","",'Caregiver Tab (FILL THIS OUT)'!N9) ->  | P6: =IF('Caregiver Tab (FILL THIS OUT)'!O9="","",'Caregiver Tab (FILL THIS OUT)'!O9) ->  | Q6: =IF('Caregiver Tab (FILL THIS OUT)'!P9="","",'Caregiver Tab (FILL THIS OUT)'!P9) ->  | R6: =IF('Caregiver Tab (FILL THIS OUT)'!Q9="","",'Caregiver Tab (FILL THIS OUT)'!Q9) ->  | S6: =IF('Caregiver Tab (FILL THIS OUT)'!R9="","",'Caregiver Tab (FILL THIS OUT)'!R9) ->  | T6: =IF('Caregiver Tab (FILL THIS OUT)'!S9="","",'Caregiver Tab (FILL THIS OUT)'!S9) ->  | U6: =IF('Caregiver Tab (FILL THIS OUT)'!T9="","",'Caregiver Tab (FILL THIS OUT)'!T9) ->  | V6: =IF('Caregiver Tab (FILL THIS OUT)'!U9="","",'Caregiver Tab (FILL THIS OUT)'!U9) -> caregiver | W6: =IF('Caregiver Tab (FILL THIS OUT)'!V9="","",'Caregiver Tab (FILL THIS OUT)'!V9) ->  | X6: =IF('Caregiver Tab (FILL THIS OUT)'!W9="","",'Caregiver Tab (FILL THIS OUT)'!W9) ->  | Y6: =IF('Caregiver Tab (FILL THIS OUT)'!X9="","",'Caregiver Tab (FILL THIS OUT)'!X9) ->  | Z6: ='Caregiver Tab (FILL THIS OUT)'!#REF!&IF('Caregiver Tab (FILL THIS OUT)'!#REF!="","","#"&'Caregiver Tab (FILL THIS OUT)'!#REF!)&";"&'Caregiver Tab (FILL THIS OUT)'!#REF!&IF('Caregiver Tab (FILL THIS OUT)'!#REF!="","","#"&'Caregiver Tab (FILL THIS OUT)'!#REF!)&";"&'Caregiver Tab (FILL THIS OUT)'!#REF!&IF('Caregiver Tab (FILL THIS OUT)'!#REF!="","","#"&'Caregiver Tab (FILL THIS OUT)'!#REF!)&";" -> 
B7: =IF('Caregiver Tab (FILL THIS OUT)'!B10="","",'Caregiver Tab (FILL THIS OUT)'!B10) ->  | C7: =IF('Caregiver Tab (FILL THIS OUT)'!C10="","",'Caregiver Tab (FILL THIS OUT)'!C10) ->  | D7: 3 | E7: 1 | F7: =IF('Caregiver Tab (FILL THIS OUT)'!E10="","",'Caregiver Tab (FILL THIS OUT)'!E10) ->  | G7: =IF('Caregiver Tab (FILL THIS OUT)'!F10="","",'Caregiver Tab (FILL THIS OUT)'!F10) -> TRUE | H7: =IF('Caregiver Tab (FILL THIS OUT)'!G10="","",'Caregiver Tab (FILL THIS OUT)'!G10) ->  | I7: =IF('Caregiver Tab (FILL THIS OUT)'!H10="","",'Caregiver Tab (FILL THIS OUT)'!H10) -> password | J7: =IF('Caregiver Tab (FILL THIS OUT)'!I10="","",'Caregiver Tab (FILL THIS OUT)'!I10) ->  | K7: =IF('Caregiver Tab (FILL THIS OUT)'!K10="","",'Caregiver Tab (FILL THIS OUT)'!K10) ->  | L7: =IF('Caregiver Tab (FILL THIS OUT)'!L10="","",'Caregiver Tab (FILL THIS OUT)'!L10) ->  | M7: =IF('Caregiver Tab (FILL THIS OUT)'!M10="","",'Caregiver Tab (FILL THIS OUT)'!M10) ->  | N7: =IF('Caregiver Tab (FILL THIS OUT)'!M10="","",'Caregiver Tab (FILL THIS OUT)'!M10) ->  | O7: =IF('Caregiver Tab (FILL THIS OUT)'!N10="","",'Caregiver Tab (FILL THIS OUT)'!N10) ->  | P7: =IF('Caregiver Tab (FILL THIS OUT)'!O10="","",'Caregiver Tab (FILL THIS OUT)'!O10) ->  | Q7: =IF('Caregiver Tab (FILL THIS OUT)'!P10="","",'Caregiver Tab (FILL THIS OUT)'!P10) ->  | R7: =IF('Caregiver Tab (FILL THIS OUT)'!Q10="","",'Caregiver Tab (FILL THIS OUT)'!Q10) ->  | S7: =IF('Caregiver Tab (FILL THIS OUT)'!R10="","",'Caregiver Tab (FILL THIS OUT)'!R10) ->  | T7: =IF('Caregiver Tab (FILL THIS OUT)'!S10="","",'Caregiver Tab (FILL THIS OUT)'!S10) ->  | U7: =IF('Caregiver Tab (FILL THIS OUT)'!T10="","",'Caregiver Tab (FILL THIS OUT)'!T10) ->  | V7: =IF('Caregiver Tab (FILL THIS OUT)'!U10="","",'Caregiver Tab (FILL THIS OUT)'!U10) -> caregiver | W7: =IF('Caregiver Tab (FILL THIS OUT)'!V10="","",'Caregiver Tab (FILL THIS OUT)'!V10) ->  | X7: =IF('Caregiver Tab (FILL THIS OUT)'!W10="","",'Caregiver Tab (FILL THIS OUT)'!W10) ->  | Y7: =IF('Caregiver Tab (FILL THIS OUT)'!X10="","",'Caregiver Tab (FILL THIS OUT)'!X10) ->  | Z7: ='Caregiver Tab (FILL THIS OUT)'!#REF!&IF('Caregiver Tab (FILL THIS OUT)'!#REF!="","","#"&'Caregiver Tab (FILL THIS OUT)'!#REF!)&";"&'Caregiver Tab (FILL THIS OUT)'!#REF!&IF('Caregiver Tab (FILL THIS OUT)'!#REF!="","","#"&'Caregiver Tab (FILL THIS OUT)'!#REF!)&";"&'Caregiver Tab (FILL THIS OUT)'!#REF!&IF('Caregiver Tab (FILL THIS OUT)'!#REF!="","","#"&'Caregiver Tab (FILL THIS OUT)'!#REF!)&";" -> 
B8: =IF('Caregiver Tab (FILL THIS OUT)'!B11="","",'Caregiver Tab (FILL THIS OUT)'!B11) ->  | C8: =IF('Caregiver Tab (FILL THIS OUT)'!C11="","",'Caregiver Tab (FILL THIS OUT)'!C11) ->  | D8: 3 | E8: 1 | F8: =IF('Caregiver Tab (FILL THIS OUT)'!E11="","",'Caregiver Tab (FILL THIS OUT)'!E11) ->  | G8: =IF('Caregiver Tab (FILL THIS OUT)'!F11="","",'Caregiver Tab (FILL THIS OUT)'!F11) -> TRUE | H8: =IF('Caregiver Tab (FILL THIS OUT)'!G11="","",'Caregiver Tab (FILL THIS OUT)'!G11) ->  | I8: =IF('Caregiver Tab (FILL THIS OUT)'!H11="","",'Caregiver Tab (FILL THIS OUT)'!H11) -> password | J8: =IF('Caregiver Tab (FILL THIS OUT)'!I11="","",'Caregiver Tab (FILL THIS OUT)'!I11) ->  | K8: =IF('Caregiver Tab (FILL THIS OUT)'!K11="","",'Caregiver Tab (FILL THIS OUT)'!K11) ->  | L8: =IF('Caregiver Tab (FILL THIS OUT)'!L11="","",'Caregiver Tab (FILL THIS OUT)'!L11) ->  | M8: =IF('Caregiver Tab (FILL THIS OUT)'!M11="","",'Caregiver Tab (FILL THIS OUT)'!M11) ->  | N8: =IF('Caregiver Tab (FILL THIS OUT)'!M11="","",'Caregiver Tab (FILL THIS OUT)'!M11) ->  | O8: =IF('Caregiver Tab (FILL THIS OUT)'!N11="","",'Caregiver Tab (FILL THIS OUT)'!N11) ->  | P8: =IF('Caregiver Tab (FILL THIS OUT)'!O11="","",'Caregiver Tab (FILL THIS OUT)'!O11) ->  | Q8: =IF('Caregiver Tab (FILL THIS OUT)'!P11="","",'Caregiver Tab (FILL THIS OUT)'!P11) ->  | R8: =IF('Caregiver Tab (FILL THIS OUT)'!Q11="","",'Caregiver Tab (FILL THIS OUT)'!Q11) ->  | S8: =IF('Caregiver Tab (FILL THIS OUT)'!R11="","",'Caregiver Tab (FILL THIS OUT)'!R11) ->  | T8: =IF('Caregiver Tab (FILL THIS OUT)'!S11="","",'Caregiver Tab (FILL THIS OUT)'!S11) ->  | U8: =IF('Caregiver Tab (FILL THIS OUT)'!T11="","",'Caregiver Tab (FILL THIS OUT)'!T11) ->  | V8: =IF('Caregiver Tab (FILL THIS OUT)'!U11="","",'Caregiver Tab (FILL THIS OUT)'!U11) -> caregiver | W8: =IF('Caregiver Tab (FILL THIS OUT)'!V11="","",'Caregiver Tab (FILL THIS OUT)'!V11) ->  | X8: =IF('Caregiver Tab (FILL THIS OUT)'!W11="","",'Caregiver Tab (FILL THIS OUT)'!W11) ->  | Y8: =IF('Caregiver Tab (FILL THIS OUT)'!X11="","",'Caregiver Tab (FILL THIS OUT)'!X11) ->  | Z8: ='Caregiver Tab (FILL THIS OUT)'!#REF!&IF('Caregiver Tab (FILL THIS OUT)'!#REF!="","","#"&'Caregiver Tab (FILL THIS OUT)'!#REF!)&";"&'Caregiver Tab (FILL THIS OUT)'!#REF!&IF('Caregiver Tab (FILL THIS OUT)'!#REF!="","","#"&'Caregiver Tab (FILL THIS OUT)'!#REF!)&";"&'Caregiver Tab (FILL THIS OUT)'!#REF!&IF('Caregiver Tab (FILL THIS OUT)'!#REF!="","","#"&'Caregiver Tab (FILL THIS OUT)'!#REF!)&";" -> 
B9: =IF('Caregiver Tab (FILL THIS OUT)'!B12="","",'Caregiver Tab (FILL THIS OUT)'!B12) ->  | C9: =IF('Caregiver Tab (FILL THIS OUT)'!C12="","",'Caregiver Tab (FILL THIS OUT)'!C12) ->  | D9: 3 | E9: 1 | F9: =IF('Caregiver Tab (FILL THIS OUT)'!E12="","",'Caregiver Tab (FILL THIS OUT)'!E12) ->  | G9: =IF('Caregiver Tab (FILL THIS OUT)'!F12="","",'Caregiver Tab (FILL THIS OUT)'!F12) -> TRUE | H9: =IF('Caregiver Tab (FILL THIS OUT)'!G12="","",'Caregiver Tab (FILL THIS OUT)'!G12) ->  | I9: =IF('Caregiver Tab (FILL THIS OUT)'!H12="","",'Caregiver Tab (FILL THIS OUT)'!H12) -> password | J9: =IF('Caregiver Tab (FILL THIS OUT)'!I12="","",'Caregiver Tab (FILL THIS OUT)'!I12) ->  | K9: =IF('Caregiver Tab (FILL THIS OUT)'!K12="","",'Caregiver Tab (FILL THIS OUT)'!K12) ->  | L9: =IF('Caregiver Tab (FILL THIS OUT)'!L12="","",'Caregiver Tab (FILL THIS OUT)'!L12) ->  | M9: =IF('Caregiver Tab (FILL THIS OUT)'!M12="","",'Caregiver Tab (FILL THIS OUT)'!M12) ->  | N9: =IF('Caregiver Tab (FILL THIS OUT)'!M12="","",'Caregiver Tab (FILL THIS OUT)'!M12) ->  | O9: =IF('Caregiver Tab (FILL THIS OUT)'!N12="","",'Caregiver Tab (FILL THIS OUT)'!N12) ->  | P9: =IF('Caregiver Tab (FILL THIS OUT)'!O12="","",'Caregiver Tab (FILL THIS OUT)'!O12) ->  | Q9: =IF('Caregiver Tab (FILL THIS OUT)'!P12="","",'Caregiver Tab (FILL THIS OUT)'!P12) ->  | R9: =IF('Caregiver Tab (FILL THIS OUT)'!Q12="","",'Caregiver Tab (FILL THIS OUT)'!Q12) ->  | S9: =IF('Caregiver Tab (FILL THIS OUT)'!R12="","",'Caregiver Tab (FILL THIS OUT)'!R12) ->  | T9: =IF('Caregiver Tab (FILL THIS OUT)'!S12="","",'Caregiver Tab (FILL THIS OUT)'!S12) ->  | U9: =IF('Caregiver Tab (FILL THIS OUT)'!T12="","",'Caregiver Tab (FILL THIS OUT)'!T12) ->  | V9: =IF('Caregiver Tab (FILL THIS OUT)'!U12="","",'Caregiver Tab (FILL THIS OUT)'!U12) -> caregiver | W9: =IF('Caregiver Tab (FILL THIS OUT)'!V12="","",'Caregiver Tab (FILL THIS OUT)'!V12) ->  | X9: =IF('Caregiver Tab (FILL THIS OUT)'!W12="","",'Caregiver Tab (FILL THIS OUT)'!W12) ->  | Y9: =IF('Caregiver Tab (FILL THIS OUT)'!X12="","",'Caregiver Tab (FILL THIS OUT)'!X12) ->  | Z9: ='Caregiver Tab (FILL THIS OUT)'!#REF!&IF('Caregiver Tab (FILL THIS OUT)'!#REF!="","","#"&'Caregiver Tab (FILL THIS OUT)'!#REF!)&";"&'Caregiver Tab (FILL THIS OUT)'!#REF!&IF('Caregiver Tab (FILL THIS OUT)'!#REF!="","","#"&'Caregiver Tab (FILL THIS OUT)'!#REF!)&";"&'Caregiver Tab (FILL THIS OUT)'!#REF!&IF('Caregiver Tab (FILL THIS OUT)'!#REF!="","","#"&'Caregiver Tab (FILL THIS OUT)'!#REF!)&";" -> 
B10: =IF('Caregiver Tab (FILL THIS OUT)'!B13="","",'Caregiver Tab (FILL THIS OUT)'!B13) ->  | C10: =IF('Caregiver Tab (FILL THIS OUT)'!C13="","",'Caregiver Tab (FILL THIS OUT)'!C13) ->  | D10: 3 | E10: 1 | F10: =IF('Caregiver Tab (FILL THIS OUT)'!E13="","",'Caregiver Tab (FILL THIS OUT)'!E13) ->  | G10: =IF('Caregiver Tab (FILL THIS OUT)'!F13="","",'Caregiver Tab (FILL THIS OUT)'!F13) -> TRUE | H10: =IF('Caregiver Tab (FILL THIS OUT)'!G13="","",'Caregiver Tab (FILL THIS OUT)'!G13) ->  | I10: =IF('Caregiver Tab (FILL THIS OUT)'!H13="","",'Caregiver Tab (FILL THIS OUT)'!H13) -> password | J10: =IF('Caregiver Tab (FILL THIS OUT)'!I13="","",'Caregiver Tab (FILL THIS OUT)'!I13) ->  | K10: =IF('Caregiver Tab (FILL THIS OUT)'!K13="","",'Caregiver Tab (FILL THIS OUT)'!K13) ->  | L10: =IF('Caregiver Tab (FILL THIS OUT)'!L13="","",'Caregiver Tab (FILL THIS OUT)'!L13) ->  | M10: =IF('Caregiver Tab (FILL THIS OUT)'!M13="","",'Caregiver Tab (FILL THIS OUT)'!M13) ->  | N10: =IF('Caregiver Tab (FILL THIS OUT)'!M13="","",'Caregiver Tab (FILL THIS OUT)'!M13) ->  | O10: =IF('Caregiver Tab (FILL THIS OUT)'!N13="","",'Caregiver Tab (FILL THIS OUT)'!N13) ->  | P10: =IF('Caregiver Tab (FILL THIS OUT)'!O13="","",'Caregiver Tab (FILL THIS OUT)'!O13) ->  | Q10: =IF('Caregiver Tab (FILL THIS OUT)'!P13="","",'Caregiver Tab (FILL THIS OUT)'!P13) ->  | R10: =IF('Caregiver Tab (FILL THIS OUT)'!Q13="","",'Caregiver Tab (FILL THIS OUT)'!Q13) ->  | S10: =IF('Caregiver Tab (FILL THIS OUT)'!R13="","",'Caregiver Tab (FILL THIS OUT)'!R13) ->  | T10: =IF('Caregiver Tab (FILL THIS OUT)'!S13="","",'Caregiver Tab (FILL THIS OUT)'!S13) ->  | U10: =IF('Caregiver Tab (FILL THIS OUT)'!T13="","",'Caregiver Tab (FILL THIS OUT)'!T13) ->  | V10: =IF('Caregiver Tab (FILL THIS OUT)'!U13="","",'Caregiver Tab (FILL THIS OUT)'!U13) -> caregiver | W10: =IF('Caregiver Tab (FILL THIS OUT)'!V13="","",'Caregiver Tab (FILL THIS OUT)'!V13) ->  | X10: =IF('Caregiver Tab (FILL THIS OUT)'!W13="","",'Caregiver Tab (FILL THIS OUT)'!W13) ->  | Y10: =IF('Caregiver Tab (FILL THIS OUT)'!X13="","",'Caregiver Tab (FILL THIS OUT)'!X13) ->  | Z10: ='Caregiver Tab (FILL THIS OUT)'!#REF!&IF('Caregiver Tab (FILL THIS OUT)'!#REF!="","","#"&'Caregiver Tab (FILL THIS OUT)'!#REF!)&";"&'Caregiver Tab (FILL THIS OUT)'!#REF!&IF('Caregiver Tab (FILL THIS OUT)'!#REF!="","","#"&'Caregiver Tab (FILL THIS OUT)'!#REF!)&";"&'Caregiver Tab (FILL THIS OUT)'!#REF!&IF('Caregiver Tab (FILL THIS OUT)'!#REF!="","","#"&'Caregiver Tab (FILL THIS OUT)'!#REF!)&";" -> 
B11: =IF('Caregiver Tab (FILL THIS OUT)'!B14="","",'Caregiver Tab (FILL THIS OUT)'!B14) ->  | C11: =IF('Caregiver Tab (FILL THIS OUT)'!C14="","",'Caregiver Tab (FILL THIS OUT)'!C14) ->  | D11: 3 | E11: 1 | F11: =IF('Caregiver Tab (FILL THIS OUT)'!E14="","",'Caregiver Tab (FILL THIS OUT)'!E14) ->  | G11: =IF('Caregiver Tab (FILL THIS OUT)'!F14="","",'Caregiver Tab (FILL THIS OUT)'!F14) -> TRUE | H11: =IF('Caregiver Tab (FILL THIS OUT)'!G14="","",'Caregiver Tab (FILL THIS OUT)'!G14) ->  | I11: =IF('Caregiver Tab (FILL THIS OUT)'!H14="","",'Caregiver Tab (FILL THIS OUT)'!H14) -> password | J11: =IF('Caregiver Tab (FILL THIS OUT)'!I14="","",'Caregiver Tab (FILL THIS OUT)'!I14) ->  | K11: =IF('Caregiver Tab (FILL THIS OUT)'!K14="","",'Caregiver Tab (FILL THIS OUT)'!K14) ->  | L11: =IF('Caregiver Tab (FILL THIS OUT)'!L14="","",'Caregiver Tab (FILL THIS OUT)'!L14) ->  | M11: =IF('Caregiver Tab (FILL THIS OUT)'!M14="","",'Caregiver Tab (FILL THIS OUT)'!M14) ->  | N11: =IF('Caregiver Tab (FILL THIS OUT)'!M14="","",'Caregiver Tab (FILL THIS OUT)'!M14) ->  | O11: =IF('Caregiver Tab (FILL THIS OUT)'!N14="","",'Caregiver Tab (FILL THIS OUT)'!N14) ->  | P11: =IF('Caregiver Tab (FILL THIS OUT)'!O14="","",'Caregiver Tab (FILL THIS OUT)'!O14) ->  | Q11: =IF('Caregiver Tab (FILL THIS OUT)'!P14="","",'Caregiver Tab (FILL THIS OUT)'!P14) ->  | R11: =IF('Caregiver Tab (FILL THIS OUT)'!Q14="","",'Caregiver Tab (FILL THIS OUT)'!Q14) ->  | S11: =IF('Caregiver Tab (FILL THIS OUT)'!R14="","",'Caregiver Tab (FILL THIS OUT)'!R14) ->  | T11: =IF('Caregiver Tab (FILL THIS OUT)'!S14="","",'Caregiver Tab (FILL THIS OUT)'!S14) ->  | U11: =IF('Caregiver Tab (FILL THIS OUT)'!T14="","",'Caregiver Tab (FILL THIS OUT)'!T14) ->  | V11: =IF('Caregiver Tab (FILL THIS OUT)'!U14="","",'Caregiver Tab (FILL THIS OUT)'!U14) -> caregiver | W11: =IF('Caregiver Tab (FILL THIS OUT)'!V14="","",'Caregiver Tab (FILL THIS OUT)'!V14) ->  | X11: =IF('Caregiver Tab (FILL THIS OUT)'!W14="","",'Caregiver Tab (FILL THIS OUT)'!W14) ->  | Y11: =IF('Caregiver Tab (FILL THIS OUT)'!X14="","",'Caregiver Tab (FILL THIS OUT)'!X14) ->  | Z11: ='Caregiver Tab (FILL THIS OUT)'!#REF!&IF('Caregiver Tab (FILL THIS OUT)'!#REF!="","","#"&'Caregiver Tab (FILL THIS OUT)'!#REF!)&";"&'Caregiver Tab (FILL THIS OUT)'!#REF!&IF('Caregiver Tab (FILL THIS OUT)'!#REF!="","","#"&'Caregiver Tab (FILL THIS OUT)'!#REF!)&";"&'Caregiver Tab (FILL THIS OUT)'!#REF!&IF('Caregiver Tab (FILL THIS OUT)'!#REF!="","","#"&'Caregiver Tab (FILL THIS OUT)'!#REF!)&";" -> 
B12: =IF('Caregiver Tab (FILL THIS OUT)'!B15="","",'Caregiver Tab (FILL THIS OUT)'!B15) ->  | C12: =IF('Caregiver Tab (FILL THIS OUT)'!C15="","",'Caregiver Tab (FILL THIS OUT)'!C15) ->  | D12: 3 | E12: 1 | F12: =IF('Caregiver Tab (FILL THIS OUT)'!E15="","",'Caregiver Tab (FILL THIS OUT)'!E15) ->  | G12: =IF('Caregiver Tab (FILL THIS OUT)'!F15="","",'Caregiver Tab (FILL THIS OUT)'!F15) -> TRUE | H12: =IF('Caregiver Tab (FILL THIS OUT)'!G15="","",'Caregiver Tab (FILL THIS OUT)'!G15) ->  | I12: =IF('Caregiver Tab (FILL THIS OUT)'!H15="","",'Caregiver Tab (FILL THIS OUT)'!H15) -> password | J12: =IF('Caregiver Tab (FILL THIS OUT)'!I15="","",'Caregiver Tab (FILL THIS OUT)'!I15) ->  | K12: =IF('Caregiver Tab (FILL THIS OUT)'!K15="","",'Caregiver Tab (FILL THIS OUT)'!K15) ->  | L12: =IF('Caregiver Tab (FILL THIS OUT)'!L15="","",'Caregiver Tab (FILL THIS OUT)'!L15) ->  | M12: =IF('Caregiver Tab (FILL THIS OUT)'!M15="","",'Caregiver Tab (FILL THIS OUT)'!M15) ->  | N12: =IF('Caregiver Tab (FILL THIS OUT)'!M15="","",'Caregiver Tab (FILL THIS OUT)'!M15) ->  | O12: =IF('Caregiver Tab (FILL THIS OUT)'!N15="","",'Caregiver Tab (FILL THIS OUT)'!N15) ->  | P12: =IF('Caregiver Tab (FILL THIS OUT)'!O15="","",'Caregiver Tab (FILL THIS OUT)'!O15) ->  | Q12: =IF('Caregiver Tab (FILL THIS OUT)'!P15="","",'Caregiver Tab (FILL THIS OUT)'!P15) ->  | R12: =IF('Caregiver Tab (FILL THIS OUT)'!Q15="","",'Caregiver Tab (FILL THIS OUT)'!Q15) ->  | S12: =IF('Caregiver Tab (FILL THIS OUT)'!R15="","",'Caregiver Tab (FILL THIS OUT)'!R15) ->  | T12: =IF('Caregiver Tab (FILL THIS OUT)'!S15="","",'Caregiver Tab (FILL THIS OUT)'!S15) ->  | U12: =IF('Caregiver Tab (FILL THIS OUT)'!T15="","",'Caregiver Tab (FILL THIS OUT)'!T15) ->  | V12: =IF('Caregiver Tab (FILL THIS OUT)'!U15="","",'Caregiver Tab (FILL THIS OUT)'!U15) -> caregiver | W12: =IF('Caregiver Tab (FILL THIS OUT)'!V15="","",'Caregiver Tab (FILL THIS OUT)'!V15) ->  | X12: =IF('Caregiver Tab (FILL THIS OUT)'!W15="","",'Caregiver Tab (FILL THIS OUT)'!W15) ->  | Y12: =IF('Caregiver Tab (FILL THIS OUT)'!X15="","",'Caregiver Tab (FILL THIS OUT)'!X15) ->  | Z12: ='Caregiver Tab (FILL THIS OUT)'!#REF!&IF('Caregiver Tab (FILL THIS OUT)'!#REF!="","","#"&'Caregiver Tab (FILL THIS OUT)'!#REF!)&";"&'Caregiver Tab (FILL THIS OUT)'!#REF!&IF('Caregiver Tab (FILL THIS OUT)'!#REF!="","","#"&'Caregiver Tab (FILL THIS OUT)'!#REF!)&";"&'Caregiver Tab (FILL THIS OUT)'!#REF!&IF('Caregiver Tab (FILL THIS OUT)'!#REF!="","","#"&'Caregiver Tab (FILL THIS OUT)'!#REF!)&";" -> 
B13: =IF('Caregiver Tab (FILL THIS OUT)'!B16="","",'Caregiver Tab (FILL THIS OUT)'!B16) ->  | C13: =IF('Caregiver Tab (FILL THIS OUT)'!C16="","",'Caregiver Tab (FILL THIS OUT)'!C16) ->  | D13: 3 | E13: 1 | F13: =IF('Caregiver Tab (FILL THIS OUT)'!E16="","",'Caregiver Tab (FILL THIS OUT)'!E16) ->  | G13: =IF('Caregiver Tab (FILL THIS OUT)'!F16="","",'Caregiver Tab (FILL THIS OUT)'!F16) -> TRUE | H13: =IF('Caregiver Tab (FILL THIS OUT)'!G16="","",'Caregiver Tab (FILL THIS OUT)'!G16) ->  | I13: =IF('Caregiver Tab (FILL THIS OUT)'!H16="","",'Caregiver Tab (FILL THIS OUT)'!H16) -> password | J13: =IF('Caregiver Tab (FILL THIS OUT)'!I16="","",'Caregiver Tab (FILL THIS OUT)'!I16) ->  | K13: =IF('Caregiver Tab (FILL THIS OUT)'!K16="","",'Caregiver Tab (FILL THIS OUT)'!K16) ->  | L13: =IF('Caregiver Tab (FILL THIS OUT)'!L16="","",'Caregiver Tab (FILL THIS OUT)'!L16) ->  | M13: =IF('Caregiver Tab (FILL THIS OUT)'!M16="","",'Caregiver Tab (FILL THIS OUT)'!M16) ->  | N13: =IF('Caregiver Tab (FILL THIS OUT)'!M16="","",'Caregiver Tab (FILL THIS OUT)'!M16) ->  | O13: =IF('Caregiver Tab (FILL THIS OUT)'!N16="","",'Caregiver Tab (FILL THIS OUT)'!N16) ->  | P13: =IF('Caregiver Tab (FILL THIS OUT)'!O16="","",'Caregiver Tab (FILL THIS OUT)'!O16) ->  | Q13: =IF('Caregiver Tab (FILL THIS OUT)'!P16="","",'Caregiver Tab (FILL THIS OUT)'!P16) ->  | R13: =IF('Caregiver Tab (FILL THIS OUT)'!Q16="","",'Caregiver Tab (FILL THIS OUT)'!Q16) ->  | S13: =IF('Caregiver Tab (FILL THIS OUT)'!R16="","",'Caregiver Tab (FILL THIS OUT)'!R16) ->  | T13: =IF('Caregiver Tab (FILL THIS OUT)'!S16="","",'Caregiver Tab (FILL THIS OUT)'!S16) ->  | U13: =IF('Caregiver Tab (FILL THIS OUT)'!T16="","",'Caregiver Tab (FILL THIS OUT)'!T16) ->  | V13: =IF('Caregiver Tab (FILL THIS OUT)'!U16="","",'Caregiver Tab (FILL THIS OUT)'!U16) -> caregiver | W13: =IF('Caregiver Tab (FILL THIS OUT)'!V16="","",'Caregiver Tab (FILL THIS OUT)'!V16) ->  | X13: =IF('Caregiver Tab (FILL THIS OUT)'!W16="","",'Caregiver Tab (FILL THIS OUT)'!W16) ->  | Y13: =IF('Caregiver Tab (FILL THIS OUT)'!X16="","",'Caregiver Tab (FILL THIS OUT)'!X16) ->  | Z13: ='Caregiver Tab (FILL THIS OUT)'!#REF!&IF('Caregiver Tab (FILL THIS OUT)'!#REF!="","","#"&'Caregiver Tab (FILL THIS OUT)'!#REF!)&";"&'Caregiver Tab (FILL THIS OUT)'!#REF!&IF('Caregiver Tab (FILL THIS OUT)'!#REF!="","","#"&'Caregiver Tab (FILL THIS OUT)'!#REF!)&";"&'Caregiver Tab (FILL THIS OUT)'!#REF!&IF('Caregiver Tab (FILL THIS OUT)'!#REF!="","","#"&'Caregiver Tab (FILL THIS OUT)'!#REF!)&";" -> 
B14: =IF('Caregiver Tab (FILL THIS OUT)'!B17="","",'Caregiver Tab (FILL THIS OUT)'!B17) ->  | C14: =IF('Caregiver Tab (FILL THIS OUT)'!C17="","",'Caregiver Tab (FILL THIS OUT)'!C17) ->  | D14: 3 | E14: 1 | F14: =IF('Caregiver Tab (FILL THIS OUT)'!E17="","",'Caregiver Tab (FILL THIS OUT)'!E17) ->  | G14: =IF('Caregiver Tab (FILL THIS OUT)'!F17="","",'Caregiver Tab (FILL THIS OUT)'!F17) -> TRUE | H14: =IF('Caregiver Tab (FILL THIS OUT)'!G17="","",'Caregiver Tab (FILL THIS OUT)'!G17) ->  | I14: =IF('Caregiver Tab (FILL THIS OUT)'!H17="","",'Caregiver Tab (FILL THIS OUT)'!H17) -> password | J14: =IF('Caregiver Tab (FILL THIS OUT)'!I17="","",'Caregiver Tab (FILL THIS OUT)'!I17) ->  | K14: =IF('Caregiver Tab (FILL THIS OUT)'!K17="","",'Caregiver Tab (FILL THIS OUT)'!K17) ->  | L14: =IF('Caregiver Tab (FILL THIS OUT)'!L17="","",'Caregiver Tab (FILL THIS OUT)'!L17) ->  | M14: =IF('Caregiver Tab (FILL THIS OUT)'!M17="","",'Caregiver Tab (FILL THIS OUT)'!M17) ->  | N14: =IF('Caregiver Tab (FILL THIS OUT)'!M17="","",'Caregiver Tab (FILL THIS OUT)'!M17) ->  | O14: =IF('Caregiver Tab (FILL THIS OUT)'!N17="","",'Caregiver Tab (FILL THIS OUT)'!N17) ->  | P14: =IF('Caregiver Tab (FILL THIS OUT)'!O17="","",'Caregiver Tab (FILL THIS OUT)'!O17) ->  | Q14: =IF('Caregiver Tab (FILL THIS OUT)'!P17="","",'Caregiver Tab (FILL THIS OUT)'!P17) ->  | R14: =IF('Caregiver Tab (FILL THIS OUT)'!Q17="","",'Caregiver Tab (FILL THIS OUT)'!Q17) ->  | S14: =IF('Caregiver Tab (FILL THIS OUT)'!R17="","",'Caregiver Tab (FILL THIS OUT)'!R17) ->  | T14: =IF('Caregiver Tab (FILL THIS OUT)'!S17="","",'Caregiver Tab (FILL THIS OUT)'!S17) ->  | U14: =IF('Caregiver Tab (FILL THIS OUT)'!T17="","",'Caregiver Tab (FILL THIS OUT)'!T17) ->  | V14: =IF('Caregiver Tab (FILL THIS OUT)'!U17="","",'Caregiver Tab (FILL THIS OUT)'!U17) -> caregiver | W14: =IF('Caregiver Tab (FILL THIS OUT)'!V17="","",'Caregiver Tab (FILL THIS OUT)'!V17) ->  | X14: =IF('Caregiver Tab (FILL THIS OUT)'!W17="","",'Caregiver Tab (FILL THIS OUT)'!W17) ->  | Y14: =IF('Caregiver Tab (FILL THIS OUT)'!X17="","",'Caregiver Tab (FILL THIS OUT)'!X17) ->  | Z14: ='Caregiver Tab (FILL THIS OUT)'!#REF!&IF('Caregiver Tab (FILL THIS OUT)'!#REF!="","","#"&'Caregiver Tab (FILL THIS OUT)'!#REF!)&";"&'Caregiver Tab (FILL THIS OUT)'!#REF!&IF('Caregiver Tab (FILL THIS OUT)'!#REF!="","","#"&'Caregiver Tab (FILL THIS OUT)'!#REF!)&";"&'Caregiver Tab (FILL THIS OUT)'!#REF!&IF('Caregiver Tab (FILL THIS OUT)'!#REF!="","","#"&'Caregiver Tab (FILL THIS OUT)'!#REF!)&";" -> 
B15: =IF('Caregiver Tab (FILL THIS OUT)'!B18="","",'Caregiver Tab (FILL THIS OUT)'!B18) ->  | C15: =IF('Caregiver Tab (FILL THIS OUT)'!C18="","",'Caregiver Tab (FILL THIS OUT)'!C18) ->  | D15: 3 | E15: 1 | F15: =IF('Caregiver Tab (FILL THIS OUT)'!E18="","",'Caregiver Tab (FILL THIS OUT)'!E18) ->  | G15: =IF('Caregiver Tab (FILL THIS OUT)'!F18="","",'Caregiver Tab (FILL THIS OUT)'!F18) -> TRUE | H15: =IF('Caregiver Tab (FILL THIS OUT)'!G18="","",'Caregiver Tab (FILL THIS OUT)'!G18) ->  | I15: =IF('Caregiver Tab (FILL THIS OUT)'!H18="","",'Caregiver Tab (FILL THIS OUT)'!H18) -> password | J15: =IF('Caregiver Tab (FILL THIS OUT)'!I18="","",'Caregiver Tab (FILL THIS OUT)'!I18) ->  | K15: =IF('Caregiver Tab (FILL THIS OUT)'!K18="","",'Caregiver Tab (FILL THIS OUT)'!K18) ->  | L15: =IF('Caregiver Tab (FILL THIS OUT)'!L18="","",'Caregiver Tab (FILL THIS OUT)'!L18) ->  | M15: =IF('Caregiver Tab (FILL THIS OUT)'!M18="","",'Caregiver Tab (FILL THIS OUT)'!M18) ->  | N15: =IF('Caregiver Tab (FILL THIS OUT)'!M18="","",'Caregiver Tab (FILL THIS OUT)'!M18) ->  | O15: =IF('Caregiver Tab (FILL THIS OUT)'!N18="","",'Caregiver Tab (FILL THIS OUT)'!N18) ->  | P15: =IF('Caregiver Tab (FILL THIS OUT)'!O18="","",'Caregiver Tab (FILL THIS OUT)'!O18) ->  | Q15: =IF('Caregiver Tab (FILL THIS OUT)'!P18="","",'Caregiver Tab (FILL THIS OUT)'!P18) ->  | R15: =IF('Caregiver Tab (FILL THIS OUT)'!Q18="","",'Caregiver Tab (FILL THIS OUT)'!Q18) ->  | S15: =IF('Caregiver Tab (FILL THIS OUT)'!R18="","",'Caregiver Tab (FILL THIS OUT)'!R18) ->  | T15: =IF('Caregiver Tab (FILL THIS OUT)'!S18="","",'Caregiver Tab (FILL THIS OUT)'!S18) ->  | U15: =IF('Caregiver Tab (FILL THIS OUT)'!T18="","",'Caregiver Tab (FILL THIS OUT)'!T18) ->  | V15: =IF('Caregiver Tab (FILL THIS OUT)'!U18="","",'Caregiver Tab (FILL THIS OUT)'!U18) -> caregiver | W15: =IF('Caregiver Tab (FILL THIS OUT)'!V18="","",'Caregiver Tab (FILL THIS OUT)'!V18) ->  | X15: =IF('Caregiver Tab (FILL THIS OUT)'!W18="","",'Caregiver Tab (FILL THIS OUT)'!W18) ->  | Y15: =IF('Caregiver Tab (FILL THIS OUT)'!X18="","",'Caregiver Tab (FILL THIS OUT)'!X18) ->  | Z15: ='Caregiver Tab (FILL THIS OUT)'!#REF!&IF('Caregiver Tab (FILL THIS OUT)'!#REF!="","","#"&'Caregiver Tab (FILL THIS OUT)'!#REF!)&";"&'Caregiver Tab (FILL THIS OUT)'!#REF!&IF('Caregiver Tab (FILL THIS OUT)'!#REF!="","","#"&'Caregiver Tab (FILL THIS OUT)'!#REF!)&";"&'Caregiver Tab (FILL THIS OUT)'!#REF!&IF('Caregiver Tab (FILL THIS OUT)'!#REF!="","","#"&'Caregiver Tab (FILL THIS OUT)'!#REF!)&";" -> 
B16: =IF('Caregiver Tab (FILL THIS OUT)'!B19="","",'Caregiver Tab (FILL THIS OUT)'!B19) ->  | C16: =IF('Caregiver Tab (FILL THIS OUT)'!C19="","",'Caregiver Tab (FILL THIS OUT)'!C19) ->  | D16: 3 | E16: 1 | F16: =IF('Caregiver Tab (FILL THIS OUT)'!E19="","",'Caregiver Tab (FILL THIS OUT)'!E19) ->  | G16: =IF('Caregiver Tab (FILL THIS OUT)'!F19="","",'Caregiver Tab (FILL THIS OUT)'!F19) -> TRUE | H16: =IF('Caregiver Tab (FILL THIS OUT)'!G19="","",'Caregiver Tab (FILL THIS OUT)'!G19) ->  | I16: =IF('Caregiver Tab (FILL THIS OUT)'!H19="","",'Caregiver Tab (FILL THIS OUT)'!H19) -> password | J16: =IF('Caregiver Tab (FILL THIS OUT)'!I19="","",'Caregiver Tab (FILL THIS OUT)'!I19) ->  | K16: =IF('Caregiver Tab (FILL THIS OUT)'!K19="","",'Caregiver Tab (FILL THIS OUT)'!K19) ->  | L16: =IF('Caregiver Tab (FILL THIS OUT)'!L19="","",'Caregiver Tab (FILL THIS OUT)'!L19) ->  | M16: =IF('Caregiver Tab (FILL THIS OUT)'!M19="","",'Caregiver Tab (FILL THIS OUT)'!M19) ->  | N16: =IF('Caregiver Tab (FILL THIS OUT)'!M19="","",'Caregiver Tab (FILL THIS OUT)'!M19) ->  | O16: =IF('Caregiver Tab (FILL THIS OUT)'!N19="","",'Caregiver Tab (FILL THIS OUT)'!N19) ->  | P16: =IF('Caregiver Tab (FILL THIS OUT)'!O19="","",'Caregiver Tab (FILL THIS OUT)'!O19) ->  | Q16: =IF('Caregiver Tab (FILL THIS OUT)'!P19="","",'Caregiver Tab (FILL THIS OUT)'!P19) ->  | R16: =IF('Caregiver Tab (FILL THIS OUT)'!Q19="","",'Caregiver Tab (FILL THIS OUT)'!Q19) ->  | S16: =IF('Caregiver Tab (FILL THIS OUT)'!R19="","",'Caregiver Tab (FILL THIS OUT)'!R19) ->  | T16: =IF('Caregiver Tab (FILL THIS OUT)'!S19="","",'Caregiver Tab (FILL THIS OUT)'!S19) ->  | U16: =IF('Caregiver Tab (FILL THIS OUT)'!T19="","",'Caregiver Tab (FILL THIS OUT)'!T19) ->  | V16: =IF('Caregiver Tab (FILL THIS OUT)'!U19="","",'Caregiver Tab (FILL THIS OUT)'!U19) -> caregiver | W16: =IF('Caregiver Tab (FILL THIS OUT)'!V19="","",'Caregiver Tab (FILL THIS OUT)'!V19) ->  | X16: =IF('Caregiver Tab (FILL THIS OUT)'!W19="","",'Caregiver Tab (FILL THIS OUT)'!W19) ->  | Y16: =IF('Caregiver Tab (FILL THIS OUT)'!X19="","",'Caregiver Tab (FILL THIS OUT)'!X19) ->  | Z16: ='Caregiver Tab (FILL THIS OUT)'!#REF!&IF('Caregiver Tab (FILL THIS OUT)'!#REF!="","","#"&'Caregiver Tab (FILL THIS OUT)'!#REF!)&";"&'Caregiver Tab (FILL THIS OUT)'!#REF!&IF('Caregiver Tab (FILL THIS OUT)'!#REF!="","","#"&'Caregiver Tab (FILL THIS OUT)'!#REF!)&";"&'Caregiver Tab (FILL THIS OUT)'!#REF!&IF('Caregiver Tab (FILL THIS OUT)'!#REF!="","","#"&'Caregiver Tab (FILL THIS OUT)'!#REF!)&";" -> 
B17: =IF('Caregiver Tab (FILL THIS OUT)'!B20="","",'Caregiver Tab (FILL THIS OUT)'!B20) ->  | C17: =IF('Caregiver Tab (FILL THIS OUT)'!C20="","",'Caregiver Tab (FILL THIS OUT)'!C20) ->  | D17: 3 | E17: 1 | F17: =IF('Caregiver Tab (FILL THIS OUT)'!E20="","",'Caregiver Tab (FILL THIS OUT)'!E20) ->  | G17: =IF('Caregiver Tab (FILL THIS OUT)'!F20="","",'Caregiver Tab (FILL THIS OUT)'!F20) -> TRUE | H17: =IF('Caregiver Tab (FILL THIS OUT)'!G20="","",'Caregiver Tab (FILL THIS OUT)'!G20) ->  | I17: =IF('Caregiver Tab (FILL THIS OUT)'!H20="","",'Caregiver Tab (FILL THIS OUT)'!H20) -> password | J17: =IF('Caregiver Tab (FILL THIS OUT)'!I20="","",'Caregiver Tab (FILL THIS OUT)'!I20) ->  | K17: =IF('Caregiver Tab (FILL THIS OUT)'!K20="","",'Caregiver Tab (FILL THIS OUT)'!K20) ->  | L17: =IF('Caregiver Tab (FILL THIS OUT)'!L20="","",'Caregiver Tab (FILL THIS OUT)'!L20) ->  | M17: =IF('Caregiver Tab (FILL THIS OUT)'!M20="","",'Caregiver Tab (FILL THIS OUT)'!M20) ->  | N17: =IF('Caregiver Tab (FILL THIS OUT)'!M20="","",'Caregiver Tab (FILL THIS OUT)'!M20) ->  | O17: =IF('Caregiver Tab (FILL THIS OUT)'!N20="","",'Caregiver Tab (FILL THIS OUT)'!N20) ->  | P17: =IF('Caregiver Tab (FILL THIS OUT)'!O20="","",'Caregiver Tab (FILL THIS OUT)'!O20) ->  | Q17: =IF('Caregiver Tab (FILL THIS OUT)'!P20="","",'Caregiver Tab (FILL THIS OUT)'!P20) ->  | R17: =IF('Caregiver Tab (FILL THIS OUT)'!Q20="","",'Caregiver Tab (FILL THIS OUT)'!Q20) ->  | S17: =IF('Caregiver Tab (FILL THIS OUT)'!R20="","",'Caregiver Tab (FILL THIS OUT)'!R20) ->  | T17: =IF('Caregiver Tab (FILL THIS OUT)'!S20="","",'Caregiver Tab (FILL THIS OUT)'!S20) ->  | U17: =IF('Caregiver Tab (FILL THIS OUT)'!T20="","",'Caregiver Tab (FILL THIS OUT)'!T20) ->  | V17: =IF('Caregiver Tab (FILL THIS OUT)'!U20="","",'Caregiver Tab (FILL THIS OUT)'!U20) -> caregiver | W17: =IF('Caregiver Tab (FILL THIS OUT)'!V20="","",'Caregiver Tab (FILL THIS OUT)'!V20) ->  | X17: =IF('Caregiver Tab (FILL THIS OUT)'!W20="","",'Caregiver Tab (FILL THIS OUT)'!W20) ->  | Y17: =IF('Caregiver Tab (FILL THIS OUT)'!X20="","",'Caregiver Tab (FILL THIS OUT)'!X20) ->  | Z17: ='Caregiver Tab (FILL THIS OUT)'!#REF!&IF('Caregiver Tab (FILL THIS OUT)'!#REF!="","","#"&'Caregiver Tab (FILL THIS OUT)'!#REF!)&";"&'Caregiver Tab (FILL THIS OUT)'!#REF!&IF('Caregiver Tab (FILL THIS OUT)'!#REF!="","","#"&'Caregiver Tab (FILL THIS OUT)'!#REF!)&";"&'Caregiver Tab (FILL THIS OUT)'!#REF!&IF('Caregiver Tab (FILL THIS OUT)'!#REF!="","","#"&'Caregiver Tab (FILL THIS OUT)'!#REF!)&";" -> 
B18: =IF('Caregiver Tab (FILL THIS OUT)'!B21="","",'Caregiver Tab (FILL THIS OUT)'!B21) ->  | C18: =IF('Caregiver Tab (FILL THIS OUT)'!C21="","",'Caregiver Tab (FILL THIS OUT)'!C21) ->  | D18: 3 | E18: 1 | F18: =IF('Caregiver Tab (FILL THIS OUT)'!E21="","",'Caregiver Tab (FILL THIS OUT)'!E21) ->  | G18: =IF('Caregiver Tab (FILL THIS OUT)'!F21="","",'Caregiver Tab (FILL THIS OUT)'!F21) -> TRUE | H18: =IF('Caregiver Tab (FILL THIS OUT)'!G21="","",'Caregiver Tab (FILL THIS OUT)'!G21) ->  | I18: =IF('Caregiver Tab (FILL THIS OUT)'!H21="","",'Caregiver Tab (FILL THIS OUT)'!H21) -> password | J18: =IF('Caregiver Tab (FILL THIS OUT)'!I21="","",'Caregiver Tab (FILL THIS OUT)'!I21) ->  | K18: =IF('Caregiver Tab (FILL THIS OUT)'!K21="","",'Caregiver Tab (FILL THIS OUT)'!K21) ->  | L18: =IF('Caregiver Tab (FILL THIS OUT)'!L21="","",'Caregiver Tab (FILL THIS OUT)'!L21) ->  | M18: =IF('Caregiver Tab (FILL THIS OUT)'!M21="","",'Caregiver Tab (FILL THIS OUT)'!M21) ->  | N18: =IF('Caregiver Tab (FILL THIS OUT)'!M21="","",'Caregiver Tab (FILL THIS OUT)'!M21) ->  | O18: =IF('Caregiver Tab (FILL THIS OUT)'!N21="","",'Caregiver Tab (FILL THIS OUT)'!N21) ->  | P18: =IF('Caregiver Tab (FILL THIS OUT)'!O21="","",'Caregiver Tab (FILL THIS OUT)'!O21) ->  | Q18: =IF('Caregiver Tab (FILL THIS OUT)'!P21="","",'Caregiver Tab (FILL THIS OUT)'!P21) ->  | R18: =IF('Caregiver Tab (FILL THIS OUT)'!Q21="","",'Caregiver Tab (FILL THIS OUT)'!Q21) ->  | S18: =IF('Caregiver Tab (FILL THIS OUT)'!R21="","",'Caregiver Tab (FILL THIS OUT)'!R21) ->  | T18: =IF('Caregiver Tab (FILL THIS OUT)'!S21="","",'Caregiver Tab (FILL THIS OUT)'!S21) ->  | U18: =IF('Caregiver Tab (FILL THIS OUT)'!T21="","",'Caregiver Tab (FILL THIS OUT)'!T21) ->  | V18: =IF('Caregiver Tab (FILL THIS OUT)'!U21="","",'Caregiver Tab (FILL THIS OUT)'!U21) -> caregiver | W18: =IF('Caregiver Tab (FILL THIS OUT)'!V21="","",'Caregiver Tab (FILL THIS OUT)'!V21) ->  | X18: =IF('Caregiver Tab (FILL THIS OUT)'!W21="","",'Caregiver Tab (FILL THIS OUT)'!W21) ->  | Y18: =IF('Caregiver Tab (FILL THIS OUT)'!X21="","",'Caregiver Tab (FILL THIS OUT)'!X21) ->  | Z18: ='Caregiver Tab (FILL THIS OUT)'!#REF!&IF('Caregiver Tab (FILL THIS OUT)'!#REF!="","","#"&'Caregiver Tab (FILL THIS OUT)'!#REF!)&";"&'Caregiver Tab (FILL THIS OUT)'!#REF!&IF('Caregiver Tab (FILL THIS OUT)'!#REF!="","","#"&'Caregiver Tab (FILL THIS OUT)'!#REF!)&";"&'Caregiver Tab (FILL THIS OUT)'!#REF!&IF('Caregiver Tab (FILL THIS OUT)'!#REF!="","","#"&'Caregiver Tab (FILL THIS OUT)'!#REF!)&";" -> 
B19: =IF('Caregiver Tab (FILL THIS OUT)'!B22="","",'Caregiver Tab (FILL THIS OUT)'!B22) ->  | C19: =IF('Caregiver Tab (FILL THIS OUT)'!C22="","",'Caregiver Tab (FILL THIS OUT)'!C22) ->  | D19: 3 | E19: 1 | F19: =IF('Caregiver Tab (FILL THIS OUT)'!E22="","",'Caregiver Tab (FILL THIS OUT)'!E22) ->  | G19: =IF('Caregiver Tab (FILL THIS OUT)'!F22="","",'Caregiver Tab (FILL THIS OUT)'!F22) -> TRUE | H19: =IF('Caregiver Tab (FILL THIS OUT)'!G22="","",'Caregiver Tab (FILL THIS OUT)'!G22) ->  | I19: =IF('Caregiver Tab (FILL THIS OUT)'!H22="","",'Caregiver Tab (FILL THIS OUT)'!H22) -> password | J19: =IF('Caregiver Tab (FILL THIS OUT)'!I22="","",'Caregiver Tab (FILL THIS OUT)'!I22) ->  | K19: =IF('Caregiver Tab (FILL THIS OUT)'!K22="","",'Caregiver Tab (FILL THIS OUT)'!K22) ->  | L19: =IF('Caregiver Tab (FILL THIS OUT)'!L22="","",'Caregiver Tab (FILL THIS OUT)'!L22) ->  | M19: =IF('Caregiver Tab (FILL THIS OUT)'!M22="","",'Caregiver Tab (FILL THIS OUT)'!M22) ->  | N19: =IF('Caregiver Tab (FILL THIS OUT)'!M22="","",'Caregiver Tab (FILL THIS OUT)'!M22) ->  | O19: =IF('Caregiver Tab (FILL THIS OUT)'!N22="","",'Caregiver Tab (FILL THIS OUT)'!N22) ->  | P19: =IF('Caregiver Tab (FILL THIS OUT)'!O22="","",'Caregiver Tab (FILL THIS OUT)'!O22) ->  | Q19: =IF('Caregiver Tab (FILL THIS OUT)'!P22="","",'Caregiver Tab (FILL THIS OUT)'!P22) ->  | R19: =IF('Caregiver Tab (FILL THIS OUT)'!Q22="","",'Caregiver Tab (FILL THIS OUT)'!Q22) ->  | S19: =IF('Caregiver Tab (FILL THIS OUT)'!R22="","",'Caregiver Tab (FILL THIS OUT)'!R22) ->  | T19: =IF('Caregiver Tab (FILL THIS OUT)'!S22="","",'Caregiver Tab (FILL THIS OUT)'!S22) ->  | U19: =IF('Caregiver Tab (FILL THIS OUT)'!T22="","",'Caregiver Tab (FILL THIS OUT)'!T22) ->  | V19: =IF('Caregiver Tab (FILL THIS OUT)'!U22="","",'Caregiver Tab (FILL THIS OUT)'!U22) -> caregiver | W19: =IF('Caregiver Tab (FILL THIS OUT)'!V22="","",'Caregiver Tab (FILL THIS OUT)'!V22) ->  | X19: =IF('Caregiver Tab (FILL THIS OUT)'!W22="","",'Caregiver Tab (FILL THIS OUT)'!W22) ->  | Y19: =IF('Caregiver Tab (FILL THIS OUT)'!X22="","",'Caregiver Tab (FILL THIS OUT)'!X22) ->  | Z19: ='Caregiver Tab (FILL THIS OUT)'!#REF!&IF('Caregiver Tab (FILL THIS OUT)'!#REF!="","","#"&'Caregiver Tab (FILL THIS OUT)'!#REF!)&";"&'Caregiver Tab (FILL THIS OUT)'!#REF!&IF('Caregiver Tab (FILL THIS OUT)'!#REF!="","","#"&'Caregiver Tab (FILL THIS OUT)'!#REF!)&";"&'Caregiver Tab (FILL THIS OUT)'!#REF!&IF('Caregiver Tab (FILL THIS OUT)'!#REF!="","","#"&'Caregiver Tab (FILL THIS OUT)'!#REF!)&";" -> 
B20: =IF('Caregiver Tab (FILL THIS OUT)'!B23="","",'Caregiver Tab (FILL THIS OUT)'!B23) ->  | C20: =IF('Caregiver Tab (FILL THIS OUT)'!C23="","",'Caregiver Tab (FILL THIS OUT)'!C23) ->  | D20: 3 | E20: 1 | F20: =IF('Caregiver Tab (FILL THIS OUT)'!E23="","",'Caregiver Tab (FILL THIS OUT)'!E23) ->  | G20: =IF('Caregiver Tab (FILL THIS OUT)'!F23="","",'Caregiver Tab (FILL THIS OUT)'!F23) -> TRUE | H20: =IF('Caregiver Tab (FILL THIS OUT)'!G23="","",'Caregiver Tab (FILL THIS OUT)'!G23) ->  | I20: =IF('Caregiver Tab (FILL THIS OUT)'!H23="","",'Caregiver Tab (FILL THIS OUT)'!H23) -> password | J20: =IF('Caregiver Tab (FILL THIS OUT)'!I23="","",'Caregiver Tab (FILL THIS OUT)'!I23) ->  | K20: =IF('Caregiver Tab (FILL THIS OUT)'!K23="","",'Caregiver Tab (FILL THIS OUT)'!K23) ->  | L20: =IF('Caregiver Tab (FILL THIS OUT)'!L23="","",'Caregiver Tab (FILL THIS OUT)'!L23) ->  | M20: =IF('Caregiver Tab (FILL THIS OUT)'!M23="","",'Caregiver Tab (FILL THIS OUT)'!M23) ->  | N20: =IF('Caregiver Tab (FILL THIS OUT)'!M23="","",'Caregiver Tab (FILL THIS OUT)'!M23) ->  | O20: =IF('Caregiver Tab (FILL THIS OUT)'!N23="","",'Caregiver Tab (FILL THIS OUT)'!N23) ->  | P20: =IF('Caregiver Tab (FILL THIS OUT)'!O23="","",'Caregiver Tab (FILL THIS OUT)'!O23) ->  | Q20: =IF('Caregiver Tab (FILL THIS OUT)'!P23="","",'Caregiver Tab (FILL THIS OUT)'!P23) ->  | R20: =IF('Caregiver Tab (FILL THIS OUT)'!Q23="","",'Caregiver Tab (FILL THIS OUT)'!Q23) ->  | S20: =IF('Caregiver Tab (FILL THIS OUT)'!R23="","",'Caregiver Tab (FILL THIS OUT)'!R23) ->  | T20: =IF('Caregiver Tab (FILL THIS OUT)'!S23="","",'Caregiver Tab (FILL THIS OUT)'!S23) ->  | U20: =IF('Caregiver Tab (FILL THIS OUT)'!T23="","",'Caregiver Tab (FILL THIS OUT)'!T23) ->  | V20: =IF('Caregiver Tab (FILL THIS OUT)'!U23="","",'Caregiver Tab (FILL THIS OUT)'!U23) -> caregiver | W20: =IF('Caregiver Tab (FILL THIS OUT)'!V23="","",'Caregiver Tab (FILL THIS OUT)'!V23) ->  | X20: =IF('Caregiver Tab (FILL THIS OUT)'!W23="","",'Caregiver Tab (FILL THIS OUT)'!W23) ->  | Y20: =IF('Caregiver Tab (FILL THIS OUT)'!X23="","",'Caregiver Tab (FILL THIS OUT)'!X23) ->  | Z20: ='Caregiver Tab (FILL THIS OUT)'!#REF!&IF('Caregiver Tab (FILL THIS OUT)'!#REF!="","","#"&'Caregiver Tab (FILL THIS OUT)'!#REF!)&";"&'Caregiver Tab (FILL THIS OUT)'!#REF!&IF('Caregiver Tab (FILL THIS OUT)'!#REF!="","","#"&'Caregiver Tab (FILL THIS OUT)'!#REF!)&";"&'Caregiver Tab (FILL THIS OUT)'!#REF!&IF('Caregiver Tab (FILL THIS OUT)'!#REF!="","","#"&'Caregiver Tab (FILL THIS OUT)'!#REF!)&";" -> 
B21: =IF('Caregiver Tab (FILL THIS OUT)'!B24="","",'Caregiver Tab (FILL THIS OUT)'!B24) ->  | C21: =IF('Caregiver Tab (FILL THIS OUT)'!C24="","",'Caregiver Tab (FILL THIS OUT)'!C24) ->  | D21: 3 | E21: 1 | F21: =IF('Caregiver Tab (FILL THIS OUT)'!E24="","",'Caregiver Tab (FILL THIS OUT)'!E24) ->  | G21: =IF('Caregiver Tab (FILL THIS OUT)'!F24="","",'Caregiver Tab (FILL THIS OUT)'!F24) -> TRUE | H21: =IF('Caregiver Tab (FILL THIS OUT)'!G24="","",'Caregiver Tab (FILL THIS OUT)'!G24) ->  | I21: =IF('Caregiver Tab (FILL THIS OUT)'!H24="","",'Caregiver Tab (FILL THIS OUT)'!H24) -> password | J21: =IF('Caregiver Tab (FILL THIS OUT)'!I24="","",'Caregiver Tab (FILL THIS OUT)'!I24) ->  | K21: =IF('Caregiver Tab (FILL THIS OUT)'!K24="","",'Caregiver Tab (FILL THIS OUT)'!K24) ->  | L21: =IF('Caregiver Tab (FILL THIS OUT)'!L24="","",'Caregiver Tab (FILL THIS OUT)'!L24) ->  | M21: =IF('Caregiver Tab (FILL THIS OUT)'!M24="","",'Caregiver Tab (FILL THIS OUT)'!M24) ->  | N21: =IF('Caregiver Tab (FILL THIS OUT)'!M24="","",'Caregiver Tab (FILL THIS OUT)'!M24) ->  | O21: =IF('Caregiver Tab (FILL THIS OUT)'!N24="","",'Caregiver Tab (FILL THIS OUT)'!N24) ->  | P21: =IF('Caregiver Tab (FILL THIS OUT)'!O24="","",'Caregiver Tab (FILL THIS OUT)'!O24) ->  | Q21: =IF('Caregiver Tab (FILL THIS OUT)'!P24="","",'Caregiver Tab (FILL THIS OUT)'!P24) ->  | R21: =IF('Caregiver Tab (FILL THIS OUT)'!Q24="","",'Caregiver Tab (FILL THIS OUT)'!Q24) ->  | S21: =IF('Caregiver Tab (FILL THIS OUT)'!R24="","",'Caregiver Tab (FILL THIS OUT)'!R24) ->  | T21: =IF('Caregiver Tab (FILL THIS OUT)'!S24="","",'Caregiver Tab (FILL THIS OUT)'!S24) ->  | U21: =IF('Caregiver Tab (FILL THIS OUT)'!T24="","",'Caregiver Tab (FILL THIS OUT)'!T24) ->  | V21: =IF('Caregiver Tab (FILL THIS OUT)'!U24="","",'Caregiver Tab (FILL THIS OUT)'!U24) -> caregiver | W21: =IF('Caregiver Tab (FILL THIS OUT)'!V24="","",'Caregiver Tab (FILL THIS OUT)'!V24) ->  | X21: =IF('Caregiver Tab (FILL THIS OUT)'!W24="","",'Caregiver Tab (FILL THIS OUT)'!W24) ->  | Y21: =IF('Caregiver Tab (FILL THIS OUT)'!X24="","",'Caregiver Tab (FILL THIS OUT)'!X24) ->  | Z21: ='Caregiver Tab (FILL THIS OUT)'!#REF!&IF('Caregiver Tab (FILL THIS OUT)'!#REF!="","","#"&'Caregiver Tab (FILL THIS OUT)'!#REF!)&";"&'Caregiver Tab (FILL THIS OUT)'!#REF!&IF('Caregiver Tab (FILL THIS OUT)'!#REF!="","","#"&'Caregiver Tab (FILL THIS OUT)'!#REF!)&";"&'Caregiver Tab (FILL THIS OUT)'!#REF!&IF('Caregiver Tab (FILL THIS OUT)'!#REF!="","","#"&'Caregiver Tab (FILL THIS OUT)'!#REF!)&";" -> 
B22: =IF('Caregiver Tab (FILL THIS OUT)'!B25="","",'Caregiver Tab (FILL THIS OUT)'!B25) ->  | C22: =IF('Caregiver Tab (FILL THIS OUT)'!C25="","",'Caregiver Tab (FILL THIS OUT)'!C25) ->  | D22: 3 | E22: 1 | F22: =IF('Caregiver Tab (FILL THIS OUT)'!E25="","",'Caregiver Tab (FILL THIS OUT)'!E25) ->  | G22: =IF('Caregiver Tab (FILL THIS OUT)'!F25="","",'Caregiver Tab (FILL THIS OUT)'!F25) -> TRUE | H22: =IF('Caregiver Tab (FILL THIS OUT)'!G25="","",'Caregiver Tab (FILL THIS OUT)'!G25) ->  | I22: =IF('Caregiver Tab (FILL THIS OUT)'!H25="","",'Caregiver Tab (FILL THIS OUT)'!H25) -> password | J22: =IF('Caregiver Tab (FILL THIS OUT)'!I25="","",'Caregiver Tab (FILL THIS OUT)'!I25) ->  | K22: =IF('Caregiver Tab (FILL THIS OUT)'!K25="","",'Caregiver Tab (FILL THIS OUT)'!K25) ->  | L22: =IF('Caregiver Tab (FILL THIS OUT)'!L25="","",'Caregiver Tab (FILL THIS OUT)'!L25) ->  | M22: =IF('Caregiver Tab (FILL THIS OUT)'!M25="","",'Caregiver Tab (FILL THIS OUT)'!M25) ->  | N22: =IF('Caregiver Tab (FILL THIS OUT)'!M25="","",'Caregiver Tab (FILL THIS OUT)'!M25) ->  | O22: =IF('Caregiver Tab (FILL THIS OUT)'!N25="","",'Caregiver Tab (FILL THIS OUT)'!N25) ->  | P22: =IF('Caregiver Tab (FILL THIS OUT)'!O25="","",'Caregiver Tab (FILL THIS OUT)'!O25) ->  | Q22: =IF('Caregiver Tab (FILL THIS OUT)'!P25="","",'Caregiver Tab (FILL THIS OUT)'!P25) ->  | R22: =IF('Caregiver Tab (FILL THIS OUT)'!Q25="","",'Caregiver Tab (FILL THIS OUT)'!Q25) ->  | S22: =IF('Caregiver Tab (FILL THIS OUT)'!R25="","",'Caregiver Tab (FILL THIS OUT)'!R25) ->  | T22: =IF('Caregiver Tab (FILL THIS OUT)'!S25="","",'Caregiver Tab (FILL THIS OUT)'!S25) ->  | U22: =IF('Caregiver Tab (FILL THIS OUT)'!T25="","",'Caregiver Tab (FILL THIS OUT)'!T25) ->  | V22: =IF('Caregiver Tab (FILL THIS OUT)'!U25="","",'Caregiver Tab (FILL THIS OUT)'!U25) -> caregiver | W22: =IF('Caregiver Tab (FILL THIS OUT)'!V25="","",'Caregiver Tab (FILL THIS OUT)'!V25) ->  | X22: =IF('Caregiver Tab (FILL THIS OUT)'!W25="","",'Caregiver Tab (FILL THIS OUT)'!W25) ->  | Y22: =IF('Caregiver Tab (FILL THIS OUT)'!X25="","",'Caregiver Tab (FILL THIS OUT)'!X25) ->  | Z22: ='Caregiver Tab (FILL THIS OUT)'!#REF!&IF('Caregiver Tab (FILL THIS OUT)'!#REF!="","","#"&'Caregiver Tab (FILL THIS OUT)'!#REF!)&";"&'Caregiver Tab (FILL THIS OUT)'!#REF!&IF('Caregiver Tab (FILL THIS OUT)'!#REF!="","","#"&'Caregiver Tab (FILL THIS OUT)'!#REF!)&";"&'Caregiver Tab (FILL THIS OUT)'!#REF!&IF('Caregiver Tab (FILL THIS OUT)'!#REF!="","","#"&'Caregiver Tab (FILL THIS OUT)'!#REF!)&";" -> 
B23: =IF('Caregiver Tab (FILL THIS OUT)'!B26="","",'Caregiver Tab (FILL THIS OUT)'!B26) ->  | C23: =IF('Caregiver Tab (FILL THIS OUT)'!C26="","",'Caregiver Tab (FILL THIS OUT)'!C26) ->  | D23: 3 | E23: 1 | F23: =IF('Caregiver Tab (FILL THIS OUT)'!E26="","",'Caregiver Tab (FILL THIS OUT)'!E26) ->  | G23: =IF('Caregiver Tab (FILL THIS OUT)'!F26="","",'Caregiver Tab (FILL THIS OUT)'!F26) -> TRUE | H23: =IF('Caregiver Tab (FILL THIS OUT)'!G26="","",'Caregiver Tab (FILL THIS OUT)'!G26) ->  | I23: =IF('Caregiver Tab (FILL THIS OUT)'!H26="","",'Caregiver Tab (FILL THIS OUT)'!H26) -> password | J23: =IF('Caregiver Tab (FILL THIS OUT)'!I26="","",'Caregiver Tab (FILL THIS OUT)'!I26) ->  | K23: =IF('Caregiver Tab (FILL THIS OUT)'!K26="","",'Caregiver Tab (FILL THIS OUT)'!K26) ->  | L23: =IF('Caregiver Tab (FILL THIS OUT)'!L26="","",'Caregiver Tab (FILL THIS OUT)'!L26) ->  | M23: =IF('Caregiver Tab (FILL THIS OUT)'!M26="","",'Caregiver Tab (FILL THIS OUT)'!M26) ->  | N23: =IF('Caregiver Tab (FILL THIS OUT)'!M26="","",'Caregiver Tab (FILL THIS OUT)'!M26) ->  | O23: =IF('Caregiver Tab (FILL THIS OUT)'!N26="","",'Caregiver Tab (FILL THIS OUT)'!N26) ->  | P23: =IF('Caregiver Tab (FILL THIS OUT)'!O26="","",'Caregiver Tab (FILL THIS OUT)'!O26) ->  | Q23: =IF('Caregiver Tab (FILL THIS OUT)'!P26="","",'Caregiver Tab (FILL THIS OUT)'!P26) ->  | R23: =IF('Caregiver Tab (FILL THIS OUT)'!Q26="","",'Caregiver Tab (FILL THIS OUT)'!Q26) ->  | S23: =IF('Caregiver Tab (FILL THIS OUT)'!R26="","",'Caregiver Tab (FILL THIS OUT)'!R26) ->  | T23: =IF('Caregiver Tab (FILL THIS OUT)'!S26="","",'Caregiver Tab (FILL THIS OUT)'!S26) ->  | U23: =IF('Caregiver Tab (FILL THIS OUT)'!T26="","",'Caregiver Tab (FILL THIS OUT)'!T26) ->  | V23: =IF('Caregiver Tab (FILL THIS OUT)'!U26="","",'Caregiver Tab (FILL THIS OUT)'!U26) -> caregiver | W23: =IF('Caregiver Tab (FILL THIS OUT)'!V26="","",'Caregiver Tab (FILL THIS OUT)'!V26) ->  | X23: =IF('Caregiver Tab (FILL THIS OUT)'!W26="","",'Caregiver Tab (FILL THIS OUT)'!W26) ->  | Y23: =IF('Caregiver Tab (FILL THIS OUT)'!X26="","",'Caregiver Tab (FILL THIS OUT)'!X26) ->  | Z23: ='Caregiver Tab (FILL THIS OUT)'!#REF!&IF('Caregiver Tab (FILL THIS OUT)'!#REF!="","","#"&'Caregiver Tab (FILL THIS OUT)'!#REF!)&";"&'Caregiver Tab (FILL THIS OUT)'!#REF!&IF('Caregiver Tab (FILL THIS OUT)'!#REF!="","","#"&'Caregiver Tab (FILL THIS OUT)'!#REF!)&";"&'Caregiver Tab (FILL THIS OUT)'!#REF!&IF('Caregiver Tab (FILL THIS OUT)'!#REF!="","","#"&'Caregiver Tab (FILL THIS OUT)'!#REF!)&";" -> 
B24: =IF('Caregiver Tab (FILL THIS OUT)'!B27="","",'Caregiver Tab (FILL THIS OUT)'!B27) ->  | C24: =IF('Caregiver Tab (FILL THIS OUT)'!C27="","",'Caregiver Tab (FILL THIS OUT)'!C27) ->  | D24: 3 | E24: 1 | F24: =IF('Caregiver Tab (FILL THIS OUT)'!E27="","",'Caregiver Tab (FILL THIS OUT)'!E27) ->  | G24: =IF('Caregiver Tab (FILL THIS OUT)'!F27="","",'Caregiver Tab (FILL THIS OUT)'!F27) -> TRUE | H24: =IF('Caregiver Tab (FILL THIS OUT)'!G27="","",'Caregiver Tab (FILL THIS OUT)'!G27) ->  | I24: =IF('Caregiver Tab (FILL THIS OUT)'!H27="","",'Caregiver Tab (FILL THIS OUT)'!H27) ->  | J24: =IF('Caregiver Tab (FILL THIS OUT)'!I27="","",'Caregiver Tab (FILL THIS OUT)'!I27) ->  | K24: =IF('Caregiver Tab (FILL THIS OUT)'!K27="","",'Caregiver Tab (FILL THIS OUT)'!K27) ->  | L24: =IF('Caregiver Tab (FILL THIS OUT)'!L27="","",'Caregiver Tab (FILL THIS OUT)'!L27) ->  | M24: =IF('Caregiver Tab (FILL THIS OUT)'!M27="","",'Caregiver Tab (FILL THIS OUT)'!M27) ->  | N24: =IF('Caregiver Tab (FILL THIS OUT)'!M27="","",'Caregiver Tab (FILL THIS OUT)'!M27) ->  | O24: =IF('Caregiver Tab (FILL THIS OUT)'!N27="","",'Caregiver Tab (FILL THIS OUT)'!N27) ->  | P24: =IF('Caregiver Tab (FILL THIS OUT)'!O27="","",'Caregiver Tab (FILL THIS OUT)'!O27) ->  | Q24: =IF('Caregiver Tab (FILL THIS OUT)'!P27="","",'Caregiver Tab (FILL THIS OUT)'!P27) ->  | R24: =IF('Caregiver Tab (FILL THIS OUT)'!Q27="","",'Caregiver Tab (FILL THIS OUT)'!Q27) ->  | S24: =IF('Caregiver Tab (FILL THIS OUT)'!R27="","",'Caregiver Tab (FILL THIS OUT)'!R27) ->  | T24: =IF('Caregiver Tab (FILL THIS OUT)'!S27="","",'Caregiver Tab (FILL THIS OUT)'!S27) ->  | U24: =IF('Caregiver Tab (FILL THIS OUT)'!T27="","",'Caregiver Tab (FILL THIS OUT)'!T27) ->  | V24: =IF('Caregiver Tab (FILL THIS OUT)'!U27="","",'Caregiver Tab (FILL THIS OUT)'!U27) -> caregiver | W24: =IF('Caregiver Tab (FILL THIS OUT)'!V27="","",'Caregiver Tab (FILL THIS OUT)'!V27) ->  | X24: =IF('Caregiver Tab (FILL THIS OUT)'!W27="","",'Caregiver Tab (FILL THIS OUT)'!W27) ->  | Y24: =IF('Caregiver Tab (FILL THIS OUT)'!X27="","",'Caregiver Tab (FILL THIS OUT)'!X27) ->  | Z24: ='Caregiver Tab (FILL THIS OUT)'!#REF!&IF('Caregiver Tab (FILL THIS OUT)'!#REF!="","","#"&'Caregiver Tab (FILL THIS OUT)'!#REF!)&";"&'Caregiver Tab (FILL THIS OUT)'!#REF!&IF('Caregiver Tab (FILL THIS OUT)'!#REF!="","","#"&'Caregiver Tab (FILL THIS OUT)'!#REF!)&";"&'Caregiver Tab (FILL THIS OUT)'!#REF!&IF('Caregiver Tab (FILL THIS OUT)'!#REF!="","","#"&'Caregiver Tab (FILL THIS OUT)'!#REF!)&";" -> 
B25: =IF('Caregiver Tab (FILL THIS OUT)'!B28="","",'Caregiver Tab (FILL THIS OUT)'!B28) ->  | C25: =IF('Caregiver Tab (FILL THIS OUT)'!C28="","",'Caregiver Tab (FILL THIS OUT)'!C28) ->  | D25: 3 | E25: 1 | F25: =IF('Caregiver Tab (FILL THIS OUT)'!E28="","",'Caregiver Tab (FILL THIS OUT)'!E28) ->  | G25: =IF('Caregiver Tab (FILL THIS OUT)'!F28="","",'Caregiver Tab (FILL THIS OUT)'!F28) -> TRUE | H25: =IF('Caregiver Tab (FILL THIS OUT)'!G28="","",'Caregiver Tab (FILL THIS OUT)'!G28) ->  | I25: =IF('Caregiver Tab (FILL THIS OUT)'!H28="","",'Caregiver Tab (FILL THIS OUT)'!H28) ->  | J25: =IF('Caregiver Tab (FILL THIS OUT)'!I28="","",'Caregiver Tab (FILL THIS OUT)'!I28) ->  | K25: =IF('Caregiver Tab (FILL THIS OUT)'!K28="","",'Caregiver Tab (FILL THIS OUT)'!K28) ->  | L25: =IF('Caregiver Tab (FILL THIS OUT)'!L28="","",'Caregiver Tab (FILL THIS OUT)'!L28) ->  | M25: =IF('Caregiver Tab (FILL THIS OUT)'!M28="","",'Caregiver Tab (FILL THIS OUT)'!M28) ->  | N25: =IF('Caregiver Tab (FILL THIS OUT)'!M28="","",'Caregiver Tab (FILL THIS OUT)'!M28) ->  | O25: =IF('Caregiver Tab (FILL THIS OUT)'!N28="","",'Caregiver Tab (FILL THIS OUT)'!N28) ->  | P25: =IF('Caregiver Tab (FILL THIS OUT)'!O28="","",'Caregiver Tab (FILL THIS OUT)'!O28) ->  | Q25: =IF('Caregiver Tab (FILL THIS OUT)'!P28="","",'Caregiver Tab (FILL THIS OUT)'!P28) ->  | R25: =IF('Caregiver Tab (FILL THIS OUT)'!Q28="","",'Caregiver Tab (FILL THIS OUT)'!Q28) ->  | S25: =IF('Caregiver Tab (FILL THIS OUT)'!R28="","",'Caregiver Tab (FILL THIS OUT)'!R28) ->  | T25: =IF('Caregiver Tab (FILL THIS OUT)'!S28="","",'Caregiver Tab (FILL THIS OUT)'!S28) ->  | U25: =IF('Caregiver Tab (FILL THIS OUT)'!T28="","",'Caregiver Tab (FILL THIS OUT)'!T28) ->  | V25: =IF('Caregiver Tab (FILL THIS OUT)'!U28="","",'Caregiver Tab (FILL THIS OUT)'!U28) -> caregiver | W25: =IF('Caregiver Tab (FILL THIS OUT)'!V28="","",'Caregiver Tab (FILL THIS OUT)'!V28) ->  | X25: =IF('Caregiver Tab (FILL THIS OUT)'!W28="","",'Caregiver Tab (FILL THIS OUT)'!W28) ->  | Y25: =IF('Caregiver Tab (FILL THIS OUT)'!X28="","",'Caregiver Tab (FILL THIS OUT)'!X28) ->  | Z25: ='Caregiver Tab (FILL THIS OUT)'!#REF!&IF('Caregiver Tab (FILL THIS OUT)'!#REF!="","","#"&'Caregiver Tab (FILL THIS OUT)'!#REF!)&";"&'Caregiver Tab (FILL THIS OUT)'!#REF!&IF('Caregiver Tab (FILL THIS OUT)'!#REF!="","","#"&'Caregiver Tab (FILL THIS OUT)'!#REF!)&";"&'Caregiver Tab (FILL THIS OUT)'!#REF!&IF('Caregiver Tab (FILL THIS OUT)'!#REF!="","","#"&'Caregiver Tab (FILL THIS OUT)'!#REF!)&";" -> 
B26: =IF('Caregiver Tab (FILL THIS OUT)'!B29="","",'Caregiver Tab (FILL THIS OUT)'!B29) ->  | C26: =IF('Caregiver Tab (FILL THIS OUT)'!C29="","",'Caregiver Tab (FILL THIS OUT)'!C29) ->  | D26: 3 | E26: 1 | F26: =IF('Caregiver Tab (FILL THIS OUT)'!E29="","",'Caregiver Tab (FILL THIS OUT)'!E29) ->  | G26: =IF('Caregiver Tab (FILL THIS OUT)'!F29="","",'Caregiver Tab (FILL THIS OUT)'!F29) -> TRUE | H26: =IF('Caregiver Tab (FILL THIS OUT)'!G29="","",'Caregiver Tab (FILL THIS OUT)'!G29) ->  | I26: =IF('Caregiver Tab (FILL THIS OUT)'!H29="","",'Caregiver Tab (FILL THIS OUT)'!H29) ->  | J26: =IF('Caregiver Tab (FILL THIS OUT)'!I29="","",'Caregiver Tab (FILL THIS OUT)'!I29) ->  | K26: =IF('Caregiver Tab (FILL THIS OUT)'!K29="","",'Caregiver Tab (FILL THIS OUT)'!K29) ->  | L26: =IF('Caregiver Tab (FILL THIS OUT)'!L29="","",'Caregiver Tab (FILL THIS OUT)'!L29) ->  | M26: =IF('Caregiver Tab (FILL THIS OUT)'!M29="","",'Caregiver Tab (FILL THIS OUT)'!M29) ->  | N26: =IF('Caregiver Tab (FILL THIS OUT)'!M29="","",'Caregiver Tab (FILL THIS OUT)'!M29) ->  | O26: =IF('Caregiver Tab (FILL THIS OUT)'!N29="","",'Caregiver Tab (FILL THIS OUT)'!N29) ->  | P26: =IF('Caregiver Tab (FILL THIS OUT)'!O29="","",'Caregiver Tab (FILL THIS OUT)'!O29) ->  | Q26: =IF('Caregiver Tab (FILL THIS OUT)'!P29="","",'Caregiver Tab (FILL THIS OUT)'!P29) ->  | R26: =IF('Caregiver Tab (FILL THIS OUT)'!Q29="","",'Caregiver Tab (FILL THIS OUT)'!Q29) ->  | S26: =IF('Caregiver Tab (FILL THIS OUT)'!R29="","",'Caregiver Tab (FILL THIS OUT)'!R29) ->  | T26: =IF('Caregiver Tab (FILL THIS OUT)'!S29="","",'Caregiver Tab (FILL THIS OUT)'!S29) ->  | U26: =IF('Caregiver Tab (FILL THIS OUT)'!T29="","",'Caregiver Tab (FILL THIS OUT)'!T29) ->  | V26: =IF('Caregiver Tab (FILL THIS OUT)'!U29="","",'Caregiver Tab (FILL THIS OUT)'!U29) -> caregiver | W26: =IF('Caregiver Tab (FILL THIS OUT)'!V29="","",'Caregiver Tab (FILL THIS OUT)'!V29) ->  | X26: =IF('Caregiver Tab (FILL THIS OUT)'!W29="","",'Caregiver Tab (FILL THIS OUT)'!W29) ->  | Y26: =IF('Caregiver Tab (FILL THIS OUT)'!X29="","",'Caregiver Tab (FILL THIS OUT)'!X29) ->  | Z26: ='Caregiver Tab (FILL THIS OUT)'!#REF!&IF('Caregiver Tab (FILL THIS OUT)'!#REF!="","","#"&'Caregiver Tab (FILL THIS OUT)'!#REF!)&";"&'Caregiver Tab (FILL THIS OUT)'!#REF!&IF('Caregiver Tab (FILL THIS OUT)'!#REF!="","","#"&'Caregiver Tab (FILL THIS OUT)'!#REF!)&";"&'Caregiver Tab (FILL THIS OUT)'!#REF!&IF('Caregiver Tab (FILL THIS OUT)'!#REF!="","","#"&'Caregiver Tab (FILL THIS OUT)'!#REF!)&";" -> 
B27: =IF('Caregiver Tab (FILL THIS OUT)'!B30="","",'Caregiver Tab (FILL THIS OUT)'!B30) ->  | C27: =IF('Caregiver Tab (FILL THIS OUT)'!C30="","",'Caregiver Tab (FILL THIS OUT)'!C30) ->  | D27: 3 | E27: 1 | F27: =IF('Caregiver Tab (FILL THIS OUT)'!E30="","",'Caregiver Tab (FILL THIS OUT)'!E30) ->  | G27: =IF('Caregiver Tab (FILL THIS OUT)'!F30="","",'Caregiver Tab (FILL THIS OUT)'!F30) -> TRUE | H27: =IF('Caregiver Tab (FILL THIS OUT)'!G30="","",'Caregiver Tab (FILL THIS OUT)'!G30) ->  | I27: =IF('Caregiver Tab (FILL THIS OUT)'!H30="","",'Caregiver Tab (FILL THIS OUT)'!H30) ->  | J27: =IF('Caregiver Tab (FILL THIS OUT)'!I30="","",'Caregiver Tab (FILL THIS OUT)'!I30) ->  | K27: =IF('Caregiver Tab (FILL THIS OUT)'!K30="","",'Caregiver Tab (FILL THIS OUT)'!K30) ->  | L27: =IF('Caregiver Tab (FILL THIS OUT)'!L30="","",'Caregiver Tab (FILL THIS OUT)'!L30) ->  | M27: =IF('Caregiver Tab (FILL THIS OUT)'!M30="","",'Caregiver Tab (FILL THIS OUT)'!M30) ->  | N27: =IF('Caregiver Tab (FILL THIS OUT)'!M30="","",'Caregiver Tab (FILL THIS OUT)'!M30) ->  | O27: =IF('Caregiver Tab (FILL THIS OUT)'!N30="","",'Caregiver Tab (FILL THIS OUT)'!N30) ->  | P27: =IF('Caregiver Tab (FILL THIS OUT)'!O30="","",'Caregiver Tab (FILL THIS OUT)'!O30) ->  | Q27: =IF('Caregiver Tab (FILL THIS OUT)'!P30="","",'Caregiver Tab (FILL THIS OUT)'!P30) ->  | R27: =IF('Caregiver Tab (FILL THIS OUT)'!Q30="","",'Caregiver Tab (FILL THIS OUT)'!Q30) ->  | S27: =IF('Caregiver Tab (FILL THIS OUT)'!R30="","",'Caregiver Tab (FILL THIS OUT)'!R30) ->  | T27: =IF('Caregiver Tab (FILL THIS OUT)'!S30="","",'Caregiver Tab (FILL THIS OUT)'!S30) ->  | U27: =IF('Caregiver Tab (FILL THIS OUT)'!T30="","",'Caregiver Tab (FILL THIS OUT)'!T30) ->  | V27: =IF('Caregiver Tab (FILL THIS OUT)'!U30="","",'Caregiver Tab (FILL THIS OUT)'!U30) -> caregiver | W27: =IF('Caregiver Tab (FILL THIS OUT)'!V30="","",'Caregiver Tab (FILL THIS OUT)'!V30) ->  | X27: =IF('Caregiver Tab (FILL THIS OUT)'!W30="","",'Caregiver Tab (FILL THIS OUT)'!W30) ->  | Y27: =IF('Caregiver Tab (FILL THIS OUT)'!X30="","",'Caregiver Tab (FILL THIS OUT)'!X30) ->  | Z27: ='Caregiver Tab (FILL THIS OUT)'!#REF!&IF('Caregiver Tab (FILL THIS OUT)'!#REF!="","","#"&'Caregiver Tab (FILL THIS OUT)'!#REF!)&";"&'Caregiver Tab (FILL THIS OUT)'!#REF!&IF('Caregiver Tab (FILL THIS OUT)'!#REF!="","","#"&'Caregiver Tab (FILL THIS OUT)'!#REF!)&";"&'Caregiver Tab (FILL THIS OUT)'!#REF!&IF('Caregiver Tab (FILL THIS OUT)'!#REF!="","","#"&'Caregiver Tab (FILL THIS OUT)'!#REF!)&";" -> 
B28: =IF('Caregiver Tab (FILL THIS OUT)'!B31="","",'Caregiver Tab (FILL THIS OUT)'!B31) ->  | C28: =IF('Caregiver Tab (FILL THIS OUT)'!C31="","",'Caregiver Tab (FILL THIS OUT)'!C31) ->  | D28: 3 | E28: 1 | F28: =IF('Caregiver Tab (FILL THIS OUT)'!E31="","",'Caregiver Tab (FILL THIS OUT)'!E31) ->  | G28: =IF('Caregiver Tab (FILL THIS OUT)'!F31="","",'Caregiver Tab (FILL THIS OUT)'!F31) -> TRUE | H28: =IF('Caregiver Tab (FILL THIS OUT)'!G31="","",'Caregiver Tab (FILL THIS OUT)'!G31) ->  | I28: =IF('Caregiver Tab (FILL THIS OUT)'!H31="","",'Caregiver Tab (FILL THIS OUT)'!H31) ->  | J28: =IF('Caregiver Tab (FILL THIS OUT)'!I31="","",'Caregiver Tab (FILL THIS OUT)'!I31) ->  | K28: =IF('Caregiver Tab (FILL THIS OUT)'!K31="","",'Caregiver Tab (FILL THIS OUT)'!K31) ->  | L28: =IF('Caregiver Tab (FILL THIS OUT)'!L31="","",'Caregiver Tab (FILL THIS OUT)'!L31) ->  | M28: =IF('Caregiver Tab (FILL THIS OUT)'!M31="","",'Caregiver Tab (FILL THIS OUT)'!M31) ->  | N28: =IF('Caregiver Tab (FILL THIS OUT)'!M31="","",'Caregiver Tab (FILL THIS OUT)'!M31) ->  | O28: =IF('Caregiver Tab (FILL THIS OUT)'!N31="","",'Caregiver Tab (FILL THIS OUT)'!N31) ->  | P28: =IF('Caregiver Tab (FILL THIS OUT)'!O31="","",'Caregiver Tab (FILL THIS OUT)'!O31) ->  | Q28: =IF('Caregiver Tab (FILL THIS OUT)'!P31="","",'Caregiver Tab (FILL THIS OUT)'!P31) ->  | R28: =IF('Caregiver Tab (FILL THIS OUT)'!Q31="","",'Caregiver Tab (FILL THIS OUT)'!Q31) ->  | S28: =IF('Caregiver Tab (FILL THIS OUT)'!R31="","",'Caregiver Tab (FILL THIS OUT)'!R31) ->  | T28: =IF('Caregiver Tab (FILL THIS OUT)'!S31="","",'Caregiver Tab (FILL THIS OUT)'!S31) ->  | U28: =IF('Caregiver Tab (FILL THIS OUT)'!T31="","",'Caregiver Tab (FILL THIS OUT)'!T31) ->  | V28: =IF('Caregiver Tab (FILL THIS OUT)'!U31="","",'Caregiver Tab (FILL THIS OUT)'!U31) -> caregiver | W28: =IF('Caregiver Tab (FILL THIS OUT)'!V31="","",'Caregiver Tab (FILL THIS OUT)'!V31) ->  | X28: =IF('Caregiver Tab (FILL THIS OUT)'!W31="","",'Caregiver Tab (FILL THIS OUT)'!W31) ->  | Y28: =IF('Caregiver Tab (FILL THIS OUT)'!X31="","",'Caregiver Tab (FILL THIS OUT)'!X31) ->  | Z28: ='Caregiver Tab (FILL THIS OUT)'!#REF!&IF('Caregiver Tab (FILL THIS OUT)'!#REF!="","","#"&'Caregiver Tab (FILL THIS OUT)'!#REF!)&";"&'Caregiver Tab (FILL THIS OUT)'!#REF!&IF('Caregiver Tab (FILL THIS OUT)'!#REF!="","","#"&'Caregiver Tab (FILL THIS OUT)'!#REF!)&";"&'Caregiver Tab (FILL THIS OUT)'!#REF!&IF('Caregiver Tab (FILL THIS OUT)'!#REF!="","","#"&'Caregiver Tab (FILL THIS OUT)'!#REF!)&";" -> 
B29: =IF('Caregiver Tab (FILL THIS OUT)'!B32="","",'Caregiver Tab (FILL THIS OUT)'!B32) ->  | C29: =IF('Caregiver Tab (FILL THIS OUT)'!C32="","",'Caregiver Tab (FILL THIS OUT)'!C32) ->  | D29: 3 | E29: 1 | F29: =IF('Caregiver Tab (FILL THIS OUT)'!E32="","",'Caregiver Tab (FILL THIS OUT)'!E32) ->  | G29: =IF('Caregiver Tab (FILL THIS OUT)'!F32="","",'Caregiver Tab (FILL THIS OUT)'!F32) -> TRUE | H29: =IF('Caregiver Tab (FILL THIS OUT)'!G32="","",'Caregiver Tab (FILL THIS OUT)'!G32) ->  | I29: =IF('Caregiver Tab (FILL THIS OUT)'!H32="","",'Caregiver Tab (FILL THIS OUT)'!H32) ->  | J29: =IF('Caregiver Tab (FILL THIS OUT)'!I32="","",'Caregiver Tab (FILL THIS OUT)'!I32) ->  | K29: =IF('Caregiver Tab (FILL THIS OUT)'!K32="","",'Caregiver Tab (FILL THIS OUT)'!K32) ->  | L29: =IF('Caregiver Tab (FILL THIS OUT)'!L32="","",'Caregiver Tab (FILL THIS OUT)'!L32) ->  | M29: =IF('Caregiver Tab (FILL THIS OUT)'!M32="","",'Caregiver Tab (FILL THIS OUT)'!M32) ->  | N29: =IF('Caregiver Tab (FILL THIS OUT)'!M32="","",'Caregiver Tab (FILL THIS OUT)'!M32) ->  | O29: =IF('Caregiver Tab (FILL THIS OUT)'!N32="","",'Caregiver Tab (FILL THIS OUT)'!N32) ->  | P29: =IF('Caregiver Tab (FILL THIS OUT)'!O32="","",'Caregiver Tab (FILL THIS OUT)'!O32) ->  | Q29: =IF('Caregiver Tab (FILL THIS OUT)'!P32="","",'Caregiver Tab (FILL THIS OUT)'!P32) ->  | R29: =IF('Caregiver Tab (FILL THIS OUT)'!Q32="","",'Caregiver Tab (FILL THIS OUT)'!Q32) ->  | S29: =IF('Caregiver Tab (FILL THIS OUT)'!R32="","",'Caregiver Tab (FILL THIS OUT)'!R32) ->  | T29: =IF('Caregiver Tab (FILL THIS OUT)'!S32="","",'Caregiver Tab (FILL THIS OUT)'!S32) ->  | U29: =IF('Caregiver Tab (FILL THIS OUT)'!T32="","",'Caregiver Tab (FILL THIS OUT)'!T32) ->  | V29: =IF('Caregiver Tab (FILL THIS OUT)'!U32="","",'Caregiver Tab (FILL THIS OUT)'!U32) -> caregiver | W29: =IF('Caregiver Tab (FILL THIS OUT)'!V32="","",'Caregiver Tab (FILL THIS OUT)'!V32) ->  | X29: =IF('Caregiver Tab (FILL THIS OUT)'!W32="","",'Caregiver Tab (FILL THIS OUT)'!W32) ->  | Y29: =IF('Caregiver Tab (FILL THIS OUT)'!X32="","",'Caregiver Tab (FILL THIS OUT)'!X32) ->  | Z29: ='Caregiver Tab (FILL THIS OUT)'!#REF!&IF('Caregiver Tab (FILL THIS OUT)'!#REF!="","","#"&'Caregiver Tab (FILL THIS OUT)'!#REF!)&";"&'Caregiver Tab (FILL THIS OUT)'!#REF!&IF('Caregiver Tab (FILL THIS OUT)'!#REF!="","","#"&'Caregiver Tab (FILL THIS OUT)'!#REF!)&";"&'Caregiver Tab (FILL THIS OUT)'!#REF!&IF('Caregiver Tab (FILL THIS OUT)'!#REF!="","","#"&'Caregiver Tab (FILL THIS OUT)'!#REF!)&";" -> 
B30: =IF('Caregiver Tab (FILL THIS OUT)'!B33="","",'Caregiver Tab (FILL THIS OUT)'!B33) ->  | C30: =IF('Caregiver Tab (FILL THIS OUT)'!C33="","",'Caregiver Tab (FILL THIS OUT)'!C33) ->  | D30: 3 | E30: 1 | F30: =IF('Caregiver Tab (FILL THIS OUT)'!E33="","",'Caregiver Tab (FILL THIS OUT)'!E33) ->  | G30: =IF('Caregiver Tab (FILL THIS OUT)'!F33="","",'Caregiver Tab (FILL THIS OUT)'!F33) -> TRUE | H30: =IF('Caregiver Tab (FILL THIS OUT)'!G33="","",'Caregiver Tab (FILL THIS OUT)'!G33) ->  | I30: =IF('Caregiver Tab (FILL THIS OUT)'!H33="","",'Caregiver Tab (FILL THIS OUT)'!H33) ->  | J30: =IF('Caregiver Tab (FILL THIS OUT)'!I33="","",'Caregiver Tab (FILL THIS OUT)'!I33) ->  | K30: =IF('Caregiver Tab (FILL THIS OUT)'!K33="","",'Caregiver Tab (FILL THIS OUT)'!K33) ->  | L30: =IF('Caregiver Tab (FILL THIS OUT)'!L33="","",'Caregiver Tab (FILL THIS OUT)'!L33) ->  | M30: =IF('Caregiver Tab (FILL THIS OUT)'!M33="","",'Caregiver Tab (FILL THIS OUT)'!M33) ->  | N30: =IF('Caregiver Tab (FILL THIS OUT)'!M33="","",'Caregiver Tab (FILL THIS OUT)'!M33) ->  | O30: =IF('Caregiver Tab (FILL THIS OUT)'!N33="","",'Caregiver Tab (FILL THIS OUT)'!N33) ->  | P30: =IF('Caregiver Tab (FILL THIS OUT)'!O33="","",'Caregiver Tab (FILL THIS OUT)'!O33) ->  | Q30: =IF('Caregiver Tab (FILL THIS OUT)'!P33="","",'Caregiver Tab (FILL THIS OUT)'!P33) ->  | R30: =IF('Caregiver Tab (FILL THIS OUT)'!Q33="","",'Caregiver Tab (FILL THIS OUT)'!Q33) ->  | S30: =IF('Caregiver Tab (FILL THIS OUT)'!R33="","",'Caregiver Tab (FILL THIS OUT)'!R33) ->  | T30: =IF('Caregiver Tab (FILL THIS OUT)'!S33="","",'Caregiver Tab (FILL THIS OUT)'!S33) ->  | U30: =IF('Caregiver Tab (FILL THIS OUT)'!T33="","",'Caregiver Tab (FILL THIS OUT)'!T33) ->  | V30: =IF('Caregiver Tab (FILL THIS OUT)'!U33="","",'Caregiver Tab (FILL THIS OUT)'!U33) -> caregiver | W30: =IF('Caregiver Tab (FILL THIS OUT)'!V33="","",'Caregiver Tab (FILL THIS OUT)'!V33) ->  | X30: =IF('Caregiver Tab (FILL THIS OUT)'!W33="","",'Caregiver Tab (FILL THIS OUT)'!W33) ->  | Y30: =IF('Caregiver Tab (FILL THIS OUT)'!X33="","",'Caregiver Tab (FILL THIS OUT)'!X33) ->  | Z30: ='Caregiver Tab (FILL THIS OUT)'!#REF!&IF('Caregiver Tab (FILL THIS OUT)'!#REF!="","","#"&'Caregiver Tab (FILL THIS OUT)'!#REF!)&";"&'Caregiver Tab (FILL THIS OUT)'!#REF!&IF('Caregiver Tab (FILL THIS OUT)'!#REF!="","","#"&'Caregiver Tab (FILL THIS OUT)'!#REF!)&";"&'Caregiver Tab (FILL THIS OUT)'!#REF!&IF('Caregiver Tab (FILL THIS OUT)'!#REF!="","","#"&'Caregiver Tab (FILL THIS OUT)'!#REF!)&";" -> 
B31: =IF('Caregiver Tab (FILL THIS OUT)'!B34="","",'Caregiver Tab (FILL THIS OUT)'!B34) ->  | C31: =IF('Caregiver Tab (FILL THIS OUT)'!C34="","",'Caregiver Tab (FILL THIS OUT)'!C34) ->  | D31: 3 | E31: 1 | F31: =IF('Caregiver Tab (FILL THIS OUT)'!E34="","",'Caregiver Tab (FILL THIS OUT)'!E34) ->  | G31: =IF('Caregiver Tab (FILL THIS OUT)'!F34="","",'Caregiver Tab (FILL THIS OUT)'!F34) -> TRUE | H31: =IF('Caregiver Tab (FILL THIS OUT)'!G34="","",'Caregiver Tab (FILL THIS OUT)'!G34) ->  | I31: =IF('Caregiver Tab (FILL THIS OUT)'!H34="","",'Caregiver Tab (FILL THIS OUT)'!H34) ->  | J31: =IF('Caregiver Tab (FILL THIS OUT)'!I34="","",'Caregiver Tab (FILL THIS OUT)'!I34) ->  | K31: =IF('Caregiver Tab (FILL THIS OUT)'!K34="","",'Caregiver Tab (FILL THIS OUT)'!K34) ->  | L31: =IF('Caregiver Tab (FILL THIS OUT)'!L34="","",'Caregiver Tab (FILL THIS OUT)'!L34) ->  | M31: =IF('Caregiver Tab (FILL THIS OUT)'!M34="","",'Caregiver Tab (FILL THIS OUT)'!M34) ->  | N31: =IF('Caregiver Tab (FILL THIS OUT)'!M34="","",'Caregiver Tab (FILL THIS OUT)'!M34) ->  | O31: =IF('Caregiver Tab (FILL THIS OUT)'!N34="","",'Caregiver Tab (FILL THIS OUT)'!N34) ->  | P31: =IF('Caregiver Tab (FILL THIS OUT)'!O34="","",'Caregiver Tab (FILL THIS OUT)'!O34) ->  | Q31: =IF('Caregiver Tab (FILL THIS OUT)'!P34="","",'Caregiver Tab (FILL THIS OUT)'!P34) ->  | R31: =IF('Caregiver Tab (FILL THIS OUT)'!Q34="","",'Caregiver Tab (FILL THIS OUT)'!Q34) ->  | S31: =IF('Caregiver Tab (FILL THIS OUT)'!R34="","",'Caregiver Tab (FILL THIS OUT)'!R34) ->  | T31: =IF('Caregiver Tab (FILL THIS OUT)'!S34="","",'Caregiver Tab (FILL THIS OUT)'!S34) ->  | U31: =IF('Caregiver Tab (FILL THIS OUT)'!T34="","",'Caregiver Tab (FILL THIS OUT)'!T34) ->  | V31: =IF('Caregiver Tab (FILL THIS OUT)'!U34="","",'Caregiver Tab (FILL THIS OUT)'!U34) -> caregiver | W31: =IF('Caregiver Tab (FILL THIS OUT)'!V34="","",'Caregiver Tab (FILL THIS OUT)'!V34) ->  | X31: =IF('Caregiver Tab (FILL THIS OUT)'!W34="","",'Caregiver Tab (FILL THIS OUT)'!W34) ->  | Y31: =IF('Caregiver Tab (FILL THIS OUT)'!X34="","",'Caregiver Tab (FILL THIS OUT)'!X34) ->  | Z31: ='Caregiver Tab (FILL THIS OUT)'!#REF!&IF('Caregiver Tab (FILL THIS OUT)'!#REF!="","","#"&'Caregiver Tab (FILL THIS OUT)'!#REF!)&";"&'Caregiver Tab (FILL THIS OUT)'!#REF!&IF('Caregiver Tab (FILL THIS OUT)'!#REF!="","","#"&'Caregiver Tab (FILL THIS OUT)'!#REF!)&";"&'Caregiver Tab (FILL THIS OUT)'!#REF!&IF('Caregiver Tab (FILL THIS OUT)'!#REF!="","","#"&'Caregiver Tab (FILL THIS OUT)'!#REF!)&";" -> 
B32: =IF('Caregiver Tab (FILL THIS OUT)'!B35="","",'Caregiver Tab (FILL THIS OUT)'!B35) ->  | C32: =IF('Caregiver Tab (FILL THIS OUT)'!C35="","",'Caregiver Tab (FILL THIS OUT)'!C35) ->  | D32: 3 | E32: 1 | F32: =IF('Caregiver Tab (FILL THIS OUT)'!E35="","",'Caregiver Tab (FILL THIS OUT)'!E35) ->  | G32: =IF('Caregiver Tab (FILL THIS OUT)'!F35="","",'Caregiver Tab (FILL THIS OUT)'!F35) -> TRUE | H32: =IF('Caregiver Tab (FILL THIS OUT)'!G35="","",'Caregiver Tab (FILL THIS OUT)'!G35) ->  | I32: =IF('Caregiver Tab (FILL THIS OUT)'!H35="","",'Caregiver Tab (FILL THIS OUT)'!H35) ->  | J32: =IF('Caregiver Tab (FILL THIS OUT)'!I35="","",'Caregiver Tab (FILL THIS OUT)'!I35) ->  | K32: =IF('Caregiver Tab (FILL THIS OUT)'!K35="","",'Caregiver Tab (FILL THIS OUT)'!K35) ->  | L32: =IF('Caregiver Tab (FILL THIS OUT)'!L35="","",'Caregiver Tab (FILL THIS OUT)'!L35) ->  | M32: =IF('Caregiver Tab (FILL THIS OUT)'!M35="","",'Caregiver Tab (FILL THIS OUT)'!M35) ->  | N32: =IF('Caregiver Tab (FILL THIS OUT)'!M35="","",'Caregiver Tab (FILL THIS OUT)'!M35) ->  | O32: =IF('Caregiver Tab (FILL THIS OUT)'!N35="","",'Caregiver Tab (FILL THIS OUT)'!N35) ->  | P32: =IF('Caregiver Tab (FILL THIS OUT)'!O35="","",'Caregiver Tab (FILL THIS OUT)'!O35) ->  | Q32: =IF('Caregiver Tab (FILL THIS OUT)'!P35="","",'Caregiver Tab (FILL THIS OUT)'!P35) ->  | R32: =IF('Caregiver Tab (FILL THIS OUT)'!Q35="","",'Caregiver Tab (FILL THIS OUT)'!Q35) ->  | S32: =IF('Caregiver Tab (FILL THIS OUT)'!R35="","",'Caregiver Tab (FILL THIS OUT)'!R35) ->  | T32: =IF('Caregiver Tab (FILL THIS OUT)'!S35="","",'Caregiver Tab (FILL THIS OUT)'!S35) ->  | U32: =IF('Caregiver Tab (FILL THIS OUT)'!T35="","",'Caregiver Tab (FILL THIS OUT)'!T35) ->  | V32: =IF('Caregiver Tab (FILL THIS OUT)'!U35="","",'Caregiver Tab (FILL THIS OUT)'!U35) -> caregiver | W32: =IF('Caregiver Tab (FILL THIS OUT)'!V35="","",'Caregiver Tab (FILL THIS OUT)'!V35) ->  | X32: =IF('Caregiver Tab (FILL THIS OUT)'!W35="","",'Caregiver Tab (FILL THIS OUT)'!W35) ->  | Y32: =IF('Caregiver Tab (FILL THIS OUT)'!X35="","",'Caregiver Tab (FILL THIS OUT)'!X35) ->  | Z32: ='Caregiver Tab (FILL THIS OUT)'!#REF!&IF('Caregiver Tab (FILL THIS OUT)'!#REF!="","","#"&'Caregiver Tab (FILL THIS OUT)'!#REF!)&";"&'Caregiver Tab (FILL THIS OUT)'!#REF!&IF('Caregiver Tab (FILL THIS OUT)'!#REF!="","","#"&'Caregiver Tab (FILL THIS OUT)'!#REF!)&";"&'Caregiver Tab (FILL THIS OUT)'!#REF!&IF('Caregiver Tab (FILL THIS OUT)'!#REF!="","","#"&'Caregiver Tab (FILL THIS OUT)'!#REF!)&";" -> 
B33: =IF('Caregiver Tab (FILL THIS OUT)'!B36="","",'Caregiver Tab (FILL THIS OUT)'!B36) ->  | C33: =IF('Caregiver Tab (FILL THIS OUT)'!C36="","",'Caregiver Tab (FILL THIS OUT)'!C36) ->  | D33: 3 | E33: 1 | F33: =IF('Caregiver Tab (FILL THIS OUT)'!E36="","",'Caregiver Tab (FILL THIS OUT)'!E36) ->  | G33: =IF('Caregiver Tab (FILL THIS OUT)'!F36="","",'Caregiver Tab (FILL THIS OUT)'!F36) -> TRUE | H33: =IF('Caregiver Tab (FILL THIS OUT)'!G36="","",'Caregiver Tab (FILL THIS OUT)'!G36) ->  | I33: =IF('Caregiver Tab (FILL THIS OUT)'!H36="","",'Caregiver Tab (FILL THIS OUT)'!H36) ->  | J33: =IF('Caregiver Tab (FILL THIS OUT)'!I36="","",'Caregiver Tab (FILL THIS OUT)'!I36) ->  | K33: =IF('Caregiver Tab (FILL THIS OUT)'!K36="","",'Caregiver Tab (FILL THIS OUT)'!K36) ->  | L33: =IF('Caregiver Tab (FILL THIS OUT)'!L36="","",'Caregiver Tab (FILL THIS OUT)'!L36) ->  | M33: =IF('Caregiver Tab (FILL THIS OUT)'!M36="","",'Caregiver Tab (FILL THIS OUT)'!M36) ->  | N33: =IF('Caregiver Tab (FILL THIS OUT)'!M36="","",'Caregiver Tab (FILL THIS OUT)'!M36) ->  | O33: =IF('Caregiver Tab (FILL THIS OUT)'!N36="","",'Caregiver Tab (FILL THIS OUT)'!N36) ->  | P33: =IF('Caregiver Tab (FILL THIS OUT)'!O36="","",'Caregiver Tab (FILL THIS OUT)'!O36) ->  | Q33: =IF('Caregiver Tab (FILL THIS OUT)'!P36="","",'Caregiver Tab (FILL THIS OUT)'!P36) ->  | R33: =IF('Caregiver Tab (FILL THIS OUT)'!Q36="","",'Caregiver Tab (FILL THIS OUT)'!Q36) ->  | S33: =IF('Caregiver Tab (FILL THIS OUT)'!R36="","",'Caregiver Tab (FILL THIS OUT)'!R36) ->  | T33: =IF('Caregiver Tab (FILL THIS OUT)'!S36="","",'Caregiver Tab (FILL THIS OUT)'!S36) ->  | U33: =IF('Caregiver Tab (FILL THIS OUT)'!T36="","",'Caregiver Tab (FILL THIS OUT)'!T36) ->  | V33: =IF('Caregiver Tab (FILL THIS OUT)'!U36="","",'Caregiver Tab (FILL THIS OUT)'!U36) -> caregiver | W33: =IF('Caregiver Tab (FILL THIS OUT)'!V36="","",'Caregiver Tab (FILL THIS OUT)'!V36) ->  | X33: =IF('Caregiver Tab (FILL THIS OUT)'!W36="","",'Caregiver Tab (FILL THIS OUT)'!W36) ->  | Y33: =IF('Caregiver Tab (FILL THIS OUT)'!X36="","",'Caregiver Tab (FILL THIS OUT)'!X36) ->  | Z33: ='Caregiver Tab (FILL THIS OUT)'!#REF!&IF('Caregiver Tab (FILL THIS OUT)'!#REF!="","","#"&'Caregiver Tab (FILL THIS OUT)'!#REF!)&";"&'Caregiver Tab (FILL THIS OUT)'!#REF!&IF('Caregiver Tab (FILL THIS OUT)'!#REF!="","","#"&'Caregiver Tab (FILL THIS OUT)'!#REF!)&";"&'Caregiver Tab (FILL THIS OUT)'!#REF!&IF('Caregiver Tab (FILL THIS OUT)'!#REF!="","","#"&'Caregiver Tab (FILL THIS OUT)'!#REF!)&";" -> 
B34: =IF('Caregiver Tab (FILL THIS OUT)'!B37="","",'Caregiver Tab (FILL THIS OUT)'!B37) ->  | C34: =IF('Caregiver Tab (FILL THIS OUT)'!C37="","",'Caregiver Tab (FILL THIS OUT)'!C37) ->  | D34: 3 | E34: 1 | F34: =IF('Caregiver Tab (FILL THIS OUT)'!E37="","",'Caregiver Tab (FILL THIS OUT)'!E37) ->  | G34: =IF('Caregiver Tab (FILL THIS OUT)'!F37="","",'Caregiver Tab (FILL THIS OUT)'!F37) -> TRUE | H34: =IF('Caregiver Tab (FILL THIS OUT)'!G37="","",'Caregiver Tab (FILL THIS OUT)'!G37) ->  | I34: =IF('Caregiver Tab (FILL THIS OUT)'!H37="","",'Caregiver Tab (FILL THIS OUT)'!H37) ->  | J34: =IF('Caregiver Tab (FILL THIS OUT)'!I37="","",'Caregiver Tab (FILL THIS OUT)'!I37) ->  | K34: =IF('Caregiver Tab (FILL THIS OUT)'!K37="","",'Caregiver Tab (FILL THIS OUT)'!K37) ->  | L34: =IF('Caregiver Tab (FILL THIS OUT)'!L37="","",'Caregiver Tab (FILL THIS OUT)'!L37) ->  | M34: =IF('Caregiver Tab (FILL THIS OUT)'!M37="","",'Caregiver Tab (FILL THIS OUT)'!M37) ->  | N34: =IF('Caregiver Tab (FILL THIS OUT)'!M37="","",'Caregiver Tab (FILL THIS OUT)'!M37) ->  | O34: =IF('Caregiver Tab (FILL THIS OUT)'!N37="","",'Caregiver Tab (FILL THIS OUT)'!N37) ->  | P34: =IF('Caregiver Tab (FILL THIS OUT)'!O37="","",'Caregiver Tab (FILL THIS OUT)'!O37) ->  | Q34: =IF('Caregiver Tab (FILL THIS OUT)'!P37="","",'Caregiver Tab (FILL THIS OUT)'!P37) ->  | R34: =IF('Caregiver Tab (FILL THIS OUT)'!Q37="","",'Caregiver Tab (FILL THIS OUT)'!Q37) ->  | S34: =IF('Caregiver Tab (FILL THIS OUT)'!R37="","",'Caregiver Tab (FILL THIS OUT)'!R37) ->  | T34: =IF('Caregiver Tab (FILL THIS OUT)'!S37="","",'Caregiver Tab (FILL THIS OUT)'!S37) ->  | U34: =IF('Caregiver Tab (FILL THIS OUT)'!T37="","",'Caregiver Tab (FILL THIS OUT)'!T37) ->  | V34: =IF('Caregiver Tab (FILL THIS OUT)'!U37="","",'Caregiver Tab (FILL THIS OUT)'!U37) -> caregiver | W34: =IF('Caregiver Tab (FILL THIS OUT)'!V37="","",'Caregiver Tab (FILL THIS OUT)'!V37) ->  | X34: =IF('Caregiver Tab (FILL THIS OUT)'!W37="","",'Caregiver Tab (FILL THIS OUT)'!W37) ->  | Y34: =IF('Caregiver Tab (FILL THIS OUT)'!X37="","",'Caregiver Tab (FILL THIS OUT)'!X37) ->  | Z34: ='Caregiver Tab (FILL THIS OUT)'!#REF!&IF('Caregiver Tab (FILL THIS OUT)'!#REF!="","","#"&'Caregiver Tab (FILL THIS OUT)'!#REF!)&";"&'Caregiver Tab (FILL THIS OUT)'!#REF!&IF('Caregiver Tab (FILL THIS OUT)'!#REF!="","","#"&'Caregiver Tab (FILL THIS OUT)'!#REF!)&";"&'Caregiver Tab (FILL THIS OUT)'!#REF!&IF('Caregiver Tab (FILL THIS OUT)'!#REF!="","","#"&'Caregiver Tab (FILL THIS OUT)'!#REF!)&";" -> 
B35: =IF('Caregiver Tab (FILL THIS OUT)'!B38="","",'Caregiver Tab (FILL THIS OUT)'!B38) ->  | C35: =IF('Caregiver Tab (FILL THIS OUT)'!C38="","",'Caregiver Tab (FILL THIS OUT)'!C38) ->  | D35: 3 | E35: 1 | F35: =IF('Caregiver Tab (FILL THIS OUT)'!E38="","",'Caregiver Tab (FILL THIS OUT)'!E38) ->  | G35: =IF('Caregiver Tab (FILL THIS OUT)'!F38="","",'Caregiver Tab (FILL THIS OUT)'!F38) -> TRUE | H35: =IF('Caregiver Tab (FILL THIS OUT)'!G38="","",'Caregiver Tab (FILL THIS OUT)'!G38) ->  | I35: =IF('Caregiver Tab (FILL THIS OUT)'!H38="","",'Caregiver Tab (FILL THIS OUT)'!H38) ->  | J35: =IF('Caregiver Tab (FILL THIS OUT)'!I38="","",'Caregiver Tab (FILL THIS OUT)'!I38) ->  | K35: =IF('Caregiver Tab (FILL THIS OUT)'!K38="","",'Caregiver Tab (FILL THIS OUT)'!K38) ->  | L35: =IF('Caregiver Tab (FILL THIS OUT)'!L38="","",'Caregiver Tab (FILL THIS OUT)'!L38) ->  | M35: =IF('Caregiver Tab (FILL THIS OUT)'!M38="","",'Caregiver Tab (FILL THIS OUT)'!M38) ->  | N35: =IF('Caregiver Tab (FILL THIS OUT)'!M38="","",'Caregiver Tab (FILL THIS OUT)'!M38) ->  | O35: =IF('Caregiver Tab (FILL THIS OUT)'!N38="","",'Caregiver Tab (FILL THIS OUT)'!N38) ->  | P35: =IF('Caregiver Tab (FILL THIS OUT)'!O38="","",'Caregiver Tab (FILL THIS OUT)'!O38) ->  | Q35: =IF('Caregiver Tab (FILL THIS OUT)'!P38="","",'Caregiver Tab (FILL THIS OUT)'!P38) ->  | R35: =IF('Caregiver Tab (FILL THIS OUT)'!Q38="","",'Caregiver Tab (FILL THIS OUT)'!Q38) ->  | S35: =IF('Caregiver Tab (FILL THIS OUT)'!R38="","",'Caregiver Tab (FILL THIS OUT)'!R38) ->  | T35: =IF('Caregiver Tab (FILL THIS OUT)'!S38="","",'Caregiver Tab (FILL THIS OUT)'!S38) ->  | U35: =IF('Caregiver Tab (FILL THIS OUT)'!T38="","",'Caregiver Tab (FILL THIS OUT)'!T38) ->  | V35: =IF('Caregiver Tab (FILL THIS OUT)'!U38="","",'Caregiver Tab (FILL THIS OUT)'!U38) -> caregiver | W35: =IF('Caregiver Tab (FILL THIS OUT)'!V38="","",'Caregiver Tab (FILL THIS OUT)'!V38) ->  | X35: =IF('Caregiver Tab (FILL THIS OUT)'!W38="","",'Caregiver Tab (FILL THIS OUT)'!W38) ->  | Y35: =IF('Caregiver Tab (FILL THIS OUT)'!X38="","",'Caregiver Tab (FILL THIS OUT)'!X38) ->  | Z35: ='Caregiver Tab (FILL THIS OUT)'!#REF!&IF('Caregiver Tab (FILL THIS OUT)'!#REF!="","","#"&'Caregiver Tab (FILL THIS OUT)'!#REF!)&";"&'Caregiver Tab (FILL THIS OUT)'!#REF!&IF('Caregiver Tab (FILL THIS OUT)'!#REF!="","","#"&'Caregiver Tab (FILL THIS OUT)'!#REF!)&";"&'Caregiver Tab (FILL THIS OUT)'!#REF!&IF('Caregiver Tab (FILL THIS OUT)'!#REF!="","","#"&'Caregiver Tab (FILL THIS OUT)'!#REF!)&";" -> 
B36: =IF('Caregiver Tab (FILL THIS OUT)'!B39="","",'Caregiver Tab (FILL THIS OUT)'!B39) ->  | C36: =IF('Caregiver Tab (FILL THIS OUT)'!C39="","",'Caregiver Tab (FILL THIS OUT)'!C39) ->  | D36: 3 | E36: 1 | F36: =IF('Caregiver Tab (FILL THIS OUT)'!E39="","",'Caregiver Tab (FILL THIS OUT)'!E39) ->  | G36: =IF('Caregiver Tab (FILL THIS OUT)'!F39="","",'Caregiver Tab (FILL THIS OUT)'!F39) -> TRUE | H36: =IF('Caregiver Tab (FILL THIS OUT)'!G39="","",'Caregiver Tab (FILL THIS OUT)'!G39) ->  | I36: =IF('Caregiver Tab (FILL THIS OUT)'!H39="","",'Caregiver Tab (FILL THIS OUT)'!H39) ->  | J36: =IF('Caregiver Tab (FILL THIS OUT)'!I39="","",'Caregiver Tab (FILL THIS OUT)'!I39) ->  | K36: =IF('Caregiver Tab (FILL THIS OUT)'!K39="","",'Caregiver Tab (FILL THIS OUT)'!K39) ->  | L36: =IF('Caregiver Tab (FILL THIS OUT)'!L39="","",'Caregiver Tab (FILL THIS OUT)'!L39) ->  | M36: =IF('Caregiver Tab (FILL THIS OUT)'!M39="","",'Caregiver Tab (FILL THIS OUT)'!M39) ->  | N36: =IF('Caregiver Tab (FILL THIS OUT)'!M39="","",'Caregiver Tab (FILL THIS OUT)'!M39) ->  | O36: =IF('Caregiver Tab (FILL THIS OUT)'!N39="","",'Caregiver Tab (FILL THIS OUT)'!N39) ->  | P36: =IF('Caregiver Tab (FILL THIS OUT)'!O39="","",'Caregiver Tab (FILL THIS OUT)'!O39) ->  | Q36: =IF('Caregiver Tab (FILL THIS OUT)'!P39="","",'Caregiver Tab (FILL THIS OUT)'!P39) ->  | R36: =IF('Caregiver Tab (FILL THIS OUT)'!Q39="","",'Caregiver Tab (FILL THIS OUT)'!Q39) ->  | S36: =IF('Caregiver Tab (FILL THIS OUT)'!R39="","",'Caregiver Tab (FILL THIS OUT)'!R39) ->  | T36: =IF('Caregiver Tab (FILL THIS OUT)'!S39="","",'Caregiver Tab (FILL THIS OUT)'!S39) ->  | U36: =IF('Caregiver Tab (FILL THIS OUT)'!T39="","",'Caregiver Tab (FILL THIS OUT)'!T39) ->  | V36: =IF('Caregiver Tab (FILL THIS OUT)'!U39="","",'Caregiver Tab (FILL THIS OUT)'!U39) -> caregiver | W36: =IF('Caregiver Tab (FILL THIS OUT)'!V39="","",'Caregiver Tab (FILL THIS OUT)'!V39) ->  | X36: =IF('Caregiver Tab (FILL THIS OUT)'!W39="","",'Caregiver Tab (FILL THIS OUT)'!W39) ->  | Y36: =IF('Caregiver Tab (FILL THIS OUT)'!X39="","",'Caregiver Tab (FILL THIS OUT)'!X39) ->  | Z36: ='Caregiver Tab (FILL THIS OUT)'!#REF!&IF('Caregiver Tab (FILL THIS OUT)'!#REF!="","","#"&'Caregiver Tab (FILL THIS OUT)'!#REF!)&";"&'Caregiver Tab (FILL THIS OUT)'!#REF!&IF('Caregiver Tab (FILL THIS OUT)'!#REF!="","","#"&'Caregiver Tab (FILL THIS OUT)'!#REF!)&";"&'Caregiver Tab (FILL THIS OUT)'!#REF!&IF('Caregiver Tab (FILL THIS OUT)'!#REF!="","","#"&'Caregiver Tab (FILL THIS OUT)'!#REF!)&";" -> 
B37: =IF('Caregiver Tab (FILL THIS OUT)'!B40="","",'Caregiver Tab (FILL THIS OUT)'!B40) ->  | C37: =IF('Caregiver Tab (FILL THIS OUT)'!C40="","",'Caregiver Tab (FILL THIS OUT)'!C40) ->  | D37: 3 | E37: 1 | F37: =IF('Caregiver Tab (FILL THIS OUT)'!E40="","",'Caregiver Tab (FILL THIS OUT)'!E40) ->  | G37: =IF('Caregiver Tab (FILL THIS OUT)'!F40="","",'Caregiver Tab (FILL THIS OUT)'!F40) -> TRUE | H37: =IF('Caregiver Tab (FILL THIS OUT)'!G40="","",'Caregiver Tab (FILL THIS OUT)'!G40) ->  | I37: =IF('Caregiver Tab (FILL THIS OUT)'!H40="","",'Caregiver Tab (FILL THIS OUT)'!H40) ->  | J37: =IF('Caregiver Tab (FILL THIS OUT)'!I40="","",'Caregiver Tab (FILL THIS OUT)'!I40) ->  | K37: =IF('Caregiver Tab (FILL THIS OUT)'!K40="","",'Caregiver Tab (FILL THIS OUT)'!K40) ->  | L37: =IF('Caregiver Tab (FILL THIS OUT)'!L40="","",'Caregiver Tab (FILL THIS OUT)'!L40) ->  | M37: =IF('Caregiver Tab (FILL THIS OUT)'!M40="","",'Caregiver Tab (FILL THIS OUT)'!M40) ->  | N37: =IF('Caregiver Tab (FILL THIS OUT)'!M40="","",'Caregiver Tab (FILL THIS OUT)'!M40) ->  | O37: =IF('Caregiver Tab (FILL THIS OUT)'!N40="","",'Caregiver Tab (FILL THIS OUT)'!N40) ->  | P37: =IF('Caregiver Tab (FILL THIS OUT)'!O40="","",'Caregiver Tab (FILL THIS OUT)'!O40) ->  | Q37: =IF('Caregiver Tab (FILL THIS OUT)'!P40="","",'Caregiver Tab (FILL THIS OUT)'!P40) ->  | R37: =IF('Caregiver Tab (FILL THIS OUT)'!Q40="","",'Caregiver Tab (FILL THIS OUT)'!Q40) ->  | S37: =IF('Caregiver Tab (FILL THIS OUT)'!R40="","",'Caregiver Tab (FILL THIS OUT)'!R40) ->  | T37: =IF('Caregiver Tab (FILL THIS OUT)'!S40="","",'Caregiver Tab (FILL THIS OUT)'!S40) ->  | U37: =IF('Caregiver Tab (FILL THIS OUT)'!T40="","",'Caregiver Tab (FILL THIS OUT)'!T40) ->  | V37: =IF('Caregiver Tab (FILL THIS OUT)'!U40="","",'Caregiver Tab (FILL THIS OUT)'!U40) -> caregiver | W37: =IF('Caregiver Tab (FILL THIS OUT)'!V40="","",'Caregiver Tab (FILL THIS OUT)'!V40) ->  | X37: =IF('Caregiver Tab (FILL THIS OUT)'!W40="","",'Caregiver Tab (FILL THIS OUT)'!W40) ->  | Y37: =IF('Caregiver Tab (FILL THIS OUT)'!X40="","",'Caregiver Tab (FILL THIS OUT)'!X40) ->  | Z37: ='Caregiver Tab (FILL THIS OUT)'!#REF!&IF('Caregiver Tab (FILL THIS OUT)'!#REF!="","","#"&'Caregiver Tab (FILL THIS OUT)'!#REF!)&";"&'Caregiver Tab (FILL THIS OUT)'!#REF!&IF('Caregiver Tab (FILL THIS OUT)'!#REF!="","","#"&'Caregiver Tab (FILL THIS OUT)'!#REF!)&";"&'Caregiver Tab (FILL THIS OUT)'!#REF!&IF('Caregiver Tab (FILL THIS OUT)'!#REF!="","","#"&'Caregiver Tab (FILL THIS OUT)'!#REF!)&";" -> 
B38: =IF('Caregiver Tab (FILL THIS OUT)'!B41="","",'Caregiver Tab (FILL THIS OUT)'!B41) ->  | C38: =IF('Caregiver Tab (FILL THIS OUT)'!C41="","",'Caregiver Tab (FILL THIS OUT)'!C41) ->  | D38: 3 | E38: 1 | F38: =IF('Caregiver Tab (FILL THIS OUT)'!E41="","",'Caregiver Tab (FILL THIS OUT)'!E41) ->  | G38: =IF('Caregiver Tab (FILL THIS OUT)'!F41="","",'Caregiver Tab (FILL THIS OUT)'!F41) -> TRUE | H38: =IF('Caregiver Tab (FILL THIS OUT)'!G41="","",'Caregiver Tab (FILL THIS OUT)'!G41) ->  | I38: =IF('Caregiver Tab (FILL THIS OUT)'!H41="","",'Caregiver Tab (FILL THIS OUT)'!H41) ->  | J38: =IF('Caregiver Tab (FILL THIS OUT)'!I41="","",'Caregiver Tab (FILL THIS OUT)'!I41) ->  | K38: =IF('Caregiver Tab (FILL THIS OUT)'!K41="","",'Caregiver Tab (FILL THIS OUT)'!K41) ->  | L38: =IF('Caregiver Tab (FILL THIS OUT)'!L41="","",'Caregiver Tab (FILL THIS OUT)'!L41) ->  | M38: =IF('Caregiver Tab (FILL THIS OUT)'!M41="","",'Caregiver Tab (FILL THIS OUT)'!M41) ->  | N38: =IF('Caregiver Tab (FILL THIS OUT)'!M41="","",'Caregiver Tab (FILL THIS OUT)'!M41) ->  | O38: =IF('Caregiver Tab (FILL THIS OUT)'!N41="","",'Caregiver Tab (FILL THIS OUT)'!N41) ->  | P38: =IF('Caregiver Tab (FILL THIS OUT)'!O41="","",'Caregiver Tab (FILL THIS OUT)'!O41) ->  | Q38: =IF('Caregiver Tab (FILL THIS OUT)'!P41="","",'Caregiver Tab (FILL THIS OUT)'!P41) ->  | R38: =IF('Caregiver Tab (FILL THIS OUT)'!Q41="","",'Caregiver Tab (FILL THIS OUT)'!Q41) ->  | S38: =IF('Caregiver Tab (FILL THIS OUT)'!R41="","",'Caregiver Tab (FILL THIS OUT)'!R41) ->  | T38: =IF('Caregiver Tab (FILL THIS OUT)'!S41="","",'Caregiver Tab (FILL THIS OUT)'!S41) ->  | U38: =IF('Caregiver Tab (FILL THIS OUT)'!T41="","",'Caregiver Tab (FILL THIS OUT)'!T41) ->  | V38: =IF('Caregiver Tab (FILL THIS OUT)'!U41="","",'Caregiver Tab (FILL THIS OUT)'!U41) -> caregiver | W38: =IF('Caregiver Tab (FILL THIS OUT)'!V41="","",'Caregiver Tab (FILL THIS OUT)'!V41) ->  | X38: =IF('Caregiver Tab (FILL THIS OUT)'!W41="","",'Caregiver Tab (FILL THIS OUT)'!W41) ->  | Y38: =IF('Caregiver Tab (FILL THIS OUT)'!X41="","",'Caregiver Tab (FILL THIS OUT)'!X41) ->  | Z38: ='Caregiver Tab (FILL THIS OUT)'!#REF!&IF('Caregiver Tab (FILL THIS OUT)'!#REF!="","","#"&'Caregiver Tab (FILL THIS OUT)'!#REF!)&";"&'Caregiver Tab (FILL THIS OUT)'!#REF!&IF('Caregiver Tab (FILL THIS OUT)'!#REF!="","","#"&'Caregiver Tab (FILL THIS OUT)'!#REF!)&";"&'Caregiver Tab (FILL THIS OUT)'!#REF!&IF('Caregiver Tab (FILL THIS OUT)'!#REF!="","","#"&'Caregiver Tab (FILL THIS OUT)'!#REF!)&";" -> 
B39: =IF('Caregiver Tab (FILL THIS OUT)'!B42="","",'Caregiver Tab (FILL THIS OUT)'!B42) ->  | C39: =IF('Caregiver Tab (FILL THIS OUT)'!C42="","",'Caregiver Tab (FILL THIS OUT)'!C42) ->  | D39: 3 | E39: 1 | F39: =IF('Caregiver Tab (FILL THIS OUT)'!E42="","",'Caregiver Tab (FILL THIS OUT)'!E42) ->  | G39: =IF('Caregiver Tab (FILL THIS OUT)'!F42="","",'Caregiver Tab (FILL THIS OUT)'!F42) -> TRUE | H39: =IF('Caregiver Tab (FILL THIS OUT)'!G42="","",'Caregiver Tab (FILL THIS OUT)'!G42) ->  | I39: =IF('Caregiver Tab (FILL THIS OUT)'!H42="","",'Caregiver Tab (FILL THIS OUT)'!H42) ->  | J39: =IF('Caregiver Tab (FILL THIS OUT)'!I42="","",'Caregiver Tab (FILL THIS OUT)'!I42) ->  | K39: =IF('Caregiver Tab (FILL THIS OUT)'!J42="","",'Caregiver Tab (FILL THIS OUT)'!J42) ->  | L39: =IF('Caregiver Tab (FILL THIS OUT)'!K42="","",'Caregiver Tab (FILL THIS OUT)'!K42) ->  | M39: =IF('Caregiver Tab (FILL THIS OUT)'!M42="","",'Caregiver Tab (FILL THIS OUT)'!M42) ->  | N39: =IF('Caregiver Tab (FILL THIS OUT)'!M42="","",'Caregiver Tab (FILL THIS OUT)'!M42) ->  | O39: =IF('Caregiver Tab (FILL THIS OUT)'!N42="","",'Caregiver Tab (FILL THIS OUT)'!N42) ->  | P39: =IF('Caregiver Tab (FILL THIS OUT)'!O42="","",'Caregiver Tab (FILL THIS OUT)'!O42) ->  | Q39: =IF('Caregiver Tab (FILL THIS OUT)'!P42="","",'Caregiver Tab (FILL THIS OUT)'!P42) ->  | R39: =IF('Caregiver Tab (FILL THIS OUT)'!Q42="","",'Caregiver Tab (FILL THIS OUT)'!Q42) ->  | S39: =IF('Caregiver Tab (FILL THIS OUT)'!R42="","",'Caregiver Tab (FILL THIS OUT)'!R42) ->  | T39: =IF('Caregiver Tab (FILL THIS OUT)'!S42="","",'Caregiver Tab (FILL THIS OUT)'!S42) ->  | U39: =IF('Caregiver Tab (FILL THIS OUT)'!T42="","",'Caregiver Tab (FILL THIS OUT)'!T42) ->  | V39: =IF('Caregiver Tab (FILL THIS OUT)'!U42="","",'Caregiver Tab (FILL THIS OUT)'!U42) -> caregiver | W39: =IF('Caregiver Tab (FILL THIS OUT)'!V42="","",'Caregiver Tab (FILL THIS OUT)'!V42) ->  | X39: =IF('Caregiver Tab (FILL THIS OUT)'!W42="","",'Caregiver Tab (FILL THIS OUT)'!W42) ->  | Y39: =IF('Caregiver Tab (FILL THIS OUT)'!X42="","",'Caregiver Tab (FILL THIS OUT)'!X42) ->  | Z39: ='Caregiver Tab (FILL THIS OUT)'!#REF!&IF('Caregiver Tab (FILL THIS OUT)'!#REF!="","","#"&'Caregiver Tab (FILL THIS OUT)'!#REF!)&";"&'Caregiver Tab (FILL THIS OUT)'!#REF!&IF('Caregiver Tab (FILL THIS OUT)'!#REF!="","","#"&'Caregiver Tab (FILL THIS OUT)'!#REF!)&";"&'Caregiver Tab (FILL THIS OUT)'!#REF!&IF('Caregiver Tab (FILL THIS OUT)'!#REF!="","","#"&'Caregiver Tab (FILL THIS OUT)'!#REF!)&";" -> 
B40: =IF('Caregiver Tab (FILL THIS OUT)'!B43="","",'Caregiver Tab (FILL THIS OUT)'!B43) ->  | C40: =IF('Caregiver Tab (FILL THIS OUT)'!C43="","",'Caregiver Tab (FILL THIS OUT)'!C43) ->  | D40: 3 | E40: 1 | F40: =IF('Caregiver Tab (FILL THIS OUT)'!E43="","",'Caregiver Tab (FILL THIS OUT)'!E43) ->  | G40: =IF('Caregiver Tab (FILL THIS OUT)'!F43="","",'Caregiver Tab (FILL THIS OUT)'!F43) -> TRUE | H40: =IF('Caregiver Tab (FILL THIS OUT)'!G43="","",'Caregiver Tab (FILL THIS OUT)'!G43) ->  | I40: =IF('Caregiver Tab (FILL THIS OUT)'!H43="","",'Caregiver Tab (FILL THIS OUT)'!H43) ->  | J40: =IF('Caregiver Tab (FILL THIS OUT)'!I43="","",'Caregiver Tab (FILL THIS OUT)'!I43) ->  | K40: =IF('Caregiver Tab (FILL THIS OUT)'!J43="","",'Caregiver Tab (FILL THIS OUT)'!J43) ->  | L40: =IF('Caregiver Tab (FILL THIS OUT)'!K43="","",'Caregiver Tab (FILL THIS OUT)'!K43) ->  | M40: =IF('Caregiver Tab (FILL THIS OUT)'!M43="","",'Caregiver Tab (FILL THIS OUT)'!M43) ->  | N40: =IF('Caregiver Tab (FILL THIS OUT)'!M43="","",'Caregiver Tab (FILL THIS OUT)'!M43) ->  | O40: =IF('Caregiver Tab (FILL THIS OUT)'!N43="","",'Caregiver Tab (FILL THIS OUT)'!N43) ->  | P40: =IF('Caregiver Tab (FILL THIS OUT)'!O43="","",'Caregiver Tab (FILL THIS OUT)'!O43) ->  | Q40: =IF('Caregiver Tab (FILL THIS OUT)'!P43="","",'Caregiver Tab (FILL THIS OUT)'!P43) ->  | R40: =IF('Caregiver Tab (FILL THIS OUT)'!Q43="","",'Caregiver Tab (FILL THIS OUT)'!Q43) ->  | S40: =IF('Caregiver Tab (FILL THIS OUT)'!R43="","",'Caregiver Tab (FILL THIS OUT)'!R43) ->  | T40: =IF('Caregiver Tab (FILL THIS OUT)'!S43="","",'Caregiver Tab (FILL THIS OUT)'!S43) ->  | U40: =IF('Caregiver Tab (FILL THIS OUT)'!T43="","",'Caregiver Tab (FILL THIS OUT)'!T43) ->  | V40: =IF('Caregiver Tab (FILL THIS OUT)'!U43="","",'Caregiver Tab (FILL THIS OUT)'!U43) -> caregiver | W40: =IF('Caregiver Tab (FILL THIS OUT)'!V43="","",'Caregiver Tab (FILL THIS OUT)'!V43) ->  | X40: =IF('Caregiver Tab (FILL THIS OUT)'!W43="","",'Caregiver Tab (FILL THIS OUT)'!W43) ->  | Y40: =IF('Caregiver Tab (FILL THIS OUT)'!X43="","",'Caregiver Tab (FILL THIS OUT)'!X43) ->  | Z40: ='Caregiver Tab (FILL THIS OUT)'!#REF!&IF('Caregiver Tab (FILL THIS OUT)'!#REF!="","","#"&'Caregiver Tab (FILL THIS OUT)'!#REF!)&";"&'Caregiver Tab (FILL THIS OUT)'!#REF!&IF('Caregiver Tab (FILL THIS OUT)'!#REF!="","","#"&'Caregiver Tab (FILL THIS OUT)'!#REF!)&";"&'Caregiver Tab (FILL THIS OUT)'!#REF!&IF('Caregiver Tab (FILL THIS OUT)'!#REF!="","","#"&'Caregiver Tab (FILL THIS OUT)'!#REF!)&";" -> 
B41: =IF('Caregiver Tab (FILL THIS OUT)'!B44="","",'Caregiver Tab (FILL THIS OUT)'!B44) ->  | C41: =IF('Caregiver Tab (FILL THIS OUT)'!C44="","",'Caregiver Tab (FILL THIS OUT)'!C44) ->  | D41: 3 | E41: 1 | F41: =IF('Caregiver Tab (FILL THIS OUT)'!E44="","",'Caregiver Tab (FILL THIS OUT)'!E44) ->  | G41: =IF('Caregiver Tab (FILL THIS OUT)'!F44="","",'Caregiver Tab (FILL THIS OUT)'!F44) -> TRUE | H41: =IF('Caregiver Tab (FILL THIS OUT)'!G44="","",'Caregiver Tab (FILL THIS OUT)'!G44) ->  | I41: =IF('Caregiver Tab (FILL THIS OUT)'!H44="","",'Caregiver Tab (FILL THIS OUT)'!H44) ->  | J41: =IF('Caregiver Tab (FILL THIS OUT)'!I44="","",'Caregiver Tab (FILL THIS OUT)'!I44) ->  | K41: =IF('Caregiver Tab (FILL THIS OUT)'!J44="","",'Caregiver Tab (FILL THIS OUT)'!J44) ->  | L41: =IF('Caregiver Tab (FILL THIS OUT)'!K44="","",'Caregiver Tab (FILL THIS OUT)'!K44) ->  | M41: =IF('Caregiver Tab (FILL THIS OUT)'!M44="","",'Caregiver Tab (FILL THIS OUT)'!M44) ->  | N41: =IF('Caregiver Tab (FILL THIS OUT)'!M44="","",'Caregiver Tab (FILL THIS OUT)'!M44) ->  | O41: =IF('Caregiver Tab (FILL THIS OUT)'!N44="","",'Caregiver Tab (FILL THIS OUT)'!N44) ->  | P41: =IF('Caregiver Tab (FILL THIS OUT)'!O44="","",'Caregiver Tab (FILL THIS OUT)'!O44) ->  | Q41: =IF('Caregiver Tab (FILL THIS OUT)'!P44="","",'Caregiver Tab (FILL THIS OUT)'!P44) ->  | R41: =IF('Caregiver Tab (FILL THIS OUT)'!Q44="","",'Caregiver Tab (FILL THIS OUT)'!Q44) ->  | S41: =IF('Caregiver Tab (FILL THIS OUT)'!R44="","",'Caregiver Tab (FILL THIS OUT)'!R44) ->  | T41: =IF('Caregiver Tab (FILL THIS OUT)'!S44="","",'Caregiver Tab (FILL THIS OUT)'!S44) ->  | U41: =IF('Caregiver Tab (FILL THIS OUT)'!T44="","",'Caregiver Tab (FILL THIS OUT)'!T44) ->  | V41: =IF('Caregiver Tab (FILL THIS OUT)'!U44="","",'Caregiver Tab (FILL THIS OUT)'!U44) -> caregiver | W41: =IF('Caregiver Tab (FILL THIS OUT)'!V44="","",'Caregiver Tab (FILL THIS OUT)'!V44) ->  | X41: =IF('Caregiver Tab (FILL THIS OUT)'!W44="","",'Caregiver Tab (FILL THIS OUT)'!W44) ->  | Y41: =IF('Caregiver Tab (FILL THIS OUT)'!X44="","",'Caregiver Tab (FILL THIS OUT)'!X44) ->  | Z41: ='Caregiver Tab (FILL THIS OUT)'!#REF!&IF('Caregiver Tab (FILL THIS OUT)'!#REF!="","","#"&'Caregiver Tab (FILL THIS OUT)'!#REF!)&";"&'Caregiver Tab (FILL THIS OUT)'!#REF!&IF('Caregiver Tab (FILL THIS OUT)'!#REF!="","","#"&'Caregiver Tab (FILL THIS OUT)'!#REF!)&";"&'Caregiver Tab (FILL THIS OUT)'!#REF!&IF('Caregiver Tab (FILL THIS OUT)'!#REF!="","","#"&'Caregiver Tab (FILL THIS OUT)'!#REF!)&";" -> 
B42: =IF('Caregiver Tab (FILL THIS OUT)'!B45="","",'Caregiver Tab (FILL THIS OUT)'!B45) ->  | C42: =IF('Caregiver Tab (FILL THIS OUT)'!C45="","",'Caregiver Tab (FILL THIS OUT)'!C45) ->  | D42: 3 | E42: 1 | F42: =IF('Caregiver Tab (FILL THIS OUT)'!E45="","",'Caregiver Tab (FILL THIS OUT)'!E45) ->  | G42: =IF('Caregiver Tab (FILL THIS OUT)'!F45="","",'Caregiver Tab (FILL THIS OUT)'!F45) -> TRUE | H42: =IF('Caregiver Tab (FILL THIS OUT)'!G45="","",'Caregiver Tab (FILL THIS OUT)'!G45) ->  | I42: =IF('Caregiver Tab (FILL THIS OUT)'!H45="","",'Caregiver Tab (FILL THIS OUT)'!H45) ->  | J42: =IF('Caregiver Tab (FILL THIS OUT)'!I45="","",'Caregiver Tab (FILL THIS OUT)'!I45) ->  | K42: =IF('Caregiver Tab (FILL THIS OUT)'!J45="","",'Caregiver Tab (FILL THIS OUT)'!J45) ->  | L42: =IF('Caregiver Tab (FILL THIS OUT)'!K45="","",'Caregiver Tab (FILL THIS OUT)'!K45) ->  | M42: =IF('Caregiver Tab (FILL THIS OUT)'!M45="","",'Caregiver Tab (FILL THIS OUT)'!M45) ->  | N42: =IF('Caregiver Tab (FILL THIS OUT)'!M45="","",'Caregiver Tab (FILL THIS OUT)'!M45) ->  | O42: =IF('Caregiver Tab (FILL THIS OUT)'!N45="","",'Caregiver Tab (FILL THIS OUT)'!N45) ->  | P42: =IF('Caregiver Tab (FILL THIS OUT)'!O45="","",'Caregiver Tab (FILL THIS OUT)'!O45) ->  | Q42: =IF('Caregiver Tab (FILL THIS OUT)'!P45="","",'Caregiver Tab (FILL THIS OUT)'!P45) ->  | R42: =IF('Caregiver Tab (FILL THIS OUT)'!Q45="","",'Caregiver Tab (FILL THIS OUT)'!Q45) ->  | S42: =IF('Caregiver Tab (FILL THIS OUT)'!R45="","",'Caregiver Tab (FILL THIS OUT)'!R45) ->  | T42: =IF('Caregiver Tab (FILL THIS OUT)'!S45="","",'Caregiver Tab (FILL THIS OUT)'!S45) ->  | U42: =IF('Caregiver Tab (FILL THIS OUT)'!T45="","",'Caregiver Tab (FILL THIS OUT)'!T45) ->  | V42: =IF('Caregiver Tab (FILL THIS OUT)'!U45="","",'Caregiver Tab (FILL THIS OUT)'!U45) -> caregiver | W42: =IF('Caregiver Tab (FILL THIS OUT)'!V45="","",'Caregiver Tab (FILL THIS OUT)'!V45) ->  | X42: =IF('Caregiver Tab (FILL THIS OUT)'!W45="","",'Caregiver Tab (FILL THIS OUT)'!W45) ->  | Y42: =IF('Caregiver Tab (FILL THIS OUT)'!X45="","",'Caregiver Tab (FILL THIS OUT)'!X45) ->  | Z42: ='Caregiver Tab (FILL THIS OUT)'!#REF!&IF('Caregiver Tab (FILL THIS OUT)'!#REF!="","","#"&'Caregiver Tab (FILL THIS OUT)'!#REF!)&";"&'Caregiver Tab (FILL THIS OUT)'!#REF!&IF('Caregiver Tab (FILL THIS OUT)'!#REF!="","","#"&'Caregiver Tab (FILL THIS OUT)'!#REF!)&";"&'Caregiver Tab (FILL THIS OUT)'!#REF!&IF('Caregiver Tab (FILL THIS OUT)'!#REF!="","","#"&'Caregiver Tab (FILL THIS OUT)'!#REF!)&";" -> 
B43: =IF('Caregiver Tab (FILL THIS OUT)'!B46="","",'Caregiver Tab (FILL THIS OUT)'!B46) ->  | C43: =IF('Caregiver Tab (FILL THIS OUT)'!C46="","",'Caregiver Tab (FILL THIS OUT)'!C46) ->  | D43: 3 | E43: 1 | F43: =IF('Caregiver Tab (FILL THIS OUT)'!E46="","",'Caregiver Tab (FILL THIS OUT)'!E46) ->  | G43: =IF('Caregiver Tab (FILL THIS OUT)'!F46="","",'Caregiver Tab (FILL THIS OUT)'!F46) -> TRUE | H43: =IF('Caregiver Tab (FILL THIS OUT)'!G46="","",'Caregiver Tab (FILL THIS OUT)'!G46) ->  | I43: =IF('Caregiver Tab (FILL THIS OUT)'!H46="","",'Caregiver Tab (FILL THIS OUT)'!H46) ->  | J43: =IF('Caregiver Tab (FILL THIS OUT)'!I46="","",'Caregiver Tab (FILL THIS OUT)'!I46) ->  | K43: =IF('Caregiver Tab (FILL THIS OUT)'!J46="","",'Caregiver Tab (FILL THIS OUT)'!J46) ->  | L43: =IF('Caregiver Tab (FILL THIS OUT)'!K46="","",'Caregiver Tab (FILL THIS OUT)'!K46) ->  | M43: =IF('Caregiver Tab (FILL THIS OUT)'!M46="","",'Caregiver Tab (FILL THIS OUT)'!M46) ->  | N43: =IF('Caregiver Tab (FILL THIS OUT)'!M46="","",'Caregiver Tab (FILL THIS OUT)'!M46) ->  | O43: =IF('Caregiver Tab (FILL THIS OUT)'!N46="","",'Caregiver Tab (FILL THIS OUT)'!N46) ->  | P43: =IF('Caregiver Tab (FILL THIS OUT)'!O46="","",'Caregiver Tab (FILL THIS OUT)'!O46) ->  | Q43: =IF('Caregiver Tab (FILL THIS OUT)'!P46="","",'Caregiver Tab (FILL THIS OUT)'!P46) ->  | R43: =IF('Caregiver Tab (FILL THIS OUT)'!Q46="","",'Caregiver Tab (FILL THIS OUT)'!Q46) ->  | S43: =IF('Caregiver Tab (FILL THIS OUT)'!R46="","",'Caregiver Tab (FILL THIS OUT)'!R46) ->  | T43: =IF('Caregiver Tab (FILL THIS OUT)'!S46="","",'Caregiver Tab (FILL THIS OUT)'!S46) ->  | U43: =IF('Caregiver Tab (FILL THIS OUT)'!T46="","",'Caregiver Tab (FILL THIS OUT)'!T46) ->  | V43: =IF('Caregiver Tab (FILL THIS OUT)'!U46="","",'Caregiver Tab (FILL THIS OUT)'!U46) -> caregiver | W43: =IF('Caregiver Tab (FILL THIS OUT)'!V46="","",'Caregiver Tab (FILL THIS OUT)'!V46) ->  | X43: =IF('Caregiver Tab (FILL THIS OUT)'!W46="","",'Caregiver Tab (FILL THIS OUT)'!W46) ->  | Y43: =IF('Caregiver Tab (FILL THIS OUT)'!X46="","",'Caregiver Tab (FILL THIS OUT)'!X46) ->  | Z43: ='Caregiver Tab (FILL THIS OUT)'!#REF!&IF('Caregiver Tab (FILL THIS OUT)'!#REF!="","","#"&'Caregiver Tab (FILL THIS OUT)'!#REF!)&";"&'Caregiver Tab (FILL THIS OUT)'!#REF!&IF('Caregiver Tab (FILL THIS OUT)'!#REF!="","","#"&'Caregiver Tab (FILL THIS OUT)'!#REF!)&";"&'Caregiver Tab (FILL THIS OUT)'!#REF!&IF('Caregiver Tab (FILL THIS OUT)'!#REF!="","","#"&'Caregiver Tab (FILL THIS OUT)'!#REF!)&";" -> 
B44: =IF('Caregiver Tab (FILL THIS OUT)'!B47="","",'Caregiver Tab (FILL THIS OUT)'!B47) ->  | C44: =IF('Caregiver Tab (FILL THIS OUT)'!C47="","",'Caregiver Tab (FILL THIS OUT)'!C47) ->  | D44: 3 | E44: 1 | F44: =IF('Caregiver Tab (FILL THIS OUT)'!E47="","",'Caregiver Tab (FILL THIS OUT)'!E47) ->  | G44: =IF('Caregiver Tab (FILL THIS OUT)'!F47="","",'Caregiver Tab (FILL THIS OUT)'!F47) -> TRUE | H44: =IF('Caregiver Tab (FILL THIS OUT)'!G47="","",'Caregiver Tab (FILL THIS OUT)'!G47) ->  | I44: =IF('Caregiver Tab (FILL THIS OUT)'!H47="","",'Caregiver Tab (FILL THIS OUT)'!H47) ->  | J44: =IF('Caregiver Tab (FILL THIS OUT)'!I47="","",'Caregiver Tab (FILL THIS OUT)'!I47) ->  | K44: =IF('Caregiver Tab (FILL THIS OUT)'!J47="","",'Caregiver Tab (FILL THIS OUT)'!J47) ->  | L44: =IF('Caregiver Tab (FILL THIS OUT)'!K47="","",'Caregiver Tab (FILL THIS OUT)'!K47) ->  | M44: =IF('Caregiver Tab (FILL THIS OUT)'!M47="","",'Caregiver Tab (FILL THIS OUT)'!M47) ->  | N44: =IF('Caregiver Tab (FILL THIS OUT)'!M47="","",'Caregiver Tab (FILL THIS OUT)'!M47) ->  | O44: =IF('Caregiver Tab (FILL THIS OUT)'!N47="","",'Caregiver Tab (FILL THIS OUT)'!N47) ->  | P44: =IF('Caregiver Tab (FILL THIS OUT)'!O47="","",'Caregiver Tab (FILL THIS OUT)'!O47) ->  | Q44: =IF('Caregiver Tab (FILL THIS OUT)'!P47="","",'Caregiver Tab (FILL THIS OUT)'!P47) ->  | R44: =IF('Caregiver Tab (FILL THIS OUT)'!Q47="","",'Caregiver Tab (FILL THIS OUT)'!Q47) ->  | S44: =IF('Caregiver Tab (FILL THIS OUT)'!R47="","",'Caregiver Tab (FILL THIS OUT)'!R47) ->  | T44: =IF('Caregiver Tab (FILL THIS OUT)'!S47="","",'Caregiver Tab (FILL THIS OUT)'!S47) ->  | U44: =IF('Caregiver Tab (FILL THIS OUT)'!T47="","",'Caregiver Tab (FILL THIS OUT)'!T47) ->  | V44: =IF('Caregiver Tab (FILL THIS OUT)'!U47="","",'Caregiver Tab (FILL THIS OUT)'!U47) -> caregiver | W44: =IF('Caregiver Tab (FILL THIS OUT)'!V47="","",'Caregiver Tab (FILL THIS OUT)'!V47) ->  | X44: =IF('Caregiver Tab (FILL THIS OUT)'!W47="","",'Caregiver Tab (FILL THIS OUT)'!W47) ->  | Y44: =IF('Caregiver Tab (FILL THIS OUT)'!X47="","",'Caregiver Tab (FILL THIS OUT)'!X47) ->  | Z44: ='Caregiver Tab (FILL THIS OUT)'!#REF!&IF('Caregiver Tab (FILL THIS OUT)'!#REF!="","","#"&'Caregiver Tab (FILL THIS OUT)'!#REF!)&";"&'Caregiver Tab (FILL THIS OUT)'!#REF!&IF('Caregiver Tab (FILL THIS OUT)'!#REF!="","","#"&'Caregiver Tab (FILL THIS OUT)'!#REF!)&";"&'Caregiver Tab (FILL THIS OUT)'!#REF!&IF('Caregiver Tab (FILL THIS OUT)'!#REF!="","","#"&'Caregiver Tab (FILL THIS OUT)'!#REF!)&";" -> 
B45: =IF('Caregiver Tab (FILL THIS OUT)'!B48="","",'Caregiver Tab (FILL THIS OUT)'!B48) ->  | C45: =IF('Caregiver Tab (FILL THIS OUT)'!C48="","",'Caregiver Tab (FILL THIS OUT)'!C48) ->  | D45: 3 | E45: 1 | F45: =IF('Caregiver Tab (FILL THIS OUT)'!E48="","",'Caregiver Tab (FILL THIS OUT)'!E48) ->  | G45: =IF('Caregiver Tab (FILL THIS OUT)'!F48="","",'Caregiver Tab (FILL THIS OUT)'!F48) -> TRUE | H45: =IF('Caregiver Tab (FILL THIS OUT)'!G48="","",'Caregiver Tab (FILL THIS OUT)'!G48) ->  | I45: =IF('Caregiver Tab (FILL THIS OUT)'!H48="","",'Caregiver Tab (FILL THIS OUT)'!H48) ->  | J45: =IF('Caregiver Tab (FILL THIS OUT)'!I48="","",'Caregiver Tab (FILL THIS OUT)'!I48) ->  | K45: =IF('Caregiver Tab (FILL THIS OUT)'!J48="","",'Caregiver Tab (FILL THIS OUT)'!J48) ->  | L45: =IF('Caregiver Tab (FILL THIS OUT)'!K48="","",'Caregiver Tab (FILL THIS OUT)'!K48) ->  | M45: =IF('Caregiver Tab (FILL THIS OUT)'!M48="","",'Caregiver Tab (FILL THIS OUT)'!M48) ->  | N45: =IF('Caregiver Tab (FILL THIS OUT)'!M48="","",'Caregiver Tab (FILL THIS OUT)'!M48) ->  | O45: =IF('Caregiver Tab (FILL THIS OUT)'!N48="","",'Caregiver Tab (FILL THIS OUT)'!N48) ->  | P45: =IF('Caregiver Tab (FILL THIS OUT)'!O48="","",'Caregiver Tab (FILL THIS OUT)'!O48) ->  | Q45: =IF('Caregiver Tab (FILL THIS OUT)'!P48="","",'Caregiver Tab (FILL THIS OUT)'!P48) ->  | R45: =IF('Caregiver Tab (FILL THIS OUT)'!Q48="","",'Caregiver Tab (FILL THIS OUT)'!Q48) ->  | S45: =IF('Caregiver Tab (FILL THIS OUT)'!R48="","",'Caregiver Tab (FILL THIS OUT)'!R48) ->  | T45: =IF('Caregiver Tab (FILL THIS OUT)'!S48="","",'Caregiver Tab (FILL THIS OUT)'!S48) ->  | U45: =IF('Caregiver Tab (FILL THIS OUT)'!T48="","",'Caregiver Tab (FILL THIS OUT)'!T48) ->  | V45: =IF('Caregiver Tab (FILL THIS OUT)'!U48="","",'Caregiver Tab (FILL THIS OUT)'!U48) -> caregiver | W45: =IF('Caregiver Tab (FILL THIS OUT)'!V48="","",'Caregiver Tab (FILL THIS OUT)'!V48) ->  | X45: =IF('Caregiver Tab (FILL THIS OUT)'!W48="","",'Caregiver Tab (FILL THIS OUT)'!W48) ->  | Y45: =IF('Caregiver Tab (FILL THIS OUT)'!X48="","",'Caregiver Tab (FILL THIS OUT)'!X48) ->  | Z45: ='Caregiver Tab (FILL THIS OUT)'!#REF!&IF('Caregiver Tab (FILL THIS OUT)'!#REF!="","","#"&'Caregiver Tab (FILL THIS OUT)'!#REF!)&";"&'Caregiver Tab (FILL THIS OUT)'!#REF!&IF('Caregiver Tab (FILL THIS OUT)'!#REF!="","","#"&'Caregiver Tab (FILL THIS OUT)'!#REF!)&";"&'Caregiver Tab (FILL THIS OUT)'!#REF!&IF('Caregiver Tab (FILL THIS OUT)'!#REF!="","","#"&'Caregiver Tab (FILL THIS OUT)'!#REF!)&";" -> 
B46: =IF('Caregiver Tab (FILL THIS OUT)'!B49="","",'Caregiver Tab (FILL THIS OUT)'!B49) ->  | C46: =IF('Caregiver Tab (FILL THIS OUT)'!C49="","",'Caregiver Tab (FILL THIS OUT)'!C49) ->  | D46: 3 | E46: 1 | F46: =IF('Caregiver Tab (FILL THIS OUT)'!E49="","",'Caregiver Tab (FILL THIS OUT)'!E49) ->  | G46: =IF('Caregiver Tab (FILL THIS OUT)'!F49="","",'Caregiver Tab (FILL THIS OUT)'!F49) -> TRUE | H46: =IF('Caregiver Tab (FILL THIS OUT)'!G49="","",'Caregiver Tab (FILL THIS OUT)'!G49) ->  | I46: =IF('Caregiver Tab (FILL THIS OUT)'!H49="","",'Caregiver Tab (FILL THIS OUT)'!H49) ->  | J46: =IF('Caregiver Tab (FILL THIS OUT)'!I49="","",'Caregiver Tab (FILL THIS OUT)'!I49) ->  | K46: =IF('Caregiver Tab (FILL THIS OUT)'!J49="","",'Caregiver Tab (FILL THIS OUT)'!J49) ->  | L46: =IF('Caregiver Tab (FILL THIS OUT)'!K49="","",'Caregiver Tab (FILL THIS OUT)'!K49) ->  | M46: =IF('Caregiver Tab (FILL THIS OUT)'!M49="","",'Caregiver Tab (FILL THIS OUT)'!M49) ->  | N46: =IF('Caregiver Tab (FILL THIS OUT)'!M49="","",'Caregiver Tab (FILL THIS OUT)'!M49) ->  | O46: =IF('Caregiver Tab (FILL THIS OUT)'!N49="","",'Caregiver Tab (FILL THIS OUT)'!N49) ->  | P46: =IF('Caregiver Tab (FILL THIS OUT)'!O49="","",'Caregiver Tab (FILL THIS OUT)'!O49) ->  | Q46: =IF('Caregiver Tab (FILL THIS OUT)'!P49="","",'Caregiver Tab (FILL THIS OUT)'!P49) ->  | R46: =IF('Caregiver Tab (FILL THIS OUT)'!Q49="","",'Caregiver Tab (FILL THIS OUT)'!Q49) ->  | S46: =IF('Caregiver Tab (FILL THIS OUT)'!R49="","",'Caregiver Tab (FILL THIS OUT)'!R49) ->  | T46: =IF('Caregiver Tab (FILL THIS OUT)'!S49="","",'Caregiver Tab (FILL THIS OUT)'!S49) ->  | U46: =IF('Caregiver Tab (FILL THIS OUT)'!T49="","",'Caregiver Tab (FILL THIS OUT)'!T49) ->  | V46: =IF('Caregiver Tab (FILL THIS OUT)'!U49="","",'Caregiver Tab (FILL THIS OUT)'!U49) -> caregiver | W46: =IF('Caregiver Tab (FILL THIS OUT)'!V49="","",'Caregiver Tab (FILL THIS OUT)'!V49) ->  | X46: =IF('Caregiver Tab (FILL THIS OUT)'!W49="","",'Caregiver Tab (FILL THIS OUT)'!W49) ->  | Y46: =IF('Caregiver Tab (FILL THIS OUT)'!X49="","",'Caregiver Tab (FILL THIS OUT)'!X49) ->  | Z46: ='Caregiver Tab (FILL THIS OUT)'!#REF!&IF('Caregiver Tab (FILL THIS OUT)'!#REF!="","","#"&'Caregiver Tab (FILL THIS OUT)'!#REF!)&";"&'Caregiver Tab (FILL THIS OUT)'!#REF!&IF('Caregiver Tab (FILL THIS OUT)'!#REF!="","","#"&'Caregiver Tab (FILL THIS OUT)'!#REF!)&";"&'Caregiver Tab (FILL THIS OUT)'!#REF!&IF('Caregiver Tab (FILL THIS OUT)'!#REF!="","","#"&'Caregiver Tab (FILL THIS OUT)'!#REF!)&";" -> 
B47: =IF('Caregiver Tab (FILL THIS OUT)'!B50="","",'Caregiver Tab (FILL THIS OUT)'!B50) ->  | C47: =IF('Caregiver Tab (FILL THIS OUT)'!C50="","",'Caregiver Tab (FILL THIS OUT)'!C50) ->  | D47: 3 | E47: 1 | F47: =IF('Caregiver Tab (FILL THIS OUT)'!E50="","",'Caregiver Tab (FILL THIS OUT)'!E50) ->  | G47: =IF('Caregiver Tab (FILL THIS OUT)'!F50="","",'Caregiver Tab (FILL THIS OUT)'!F50) -> TRUE | H47: =IF('Caregiver Tab (FILL THIS OUT)'!G50="","",'Caregiver Tab (FILL THIS OUT)'!G50) ->  | I47: =IF('Caregiver Tab (FILL THIS OUT)'!H50="","",'Caregiver Tab (FILL THIS OUT)'!H50) ->  | J47: =IF('Caregiver Tab (FILL THIS OUT)'!I50="","",'Caregiver Tab (FILL THIS OUT)'!I50) ->  | K47: =IF('Caregiver Tab (FILL THIS OUT)'!J50="","",'Caregiver Tab (FILL THIS OUT)'!J50) ->  | L47: =IF('Caregiver Tab (FILL THIS OUT)'!K50="","",'Caregiver Tab (FILL THIS OUT)'!K50) ->  | M47: =IF('Caregiver Tab (FILL THIS OUT)'!M50="","",'Caregiver Tab (FILL THIS OUT)'!M50) ->  | N47: =IF('Caregiver Tab (FILL THIS OUT)'!M50="","",'Caregiver Tab (FILL THIS OUT)'!M50) ->  | O47: =IF('Caregiver Tab (FILL THIS OUT)'!N50="","",'Caregiver Tab (FILL THIS OUT)'!N50) ->  | P47: =IF('Caregiver Tab (FILL THIS OUT)'!O50="","",'Caregiver Tab (FILL THIS OUT)'!O50) ->  | Q47: =IF('Caregiver Tab (FILL THIS OUT)'!P50="","",'Caregiver Tab (FILL THIS OUT)'!P50) ->  | R47: =IF('Caregiver Tab (FILL THIS OUT)'!Q50="","",'Caregiver Tab (FILL THIS OUT)'!Q50) ->  | S47: =IF('Caregiver Tab (FILL THIS OUT)'!R50="","",'Caregiver Tab (FILL THIS OUT)'!R50) ->  | T47: =IF('Caregiver Tab (FILL THIS OUT)'!S50="","",'Caregiver Tab (FILL THIS OUT)'!S50) ->  | U47: =IF('Caregiver Tab (FILL THIS OUT)'!T50="","",'Caregiver Tab (FILL THIS OUT)'!T50) ->  | V47: =IF('Caregiver Tab (FILL THIS OUT)'!U50="","",'Caregiver Tab (FILL THIS OUT)'!U50) -> caregiver | W47: =IF('Caregiver Tab (FILL THIS OUT)'!V50="","",'Caregiver Tab (FILL THIS OUT)'!V50) ->  | X47: =IF('Caregiver Tab (FILL THIS OUT)'!W50="","",'Caregiver Tab (FILL THIS OUT)'!W50) ->  | Y47: =IF('Caregiver Tab (FILL THIS OUT)'!X50="","",'Caregiver Tab (FILL THIS OUT)'!X50) ->  | Z47: ='Caregiver Tab (FILL THIS OUT)'!#REF!&IF('Caregiver Tab (FILL THIS OUT)'!#REF!="","","#"&'Caregiver Tab (FILL THIS OUT)'!#REF!)&";"&'Caregiver Tab (FILL THIS OUT)'!#REF!&IF('Caregiver Tab (FILL THIS OUT)'!#REF!="","","#"&'Caregiver Tab (FILL THIS OUT)'!#REF!)&";"&'Caregiver Tab (FILL THIS OUT)'!#REF!&IF('Caregiver Tab (FILL THIS OUT)'!#REF!="","","#"&'Caregiver Tab (FILL THIS OUT)'!#REF!)&";" -> 
B48: =IF('Caregiver Tab (FILL THIS OUT)'!B51="","",'Caregiver Tab (FILL THIS OUT)'!B51) ->  | C48: =IF('Caregiver Tab (FILL THIS OUT)'!C51="","",'Caregiver Tab (FILL THIS OUT)'!C51) ->  | D48: 3 | E48: 1 | F48: =IF('Caregiver Tab (FILL THIS OUT)'!E51="","",'Caregiver Tab (FILL THIS OUT)'!E51) ->  | G48: =IF('Caregiver Tab (FILL THIS OUT)'!F51="","",'Caregiver Tab (FILL THIS OUT)'!F51) -> TRUE | H48: =IF('Caregiver Tab (FILL THIS OUT)'!G51="","",'Caregiver Tab (FILL THIS OUT)'!G51) ->  | I48: =IF('Caregiver Tab (FILL THIS OUT)'!H51="","",'Caregiver Tab (FILL THIS OUT)'!H51) ->  | J48: =IF('Caregiver Tab (FILL THIS OUT)'!I51="","",'Caregiver Tab (FILL THIS OUT)'!I51) ->  | K48: =IF('Caregiver Tab (FILL THIS OUT)'!J51="","",'Caregiver Tab (FILL THIS OUT)'!J51) ->  | L48: =IF('Caregiver Tab (FILL THIS OUT)'!K51="","",'Caregiver Tab (FILL THIS OUT)'!K51) ->  | M48: =IF('Caregiver Tab (FILL THIS OUT)'!M51="","",'Caregiver Tab (FILL THIS OUT)'!M51) ->  | N48: =IF('Caregiver Tab (FILL THIS OUT)'!M51="","",'Caregiver Tab (FILL THIS OUT)'!M51) ->  | O48: =IF('Caregiver Tab (FILL THIS OUT)'!N51="","",'Caregiver Tab (FILL THIS OUT)'!N51) ->  | P48: =IF('Caregiver Tab (FILL THIS OUT)'!O51="","",'Caregiver Tab (FILL THIS OUT)'!O51) ->  | Q48: =IF('Caregiver Tab (FILL THIS OUT)'!P51="","",'Caregiver Tab (FILL THIS OUT)'!P51) ->  | R48: =IF('Caregiver Tab (FILL THIS OUT)'!Q51="","",'Caregiver Tab (FILL THIS OUT)'!Q51) ->  | S48: =IF('Caregiver Tab (FILL THIS OUT)'!R51="","",'Caregiver Tab (FILL THIS OUT)'!R51) ->  | T48: =IF('Caregiver Tab (FILL THIS OUT)'!S51="","",'Caregiver Tab (FILL THIS OUT)'!S51) ->  | U48: =IF('Caregiver Tab (FILL THIS OUT)'!T51="","",'Caregiver Tab (FILL THIS OUT)'!T51) ->  | V48: =IF('Caregiver Tab (FILL THIS OUT)'!U51="","",'Caregiver Tab (FILL THIS OUT)'!U51) -> caregiver | W48: =IF('Caregiver Tab (FILL THIS OUT)'!V51="","",'Caregiver Tab (FILL THIS OUT)'!V51) ->  | X48: =IF('Caregiver Tab (FILL THIS OUT)'!W51="","",'Caregiver Tab (FILL THIS OUT)'!W51) ->  | Y48: =IF('Caregiver Tab (FILL THIS OUT)'!X51="","",'Caregiver Tab (FILL THIS OUT)'!X51) ->  | Z48: ='Caregiver Tab (FILL THIS OUT)'!#REF!&IF('Caregiver Tab (FILL THIS OUT)'!#REF!="","","#"&'Caregiver Tab (FILL THIS OUT)'!#REF!)&";"&'Caregiver Tab (FILL THIS OUT)'!#REF!&IF('Caregiver Tab (FILL THIS OUT)'!#REF!="","","#"&'Caregiver Tab (FILL THIS OUT)'!#REF!)&";"&'Caregiver Tab (FILL THIS OUT)'!#REF!&IF('Caregiver Tab (FILL THIS OUT)'!#REF!="","","#"&'Caregiver Tab (FILL THIS OUT)'!#REF!)&";" -> 
B49: =IF('Caregiver Tab (FILL THIS OUT)'!B52="","",'Caregiver Tab (FILL THIS OUT)'!B52) ->  | C49: =IF('Caregiver Tab (FILL THIS OUT)'!C52="","",'Caregiver Tab (FILL THIS OUT)'!C52) ->  | D49: 3 | E49: 1 | F49: =IF('Caregiver Tab (FILL THIS OUT)'!E52="","",'Caregiver Tab (FILL THIS OUT)'!E52) ->  | G49: =IF('Caregiver Tab (FILL THIS OUT)'!F52="","",'Caregiver Tab (FILL THIS OUT)'!F52) -> TRUE | H49: =IF('Caregiver Tab (FILL THIS OUT)'!G52="","",'Caregiver Tab (FILL THIS OUT)'!G52) ->  | I49: =IF('Caregiver Tab (FILL THIS OUT)'!H52="","",'Caregiver Tab (FILL THIS OUT)'!H52) ->  | J49: =IF('Caregiver Tab (FILL THIS OUT)'!I52="","",'Caregiver Tab (FILL THIS OUT)'!I52) ->  | K49: =IF('Caregiver Tab (FILL THIS OUT)'!J52="","",'Caregiver Tab (FILL THIS OUT)'!J52) ->  | L49: =IF('Caregiver Tab (FILL THIS OUT)'!K52="","",'Caregiver Tab (FILL THIS OUT)'!K52) ->  | M49: =IF('Caregiver Tab (FILL THIS OUT)'!M52="","",'Caregiver Tab (FILL THIS OUT)'!M52) ->  | N49: =IF('Caregiver Tab (FILL THIS OUT)'!M52="","",'Caregiver Tab (FILL THIS OUT)'!M52) ->  | O49: =IF('Caregiver Tab (FILL THIS OUT)'!N52="","",'Caregiver Tab (FILL THIS OUT)'!N52) ->  | P49: =IF('Caregiver Tab (FILL THIS OUT)'!O52="","",'Caregiver Tab (FILL THIS OUT)'!O52) ->  | Q49: =IF('Caregiver Tab (FILL THIS OUT)'!P52="","",'Caregiver Tab (FILL THIS OUT)'!P52) ->  | R49: =IF('Caregiver Tab (FILL THIS OUT)'!Q52="","",'Caregiver Tab (FILL THIS OUT)'!Q52) ->  | S49: =IF('Caregiver Tab (FILL THIS OUT)'!R52="","",'Caregiver Tab (FILL THIS OUT)'!R52) ->  | T49: =IF('Caregiver Tab (FILL THIS OUT)'!S52="","",'Caregiver Tab (FILL THIS OUT)'!S52) ->  | U49: =IF('Caregiver Tab (FILL THIS OUT)'!T52="","",'Caregiver Tab (FILL THIS OUT)'!T52) ->  | V49: =IF('Caregiver Tab (FILL THIS OUT)'!U52="","",'Caregiver Tab (FILL THIS OUT)'!U52) -> caregiver | W49: =IF('Caregiver Tab (FILL THIS OUT)'!V52="","",'Caregiver Tab (FILL THIS OUT)'!V52) ->  | X49: =IF('Caregiver Tab (FILL THIS OUT)'!W52="","",'Caregiver Tab (FILL THIS OUT)'!W52) ->  | Y49: =IF('Caregiver Tab (FILL THIS OUT)'!X52="","",'Caregiver Tab (FILL THIS OUT)'!X52) ->  | Z49: ='Caregiver Tab (FILL THIS OUT)'!#REF!&IF('Caregiver Tab (FILL THIS OUT)'!#REF!="","","#"&'Caregiver Tab (FILL THIS OUT)'!#REF!)&";"&'Caregiver Tab (FILL THIS OUT)'!#REF!&IF('Caregiver Tab (FILL THIS OUT)'!#REF!="","","#"&'Caregiver Tab (FILL THIS OUT)'!#REF!)&";"&'Caregiver Tab (FILL THIS OUT)'!#REF!&IF('Caregiver Tab (FILL THIS OUT)'!#REF!="","","#"&'Caregiver Tab (FILL THIS OUT)'!#REF!)&";" -> 
B50: =IF('Caregiver Tab (FILL THIS OUT)'!B53="","",'Caregiver Tab (FILL THIS OUT)'!B53) ->  | C50: =IF('Caregiver Tab (FILL THIS OUT)'!C53="","",'Caregiver Tab (FILL THIS OUT)'!C53) ->  | D50: 3 | E50: 1 | F50: =IF('Caregiver Tab (FILL THIS OUT)'!E53="","",'Caregiver Tab (FILL THIS OUT)'!E53) ->  | G50: =IF('Caregiver Tab (FILL THIS OUT)'!F53="","",'Caregiver Tab (FILL THIS OUT)'!F53) -> TRUE | H50: =IF('Caregiver Tab (FILL THIS OUT)'!G53="","",'Caregiver Tab (FILL THIS OUT)'!G53) ->  | I50: =IF('Caregiver Tab (FILL THIS OUT)'!H53="","",'Caregiver Tab (FILL THIS OUT)'!H53) ->  | J50: =IF('Caregiver Tab (FILL THIS OUT)'!I53="","",'Caregiver Tab (FILL THIS OUT)'!I53) ->  | K50: =IF('Caregiver Tab (FILL THIS OUT)'!J53="","",'Caregiver Tab (FILL THIS OUT)'!J53) ->  | L50: =IF('Caregiver Tab (FILL THIS OUT)'!K53="","",'Caregiver Tab (FILL THIS OUT)'!K53) ->  | M50: =IF('Caregiver Tab (FILL THIS OUT)'!M53="","",'Caregiver Tab (FILL THIS OUT)'!M53) ->  | N50: =IF('Caregiver Tab (FILL THIS OUT)'!M53="","",'Caregiver Tab (FILL THIS OUT)'!M53) ->  | O50: =IF('Caregiver Tab (FILL THIS OUT)'!N53="","",'Caregiver Tab (FILL THIS OUT)'!N53) ->  | P50: =IF('Caregiver Tab (FILL THIS OUT)'!O53="","",'Caregiver Tab (FILL THIS OUT)'!O53) ->  | Q50: =IF('Caregiver Tab (FILL THIS OUT)'!P53="","",'Caregiver Tab (FILL THIS OUT)'!P53) ->  | R50: =IF('Caregiver Tab (FILL THIS OUT)'!Q53="","",'Caregiver Tab (FILL THIS OUT)'!Q53) ->  | S50: =IF('Caregiver Tab (FILL THIS OUT)'!R53="","",'Caregiver Tab (FILL THIS OUT)'!R53) ->  | T50: =IF('Caregiver Tab (FILL THIS OUT)'!S53="","",'Caregiver Tab (FILL THIS OUT)'!S53) ->  | U50: =IF('Caregiver Tab (FILL THIS OUT)'!T53="","",'Caregiver Tab (FILL THIS OUT)'!T53) ->  | V50: =IF('Caregiver Tab (FILL THIS OUT)'!U53="","",'Caregiver Tab (FILL THIS OUT)'!U53) -> caregiver | W50: =IF('Caregiver Tab (FILL THIS OUT)'!V53="","",'Caregiver Tab (FILL THIS OUT)'!V53) ->  | X50: =IF('Caregiver Tab (FILL THIS OUT)'!W53="","",'Caregiver Tab (FILL THIS OUT)'!W53) ->  | Y50: =IF('Caregiver Tab (FILL THIS OUT)'!X53="","",'Caregiver Tab (FILL THIS OUT)'!X53) ->  | Z50: ='Caregiver Tab (FILL THIS OUT)'!#REF!&IF('Caregiver Tab (FILL THIS OUT)'!#REF!="","","#"&'Caregiver Tab (FILL THIS OUT)'!#REF!)&";"&'Caregiver Tab (FILL THIS OUT)'!#REF!&IF('Caregiver Tab (FILL THIS OUT)'!#REF!="","","#"&'Caregiver Tab (FILL THIS OUT)'!#REF!)&";"&'Caregiver Tab (FILL THIS OUT)'!#REF!&IF('Caregiver Tab (FILL THIS OUT)'!#REF!="","","#"&'Caregiver Tab (FILL THIS OUT)'!#REF!)&";" -> 
B51: =IF('Caregiver Tab (FILL THIS OUT)'!B54="","",'Caregiver Tab (FILL THIS OUT)'!B54) ->  | C51: =IF('Caregiver Tab (FILL THIS OUT)'!C54="","",'Caregiver Tab (FILL THIS OUT)'!C54) ->  | D51: 3 | E51: 1 | F51: =IF('Caregiver Tab (FILL THIS OUT)'!E54="","",'Caregiver Tab (FILL THIS OUT)'!E54) ->  | G51: =IF('Caregiver Tab (FILL THIS OUT)'!F54="","",'Caregiver Tab (FILL THIS OUT)'!F54) -> TRUE | H51: =IF('Caregiver Tab (FILL THIS OUT)'!G54="","",'Caregiver Tab (FILL THIS OUT)'!G54) ->  | I51: =IF('Caregiver Tab (FILL THIS OUT)'!H54="","",'Caregiver Tab (FILL THIS OUT)'!H54) ->  | J51: =IF('Caregiver Tab (FILL THIS OUT)'!I54="","",'Caregiver Tab (FILL THIS OUT)'!I54) ->  | K51: =IF('Caregiver Tab (FILL THIS OUT)'!J54="","",'Caregiver Tab (FILL THIS OUT)'!J54) ->  | L51: =IF('Caregiver Tab (FILL THIS OUT)'!K54="","",'Caregiver Tab (FILL THIS OUT)'!K54) ->  | M51: =IF('Caregiver Tab (FILL THIS OUT)'!M54="","",'Caregiver Tab (FILL THIS OUT)'!M54) ->  | N51: =IF('Caregiver Tab (FILL THIS OUT)'!M54="","",'Caregiver Tab (FILL THIS OUT)'!M54) ->  | O51: =IF('Caregiver Tab (FILL THIS OUT)'!N54="","",'Caregiver Tab (FILL THIS OUT)'!N54) ->  | P51: =IF('Caregiver Tab (FILL THIS OUT)'!O54="","",'Caregiver Tab (FILL THIS OUT)'!O54) ->  | Q51: =IF('Caregiver Tab (FILL THIS OUT)'!P54="","",'Caregiver Tab (FILL THIS OUT)'!P54) ->  | R51: =IF('Caregiver Tab (FILL THIS OUT)'!Q54="","",'Caregiver Tab (FILL THIS OUT)'!Q54) ->  | S51: =IF('Caregiver Tab (FILL THIS OUT)'!R54="","",'Caregiver Tab (FILL THIS OUT)'!R54) ->  | T51: =IF('Caregiver Tab (FILL THIS OUT)'!S54="","",'Caregiver Tab (FILL THIS OUT)'!S54) ->  | U51: =IF('Caregiver Tab (FILL THIS OUT)'!T54="","",'Caregiver Tab (FILL THIS OUT)'!T54) ->  | V51: =IF('Caregiver Tab (FILL THIS OUT)'!U54="","",'Caregiver Tab (FILL THIS OUT)'!U54) -> caregiver | W51: =IF('Caregiver Tab (FILL THIS OUT)'!V54="","",'Caregiver Tab (FILL THIS OUT)'!V54) ->  | X51: =IF('Caregiver Tab (FILL THIS OUT)'!W54="","",'Caregiver Tab (FILL THIS OUT)'!W54) ->  | Y51: =IF('Caregiver Tab (FILL THIS OUT)'!X54="","",'Caregiver Tab (FILL THIS OUT)'!X54) ->  | Z51: ='Caregiver Tab (FILL THIS OUT)'!#REF!&IF('Caregiver Tab (FILL THIS OUT)'!#REF!="","","#"&'Caregiver Tab (FILL THIS OUT)'!#REF!)&";"&'Caregiver Tab (FILL THIS OUT)'!#REF!&IF('Caregiver Tab (FILL THIS OUT)'!#REF!="","","#"&'Caregiver Tab (FILL THIS OUT)'!#REF!)&";"&'Caregiver Tab (FILL THIS OUT)'!#REF!&IF('Caregiver Tab (FILL THIS OUT)'!#REF!="","","#"&'Caregiver Tab (FILL THIS OUT)'!#REF!)&";" -> 
B52: =IF('Caregiver Tab (FILL THIS OUT)'!B55="","",'Caregiver Tab (FILL THIS OUT)'!B55) ->  | C52: =IF('Caregiver Tab (FILL THIS OUT)'!C55="","",'Caregiver Tab (FILL THIS OUT)'!C55) ->  | D52: 3 | E52: 1 | F52: =IF('Caregiver Tab (FILL THIS OUT)'!E55="","",'Caregiver Tab (FILL THIS OUT)'!E55) ->  | G52: =IF('Caregiver Tab (FILL THIS OUT)'!F55="","",'Caregiver Tab (FILL THIS OUT)'!F55) -> TRUE | H52: =IF('Caregiver Tab (FILL THIS OUT)'!G55="","",'Caregiver Tab (FILL THIS OUT)'!G55) ->  | I52: =IF('Caregiver Tab (FILL THIS OUT)'!H55="","",'Caregiver Tab (FILL THIS OUT)'!H55) ->  | J52: =IF('Caregiver Tab (FILL THIS OUT)'!I55="","",'Caregiver Tab (FILL THIS OUT)'!I55) ->  | K52: =IF('Caregiver Tab (FILL THIS OUT)'!J55="","",'Caregiver Tab (FILL THIS OUT)'!J55) ->  | L52: =IF('Caregiver Tab (FILL THIS OUT)'!K55="","",'Caregiver Tab (FILL THIS OUT)'!K55) ->  | M52: =IF('Caregiver Tab (FILL THIS OUT)'!M55="","",'Caregiver Tab (FILL THIS OUT)'!M55) ->  | N52: =IF('Caregiver Tab (FILL THIS OUT)'!M55="","",'Caregiver Tab (FILL THIS OUT)'!M55) ->  | O52: =IF('Caregiver Tab (FILL THIS OUT)'!N55="","",'Caregiver Tab (FILL THIS OUT)'!N55) ->  | P52: =IF('Caregiver Tab (FILL THIS OUT)'!O55="","",'Caregiver Tab (FILL THIS OUT)'!O55) ->  | Q52: =IF('Caregiver Tab (FILL THIS OUT)'!P55="","",'Caregiver Tab (FILL THIS OUT)'!P55) ->  | R52: =IF('Caregiver Tab (FILL THIS OUT)'!Q55="","",'Caregiver Tab (FILL THIS OUT)'!Q55) ->  | S52: =IF('Caregiver Tab (FILL THIS OUT)'!R55="","",'Caregiver Tab (FILL THIS OUT)'!R55) ->  | T52: =IF('Caregiver Tab (FILL THIS OUT)'!S55="","",'Caregiver Tab (FILL THIS OUT)'!S55) ->  | U52: =IF('Caregiver Tab (FILL THIS OUT)'!T55="","",'Caregiver Tab (FILL THIS OUT)'!T55) ->  | V52: =IF('Caregiver Tab (FILL THIS OUT)'!U55="","",'Caregiver Tab (FILL THIS OUT)'!U55) -> caregiver | W52: =IF('Caregiver Tab (FILL THIS OUT)'!V55="","",'Caregiver Tab (FILL THIS OUT)'!V55) ->  | X52: =IF('Caregiver Tab (FILL THIS OUT)'!W55="","",'Caregiver Tab (FILL THIS OUT)'!W55) ->  | Y52: =IF('Caregiver Tab (FILL THIS OUT)'!X55="","",'Caregiver Tab (FILL THIS OUT)'!X55) ->  | Z52: ='Caregiver Tab (FILL THIS OUT)'!#REF!&IF('Caregiver Tab (FILL THIS OUT)'!#REF!="","","#"&'Caregiver Tab (FILL THIS OUT)'!#REF!)&";"&'Caregiver Tab (FILL THIS OUT)'!#REF!&IF('Caregiver Tab (FILL THIS OUT)'!#REF!="","","#"&'Caregiver Tab (FILL THIS OUT)'!#REF!)&";"&'Caregiver Tab (FILL THIS OUT)'!#REF!&IF('Caregiver Tab (FILL THIS OUT)'!#REF!="","","#"&'Caregiver Tab (FILL THIS OUT)'!#REF!)&";" -> 
B53: =IF('Caregiver Tab (FILL THIS OUT)'!B56="","",'Caregiver Tab (FILL THIS OUT)'!B56) ->  | C53: =IF('Caregiver Tab (FILL THIS OUT)'!C56="","",'Caregiver Tab (FILL THIS OUT)'!C56) ->  | D53: 3 | E53: 1 | F53: =IF('Caregiver Tab (FILL THIS OUT)'!E56="","",'Caregiver Tab (FILL THIS OUT)'!E56) ->  | G53: =IF('Caregiver Tab (FILL THIS OUT)'!F56="","",'Caregiver Tab (FILL THIS OUT)'!F56) -> TRUE | H53: =IF('Caregiver Tab (FILL THIS OUT)'!G56="","",'Caregiver Tab (FILL THIS OUT)'!G56) ->  | I53: =IF('Caregiver Tab (FILL THIS OUT)'!H56="","",'Caregiver Tab (FILL THIS OUT)'!H56) ->  | J53: =IF('Caregiver Tab (FILL THIS OUT)'!I56="","",'Caregiver Tab (FILL THIS OUT)'!I56) ->  | K53: =IF('Caregiver Tab (FILL THIS OUT)'!J56="","",'Caregiver Tab (FILL THIS OUT)'!J56) ->  | L53: =IF('Caregiver Tab (FILL THIS OUT)'!K56="","",'Caregiver Tab (FILL THIS OUT)'!K56) ->  | M53: =IF('Caregiver Tab (FILL THIS OUT)'!M56="","",'Caregiver Tab (FILL THIS OUT)'!M56) ->  | N53: =IF('Caregiver Tab (FILL THIS OUT)'!M56="","",'Caregiver Tab (FILL THIS OUT)'!M56) ->  | O53: =IF('Caregiver Tab (FILL THIS OUT)'!N56="","",'Caregiver Tab (FILL THIS OUT)'!N56) ->  | P53: =IF('Caregiver Tab (FILL THIS OUT)'!O56="","",'Caregiver Tab (FILL THIS OUT)'!O56) ->  | Q53: =IF('Caregiver Tab (FILL THIS OUT)'!P56="","",'Caregiver Tab (FILL THIS OUT)'!P56) ->  | R53: =IF('Caregiver Tab (FILL THIS OUT)'!Q56="","",'Caregiver Tab (FILL THIS OUT)'!Q56) ->  | S53: =IF('Caregiver Tab (FILL THIS OUT)'!R56="","",'Caregiver Tab (FILL THIS OUT)'!R56) ->  | T53: =IF('Caregiver Tab (FILL THIS OUT)'!S56="","",'Caregiver Tab (FILL THIS OUT)'!S56) ->  | U53: =IF('Caregiver Tab (FILL THIS OUT)'!T56="","",'Caregiver Tab (FILL THIS OUT)'!T56) ->  | V53: =IF('Caregiver Tab (FILL THIS OUT)'!U56="","",'Caregiver Tab (FILL THIS OUT)'!U56) -> caregiver | W53: =IF('Caregiver Tab (FILL THIS OUT)'!V56="","",'Caregiver Tab (FILL THIS OUT)'!V56) ->  | X53: =IF('Caregiver Tab (FILL THIS OUT)'!W56="","",'Caregiver Tab (FILL THIS OUT)'!W56) ->  | Y53: =IF('Caregiver Tab (FILL THIS OUT)'!X56="","",'Caregiver Tab (FILL THIS OUT)'!X56) ->  | Z53: ='Caregiver Tab (FILL THIS OUT)'!#REF!&IF('Caregiver Tab (FILL THIS OUT)'!#REF!="","","#"&'Caregiver Tab (FILL THIS OUT)'!#REF!)&";"&'Caregiver Tab (FILL THIS OUT)'!#REF!&IF('Caregiver Tab (FILL THIS OUT)'!#REF!="","","#"&'Caregiver Tab (FILL THIS OUT)'!#REF!)&";"&'Caregiver Tab (FILL THIS OUT)'!#REF!&IF('Caregiver Tab (FILL THIS OUT)'!#REF!="","","#"&'Caregiver Tab (FILL THIS OUT)'!#REF!)&";" -> 
B54: =IF('Caregiver Tab (FILL THIS OUT)'!B57="","",'Caregiver Tab (FILL THIS OUT)'!B57) ->  | C54: =IF('Caregiver Tab (FILL THIS OUT)'!C57="","",'Caregiver Tab (FILL THIS OUT)'!C57) ->  | D54: 3 | E54: 1 | F54: =IF('Caregiver Tab (FILL THIS OUT)'!E57="","",'Caregiver Tab (FILL THIS OUT)'!E57) ->  | G54: =IF('Caregiver Tab (FILL THIS OUT)'!F57="","",'Caregiver Tab (FILL THIS OUT)'!F57) -> TRUE | H54: =IF('Caregiver Tab (FILL THIS OUT)'!G57="","",'Caregiver Tab (FILL THIS OUT)'!G57) ->  | I54: =IF('Caregiver Tab (FILL THIS OUT)'!H57="","",'Caregiver Tab (FILL THIS OUT)'!H57) ->  | J54: =IF('Caregiver Tab (FILL THIS OUT)'!I57="","",'Caregiver Tab (FILL THIS OUT)'!I57) ->  | K54: =IF('Caregiver Tab (FILL THIS OUT)'!J57="","",'Caregiver Tab (FILL THIS OUT)'!J57) ->  | L54: =IF('Caregiver Tab (FILL THIS OUT)'!K57="","",'Caregiver Tab (FILL THIS OUT)'!K57) ->  | M54: =IF('Caregiver Tab (FILL THIS OUT)'!M57="","",'Caregiver Tab (FILL THIS OUT)'!M57) ->  | N54: =IF('Caregiver Tab (FILL THIS OUT)'!M57="","",'Caregiver Tab (FILL THIS OUT)'!M57) ->  | O54: =IF('Caregiver Tab (FILL THIS OUT)'!N57="","",'Caregiver Tab (FILL THIS OUT)'!N57) ->  | P54: =IF('Caregiver Tab (FILL THIS OUT)'!O57="","",'Caregiver Tab (FILL THIS OUT)'!O57) ->  | Q54: =IF('Caregiver Tab (FILL THIS OUT)'!P57="","",'Caregiver Tab (FILL THIS OUT)'!P57) ->  | R54: =IF('Caregiver Tab (FILL THIS OUT)'!Q57="","",'Caregiver Tab (FILL THIS OUT)'!Q57) ->  | S54: =IF('Caregiver Tab (FILL THIS OUT)'!R57="","",'Caregiver Tab (FILL THIS OUT)'!R57) ->  | T54: =IF('Caregiver Tab (FILL THIS OUT)'!S57="","",'Caregiver Tab (FILL THIS OUT)'!S57) ->  | U54: =IF('Caregiver Tab (FILL THIS OUT)'!T57="","",'Caregiver Tab (FILL THIS OUT)'!T57) ->  | V54: =IF('Caregiver Tab (FILL THIS OUT)'!U57="","",'Caregiver Tab (FILL THIS OUT)'!U57) -> caregiver | W54: =IF('Caregiver Tab (FILL THIS OUT)'!V57="","",'Caregiver Tab (FILL THIS OUT)'!V57) ->  | X54: =IF('Caregiver Tab (FILL THIS OUT)'!W57="","",'Caregiver Tab (FILL THIS OUT)'!W57) ->  | Y54: =IF('Caregiver Tab (FILL THIS OUT)'!X57="","",'Caregiver Tab (FILL THIS OUT)'!X57) ->  | Z54: ='Caregiver Tab (FILL THIS OUT)'!#REF!&IF('Caregiver Tab (FILL THIS OUT)'!#REF!="","","#"&'Caregiver Tab (FILL THIS OUT)'!#REF!)&";"&'Caregiver Tab (FILL THIS OUT)'!#REF!&IF('Caregiver Tab (FILL THIS OUT)'!#REF!="","","#"&'Caregiver Tab (FILL THIS OUT)'!#REF!)&";"&'Caregiver Tab (FILL THIS OUT)'!#REF!&IF('Caregiver Tab (FILL THIS OUT)'!#REF!="","","#"&'Caregiver Tab (FILL THIS OUT)'!#REF!)&";" -> 
B55: =IF('Caregiver Tab (FILL THIS OUT)'!B58="","",'Caregiver Tab (FILL THIS OUT)'!B58) ->  | C55: =IF('Caregiver Tab (FILL THIS OUT)'!C58="","",'Caregiver Tab (FILL THIS OUT)'!C58) ->  | D55: 3 | E55: 1 | F55: =IF('Caregiver Tab (FILL THIS OUT)'!E58="","",'Caregiver Tab (FILL THIS OUT)'!E58) ->  | G55: =IF('Caregiver Tab (FILL THIS OUT)'!F58="","",'Caregiver Tab (FILL THIS OUT)'!F58) -> TRUE | H55: =IF('Caregiver Tab (FILL THIS OUT)'!G58="","",'Caregiver Tab (FILL THIS OUT)'!G58) ->  | I55: =IF('Caregiver Tab (FILL THIS OUT)'!H58="","",'Caregiver Tab (FILL THIS OUT)'!H58) ->  | J55: =IF('Caregiver Tab (FILL THIS OUT)'!I58="","",'Caregiver Tab (FILL THIS OUT)'!I58) ->  | K55: =IF('Caregiver Tab (FILL THIS OUT)'!J58="","",'Caregiver Tab (FILL THIS OUT)'!J58) ->  | L55: =IF('Caregiver Tab (FILL THIS OUT)'!K58="","",'Caregiver Tab (FILL THIS OUT)'!K58) ->  | M55: =IF('Caregiver Tab (FILL THIS OUT)'!M58="","",'Caregiver Tab (FILL THIS OUT)'!M58) ->  | N55: =IF('Caregiver Tab (FILL THIS OUT)'!M58="","",'Caregiver Tab (FILL THIS OUT)'!M58) ->  | O55: =IF('Caregiver Tab (FILL THIS OUT)'!N58="","",'Caregiver Tab (FILL THIS OUT)'!N58) ->  | P55: =IF('Caregiver Tab (FILL THIS OUT)'!O58="","",'Caregiver Tab (FILL THIS OUT)'!O58) ->  | Q55: =IF('Caregiver Tab (FILL THIS OUT)'!P58="","",'Caregiver Tab (FILL THIS OUT)'!P58) ->  | R55: =IF('Caregiver Tab (FILL THIS OUT)'!Q58="","",'Caregiver Tab (FILL THIS OUT)'!Q58) ->  | S55: =IF('Caregiver Tab (FILL THIS OUT)'!R58="","",'Caregiver Tab (FILL THIS OUT)'!R58) ->  | T55: =IF('Caregiver Tab (FILL THIS OUT)'!S58="","",'Caregiver Tab (FILL THIS OUT)'!S58) ->  | U55: =IF('Caregiver Tab (FILL THIS OUT)'!T58="","",'Caregiver Tab (FILL THIS OUT)'!T58) ->  | V55: =IF('Caregiver Tab (FILL THIS OUT)'!U58="","",'Caregiver Tab (FILL THIS OUT)'!U58) -> caregiver | W55: =IF('Caregiver Tab (FILL THIS OUT)'!V58="","",'Caregiver Tab (FILL THIS OUT)'!V58) ->  | X55: =IF('Caregiver Tab (FILL THIS OUT)'!W58="","",'Caregiver Tab (FILL THIS OUT)'!W58) ->  | Y55: =IF('Caregiver Tab (FILL THIS OUT)'!X58="","",'Caregiver Tab (FILL THIS OUT)'!X58) ->  | Z55: ='Caregiver Tab (FILL THIS OUT)'!#REF!&IF('Caregiver Tab (FILL THIS OUT)'!#REF!="","","#"&'Caregiver Tab (FILL THIS OUT)'!#REF!)&";"&'Caregiver Tab (FILL THIS OUT)'!#REF!&IF('Caregiver Tab (FILL THIS OUT)'!#REF!="","","#"&'Caregiver Tab (FILL THIS OUT)'!#REF!)&";"&'Caregiver Tab (FILL THIS OUT)'!#REF!&IF('Caregiver Tab (FILL THIS OUT)'!#REF!="","","#"&'Caregiver Tab (FILL THIS OUT)'!#REF!)&";" -> 
B56: =IF('Caregiver Tab (FILL THIS OUT)'!B59="","",'Caregiver Tab (FILL THIS OUT)'!B59) ->  | C56: =IF('Caregiver Tab (FILL THIS OUT)'!C59="","",'Caregiver Tab (FILL THIS OUT)'!C59) ->  | D56: 3 | E56: 1 | F56: =IF('Caregiver Tab (FILL THIS OUT)'!E59="","",'Caregiver Tab (FILL THIS OUT)'!E59) ->  | G56: =IF('Caregiver Tab (FILL THIS OUT)'!F59="","",'Caregiver Tab (FILL THIS OUT)'!F59) -> TRUE | H56: =IF('Caregiver Tab (FILL THIS OUT)'!G59="","",'Caregiver Tab (FILL THIS OUT)'!G59) ->  | I56: =IF('Caregiver Tab (FILL THIS OUT)'!H59="","",'Caregiver Tab (FILL THIS OUT)'!H59) ->  | J56: =IF('Caregiver Tab (FILL THIS OUT)'!I59="","",'Caregiver Tab (FILL THIS OUT)'!I59) ->  | K56: =IF('Caregiver Tab (FILL THIS OUT)'!J59="","",'Caregiver Tab (FILL THIS OUT)'!J59) ->  | L56: =IF('Caregiver Tab (FILL THIS OUT)'!K59="","",'Caregiver Tab (FILL THIS OUT)'!K59) ->  | M56: =IF('Caregiver Tab (FILL THIS OUT)'!M59="","",'Caregiver Tab (FILL THIS OUT)'!M59) ->  | N56: =IF('Caregiver Tab (FILL THIS OUT)'!M59="","",'Caregiver Tab (FILL THIS OUT)'!M59) ->  | O56: =IF('Caregiver Tab (FILL THIS OUT)'!N59="","",'Caregiver Tab (FILL THIS OUT)'!N59) ->  | P56: =IF('Caregiver Tab (FILL THIS OUT)'!O59="","",'Caregiver Tab (FILL THIS OUT)'!O59) ->  | Q56: =IF('Caregiver Tab (FILL THIS OUT)'!P59="","",'Caregiver Tab (FILL THIS OUT)'!P59) ->  | R56: =IF('Caregiver Tab (FILL THIS OUT)'!Q59="","",'Caregiver Tab (FILL THIS OUT)'!Q59) ->  | S56: =IF('Caregiver Tab (FILL THIS OUT)'!R59="","",'Caregiver Tab (FILL THIS OUT)'!R59) ->  | T56: =IF('Caregiver Tab (FILL THIS OUT)'!S59="","",'Caregiver Tab (FILL THIS OUT)'!S59) ->  | U56: =IF('Caregiver Tab (FILL THIS OUT)'!T59="","",'Caregiver Tab (FILL THIS OUT)'!T59) ->  | V56: =IF('Caregiver Tab (FILL THIS OUT)'!U59="","",'Caregiver Tab (FILL THIS OUT)'!U59) -> caregiver | W56: =IF('Caregiver Tab (FILL THIS OUT)'!V59="","",'Caregiver Tab (FILL THIS OUT)'!V59) ->  | X56: =IF('Caregiver Tab (FILL THIS OUT)'!W59="","",'Caregiver Tab (FILL THIS OUT)'!W59) ->  | Y56: =IF('Caregiver Tab (FILL THIS OUT)'!X59="","",'Caregiver Tab (FILL THIS OUT)'!X59) ->  | Z56: ='Caregiver Tab (FILL THIS OUT)'!#REF!&IF('Caregiver Tab (FILL THIS OUT)'!#REF!="","","#"&'Caregiver Tab (FILL THIS OUT)'!#REF!)&";"&'Caregiver Tab (FILL THIS OUT)'!#REF!&IF('Caregiver Tab (FILL THIS OUT)'!#REF!="","","#"&'Caregiver Tab (FILL THIS OUT)'!#REF!)&";"&'Caregiver Tab (FILL THIS OUT)'!#REF!&IF('Caregiver Tab (FILL THIS OUT)'!#REF!="","","#"&'Caregiver Tab (FILL THIS OUT)'!#REF!)&";" -> 
B57: =IF('Caregiver Tab (FILL THIS OUT)'!B60="","",'Caregiver Tab (FILL THIS OUT)'!B60) ->  | C57: =IF('Caregiver Tab (FILL THIS OUT)'!C60="","",'Caregiver Tab (FILL THIS OUT)'!C60) ->  | D57: 3 | E57: 1 | F57: =IF('Caregiver Tab (FILL THIS OUT)'!E60="","",'Caregiver Tab (FILL THIS OUT)'!E60) ->  | G57: =IF('Caregiver Tab (FILL THIS OUT)'!F60="","",'Caregiver Tab (FILL THIS OUT)'!F60) -> TRUE | H57: =IF('Caregiver Tab (FILL THIS OUT)'!G60="","",'Caregiver Tab (FILL THIS OUT)'!G60) ->  | I57: =IF('Caregiver Tab (FILL THIS OUT)'!H60="","",'Caregiver Tab (FILL THIS OUT)'!H60) ->  | J57: =IF('Caregiver Tab (FILL THIS OUT)'!I60="","",'Caregiver Tab (FILL THIS OUT)'!I60) ->  | K57: =IF('Caregiver Tab (FILL THIS OUT)'!J60="","",'Caregiver Tab (FILL THIS OUT)'!J60) ->  | L57: =IF('Caregiver Tab (FILL THIS OUT)'!K60="","",'Caregiver Tab (FILL THIS OUT)'!K60) ->  | M57: =IF('Caregiver Tab (FILL THIS OUT)'!M60="","",'Caregiver Tab (FILL THIS OUT)'!M60) ->  | N57: =IF('Caregiver Tab (FILL THIS OUT)'!M60="","",'Caregiver Tab (FILL THIS OUT)'!M60) ->  | O57: =IF('Caregiver Tab (FILL THIS OUT)'!N60="","",'Caregiver Tab (FILL THIS OUT)'!N60) ->  | P57: =IF('Caregiver Tab (FILL THIS OUT)'!O60="","",'Caregiver Tab (FILL THIS OUT)'!O60) ->  | Q57: =IF('Caregiver Tab (FILL THIS OUT)'!P60="","",'Caregiver Tab (FILL THIS OUT)'!P60) ->  | R57: =IF('Caregiver Tab (FILL THIS OUT)'!Q60="","",'Caregiver Tab (FILL THIS OUT)'!Q60) ->  | S57: =IF('Caregiver Tab (FILL THIS OUT)'!R60="","",'Caregiver Tab (FILL THIS OUT)'!R60) ->  | T57: =IF('Caregiver Tab (FILL THIS OUT)'!S60="","",'Caregiver Tab (FILL THIS OUT)'!S60) ->  | U57: =IF('Caregiver Tab (FILL THIS OUT)'!T60="","",'Caregiver Tab (FILL THIS OUT)'!T60) ->  | V57: =IF('Caregiver Tab (FILL THIS OUT)'!U60="","",'Caregiver Tab (FILL THIS OUT)'!U60) -> caregiver | W57: =IF('Caregiver Tab (FILL THIS OUT)'!V60="","",'Caregiver Tab (FILL THIS OUT)'!V60) ->  | X57: =IF('Caregiver Tab (FILL THIS OUT)'!W60="","",'Caregiver Tab (FILL THIS OUT)'!W60) ->  | Y57: =IF('Caregiver Tab (FILL THIS OUT)'!X60="","",'Caregiver Tab (FILL THIS OUT)'!X60) ->  | Z57: ='Caregiver Tab (FILL THIS OUT)'!#REF!&IF('Caregiver Tab (FILL THIS OUT)'!#REF!="","","#"&'Caregiver Tab (FILL THIS OUT)'!#REF!)&";"&'Caregiver Tab (FILL THIS OUT)'!#REF!&IF('Caregiver Tab (FILL THIS OUT)'!#REF!="","","#"&'Caregiver Tab (FILL THIS OUT)'!#REF!)&";"&'Caregiver Tab (FILL THIS OUT)'!#REF!&IF('Caregiver Tab (FILL THIS OUT)'!#REF!="","","#"&'Caregiver Tab (FILL THIS OUT)'!#REF!)&";" -> 
B58: =IF('Caregiver Tab (FILL THIS OUT)'!B61="","",'Caregiver Tab (FILL THIS OUT)'!B61) ->  | C58: =IF('Caregiver Tab (FILL THIS OUT)'!C61="","",'Caregiver Tab (FILL THIS OUT)'!C61) ->  | D58: 3 | E58: 1 | F58: =IF('Caregiver Tab (FILL THIS OUT)'!E61="","",'Caregiver Tab (FILL THIS OUT)'!E61) ->  | G58: =IF('Caregiver Tab (FILL THIS OUT)'!F61="","",'Caregiver Tab (FILL THIS OUT)'!F61) -> TRUE | H58: =IF('Caregiver Tab (FILL THIS OUT)'!G61="","",'Caregiver Tab (FILL THIS OUT)'!G61) ->  | I58: =IF('Caregiver Tab (FILL THIS OUT)'!H61="","",'Caregiver Tab (FILL THIS OUT)'!H61) ->  | J58: =IF('Caregiver Tab (FILL THIS OUT)'!I61="","",'Caregiver Tab (FILL THIS OUT)'!I61) ->  | K58: =IF('Caregiver Tab (FILL THIS OUT)'!J61="","",'Caregiver Tab (FILL THIS OUT)'!J61) ->  | L58: =IF('Caregiver Tab (FILL THIS OUT)'!K61="","",'Caregiver Tab (FILL THIS OUT)'!K61) ->  | M58: =IF('Caregiver Tab (FILL THIS OUT)'!M61="","",'Caregiver Tab (FILL THIS OUT)'!M61) ->  | N58: =IF('Caregiver Tab (FILL THIS OUT)'!M61="","",'Caregiver Tab (FILL THIS OUT)'!M61) ->  | O58: =IF('Caregiver Tab (FILL THIS OUT)'!N61="","",'Caregiver Tab (FILL THIS OUT)'!N61) ->  | P58: =IF('Caregiver Tab (FILL THIS OUT)'!O61="","",'Caregiver Tab (FILL THIS OUT)'!O61) ->  | Q58: =IF('Caregiver Tab (FILL THIS OUT)'!P61="","",'Caregiver Tab (FILL THIS OUT)'!P61) ->  | R58: =IF('Caregiver Tab (FILL THIS OUT)'!Q61="","",'Caregiver Tab (FILL THIS OUT)'!Q61) ->  | S58: =IF('Caregiver Tab (FILL THIS OUT)'!R61="","",'Caregiver Tab (FILL THIS OUT)'!R61) ->  | T58: =IF('Caregiver Tab (FILL THIS OUT)'!S61="","",'Caregiver Tab (FILL THIS OUT)'!S61) ->  | U58: =IF('Caregiver Tab (FILL THIS OUT)'!T61="","",'Caregiver Tab (FILL THIS OUT)'!T61) ->  | V58: =IF('Caregiver Tab (FILL THIS OUT)'!U61="","",'Caregiver Tab (FILL THIS OUT)'!U61) -> caregiver | W58: =IF('Caregiver Tab (FILL THIS OUT)'!V61="","",'Caregiver Tab (FILL THIS OUT)'!V61) ->  | X58: =IF('Caregiver Tab (FILL THIS OUT)'!W61="","",'Caregiver Tab (FILL THIS OUT)'!W61) ->  | Y58: =IF('Caregiver Tab (FILL THIS OUT)'!X61="","",'Caregiver Tab (FILL THIS OUT)'!X61) ->  | Z58: ='Caregiver Tab (FILL THIS OUT)'!#REF!&IF('Caregiver Tab (FILL THIS OUT)'!#REF!="","","#"&'Caregiver Tab (FILL THIS OUT)'!#REF!)&";"&'Caregiver Tab (FILL THIS OUT)'!#REF!&IF('Caregiver Tab (FILL THIS OUT)'!#REF!="","","#"&'Caregiver Tab (FILL THIS OUT)'!#REF!)&";"&'Caregiver Tab (FILL THIS OUT)'!#REF!&IF('Caregiver Tab (FILL THIS OUT)'!#REF!="","","#"&'Caregiver Tab (FILL THIS OUT)'!#REF!)&";" -> 
B59: =IF('Caregiver Tab (FILL THIS OUT)'!B62="","",'Caregiver Tab (FILL THIS OUT)'!B62) ->  | C59: =IF('Caregiver Tab (FILL THIS OUT)'!C62="","",'Caregiver Tab (FILL THIS OUT)'!C62) ->  | D59: 3 | E59: 1 | F59: =IF('Caregiver Tab (FILL THIS OUT)'!E62="","",'Caregiver Tab (FILL THIS OUT)'!E62) ->  | G59: =IF('Caregiver Tab (FILL THIS OUT)'!F62="","",'Caregiver Tab (FILL THIS OUT)'!F62) -> TRUE | H59: =IF('Caregiver Tab (FILL THIS OUT)'!G62="","",'Caregiver Tab (FILL THIS OUT)'!G62) ->  | I59: =IF('Caregiver Tab (FILL THIS OUT)'!H62="","",'Caregiver Tab (FILL THIS OUT)'!H62) ->  | J59: =IF('Caregiver Tab (FILL THIS OUT)'!I62="","",'Caregiver Tab (FILL THIS OUT)'!I62) ->  | K59: =IF('Caregiver Tab (FILL THIS OUT)'!J62="","",'Caregiver Tab (FILL THIS OUT)'!J62) ->  | L59: =IF('Caregiver Tab (FILL THIS OUT)'!K62="","",'Caregiver Tab (FILL THIS OUT)'!K62) ->  | M59: =IF('Caregiver Tab (FILL THIS OUT)'!M62="","",'Caregiver Tab (FILL THIS OUT)'!M62) ->  | N59: =IF('Caregiver Tab (FILL THIS OUT)'!M62="","",'Caregiver Tab (FILL THIS OUT)'!M62) ->  | O59: =IF('Caregiver Tab (FILL THIS OUT)'!N62="","",'Caregiver Tab (FILL THIS OUT)'!N62) ->  | P59: =IF('Caregiver Tab (FILL THIS OUT)'!O62="","",'Caregiver Tab (FILL THIS OUT)'!O62) ->  | Q59: =IF('Caregiver Tab (FILL THIS OUT)'!P62="","",'Caregiver Tab (FILL THIS OUT)'!P62) ->  | R59: =IF('Caregiver Tab (FILL THIS OUT)'!Q62="","",'Caregiver Tab (FILL THIS OUT)'!Q62) ->  | S59: =IF('Caregiver Tab (FILL THIS OUT)'!R62="","",'Caregiver Tab (FILL THIS OUT)'!R62) ->  | T59: =IF('Caregiver Tab (FILL THIS OUT)'!S62="","",'Caregiver Tab (FILL THIS OUT)'!S62) ->  | U59: =IF('Caregiver Tab (FILL THIS OUT)'!T62="","",'Caregiver Tab (FILL THIS OUT)'!T62) ->  | V59: =IF('Caregiver Tab (FILL THIS OUT)'!U62="","",'Caregiver Tab (FILL THIS OUT)'!U62) -> caregiver | W59: =IF('Caregiver Tab (FILL THIS OUT)'!V62="","",'Caregiver Tab (FILL THIS OUT)'!V62) ->  | X59: =IF('Caregiver Tab (FILL THIS OUT)'!W62="","",'Caregiver Tab (FILL THIS OUT)'!W62) ->  | Y59: =IF('Caregiver Tab (FILL THIS OUT)'!X62="","",'Caregiver Tab (FILL THIS OUT)'!X62) ->  | Z59: ='Caregiver Tab (FILL THIS OUT)'!#REF!&IF('Caregiver Tab (FILL THIS OUT)'!#REF!="","","#"&'Caregiver Tab (FILL THIS OUT)'!#REF!)&";"&'Caregiver Tab (FILL THIS OUT)'!#REF!&IF('Caregiver Tab (FILL THIS OUT)'!#REF!="","","#"&'Caregiver Tab (FILL THIS OUT)'!#REF!)&";"&'Caregiver Tab (FILL THIS OUT)'!#REF!&IF('Caregiver Tab (FILL THIS OUT)'!#REF!="","","#"&'Caregiver Tab (FILL THIS OUT)'!#REF!)&";" -> 
B60: =IF('Caregiver Tab (FILL THIS OUT)'!B63="","",'Caregiver Tab (FILL THIS OUT)'!B63) ->  | C60: =IF('Caregiver Tab (FILL THIS OUT)'!C63="","",'Caregiver Tab (FILL THIS OUT)'!C63) ->  | D60: 3 | E60: 1 | F60: =IF('Caregiver Tab (FILL THIS OUT)'!E63="","",'Caregiver Tab (FILL THIS OUT)'!E63) ->  | G60: =IF('Caregiver Tab (FILL THIS OUT)'!F63="","",'Caregiver Tab (FILL THIS OUT)'!F63) -> TRUE | H60: =IF('Caregiver Tab (FILL THIS OUT)'!G63="","",'Caregiver Tab (FILL THIS OUT)'!G63) ->  | I60: =IF('Caregiver Tab (FILL THIS OUT)'!H63="","",'Caregiver Tab (FILL THIS OUT)'!H63) ->  | J60: =IF('Caregiver Tab (FILL THIS OUT)'!I63="","",'Caregiver Tab (FILL THIS OUT)'!I63) ->  | K60: =IF('Caregiver Tab (FILL THIS OUT)'!J63="","",'Caregiver Tab (FILL THIS OUT)'!J63) ->  | L60: =IF('Caregiver Tab (FILL THIS OUT)'!K63="","",'Caregiver Tab (FILL THIS OUT)'!K63) ->  | M60: =IF('Caregiver Tab (FILL THIS OUT)'!M63="","",'Caregiver Tab (FILL THIS OUT)'!M63) ->  | N60: =IF('Caregiver Tab (FILL THIS OUT)'!M63="","",'Caregiver Tab (FILL THIS OUT)'!M63) ->  | O60: =IF('Caregiver Tab (FILL THIS OUT)'!N63="","",'Caregiver Tab (FILL THIS OUT)'!N63) ->  | P60: =IF('Caregiver Tab (FILL THIS OUT)'!O63="","",'Caregiver Tab (FILL THIS OUT)'!O63) ->  | Q60: =IF('Caregiver Tab (FILL THIS OUT)'!P63="","",'Caregiver Tab (FILL THIS OUT)'!P63) ->  | R60: =IF('Caregiver Tab (FILL THIS OUT)'!Q63="","",'Caregiver Tab (FILL THIS OUT)'!Q63) ->  | S60: =IF('Caregiver Tab (FILL THIS OUT)'!R63="","",'Caregiver Tab (FILL THIS OUT)'!R63) ->  | T60: =IF('Caregiver Tab (FILL THIS OUT)'!S63="","",'Caregiver Tab (FILL THIS OUT)'!S63) ->  | U60: =IF('Caregiver Tab (FILL THIS OUT)'!T63="","",'Caregiver Tab (FILL THIS OUT)'!T63) ->  | V60: =IF('Caregiver Tab (FILL THIS OUT)'!U63="","",'Caregiver Tab (FILL THIS OUT)'!U63) -> caregiver | W60: =IF('Caregiver Tab (FILL THIS OUT)'!V63="","",'Caregiver Tab (FILL THIS OUT)'!V63) ->  | X60: =IF('Caregiver Tab (FILL THIS OUT)'!W63="","",'Caregiver Tab (FILL THIS OUT)'!W63) ->  | Y60: =IF('Caregiver Tab (FILL THIS OUT)'!X63="","",'Caregiver Tab (FILL THIS OUT)'!X63) ->  | Z60: ='Caregiver Tab (FILL THIS OUT)'!#REF!&IF('Caregiver Tab (FILL THIS OUT)'!#REF!="","","#"&'Caregiver Tab (FILL THIS OUT)'!#REF!)&";"&'Caregiver Tab (FILL THIS OUT)'!#REF!&IF('Caregiver Tab (FILL THIS OUT)'!#REF!="","","#"&'Caregiver Tab (FILL THIS OUT)'!#REF!)&";"&'Caregiver Tab (FILL THIS OUT)'!#REF!&IF('Caregiver Tab (FILL THIS OUT)'!#REF!="","","#"&'Caregiver Tab (FILL THIS OUT)'!#REF!)&";" -> 
B61: =IF('Caregiver Tab (FILL THIS OUT)'!B64="","",'Caregiver Tab (FILL THIS OUT)'!B64) ->  | C61: =IF('Caregiver Tab (FILL THIS OUT)'!C64="","",'Caregiver Tab (FILL THIS OUT)'!C64) ->  | D61: 3 | E61: 1 | F61: =IF('Caregiver Tab (FILL THIS OUT)'!E64="","",'Caregiver Tab (FILL THIS OUT)'!E64) ->  | G61: =IF('Caregiver Tab (FILL THIS OUT)'!F64="","",'Caregiver Tab (FILL THIS OUT)'!F64) -> TRUE | H61: =IF('Caregiver Tab (FILL THIS OUT)'!G64="","",'Caregiver Tab (FILL THIS OUT)'!G64) ->  | I61: =IF('Caregiver Tab (FILL THIS OUT)'!H64="","",'Caregiver Tab (FILL THIS OUT)'!H64) ->  | J61: =IF('Caregiver Tab (FILL THIS OUT)'!I64="","",'Caregiver Tab (FILL THIS OUT)'!I64) ->  | K61: =IF('Caregiver Tab (FILL THIS OUT)'!J64="","",'Caregiver Tab (FILL THIS OUT)'!J64) ->  | L61: =IF('Caregiver Tab (FILL THIS OUT)'!K64="","",'Caregiver Tab (FILL THIS OUT)'!K64) ->  | M61: =IF('Caregiver Tab (FILL THIS OUT)'!M64="","",'Caregiver Tab (FILL THIS OUT)'!M64) ->  | N61: =IF('Caregiver Tab (FILL THIS OUT)'!M64="","",'Caregiver Tab (FILL THIS OUT)'!M64) ->  | O61: =IF('Caregiver Tab (FILL THIS OUT)'!N64="","",'Caregiver Tab (FILL THIS OUT)'!N64) ->  | P61: =IF('Caregiver Tab (FILL THIS OUT)'!O64="","",'Caregiver Tab (FILL THIS OUT)'!O64) ->  | Q61: =IF('Caregiver Tab (FILL THIS OUT)'!P64="","",'Caregiver Tab (FILL THIS OUT)'!P64) ->  | R61: =IF('Caregiver Tab (FILL THIS OUT)'!Q64="","",'Caregiver Tab (FILL THIS OUT)'!Q64) ->  | S61: =IF('Caregiver Tab (FILL THIS OUT)'!R64="","",'Caregiver Tab (FILL THIS OUT)'!R64) ->  | T61: =IF('Caregiver Tab (FILL THIS OUT)'!S64="","",'Caregiver Tab (FILL THIS OUT)'!S64) ->  | U61: =IF('Caregiver Tab (FILL THIS OUT)'!T64="","",'Caregiver Tab (FILL THIS OUT)'!T64) ->  | V61: =IF('Caregiver Tab (FILL THIS OUT)'!U64="","",'Caregiver Tab (FILL THIS OUT)'!U64) -> caregiver | W61: =IF('Caregiver Tab (FILL THIS OUT)'!V64="","",'Caregiver Tab (FILL THIS OUT)'!V64) ->  | X61: =IF('Caregiver Tab (FILL THIS OUT)'!W64="","",'Caregiver Tab (FILL THIS OUT)'!W64) ->  | Y61: =IF('Caregiver Tab (FILL THIS OUT)'!X64="","",'Caregiver Tab (FILL THIS OUT)'!X64) ->  | Z61: ='Caregiver Tab (FILL THIS OUT)'!#REF!&IF('Caregiver Tab (FILL THIS OUT)'!#REF!="","","#"&'Caregiver Tab (FILL THIS OUT)'!#REF!)&";"&'Caregiver Tab (FILL THIS OUT)'!#REF!&IF('Caregiver Tab (FILL THIS OUT)'!#REF!="","","#"&'Caregiver Tab (FILL THIS OUT)'!#REF!)&";"&'Caregiver Tab (FILL THIS OUT)'!#REF!&IF('Caregiver Tab (FILL THIS OUT)'!#REF!="","","#"&'Caregiver Tab (FILL THIS OUT)'!#REF!)&";" -> 
B62: =IF('Caregiver Tab (FILL THIS OUT)'!B65="","",'Caregiver Tab (FILL THIS OUT)'!B65) ->  | C62: =IF('Caregiver Tab (FILL THIS OUT)'!C65="","",'Caregiver Tab (FILL THIS OUT)'!C65) ->  | D62: 3 | E62: 1 | F62: =IF('Caregiver Tab (FILL THIS OUT)'!E65="","",'Caregiver Tab (FILL THIS OUT)'!E65) ->  | G62: =IF('Caregiver Tab (FILL THIS OUT)'!F65="","",'Caregiver Tab (FILL THIS OUT)'!F65) -> TRUE | H62: =IF('Caregiver Tab (FILL THIS OUT)'!G65="","",'Caregiver Tab (FILL THIS OUT)'!G65) ->  | I62: =IF('Caregiver Tab (FILL THIS OUT)'!H65="","",'Caregiver Tab (FILL THIS OUT)'!H65) ->  | J62: =IF('Caregiver Tab (FILL THIS OUT)'!I65="","",'Caregiver Tab (FILL THIS OUT)'!I65) ->  | K62: =IF('Caregiver Tab (FILL THIS OUT)'!J65="","",'Caregiver Tab (FILL THIS OUT)'!J65) ->  | L62: =IF('Caregiver Tab (FILL THIS OUT)'!K65="","",'Caregiver Tab (FILL THIS OUT)'!K65) ->  | M62: =IF('Caregiver Tab (FILL THIS OUT)'!M65="","",'Caregiver Tab (FILL THIS OUT)'!M65) ->  | N62: =IF('Caregiver Tab (FILL THIS OUT)'!M65="","",'Caregiver Tab (FILL THIS OUT)'!M65) ->  | O62: =IF('Caregiver Tab (FILL THIS OUT)'!N65="","",'Caregiver Tab (FILL THIS OUT)'!N65) ->  | P62: =IF('Caregiver Tab (FILL THIS OUT)'!O65="","",'Caregiver Tab (FILL THIS OUT)'!O65) ->  | Q62: =IF('Caregiver Tab (FILL THIS OUT)'!P65="","",'Caregiver Tab (FILL THIS OUT)'!P65) ->  | R62: =IF('Caregiver Tab (FILL THIS OUT)'!Q65="","",'Caregiver Tab (FILL THIS OUT)'!Q65) ->  | S62: =IF('Caregiver Tab (FILL THIS OUT)'!R65="","",'Caregiver Tab (FILL THIS OUT)'!R65) ->  | T62: =IF('Caregiver Tab (FILL THIS OUT)'!S65="","",'Caregiver Tab (FILL THIS OUT)'!S65) ->  | U62: =IF('Caregiver Tab (FILL THIS OUT)'!T65="","",'Caregiver Tab (FILL THIS OUT)'!T65) ->  | V62: =IF('Caregiver Tab (FILL THIS OUT)'!U65="","",'Caregiver Tab (FILL THIS OUT)'!U65) -> caregiver | W62: =IF('Caregiver Tab (FILL THIS OUT)'!V65="","",'Caregiver Tab (FILL THIS OUT)'!V65) ->  | X62: =IF('Caregiver Tab (FILL THIS OUT)'!W65="","",'Caregiver Tab (FILL THIS OUT)'!W65) ->  | Y62: =IF('Caregiver Tab (FILL THIS OUT)'!X65="","",'Caregiver Tab (FILL THIS OUT)'!X65) ->  | Z62: ='Caregiver Tab (FILL THIS OUT)'!#REF!&IF('Caregiver Tab (FILL THIS OUT)'!#REF!="","","#"&'Caregiver Tab (FILL THIS OUT)'!#REF!)&";"&'Caregiver Tab (FILL THIS OUT)'!#REF!&IF('Caregiver Tab (FILL THIS OUT)'!#REF!="","","#"&'Caregiver Tab (FILL THIS OUT)'!#REF!)&";"&'Caregiver Tab (FILL THIS OUT)'!#REF!&IF('Caregiver Tab (FILL THIS OUT)'!#REF!="","","#"&'Caregiver Tab (FILL THIS OUT)'!#REF!)&";" -> 
B63: =IF('Caregiver Tab (FILL THIS OUT)'!B66="","",'Caregiver Tab (FILL THIS OUT)'!B66) ->  | C63: =IF('Caregiver Tab (FILL THIS OUT)'!C66="","",'Caregiver Tab (FILL THIS OUT)'!C66) ->  | D63: 3 | E63: 1 | F63: =IF('Caregiver Tab (FILL THIS OUT)'!E66="","",'Caregiver Tab (FILL THIS OUT)'!E66) ->  | G63: =IF('Caregiver Tab (FILL THIS OUT)'!F66="","",'Caregiver Tab (FILL THIS OUT)'!F66) -> TRUE | H63: =IF('Caregiver Tab (FILL THIS OUT)'!G66="","",'Caregiver Tab (FILL THIS OUT)'!G66) ->  | I63: =IF('Caregiver Tab (FILL THIS OUT)'!H66="","",'Caregiver Tab (FILL THIS OUT)'!H66) ->  | J63: =IF('Caregiver Tab (FILL THIS OUT)'!I66="","",'Caregiver Tab (FILL THIS OUT)'!I66) ->  | K63: =IF('Caregiver Tab (FILL THIS OUT)'!J66="","",'Caregiver Tab (FILL THIS OUT)'!J66) ->  | L63: =IF('Caregiver Tab (FILL THIS OUT)'!K66="","",'Caregiver Tab (FILL THIS OUT)'!K66) ->  | M63: =IF('Caregiver Tab (FILL THIS OUT)'!M66="","",'Caregiver Tab (FILL THIS OUT)'!M66) ->  | N63: =IF('Caregiver Tab (FILL THIS OUT)'!M66="","",'Caregiver Tab (FILL THIS OUT)'!M66) ->  | O63: =IF('Caregiver Tab (FILL THIS OUT)'!N66="","",'Caregiver Tab (FILL THIS OUT)'!N66) ->  | P63: =IF('Caregiver Tab (FILL THIS OUT)'!O66="","",'Caregiver Tab (FILL THIS OUT)'!O66) ->  | Q63: =IF('Caregiver Tab (FILL THIS OUT)'!P66="","",'Caregiver Tab (FILL THIS OUT)'!P66) ->  | R63: =IF('Caregiver Tab (FILL THIS OUT)'!Q66="","",'Caregiver Tab (FILL THIS OUT)'!Q66) ->  | S63: =IF('Caregiver Tab (FILL THIS OUT)'!R66="","",'Caregiver Tab (FILL THIS OUT)'!R66) ->  | T63: =IF('Caregiver Tab (FILL THIS OUT)'!S66="","",'Caregiver Tab (FILL THIS OUT)'!S66) ->  | U63: =IF('Caregiver Tab (FILL THIS OUT)'!T66="","",'Caregiver Tab (FILL THIS OUT)'!T66) ->  | V63: =IF('Caregiver Tab (FILL THIS OUT)'!U66="","",'Caregiver Tab (FILL THIS OUT)'!U66) -> caregiver | W63: =IF('Caregiver Tab (FILL THIS OUT)'!V66="","",'Caregiver Tab (FILL THIS OUT)'!V66) ->  | X63: =IF('Caregiver Tab (FILL THIS OUT)'!W66="","",'Caregiver Tab (FILL THIS OUT)'!W66) ->  | Y63: =IF('Caregiver Tab (FILL THIS OUT)'!X66="","",'Caregiver Tab (FILL THIS OUT)'!X66) ->  | Z63: ='Caregiver Tab (FILL THIS OUT)'!#REF!&IF('Caregiver Tab (FILL THIS OUT)'!#REF!="","","#"&'Caregiver Tab (FILL THIS OUT)'!#REF!)&";"&'Caregiver Tab (FILL THIS OUT)'!#REF!&IF('Caregiver Tab (FILL THIS OUT)'!#REF!="","","#"&'Caregiver Tab (FILL THIS OUT)'!#REF!)&";"&'Caregiver Tab (FILL THIS OUT)'!#REF!&IF('Caregiver Tab (FILL THIS OUT)'!#REF!="","","#"&'Caregiver Tab (FILL THIS OUT)'!#REF!)&";" -> 
B64: =IF('Caregiver Tab (FILL THIS OUT)'!B67="","",'Caregiver Tab (FILL THIS OUT)'!B67) ->  | C64: =IF('Caregiver Tab (FILL THIS OUT)'!C67="","",'Caregiver Tab (FILL THIS OUT)'!C67) ->  | D64: 3 | E64: 1 | F64: =IF('Caregiver Tab (FILL THIS OUT)'!E67="","",'Caregiver Tab (FILL THIS OUT)'!E67) ->  | G64: =IF('Caregiver Tab (FILL THIS OUT)'!F67="","",'Caregiver Tab (FILL THIS OUT)'!F67) -> TRUE | H64: =IF('Caregiver Tab (FILL THIS OUT)'!G67="","",'Caregiver Tab (FILL THIS OUT)'!G67) ->  | I64: =IF('Caregiver Tab (FILL THIS OUT)'!H67="","",'Caregiver Tab (FILL THIS OUT)'!H67) ->  | J64: =IF('Caregiver Tab (FILL THIS OUT)'!I67="","",'Caregiver Tab (FILL THIS OUT)'!I67) ->  | K64: =IF('Caregiver Tab (FILL THIS OUT)'!J67="","",'Caregiver Tab (FILL THIS OUT)'!J67) ->  | L64: =IF('Caregiver Tab (FILL THIS OUT)'!K67="","",'Caregiver Tab (FILL THIS OUT)'!K67) ->  | M64: =IF('Caregiver Tab (FILL THIS OUT)'!M67="","",'Caregiver Tab (FILL THIS OUT)'!M67) ->  | N64: =IF('Caregiver Tab (FILL THIS OUT)'!M67="","",'Caregiver Tab (FILL THIS OUT)'!M67) ->  | O64: =IF('Caregiver Tab (FILL THIS OUT)'!N67="","",'Caregiver Tab (FILL THIS OUT)'!N67) ->  | P64: =IF('Caregiver Tab (FILL THIS OUT)'!O67="","",'Caregiver Tab (FILL THIS OUT)'!O67) ->  | Q64: =IF('Caregiver Tab (FILL THIS OUT)'!P67="","",'Caregiver Tab (FILL THIS OUT)'!P67) ->  | R64: =IF('Caregiver Tab (FILL THIS OUT)'!Q67="","",'Caregiver Tab (FILL THIS OUT)'!Q67) ->  | S64: =IF('Caregiver Tab (FILL THIS OUT)'!R67="","",'Caregiver Tab (FILL THIS OUT)'!R67) ->  | T64: =IF('Caregiver Tab (FILL THIS OUT)'!S67="","",'Caregiver Tab (FILL THIS OUT)'!S67) ->  | U64: =IF('Caregiver Tab (FILL THIS OUT)'!T67="","",'Caregiver Tab (FILL THIS OUT)'!T67) ->  | V64: =IF('Caregiver Tab (FILL THIS OUT)'!U67="","",'Caregiver Tab (FILL THIS OUT)'!U67) -> caregiver | W64: =IF('Caregiver Tab (FILL THIS OUT)'!V67="","",'Caregiver Tab (FILL THIS OUT)'!V67) ->  | X64: =IF('Caregiver Tab (FILL THIS OUT)'!W67="","",'Caregiver Tab (FILL THIS OUT)'!W67) ->  | Y64: =IF('Caregiver Tab (FILL THIS OUT)'!X67="","",'Caregiver Tab (FILL THIS OUT)'!X67) ->  | Z64: ='Caregiver Tab (FILL THIS OUT)'!#REF!&IF('Caregiver Tab (FILL THIS OUT)'!#REF!="","","#"&'Caregiver Tab (FILL THIS OUT)'!#REF!)&";"&'Caregiver Tab (FILL THIS OUT)'!#REF!&IF('Caregiver Tab (FILL THIS OUT)'!#REF!="","","#"&'Caregiver Tab (FILL THIS OUT)'!#REF!)&";"&'Caregiver Tab (FILL THIS OUT)'!#REF!&IF('Caregiver Tab (FILL THIS OUT)'!#REF!="","","#"&'Caregiver Tab (FILL THIS OUT)'!#REF!)&";" -> 
B65: =IF('Caregiver Tab (FILL THIS OUT)'!B68="","",'Caregiver Tab (FILL THIS OUT)'!B68) ->  | C65: =IF('Caregiver Tab (FILL THIS OUT)'!C68="","",'Caregiver Tab (FILL THIS OUT)'!C68) ->  | D65: 3 | E65: 1 | F65: =IF('Caregiver Tab (FILL THIS OUT)'!E68="","",'Caregiver Tab (FILL THIS OUT)'!E68) ->  | G65: =IF('Caregiver Tab (FILL THIS OUT)'!F68="","",'Caregiver Tab (FILL THIS OUT)'!F68) -> TRUE | H65: =IF('Caregiver Tab (FILL THIS OUT)'!G68="","",'Caregiver Tab (FILL THIS OUT)'!G68) ->  | I65: =IF('Caregiver Tab (FILL THIS OUT)'!H68="","",'Caregiver Tab (FILL THIS OUT)'!H68) ->  | J65: =IF('Caregiver Tab (FILL THIS OUT)'!I68="","",'Caregiver Tab (FILL THIS OUT)'!I68) ->  | K65: =IF('Caregiver Tab (FILL THIS OUT)'!J68="","",'Caregiver Tab (FILL THIS OUT)'!J68) ->  | L65: =IF('Caregiver Tab (FILL THIS OUT)'!K68="","",'Caregiver Tab (FILL THIS OUT)'!K68) ->  | M65: =IF('Caregiver Tab (FILL THIS OUT)'!M68="","",'Caregiver Tab (FILL THIS OUT)'!M68) ->  | N65: =IF('Caregiver Tab (FILL THIS OUT)'!M68="","",'Caregiver Tab (FILL THIS OUT)'!M68) ->  | O65: =IF('Caregiver Tab (FILL THIS OUT)'!N68="","",'Caregiver Tab (FILL THIS OUT)'!N68) ->  | P65: =IF('Caregiver Tab (FILL THIS OUT)'!O68="","",'Caregiver Tab (FILL THIS OUT)'!O68) ->  | Q65: =IF('Caregiver Tab (FILL THIS OUT)'!P68="","",'Caregiver Tab (FILL THIS OUT)'!P68) ->  | R65: =IF('Caregiver Tab (FILL THIS OUT)'!Q68="","",'Caregiver Tab (FILL THIS OUT)'!Q68) ->  | S65: =IF('Caregiver Tab (FILL THIS OUT)'!R68="","",'Caregiver Tab (FILL THIS OUT)'!R68) ->  | T65: =IF('Caregiver Tab (FILL THIS OUT)'!S68="","",'Caregiver Tab (FILL THIS OUT)'!S68) ->  | U65: =IF('Caregiver Tab (FILL THIS OUT)'!T68="","",'Caregiver Tab (FILL THIS OUT)'!T68) ->  | V65: =IF('Caregiver Tab (FILL THIS OUT)'!U68="","",'Caregiver Tab (FILL THIS OUT)'!U68) -> caregiver | W65: =IF('Caregiver Tab (FILL THIS OUT)'!V68="","",'Caregiver Tab (FILL THIS OUT)'!V68) ->  | X65: =IF('Caregiver Tab (FILL THIS OUT)'!W68="","",'Caregiver Tab (FILL THIS OUT)'!W68) ->  | Y65: =IF('Caregiver Tab (FILL THIS OUT)'!X68="","",'Caregiver Tab (FILL THIS OUT)'!X68) ->  | Z65: ='Caregiver Tab (FILL THIS OUT)'!#REF!&IF('Caregiver Tab (FILL THIS OUT)'!#REF!="","","#"&'Caregiver Tab (FILL THIS OUT)'!#REF!)&";"&'Caregiver Tab (FILL THIS OUT)'!#REF!&IF('Caregiver Tab (FILL THIS OUT)'!#REF!="","","#"&'Caregiver Tab (FILL THIS OUT)'!#REF!)&";"&'Caregiver Tab (FILL THIS OUT)'!#REF!&IF('Caregiver Tab (FILL THIS OUT)'!#REF!="","","#"&'Caregiver Tab (FILL THIS OUT)'!#REF!)&";" -> 
B66: =IF('Caregiver Tab (FILL THIS OUT)'!B69="","",'Caregiver Tab (FILL THIS OUT)'!B69) ->  | C66: =IF('Caregiver Tab (FILL THIS OUT)'!C69="","",'Caregiver Tab (FILL THIS OUT)'!C69) ->  | D66: 3 | E66: 1 | F66: =IF('Caregiver Tab (FILL THIS OUT)'!E69="","",'Caregiver Tab (FILL THIS OUT)'!E69) ->  | G66: =IF('Caregiver Tab (FILL THIS OUT)'!F69="","",'Caregiver Tab (FILL THIS OUT)'!F69) -> TRUE | H66: =IF('Caregiver Tab (FILL THIS OUT)'!G69="","",'Caregiver Tab (FILL THIS OUT)'!G69) ->  | I66: =IF('Caregiver Tab (FILL THIS OUT)'!H69="","",'Caregiver Tab (FILL THIS OUT)'!H69) ->  | J66: =IF('Caregiver Tab (FILL THIS OUT)'!I69="","",'Caregiver Tab (FILL THIS OUT)'!I69) ->  | K66: =IF('Caregiver Tab (FILL THIS OUT)'!J69="","",'Caregiver Tab (FILL THIS OUT)'!J69) ->  | L66: =IF('Caregiver Tab (FILL THIS OUT)'!K69="","",'Caregiver Tab (FILL THIS OUT)'!K69) ->  | M66: =IF('Caregiver Tab (FILL THIS OUT)'!M69="","",'Caregiver Tab (FILL THIS OUT)'!M69) ->  | N66: =IF('Caregiver Tab (FILL THIS OUT)'!M69="","",'Caregiver Tab (FILL THIS OUT)'!M69) ->  | O66: =IF('Caregiver Tab (FILL THIS OUT)'!N69="","",'Caregiver Tab (FILL THIS OUT)'!N69) ->  | P66: =IF('Caregiver Tab (FILL THIS OUT)'!O69="","",'Caregiver Tab (FILL THIS OUT)'!O69) ->  | Q66: =IF('Caregiver Tab (FILL THIS OUT)'!P69="","",'Caregiver Tab (FILL THIS OUT)'!P69) ->  | R66: =IF('Caregiver Tab (FILL THIS OUT)'!Q69="","",'Caregiver Tab (FILL THIS OUT)'!Q69) ->  | S66: =IF('Caregiver Tab (FILL THIS OUT)'!R69="","",'Caregiver Tab (FILL THIS OUT)'!R69) ->  | T66: =IF('Caregiver Tab (FILL THIS OUT)'!S69="","",'Caregiver Tab (FILL THIS OUT)'!S69) ->  | U66: =IF('Caregiver Tab (FILL THIS OUT)'!T69="","",'Caregiver Tab (FILL THIS OUT)'!T69) ->  | V66: =IF('Caregiver Tab (FILL THIS OUT)'!U69="","",'Caregiver Tab (FILL THIS OUT)'!U69) -> caregiver | W66: =IF('Caregiver Tab (FILL THIS OUT)'!V69="","",'Caregiver Tab (FILL THIS OUT)'!V69) ->  | X66: =IF('Caregiver Tab (FILL THIS OUT)'!W69="","",'Caregiver Tab (FILL THIS OUT)'!W69) ->  | Y66: =IF('Caregiver Tab (FILL THIS OUT)'!X69="","",'Caregiver Tab (FILL THIS OUT)'!X69) ->  | Z66: ='Caregiver Tab (FILL THIS OUT)'!#REF!&IF('Caregiver Tab (FILL THIS OUT)'!#REF!="","","#"&'Caregiver Tab (FILL THIS OUT)'!#REF!)&";"&'Caregiver Tab (FILL THIS OUT)'!#REF!&IF('Caregiver Tab (FILL THIS OUT)'!#REF!="","","#"&'Caregiver Tab (FILL THIS OUT)'!#REF!)&";"&'Caregiver Tab (FILL THIS OUT)'!#REF!&IF('Caregiver Tab (FILL THIS OUT)'!#REF!="","","#"&'Caregiver Tab (FILL THIS OUT)'!#REF!)&";" -> 
B67: =IF('Caregiver Tab (FILL THIS OUT)'!B70="","",'Caregiver Tab (FILL THIS OUT)'!B70) ->  | C67: =IF('Caregiver Tab (FILL THIS OUT)'!C70="","",'Caregiver Tab (FILL THIS OUT)'!C70) ->  | D67: 3 | E67: 1 | F67: =IF('Caregiver Tab (FILL THIS OUT)'!E70="","",'Caregiver Tab (FILL THIS OUT)'!E70) ->  | G67: =IF('Caregiver Tab (FILL THIS OUT)'!F70="","",'Caregiver Tab (FILL THIS OUT)'!F70) -> TRUE | H67: =IF('Caregiver Tab (FILL THIS OUT)'!G70="","",'Caregiver Tab (FILL THIS OUT)'!G70) ->  | I67: =IF('Caregiver Tab (FILL THIS OUT)'!H70="","",'Caregiver Tab (FILL THIS OUT)'!H70) ->  | J67: =IF('Caregiver Tab (FILL THIS OUT)'!I70="","",'Caregiver Tab (FILL THIS OUT)'!I70) ->  | K67: =IF('Caregiver Tab (FILL THIS OUT)'!J70="","",'Caregiver Tab (FILL THIS OUT)'!J70) ->  | L67: =IF('Caregiver Tab (FILL THIS OUT)'!K70="","",'Caregiver Tab (FILL THIS OUT)'!K70) ->  | M67: =IF('Caregiver Tab (FILL THIS OUT)'!M70="","",'Caregiver Tab (FILL THIS OUT)'!M70) ->  | N67: =IF('Caregiver Tab (FILL THIS OUT)'!M70="","",'Caregiver Tab (FILL THIS OUT)'!M70) ->  | O67: =IF('Caregiver Tab (FILL THIS OUT)'!N70="","",'Caregiver Tab (FILL THIS OUT)'!N70) ->  | P67: =IF('Caregiver Tab (FILL THIS OUT)'!O70="","",'Caregiver Tab (FILL THIS OUT)'!O70) ->  | Q67: =IF('Caregiver Tab (FILL THIS OUT)'!P70="","",'Caregiver Tab (FILL THIS OUT)'!P70) ->  | R67: =IF('Caregiver Tab (FILL THIS OUT)'!Q70="","",'Caregiver Tab (FILL THIS OUT)'!Q70) ->  | S67: =IF('Caregiver Tab (FILL THIS OUT)'!R70="","",'Caregiver Tab (FILL THIS OUT)'!R70) ->  | T67: =IF('Caregiver Tab (FILL THIS OUT)'!S70="","",'Caregiver Tab (FILL THIS OUT)'!S70) ->  | U67: =IF('Caregiver Tab (FILL THIS OUT)'!T70="","",'Caregiver Tab (FILL THIS OUT)'!T70) ->  | V67: =IF('Caregiver Tab (FILL THIS OUT)'!U70="","",'Caregiver Tab (FILL THIS OUT)'!U70) -> caregiver | W67: =IF('Caregiver Tab (FILL THIS OUT)'!V70="","",'Caregiver Tab (FILL THIS OUT)'!V70) ->  | X67: =IF('Caregiver Tab (FILL THIS OUT)'!W70="","",'Caregiver Tab (FILL THIS OUT)'!W70) ->  | Y67: =IF('Caregiver Tab (FILL THIS OUT)'!X70="","",'Caregiver Tab (FILL THIS OUT)'!X70) ->  | Z67: ='Caregiver Tab (FILL THIS OUT)'!#REF!&IF('Caregiver Tab (FILL THIS OUT)'!#REF!="","","#"&'Caregiver Tab (FILL THIS OUT)'!#REF!)&";"&'Caregiver Tab (FILL THIS OUT)'!#REF!&IF('Caregiver Tab (FILL THIS OUT)'!#REF!="","","#"&'Caregiver Tab (FILL THIS OUT)'!#REF!)&";"&'Caregiver Tab (FILL THIS OUT)'!#REF!&IF('Caregiver Tab (FILL THIS OUT)'!#REF!="","","#"&'Caregiver Tab (FILL THIS OUT)'!#REF!)&";" -> 
B68: =IF('Caregiver Tab (FILL THIS OUT)'!B71="","",'Caregiver Tab (FILL THIS OUT)'!B71) ->  | C68: =IF('Caregiver Tab (FILL THIS OUT)'!C71="","",'Caregiver Tab (FILL THIS OUT)'!C71) ->  | D68: 3 | E68: 1 | F68: =IF('Caregiver Tab (FILL THIS OUT)'!E71="","",'Caregiver Tab (FILL THIS OUT)'!E71) ->  | G68: =IF('Caregiver Tab (FILL THIS OUT)'!F71="","",'Caregiver Tab (FILL THIS OUT)'!F71) -> TRUE | H68: =IF('Caregiver Tab (FILL THIS OUT)'!G71="","",'Caregiver Tab (FILL THIS OUT)'!G71) ->  | I68: =IF('Caregiver Tab (FILL THIS OUT)'!H71="","",'Caregiver Tab (FILL THIS OUT)'!H71) ->  | J68: =IF('Caregiver Tab (FILL THIS OUT)'!I71="","",'Caregiver Tab (FILL THIS OUT)'!I71) ->  | K68: =IF('Caregiver Tab (FILL THIS OUT)'!J71="","",'Caregiver Tab (FILL THIS OUT)'!J71) ->  | L68: =IF('Caregiver Tab (FILL THIS OUT)'!K71="","",'Caregiver Tab (FILL THIS OUT)'!K71) ->  | M68: =IF('Caregiver Tab (FILL THIS OUT)'!M71="","",'Caregiver Tab (FILL THIS OUT)'!M71) ->  | N68: =IF('Caregiver Tab (FILL THIS OUT)'!M71="","",'Caregiver Tab (FILL THIS OUT)'!M71) ->  | O68: =IF('Caregiver Tab (FILL THIS OUT)'!N71="","",'Caregiver Tab (FILL THIS OUT)'!N71) ->  | P68: =IF('Caregiver Tab (FILL THIS OUT)'!O71="","",'Caregiver Tab (FILL THIS OUT)'!O71) ->  | Q68: =IF('Caregiver Tab (FILL THIS OUT)'!P71="","",'Caregiver Tab (FILL THIS OUT)'!P71) ->  | R68: =IF('Caregiver Tab (FILL THIS OUT)'!Q71="","",'Caregiver Tab (FILL THIS OUT)'!Q71) ->  | S68: =IF('Caregiver Tab (FILL THIS OUT)'!R71="","",'Caregiver Tab (FILL THIS OUT)'!R71) ->  | T68: =IF('Caregiver Tab (FILL THIS OUT)'!S71="","",'Caregiver Tab (FILL THIS OUT)'!S71) ->  | U68: =IF('Caregiver Tab (FILL THIS OUT)'!T71="","",'Caregiver Tab (FILL THIS OUT)'!T71) ->  | V68: =IF('Caregiver Tab (FILL THIS OUT)'!U71="","",'Caregiver Tab (FILL THIS OUT)'!U71) -> caregiver | W68: =IF('Caregiver Tab (FILL THIS OUT)'!V71="","",'Caregiver Tab (FILL THIS OUT)'!V71) ->  | X68: =IF('Caregiver Tab (FILL THIS OUT)'!W71="","",'Caregiver Tab (FILL THIS OUT)'!W71) ->  | Y68: =IF('Caregiver Tab (FILL THIS OUT)'!X71="","",'Caregiver Tab (FILL THIS OUT)'!X71) ->  | Z68: ='Caregiver Tab (FILL THIS OUT)'!#REF!&IF('Caregiver Tab (FILL THIS OUT)'!#REF!="","","#"&'Caregiver Tab (FILL THIS OUT)'!#REF!)&";"&'Caregiver Tab (FILL THIS OUT)'!#REF!&IF('Caregiver Tab (FILL THIS OUT)'!#REF!="","","#"&'Caregiver Tab (FILL THIS OUT)'!#REF!)&";"&'Caregiver Tab (FILL THIS OUT)'!#REF!&IF('Caregiver Tab (FILL THIS OUT)'!#REF!="","","#"&'Caregiver Tab (FILL THIS OUT)'!#REF!)&";" -> 
B69: =IF('Caregiver Tab (FILL THIS OUT)'!B72="","",'Caregiver Tab (FILL THIS OUT)'!B72) ->  | C69: =IF('Caregiver Tab (FILL THIS OUT)'!C72="","",'Caregiver Tab (FILL THIS OUT)'!C72) ->  | D69: 3 | E69: 1 | F69: =IF('Caregiver Tab (FILL THIS OUT)'!E72="","",'Caregiver Tab (FILL THIS OUT)'!E72) ->  | G69: =IF('Caregiver Tab (FILL THIS OUT)'!F72="","",'Caregiver Tab (FILL THIS OUT)'!F72) -> TRUE | H69: =IF('Caregiver Tab (FILL THIS OUT)'!G72="","",'Caregiver Tab (FILL THIS OUT)'!G72) ->  | I69: =IF('Caregiver Tab (FILL THIS OUT)'!H72="","",'Caregiver Tab (FILL THIS OUT)'!H72) ->  | J69: =IF('Caregiver Tab (FILL THIS OUT)'!I72="","",'Caregiver Tab (FILL THIS OUT)'!I72) ->  | K69: =IF('Caregiver Tab (FILL THIS OUT)'!J72="","",'Caregiver Tab (FILL THIS OUT)'!J72) ->  | L69: =IF('Caregiver Tab (FILL THIS OUT)'!K72="","",'Caregiver Tab (FILL THIS OUT)'!K72) ->  | M69: =IF('Caregiver Tab (FILL THIS OUT)'!M72="","",'Caregiver Tab (FILL THIS OUT)'!M72) ->  | N69: =IF('Caregiver Tab (FILL THIS OUT)'!M72="","",'Caregiver Tab (FILL THIS OUT)'!M72) ->  | O69: =IF('Caregiver Tab (FILL THIS OUT)'!N72="","",'Caregiver Tab (FILL THIS OUT)'!N72) ->  | P69: =IF('Caregiver Tab (FILL THIS OUT)'!O72="","",'Caregiver Tab (FILL THIS OUT)'!O72) ->  | Q69: =IF('Caregiver Tab (FILL THIS OUT)'!P72="","",'Caregiver Tab (FILL THIS OUT)'!P72) ->  | R69: =IF('Caregiver Tab (FILL THIS OUT)'!Q72="","",'Caregiver Tab (FILL THIS OUT)'!Q72) ->  | S69: =IF('Caregiver Tab (FILL THIS OUT)'!R72="","",'Caregiver Tab (FILL THIS OUT)'!R72) ->  | T69: =IF('Caregiver Tab (FILL THIS OUT)'!S72="","",'Caregiver Tab (FILL THIS OUT)'!S72) ->  | U69: =IF('Caregiver Tab (FILL THIS OUT)'!T72="","",'Caregiver Tab (FILL THIS OUT)'!T72) ->  | V69: =IF('Caregiver Tab (FILL THIS OUT)'!U72="","",'Caregiver Tab (FILL THIS OUT)'!U72) -> caregiver | W69: =IF('Caregiver Tab (FILL THIS OUT)'!V72="","",'Caregiver Tab (FILL THIS OUT)'!V72) ->  | X69: =IF('Caregiver Tab (FILL THIS OUT)'!W72="","",'Caregiver Tab (FILL THIS OUT)'!W72) ->  | Y69: =IF('Caregiver Tab (FILL THIS OUT)'!X72="","",'Caregiver Tab (FILL THIS OUT)'!X72) ->  | Z69: ='Caregiver Tab (FILL THIS OUT)'!#REF!&IF('Caregiver Tab (FILL THIS OUT)'!#REF!="","","#"&'Caregiver Tab (FILL THIS OUT)'!#REF!)&";"&'Caregiver Tab (FILL THIS OUT)'!#REF!&IF('Caregiver Tab (FILL THIS OUT)'!#REF!="","","#"&'Caregiver Tab (FILL THIS OUT)'!#REF!)&";"&'Caregiver Tab (FILL THIS OUT)'!#REF!&IF('Caregiver Tab (FILL THIS OUT)'!#REF!="","","#"&'Caregiver Tab (FILL THIS OUT)'!#REF!)&";" -> 
B70: =IF('Caregiver Tab (FILL THIS OUT)'!B73="","",'Caregiver Tab (FILL THIS OUT)'!B73) ->  | C70: =IF('Caregiver Tab (FILL THIS OUT)'!C73="","",'Caregiver Tab (FILL THIS OUT)'!C73) ->  | D70: 3 | E70: 1 | F70: =IF('Caregiver Tab (FILL THIS OUT)'!E73="","",'Caregiver Tab (FILL THIS OUT)'!E73) ->  | G70: =IF('Caregiver Tab (FILL THIS OUT)'!F73="","",'Caregiver Tab (FILL THIS OUT)'!F73) -> TRUE | H70: =IF('Caregiver Tab (FILL THIS OUT)'!G73="","",'Caregiver Tab (FILL THIS OUT)'!G73) ->  | I70: =IF('Caregiver Tab (FILL THIS OUT)'!H73="","",'Caregiver Tab (FILL THIS OUT)'!H73) ->  | J70: =IF('Caregiver Tab (FILL THIS OUT)'!I73="","",'Caregiver Tab (FILL THIS OUT)'!I73) ->  | K70: =IF('Caregiver Tab (FILL THIS OUT)'!J73="","",'Caregiver Tab (FILL THIS OUT)'!J73) ->  | L70: =IF('Caregiver Tab (FILL THIS OUT)'!K73="","",'Caregiver Tab (FILL THIS OUT)'!K73) ->  | M70: =IF('Caregiver Tab (FILL THIS OUT)'!M73="","",'Caregiver Tab (FILL THIS OUT)'!M73) ->  | N70: =IF('Caregiver Tab (FILL THIS OUT)'!M73="","",'Caregiver Tab (FILL THIS OUT)'!M73) ->  | O70: =IF('Caregiver Tab (FILL THIS OUT)'!N73="","",'Caregiver Tab (FILL THIS OUT)'!N73) ->  | P70: =IF('Caregiver Tab (FILL THIS OUT)'!O73="","",'Caregiver Tab (FILL THIS OUT)'!O73) ->  | Q70: =IF('Caregiver Tab (FILL THIS OUT)'!P73="","",'Caregiver Tab (FILL THIS OUT)'!P73) ->  | R70: =IF('Caregiver Tab (FILL THIS OUT)'!Q73="","",'Caregiver Tab (FILL THIS OUT)'!Q73) ->  | S70: =IF('Caregiver Tab (FILL THIS OUT)'!R73="","",'Caregiver Tab (FILL THIS OUT)'!R73) ->  | T70: =IF('Caregiver Tab (FILL THIS OUT)'!S73="","",'Caregiver Tab (FILL THIS OUT)'!S73) ->  | U70: =IF('Caregiver Tab (FILL THIS OUT)'!T73="","",'Caregiver Tab (FILL THIS OUT)'!T73) ->  | V70: =IF('Caregiver Tab (FILL THIS OUT)'!U73="","",'Caregiver Tab (FILL THIS OUT)'!U73) -> caregiver | W70: =IF('Caregiver Tab (FILL THIS OUT)'!V73="","",'Caregiver Tab (FILL THIS OUT)'!V73) ->  | X70: =IF('Caregiver Tab (FILL THIS OUT)'!W73="","",'Caregiver Tab (FILL THIS OUT)'!W73) ->  | Y70: =IF('Caregiver Tab (FILL THIS OUT)'!X73="","",'Caregiver Tab (FILL THIS OUT)'!X73) ->  | Z70: ='Caregiver Tab (FILL THIS OUT)'!#REF!&IF('Caregiver Tab (FILL THIS OUT)'!#REF!="","","#"&'Caregiver Tab (FILL THIS OUT)'!#REF!)&";"&'Caregiver Tab (FILL THIS OUT)'!#REF!&IF('Caregiver Tab (FILL THIS OUT)'!#REF!="","","#"&'Caregiver Tab (FILL THIS OUT)'!#REF!)&";"&'Caregiver Tab (FILL THIS OUT)'!#REF!&IF('Caregiver Tab (FILL THIS OUT)'!#REF!="","","#"&'Caregiver Tab (FILL THIS OUT)'!#REF!)&";" -> 
B71: =IF('Caregiver Tab (FILL THIS OUT)'!B74="","",'Caregiver Tab (FILL THIS OUT)'!B74) ->  | C71: =IF('Caregiver Tab (FILL THIS OUT)'!C74="","",'Caregiver Tab (FILL THIS OUT)'!C74) ->  | D71: 3 | E71: 1 | F71: =IF('Caregiver Tab (FILL THIS OUT)'!E74="","",'Caregiver Tab (FILL THIS OUT)'!E74) ->  | G71: =IF('Caregiver Tab (FILL THIS OUT)'!F74="","",'Caregiver Tab (FILL THIS OUT)'!F74) -> TRUE | H71: =IF('Caregiver Tab (FILL THIS OUT)'!G74="","",'Caregiver Tab (FILL THIS OUT)'!G74) ->  | I71: =IF('Caregiver Tab (FILL THIS OUT)'!H74="","",'Caregiver Tab (FILL THIS OUT)'!H74) ->  | J71: =IF('Caregiver Tab (FILL THIS OUT)'!I74="","",'Caregiver Tab (FILL THIS OUT)'!I74) ->  | K71: =IF('Caregiver Tab (FILL THIS OUT)'!J74="","",'Caregiver Tab (FILL THIS OUT)'!J74) ->  | L71: =IF('Caregiver Tab (FILL THIS OUT)'!K74="","",'Caregiver Tab (FILL THIS OUT)'!K74) ->  | M71: =IF('Caregiver Tab (FILL THIS OUT)'!M74="","",'Caregiver Tab (FILL THIS OUT)'!M74) ->  | N71: =IF('Caregiver Tab (FILL THIS OUT)'!M74="","",'Caregiver Tab (FILL THIS OUT)'!M74) ->  | O71: =IF('Caregiver Tab (FILL THIS OUT)'!N74="","",'Caregiver Tab (FILL THIS OUT)'!N74) ->  | P71: =IF('Caregiver Tab (FILL THIS OUT)'!O74="","",'Caregiver Tab (FILL THIS OUT)'!O74) ->  | Q71: =IF('Caregiver Tab (FILL THIS OUT)'!P74="","",'Caregiver Tab (FILL THIS OUT)'!P74) ->  | R71: =IF('Caregiver Tab (FILL THIS OUT)'!Q74="","",'Caregiver Tab (FILL THIS OUT)'!Q74) ->  | S71: =IF('Caregiver Tab (FILL THIS OUT)'!R74="","",'Caregiver Tab (FILL THIS OUT)'!R74) ->  | T71: =IF('Caregiver Tab (FILL THIS OUT)'!S74="","",'Caregiver Tab (FILL THIS OUT)'!S74) ->  | U71: =IF('Caregiver Tab (FILL THIS OUT)'!T74="","",'Caregiver Tab (FILL THIS OUT)'!T74) ->  | V71: =IF('Caregiver Tab (FILL THIS OUT)'!U74="","",'Caregiver Tab (FILL THIS OUT)'!U74) -> caregiver | W71: =IF('Caregiver Tab (FILL THIS OUT)'!V74="","",'Caregiver Tab (FILL THIS OUT)'!V74) ->  | X71: =IF('Caregiver Tab (FILL THIS OUT)'!W74="","",'Caregiver Tab (FILL THIS OUT)'!W74) ->  | Y71: =IF('Caregiver Tab (FILL THIS OUT)'!X74="","",'Caregiver Tab (FILL THIS OUT)'!X74) ->  | Z71: ='Caregiver Tab (FILL THIS OUT)'!#REF!&IF('Caregiver Tab (FILL THIS OUT)'!#REF!="","","#"&'Caregiver Tab (FILL THIS OUT)'!#REF!)&";"&'Caregiver Tab (FILL THIS OUT)'!#REF!&IF('Caregiver Tab (FILL THIS OUT)'!#REF!="","","#"&'Caregiver Tab (FILL THIS OUT)'!#REF!)&";"&'Caregiver Tab (FILL THIS OUT)'!#REF!&IF('Caregiver Tab (FILL THIS OUT)'!#REF!="","","#"&'Caregiver Tab (FILL THIS OUT)'!#REF!)&";" -> 
B72: =IF('Caregiver Tab (FILL THIS OUT)'!B75="","",'Caregiver Tab (FILL THIS OUT)'!B75) ->  | C72: =IF('Caregiver Tab (FILL THIS OUT)'!C75="","",'Caregiver Tab (FILL THIS OUT)'!C75) ->  | D72: 3 | E72: 1 | F72: =IF('Caregiver Tab (FILL THIS OUT)'!E75="","",'Caregiver Tab (FILL THIS OUT)'!E75) ->  | G72: =IF('Caregiver Tab (FILL THIS OUT)'!F75="","",'Caregiver Tab (FILL THIS OUT)'!F75) -> TRUE | H72: =IF('Caregiver Tab (FILL THIS OUT)'!G75="","",'Caregiver Tab (FILL THIS OUT)'!G75) ->  | I72: =IF('Caregiver Tab (FILL THIS OUT)'!H75="","",'Caregiver Tab (FILL THIS OUT)'!H75) ->  | J72: =IF('Caregiver Tab (FILL THIS OUT)'!I75="","",'Caregiver Tab (FILL THIS OUT)'!I75) ->  | K72: =IF('Caregiver Tab (FILL THIS OUT)'!J75="","",'Caregiver Tab (FILL THIS OUT)'!J75) ->  | L72: =IF('Caregiver Tab (FILL THIS OUT)'!K75="","",'Caregiver Tab (FILL THIS OUT)'!K75) ->  | M72: =IF('Caregiver Tab (FILL THIS OUT)'!M75="","",'Caregiver Tab (FILL THIS OUT)'!M75) ->  | N72: =IF('Caregiver Tab (FILL THIS OUT)'!M75="","",'Caregiver Tab (FILL THIS OUT)'!M75) ->  | O72: =IF('Caregiver Tab (FILL THIS OUT)'!N75="","",'Caregiver Tab (FILL THIS OUT)'!N75) ->  | P72: =IF('Caregiver Tab (FILL THIS OUT)'!O75="","",'Caregiver Tab (FILL THIS OUT)'!O75) ->  | Q72: =IF('Caregiver Tab (FILL THIS OUT)'!P75="","",'Caregiver Tab (FILL THIS OUT)'!P75) ->  | R72: =IF('Caregiver Tab (FILL THIS OUT)'!Q75="","",'Caregiver Tab (FILL THIS OUT)'!Q75) ->  | S72: =IF('Caregiver Tab (FILL THIS OUT)'!R75="","",'Caregiver Tab (FILL THIS OUT)'!R75) ->  | T72: =IF('Caregiver Tab (FILL THIS OUT)'!S75="","",'Caregiver Tab (FILL THIS OUT)'!S75) ->  | U72: =IF('Caregiver Tab (FILL THIS OUT)'!T75="","",'Caregiver Tab (FILL THIS OUT)'!T75) ->  | V72: =IF('Caregiver Tab (FILL THIS OUT)'!U75="","",'Caregiver Tab (FILL THIS OUT)'!U75) -> caregiver | W72: =IF('Caregiver Tab (FILL THIS OUT)'!V75="","",'Caregiver Tab (FILL THIS OUT)'!V75) ->  | X72: =IF('Caregiver Tab (FILL THIS OUT)'!W75="","",'Caregiver Tab (FILL THIS OUT)'!W75) ->  | Y72: =IF('Caregiver Tab (FILL THIS OUT)'!X75="","",'Caregiver Tab (FILL THIS OUT)'!X75) ->  | Z72: ='Caregiver Tab (FILL THIS OUT)'!#REF!&IF('Caregiver Tab (FILL THIS OUT)'!#REF!="","","#"&'Caregiver Tab (FILL THIS OUT)'!#REF!)&";"&'Caregiver Tab (FILL THIS OUT)'!#REF!&IF('Caregiver Tab (FILL THIS OUT)'!#REF!="","","#"&'Caregiver Tab (FILL THIS OUT)'!#REF!)&";"&'Caregiver Tab (FILL THIS OUT)'!#REF!&IF('Caregiver Tab (FILL THIS OUT)'!#REF!="","","#"&'Caregiver Tab (FILL THIS OUT)'!#REF!)&";" -> 
B73: =IF('Caregiver Tab (FILL THIS OUT)'!B76="","",'Caregiver Tab (FILL THIS OUT)'!B76) ->  | C73: =IF('Caregiver Tab (FILL THIS OUT)'!C76="","",'Caregiver Tab (FILL THIS OUT)'!C76) ->  | D73: 3 | E73: 1 | F73: =IF('Caregiver Tab (FILL THIS OUT)'!E76="","",'Caregiver Tab (FILL THIS OUT)'!E76) ->  | G73: =IF('Caregiver Tab (FILL THIS OUT)'!F76="","",'Caregiver Tab (FILL THIS OUT)'!F76) -> TRUE | H73: =IF('Caregiver Tab (FILL THIS OUT)'!G76="","",'Caregiver Tab (FILL THIS OUT)'!G76) ->  | I73: =IF('Caregiver Tab (FILL THIS OUT)'!H76="","",'Caregiver Tab (FILL THIS OUT)'!H76) ->  | J73: =IF('Caregiver Tab (FILL THIS OUT)'!I76="","",'Caregiver Tab (FILL THIS OUT)'!I76) ->  | K73: =IF('Caregiver Tab (FILL THIS OUT)'!J76="","",'Caregiver Tab (FILL THIS OUT)'!J76) ->  | L73: =IF('Caregiver Tab (FILL THIS OUT)'!K76="","",'Caregiver Tab (FILL THIS OUT)'!K76) ->  | M73: =IF('Caregiver Tab (FILL THIS OUT)'!M76="","",'Caregiver Tab (FILL THIS OUT)'!M76) ->  | N73: =IF('Caregiver Tab (FILL THIS OUT)'!M76="","",'Caregiver Tab (FILL THIS OUT)'!M76) ->  | O73: =IF('Caregiver Tab (FILL THIS OUT)'!N76="","",'Caregiver Tab (FILL THIS OUT)'!N76) ->  | P73: =IF('Caregiver Tab (FILL THIS OUT)'!O76="","",'Caregiver Tab (FILL THIS OUT)'!O76) ->  | Q73: =IF('Caregiver Tab (FILL THIS OUT)'!P76="","",'Caregiver Tab (FILL THIS OUT)'!P76) ->  | R73: =IF('Caregiver Tab (FILL THIS OUT)'!Q76="","",'Caregiver Tab (FILL THIS OUT)'!Q76) ->  | S73: =IF('Caregiver Tab (FILL THIS OUT)'!R76="","",'Caregiver Tab (FILL THIS OUT)'!R76) ->  | T73: =IF('Caregiver Tab (FILL THIS OUT)'!S76="","",'Caregiver Tab (FILL THIS OUT)'!S76) ->  | U73: =IF('Caregiver Tab (FILL THIS OUT)'!T76="","",'Caregiver Tab (FILL THIS OUT)'!T76) ->  | V73: =IF('Caregiver Tab (FILL THIS OUT)'!U76="","",'Caregiver Tab (FILL THIS OUT)'!U76) -> caregiver | W73: =IF('Caregiver Tab (FILL THIS OUT)'!V76="","",'Caregiver Tab (FILL THIS OUT)'!V76) ->  | X73: =IF('Caregiver Tab (FILL THIS OUT)'!W76="","",'Caregiver Tab (FILL THIS OUT)'!W76) ->  | Y73: =IF('Caregiver Tab (FILL THIS OUT)'!X76="","",'Caregiver Tab (FILL THIS OUT)'!X76) ->  | Z73: ='Caregiver Tab (FILL THIS OUT)'!#REF!&IF('Caregiver Tab (FILL THIS OUT)'!#REF!="","","#"&'Caregiver Tab (FILL THIS OUT)'!#REF!)&";"&'Caregiver Tab (FILL THIS OUT)'!#REF!&IF('Caregiver Tab (FILL THIS OUT)'!#REF!="","","#"&'Caregiver Tab (FILL THIS OUT)'!#REF!)&";"&'Caregiver Tab (FILL THIS OUT)'!#REF!&IF('Caregiver Tab (FILL THIS OUT)'!#REF!="","","#"&'Caregiver Tab (FILL THIS OUT)'!#REF!)&";" -> 
B74: =IF('Caregiver Tab (FILL THIS OUT)'!B77="","",'Caregiver Tab (FILL THIS OUT)'!B77) ->  | C74: =IF('Caregiver Tab (FILL THIS OUT)'!C77="","",'Caregiver Tab (FILL THIS OUT)'!C77) ->  | D74: 3 | E74: 1 | F74: =IF('Caregiver Tab (FILL THIS OUT)'!E77="","",'Caregiver Tab (FILL THIS OUT)'!E77) ->  | G74: =IF('Caregiver Tab (FILL THIS OUT)'!F77="","",'Caregiver Tab (FILL THIS OUT)'!F77) -> TRUE | H74: =IF('Caregiver Tab (FILL THIS OUT)'!G77="","",'Caregiver Tab (FILL THIS OUT)'!G77) ->  | I74: =IF('Caregiver Tab (FILL THIS OUT)'!H77="","",'Caregiver Tab (FILL THIS OUT)'!H77) ->  | J74: =IF('Caregiver Tab (FILL THIS OUT)'!I77="","",'Caregiver Tab (FILL THIS OUT)'!I77) ->  | K74: =IF('Caregiver Tab (FILL THIS OUT)'!J77="","",'Caregiver Tab (FILL THIS OUT)'!J77) ->  | L74: =IF('Caregiver Tab (FILL THIS OUT)'!K77="","",'Caregiver Tab (FILL THIS OUT)'!K77) ->  | M74: =IF('Caregiver Tab (FILL THIS OUT)'!M77="","",'Caregiver Tab (FILL THIS OUT)'!M77) ->  | N74: =IF('Caregiver Tab (FILL THIS OUT)'!M77="","",'Caregiver Tab (FILL THIS OUT)'!M77) ->  | O74: =IF('Caregiver Tab (FILL THIS OUT)'!N77="","",'Caregiver Tab (FILL THIS OUT)'!N77) ->  | P74: =IF('Caregiver Tab (FILL THIS OUT)'!O77="","",'Caregiver Tab (FILL THIS OUT)'!O77) ->  | Q74: =IF('Caregiver Tab (FILL THIS OUT)'!P77="","",'Caregiver Tab (FILL THIS OUT)'!P77) ->  | R74: =IF('Caregiver Tab (FILL THIS OUT)'!Q77="","",'Caregiver Tab (FILL THIS OUT)'!Q77) ->  | S74: =IF('Caregiver Tab (FILL THIS OUT)'!R77="","",'Caregiver Tab (FILL THIS OUT)'!R77) ->  | T74: =IF('Caregiver Tab (FILL THIS OUT)'!S77="","",'Caregiver Tab (FILL THIS OUT)'!S77) ->  | U74: =IF('Caregiver Tab (FILL THIS OUT)'!T77="","",'Caregiver Tab (FILL THIS OUT)'!T77) ->  | V74: =IF('Caregiver Tab (FILL THIS OUT)'!U77="","",'Caregiver Tab (FILL THIS OUT)'!U77) -> caregiver | W74: =IF('Caregiver Tab (FILL THIS OUT)'!V77="","",'Caregiver Tab (FILL THIS OUT)'!V77) ->  | X74: =IF('Caregiver Tab (FILL THIS OUT)'!W77="","",'Caregiver Tab (FILL THIS OUT)'!W77) ->  | Y74: =IF('Caregiver Tab (FILL THIS OUT)'!X77="","",'Caregiver Tab (FILL THIS OUT)'!X77) ->  | Z74: ='Caregiver Tab (FILL THIS OUT)'!#REF!&IF('Caregiver Tab (FILL THIS OUT)'!#REF!="","","#"&'Caregiver Tab (FILL THIS OUT)'!#REF!)&";"&'Caregiver Tab (FILL THIS OUT)'!#REF!&IF('Caregiver Tab (FILL THIS OUT)'!#REF!="","","#"&'Caregiver Tab (FILL THIS OUT)'!#REF!)&";"&'Caregiver Tab (FILL THIS OUT)'!#REF!&IF('Caregiver Tab (FILL THIS OUT)'!#REF!="","","#"&'Caregiver Tab (FILL THIS OUT)'!#REF!)&";" -> 
B75: =IF('Caregiver Tab (FILL THIS OUT)'!B78="","",'Caregiver Tab (FILL THIS OUT)'!B78) ->  | C75: =IF('Caregiver Tab (FILL THIS OUT)'!C78="","",'Caregiver Tab (FILL THIS OUT)'!C78) ->  | D75: 3 | E75: 1 | F75: =IF('Caregiver Tab (FILL THIS OUT)'!E78="","",'Caregiver Tab (FILL THIS OUT)'!E78) ->  | G75: =IF('Caregiver Tab (FILL THIS OUT)'!F78="","",'Caregiver Tab (FILL THIS OUT)'!F78) -> TRUE | H75: =IF('Caregiver Tab (FILL THIS OUT)'!G78="","",'Caregiver Tab (FILL THIS OUT)'!G78) ->  | I75: =IF('Caregiver Tab (FILL THIS OUT)'!H78="","",'Caregiver Tab (FILL THIS OUT)'!H78) ->  | J75: =IF('Caregiver Tab (FILL THIS OUT)'!I78="","",'Caregiver Tab (FILL THIS OUT)'!I78) ->  | K75: =IF('Caregiver Tab (FILL THIS OUT)'!J78="","",'Caregiver Tab (FILL THIS OUT)'!J78) ->  | L75: =IF('Caregiver Tab (FILL THIS OUT)'!K78="","",'Caregiver Tab (FILL THIS OUT)'!K78) ->  | M75: =IF('Caregiver Tab (FILL THIS OUT)'!M78="","",'Caregiver Tab (FILL THIS OUT)'!M78) ->  | N75: =IF('Caregiver Tab (FILL THIS OUT)'!M78="","",'Caregiver Tab (FILL THIS OUT)'!M78) ->  | O75: =IF('Caregiver Tab (FILL THIS OUT)'!N78="","",'Caregiver Tab (FILL THIS OUT)'!N78) ->  | P75: =IF('Caregiver Tab (FILL THIS OUT)'!O78="","",'Caregiver Tab (FILL THIS OUT)'!O78) ->  | Q75: =IF('Caregiver Tab (FILL THIS OUT)'!P78="","",'Caregiver Tab (FILL THIS OUT)'!P78) ->  | R75: =IF('Caregiver Tab (FILL THIS OUT)'!Q78="","",'Caregiver Tab (FILL THIS OUT)'!Q78) ->  | S75: =IF('Caregiver Tab (FILL THIS OUT)'!R78="","",'Caregiver Tab (FILL THIS OUT)'!R78) ->  | T75: =IF('Caregiver Tab (FILL THIS OUT)'!S78="","",'Caregiver Tab (FILL THIS OUT)'!S78) ->  | U75: =IF('Caregiver Tab (FILL THIS OUT)'!T78="","",'Caregiver Tab (FILL THIS OUT)'!T78) ->  | V75: =IF('Caregiver Tab (FILL THIS OUT)'!U78="","",'Caregiver Tab (FILL THIS OUT)'!U78) -> caregiver | W75: =IF('Caregiver Tab (FILL THIS OUT)'!V78="","",'Caregiver Tab (FILL THIS OUT)'!V78) ->  | X75: =IF('Caregiver Tab (FILL THIS OUT)'!W78="","",'Caregiver Tab (FILL THIS OUT)'!W78) ->  | Y75: =IF('Caregiver Tab (FILL THIS OUT)'!X78="","",'Caregiver Tab (FILL THIS OUT)'!X78) ->  | Z75: ='Caregiver Tab (FILL THIS OUT)'!#REF!&IF('Caregiver Tab (FILL THIS OUT)'!#REF!="","","#"&'Caregiver Tab (FILL THIS OUT)'!#REF!)&";"&'Caregiver Tab (FILL THIS OUT)'!#REF!&IF('Caregiver Tab (FILL THIS OUT)'!#REF!="","","#"&'Caregiver Tab (FILL THIS OUT)'!#REF!)&";"&'Caregiver Tab (FILL THIS OUT)'!#REF!&IF('Caregiver Tab (FILL THIS OUT)'!#REF!="","","#"&'Caregiver Tab (FILL THIS OUT)'!#REF!)&";" -> 
B76: =IF('Caregiver Tab (FILL THIS OUT)'!B79="","",'Caregiver Tab (FILL THIS OUT)'!B79) ->  | C76: =IF('Caregiver Tab (FILL THIS OUT)'!C79="","",'Caregiver Tab (FILL THIS OUT)'!C79) ->  | D76: 3 | E76: 1 | F76: =IF('Caregiver Tab (FILL THIS OUT)'!E79="","",'Caregiver Tab (FILL THIS OUT)'!E79) ->  | G76: =IF('Caregiver Tab (FILL THIS OUT)'!F79="","",'Caregiver Tab (FILL THIS OUT)'!F79) -> TRUE | H76: =IF('Caregiver Tab (FILL THIS OUT)'!G79="","",'Caregiver Tab (FILL THIS OUT)'!G79) ->  | I76: =IF('Caregiver Tab (FILL THIS OUT)'!H79="","",'Caregiver Tab (FILL THIS OUT)'!H79) ->  | J76: =IF('Caregiver Tab (FILL THIS OUT)'!I79="","",'Caregiver Tab (FILL THIS OUT)'!I79) ->  | K76: =IF('Caregiver Tab (FILL THIS OUT)'!J79="","",'Caregiver Tab (FILL THIS OUT)'!J79) ->  | L76: =IF('Caregiver Tab (FILL THIS OUT)'!K79="","",'Caregiver Tab (FILL THIS OUT)'!K79) ->  | M76: =IF('Caregiver Tab (FILL THIS OUT)'!M79="","",'Caregiver Tab (FILL THIS OUT)'!M79) ->  | N76: =IF('Caregiver Tab (FILL THIS OUT)'!M79="","",'Caregiver Tab (FILL THIS OUT)'!M79) ->  | O76: =IF('Caregiver Tab (FILL THIS OUT)'!N79="","",'Caregiver Tab (FILL THIS OUT)'!N79) ->  | P76: =IF('Caregiver Tab (FILL THIS OUT)'!O79="","",'Caregiver Tab (FILL THIS OUT)'!O79) ->  | Q76: =IF('Caregiver Tab (FILL THIS OUT)'!P79="","",'Caregiver Tab (FILL THIS OUT)'!P79) ->  | R76: =IF('Caregiver Tab (FILL THIS OUT)'!Q79="","",'Caregiver Tab (FILL THIS OUT)'!Q79) ->  | S76: =IF('Caregiver Tab (FILL THIS OUT)'!R79="","",'Caregiver Tab (FILL THIS OUT)'!R79) ->  | T76: =IF('Caregiver Tab (FILL THIS OUT)'!S79="","",'Caregiver Tab (FILL THIS OUT)'!S79) ->  | U76: =IF('Caregiver Tab (FILL THIS OUT)'!T79="","",'Caregiver Tab (FILL THIS OUT)'!T79) ->  | V76: =IF('Caregiver Tab (FILL THIS OUT)'!U79="","",'Caregiver Tab (FILL THIS OUT)'!U79) -> caregiver | W76: =IF('Caregiver Tab (FILL THIS OUT)'!V79="","",'Caregiver Tab (FILL THIS OUT)'!V79) ->  | X76: =IF('Caregiver Tab (FILL THIS OUT)'!W79="","",'Caregiver Tab (FILL THIS OUT)'!W79) ->  | Y76: =IF('Caregiver Tab (FILL THIS OUT)'!X79="","",'Caregiver Tab (FILL THIS OUT)'!X79) ->  | Z76: ='Caregiver Tab (FILL THIS OUT)'!#REF!&IF('Caregiver Tab (FILL THIS OUT)'!#REF!="","","#"&'Caregiver Tab (FILL THIS OUT)'!#REF!)&";"&'Caregiver Tab (FILL THIS OUT)'!#REF!&IF('Caregiver Tab (FILL THIS OUT)'!#REF!="","","#"&'Caregiver Tab (FILL THIS OUT)'!#REF!)&";"&'Caregiver Tab (FILL THIS OUT)'!#REF!&IF('Caregiver Tab (FILL THIS OUT)'!#REF!="","","#"&'Caregiver Tab (FILL THIS OUT)'!#REF!)&";" -> 
B77: =IF('Caregiver Tab (FILL THIS OUT)'!B80="","",'Caregiver Tab (FILL THIS OUT)'!B80) ->  | C77: =IF('Caregiver Tab (FILL THIS OUT)'!C80="","",'Caregiver Tab (FILL THIS OUT)'!C80) ->  | D77: 3 | E77: 1 | F77: =IF('Caregiver Tab (FILL THIS OUT)'!E80="","",'Caregiver Tab (FILL THIS OUT)'!E80) ->  | G77: =IF('Caregiver Tab (FILL THIS OUT)'!F80="","",'Caregiver Tab (FILL THIS OUT)'!F80) -> TRUE | H77: =IF('Caregiver Tab (FILL THIS OUT)'!G80="","",'Caregiver Tab (FILL THIS OUT)'!G80) ->  | I77: =IF('Caregiver Tab (FILL THIS OUT)'!H80="","",'Caregiver Tab (FILL THIS OUT)'!H80) ->  | J77: =IF('Caregiver Tab (FILL THIS OUT)'!I80="","",'Caregiver Tab (FILL THIS OUT)'!I80) ->  | K77: =IF('Caregiver Tab (FILL THIS OUT)'!J80="","",'Caregiver Tab (FILL THIS OUT)'!J80) ->  | L77: =IF('Caregiver Tab (FILL THIS OUT)'!K80="","",'Caregiver Tab (FILL THIS OUT)'!K80) ->  | M77: =IF('Caregiver Tab (FILL THIS OUT)'!M80="","",'Caregiver Tab (FILL THIS OUT)'!M80) ->  | N77: =IF('Caregiver Tab (FILL THIS OUT)'!M80="","",'Caregiver Tab (FILL THIS OUT)'!M80) ->  | O77: =IF('Caregiver Tab (FILL THIS OUT)'!N80="","",'Caregiver Tab (FILL THIS OUT)'!N80) ->  | P77: =IF('Caregiver Tab (FILL THIS OUT)'!O80="","",'Caregiver Tab (FILL THIS OUT)'!O80) ->  | Q77: =IF('Caregiver Tab (FILL THIS OUT)'!P80="","",'Caregiver Tab (FILL THIS OUT)'!P80) ->  | R77: =IF('Caregiver Tab (FILL THIS OUT)'!Q80="","",'Caregiver Tab (FILL THIS OUT)'!Q80) ->  | S77: =IF('Caregiver Tab (FILL THIS OUT)'!R80="","",'Caregiver Tab (FILL THIS OUT)'!R80) ->  | T77: =IF('Caregiver Tab (FILL THIS OUT)'!S80="","",'Caregiver Tab (FILL THIS OUT)'!S80) ->  | U77: =IF('Caregiver Tab (FILL THIS OUT)'!T80="","",'Caregiver Tab (FILL THIS OUT)'!T80) ->  | V77: =IF('Caregiver Tab (FILL THIS OUT)'!U80="","",'Caregiver Tab (FILL THIS OUT)'!U80) -> caregiver | W77: =IF('Caregiver Tab (FILL THIS OUT)'!V80="","",'Caregiver Tab (FILL THIS OUT)'!V80) ->  | X77: =IF('Caregiver Tab (FILL THIS OUT)'!W80="","",'Caregiver Tab (FILL THIS OUT)'!W80) ->  | Y77: =IF('Caregiver Tab (FILL THIS OUT)'!X80="","",'Caregiver Tab (FILL THIS OUT)'!X80) ->  | Z77: ='Caregiver Tab (FILL THIS OUT)'!#REF!&IF('Caregiver Tab (FILL THIS OUT)'!#REF!="","","#"&'Caregiver Tab (FILL THIS OUT)'!#REF!)&";"&'Caregiver Tab (FILL THIS OUT)'!#REF!&IF('Caregiver Tab (FILL THIS OUT)'!#REF!="","","#"&'Caregiver Tab (FILL THIS OUT)'!#REF!)&";"&'Caregiver Tab (FILL THIS OUT)'!#REF!&IF('Caregiver Tab (FILL THIS OUT)'!#REF!="","","#"&'Caregiver Tab (FILL THIS OUT)'!#REF!)&";" -> 
B78: =IF('Caregiver Tab (FILL THIS OUT)'!B81="","",'Caregiver Tab (FILL THIS OUT)'!B81) ->  | C78: =IF('Caregiver Tab (FILL THIS OUT)'!C81="","",'Caregiver Tab (FILL THIS OUT)'!C81) ->  | D78: 3 | E78: 1 | F78: =IF('Caregiver Tab (FILL THIS OUT)'!E81="","",'Caregiver Tab (FILL THIS OUT)'!E81) ->  | G78: =IF('Caregiver Tab (FILL THIS OUT)'!F81="","",'Caregiver Tab (FILL THIS OUT)'!F81) -> TRUE | H78: =IF('Caregiver Tab (FILL THIS OUT)'!G81="","",'Caregiver Tab (FILL THIS OUT)'!G81) ->  | I78: =IF('Caregiver Tab (FILL THIS OUT)'!H81="","",'Caregiver Tab (FILL THIS OUT)'!H81) ->  | J78: =IF('Caregiver Tab (FILL THIS OUT)'!I81="","",'Caregiver Tab (FILL THIS OUT)'!I81) ->  | K78: =IF('Caregiver Tab (FILL THIS OUT)'!J81="","",'Caregiver Tab (FILL THIS OUT)'!J81) ->  | L78: =IF('Caregiver Tab (FILL THIS OUT)'!K81="","",'Caregiver Tab (FILL THIS OUT)'!K81) ->  | M78: =IF('Caregiver Tab (FILL THIS OUT)'!M81="","",'Caregiver Tab (FILL THIS OUT)'!M81) ->  | N78: =IF('Caregiver Tab (FILL THIS OUT)'!M81="","",'Caregiver Tab (FILL THIS OUT)'!M81) ->  | O78: =IF('Caregiver Tab (FILL THIS OUT)'!N81="","",'Caregiver Tab (FILL THIS OUT)'!N81) ->  | P78: =IF('Caregiver Tab (FILL THIS OUT)'!O81="","",'Caregiver Tab (FILL THIS OUT)'!O81) ->  | Q78: =IF('Caregiver Tab (FILL THIS OUT)'!P81="","",'Caregiver Tab (FILL THIS OUT)'!P81) ->  | R78: =IF('Caregiver Tab (FILL THIS OUT)'!Q81="","",'Caregiver Tab (FILL THIS OUT)'!Q81) ->  | S78: =IF('Caregiver Tab (FILL THIS OUT)'!R81="","",'Caregiver Tab (FILL THIS OUT)'!R81) ->  | T78: =IF('Caregiver Tab (FILL THIS OUT)'!S81="","",'Caregiver Tab (FILL THIS OUT)'!S81) ->  | U78: =IF('Caregiver Tab (FILL THIS OUT)'!T81="","",'Caregiver Tab (FILL THIS OUT)'!T81) ->  | V78: =IF('Caregiver Tab (FILL THIS OUT)'!U81="","",'Caregiver Tab (FILL THIS OUT)'!U81) -> caregiver | W78: =IF('Caregiver Tab (FILL THIS OUT)'!V81="","",'Caregiver Tab (FILL THIS OUT)'!V81) ->  | X78: =IF('Caregiver Tab (FILL THIS OUT)'!W81="","",'Caregiver Tab (FILL THIS OUT)'!W81) ->  | Y78: =IF('Caregiver Tab (FILL THIS OUT)'!X81="","",'Caregiver Tab (FILL THIS OUT)'!X81) ->  | Z78: ='Caregiver Tab (FILL THIS OUT)'!#REF!&IF('Caregiver Tab (FILL THIS OUT)'!#REF!="","","#"&'Caregiver Tab (FILL THIS OUT)'!#REF!)&";"&'Caregiver Tab (FILL THIS OUT)'!#REF!&IF('Caregiver Tab (FILL THIS OUT)'!#REF!="","","#"&'Caregiver Tab (FILL THIS OUT)'!#REF!)&";"&'Caregiver Tab (FILL THIS OUT)'!#REF!&IF('Caregiver Tab (FILL THIS OUT)'!#REF!="","","#"&'Caregiver Tab (FILL THIS OUT)'!#REF!)&";" -> 
B79: =IF('Caregiver Tab (FILL THIS OUT)'!B82="","",'Caregiver Tab (FILL THIS OUT)'!B82) ->  | C79: =IF('Caregiver Tab (FILL THIS OUT)'!C82="","",'Caregiver Tab (FILL THIS OUT)'!C82) ->  | D79: 3 | E79: 1 | F79: =IF('Caregiver Tab (FILL THIS OUT)'!E82="","",'Caregiver Tab (FILL THIS OUT)'!E82) ->  | G79: =IF('Caregiver Tab (FILL THIS OUT)'!F82="","",'Caregiver Tab (FILL THIS OUT)'!F82) -> TRUE | H79: =IF('Caregiver Tab (FILL THIS OUT)'!G82="","",'Caregiver Tab (FILL THIS OUT)'!G82) ->  | I79: =IF('Caregiver Tab (FILL THIS OUT)'!H82="","",'Caregiver Tab (FILL THIS OUT)'!H82) ->  | J79: =IF('Caregiver Tab (FILL THIS OUT)'!I82="","",'Caregiver Tab (FILL THIS OUT)'!I82) ->  | K79: =IF('Caregiver Tab (FILL THIS OUT)'!J82="","",'Caregiver Tab (FILL THIS OUT)'!J82) ->  | L79: =IF('Caregiver Tab (FILL THIS OUT)'!K82="","",'Caregiver Tab (FILL THIS OUT)'!K82) ->  | M79: =IF('Caregiver Tab (FILL THIS OUT)'!M82="","",'Caregiver Tab (FILL THIS OUT)'!M82) ->  | N79: =IF('Caregiver Tab (FILL THIS OUT)'!M82="","",'Caregiver Tab (FILL THIS OUT)'!M82) ->  | O79: =IF('Caregiver Tab (FILL THIS OUT)'!N82="","",'Caregiver Tab (FILL THIS OUT)'!N82) ->  | P79: =IF('Caregiver Tab (FILL THIS OUT)'!O82="","",'Caregiver Tab (FILL THIS OUT)'!O82) ->  | Q79: =IF('Caregiver Tab (FILL THIS OUT)'!P82="","",'Caregiver Tab (FILL THIS OUT)'!P82) ->  | R79: =IF('Caregiver Tab (FILL THIS OUT)'!Q82="","",'Caregiver Tab (FILL THIS OUT)'!Q82) ->  | S79: =IF('Caregiver Tab (FILL THIS OUT)'!R82="","",'Caregiver Tab (FILL THIS OUT)'!R82) ->  | T79: =IF('Caregiver Tab (FILL THIS OUT)'!S82="","",'Caregiver Tab (FILL THIS OUT)'!S82) ->  | U79: =IF('Caregiver Tab (FILL THIS OUT)'!T82="","",'Caregiver Tab (FILL THIS OUT)'!T82) ->  | V79: =IF('Caregiver Tab (FILL THIS OUT)'!U82="","",'Caregiver Tab (FILL THIS OUT)'!U82) -> caregiver | W79: =IF('Caregiver Tab (FILL THIS OUT)'!V82="","",'Caregiver Tab (FILL THIS OUT)'!V82) ->  | X79: =IF('Caregiver Tab (FILL THIS OUT)'!W82="","",'Caregiver Tab (FILL THIS OUT)'!W82) ->  | Y79: =IF('Caregiver Tab (FILL THIS OUT)'!X82="","",'Caregiver Tab (FILL THIS OUT)'!X82) ->  | Z79: ='Caregiver Tab (FILL THIS OUT)'!#REF!&IF('Caregiver Tab (FILL THIS OUT)'!#REF!="","","#"&'Caregiver Tab (FILL THIS OUT)'!#REF!)&";"&'Caregiver Tab (FILL THIS OUT)'!#REF!&IF('Caregiver Tab (FILL THIS OUT)'!#REF!="","","#"&'Caregiver Tab (FILL THIS OUT)'!#REF!)&";"&'Caregiver Tab (FILL THIS OUT)'!#REF!&IF('Caregiver Tab (FILL THIS OUT)'!#REF!="","","#"&'Caregiver Tab (FILL THIS OUT)'!#REF!)&";" -> 
B80: =IF('Caregiver Tab (FILL THIS OUT)'!B83="","",'Caregiver Tab (FILL THIS OUT)'!B83) ->  | C80: =IF('Caregiver Tab (FILL THIS OUT)'!C83="","",'Caregiver Tab (FILL THIS OUT)'!C83) ->  | D80: 3 | E80: 1 | F80: =IF('Caregiver Tab (FILL THIS OUT)'!E83="","",'Caregiver Tab (FILL THIS OUT)'!E83) ->  | G80: =IF('Caregiver Tab (FILL THIS OUT)'!F83="","",'Caregiver Tab (FILL THIS OUT)'!F83) -> TRUE | H80: =IF('Caregiver Tab (FILL THIS OUT)'!G83="","",'Caregiver Tab (FILL THIS OUT)'!G83) ->  | I80: =IF('Caregiver Tab (FILL THIS OUT)'!H83="","",'Caregiver Tab (FILL THIS OUT)'!H83) ->  | J80: =IF('Caregiver Tab (FILL THIS OUT)'!I83="","",'Caregiver Tab (FILL THIS OUT)'!I83) ->  | K80: =IF('Caregiver Tab (FILL THIS OUT)'!J83="","",'Caregiver Tab (FILL THIS OUT)'!J83) ->  | L80: =IF('Caregiver Tab (FILL THIS OUT)'!K83="","",'Caregiver Tab (FILL THIS OUT)'!K83) ->  | M80: =IF('Caregiver Tab (FILL THIS OUT)'!M83="","",'Caregiver Tab (FILL THIS OUT)'!M83) ->  | N80: =IF('Caregiver Tab (FILL THIS OUT)'!M83="","",'Caregiver Tab (FILL THIS OUT)'!M83) ->  | O80: =IF('Caregiver Tab (FILL THIS OUT)'!N83="","",'Caregiver Tab (FILL THIS OUT)'!N83) ->  | P80: =IF('Caregiver Tab (FILL THIS OUT)'!O83="","",'Caregiver Tab (FILL THIS OUT)'!O83) ->  | Q80: =IF('Caregiver Tab (FILL THIS OUT)'!P83="","",'Caregiver Tab (FILL THIS OUT)'!P83) ->  | R80: =IF('Caregiver Tab (FILL THIS OUT)'!Q83="","",'Caregiver Tab (FILL THIS OUT)'!Q83) ->  | S80: =IF('Caregiver Tab (FILL THIS OUT)'!R83="","",'Caregiver Tab (FILL THIS OUT)'!R83) ->  | T80: =IF('Caregiver Tab (FILL THIS OUT)'!S83="","",'Caregiver Tab (FILL THIS OUT)'!S83) ->  | U80: =IF('Caregiver Tab (FILL THIS OUT)'!T83="","",'Caregiver Tab (FILL THIS OUT)'!T83) ->  | V80: =IF('Caregiver Tab (FILL THIS OUT)'!U83="","",'Caregiver Tab (FILL THIS OUT)'!U83) -> caregiver | W80: =IF('Caregiver Tab (FILL THIS OUT)'!V83="","",'Caregiver Tab (FILL THIS OUT)'!V83) ->  | X80: =IF('Caregiver Tab (FILL THIS OUT)'!W83="","",'Caregiver Tab (FILL THIS OUT)'!W83) ->  | Y80: =IF('Caregiver Tab (FILL THIS OUT)'!X83="","",'Caregiver Tab (FILL THIS OUT)'!X83) ->  | Z80: ='Caregiver Tab (FILL THIS OUT)'!#REF!&IF('Caregiver Tab (FILL THIS OUT)'!#REF!="","","#"&'Caregiver Tab (FILL THIS OUT)'!#REF!)&";"&'Caregiver Tab (FILL THIS OUT)'!#REF!&IF('Caregiver Tab (FILL THIS OUT)'!#REF!="","","#"&'Caregiver Tab (FILL THIS OUT)'!#REF!)&";"&'Caregiver Tab (FILL THIS OUT)'!#REF!&IF('Caregiver Tab (FILL THIS OUT)'!#REF!="","","#"&'Caregiver Tab (FILL THIS OUT)'!#REF!)&";" -> 
B81: =IF('Caregiver Tab (FILL THIS OUT)'!B84="","",'Caregiver Tab (FILL THIS OUT)'!B84) ->  | C81: =IF('Caregiver Tab (FILL THIS OUT)'!C84="","",'Caregiver Tab (FILL THIS OUT)'!C84) ->  | D81: 3 | E81: 1 | F81: =IF('Caregiver Tab (FILL THIS OUT)'!E84="","",'Caregiver Tab (FILL THIS OUT)'!E84) ->  | G81: =IF('Caregiver Tab (FILL THIS OUT)'!F84="","",'Caregiver Tab (FILL THIS OUT)'!F84) -> TRUE | H81: =IF('Caregiver Tab (FILL THIS OUT)'!G84="","",'Caregiver Tab (FILL THIS OUT)'!G84) ->  | I81: =IF('Caregiver Tab (FILL THIS OUT)'!H84="","",'Caregiver Tab (FILL THIS OUT)'!H84) ->  | J81: =IF('Caregiver Tab (FILL THIS OUT)'!I84="","",'Caregiver Tab (FILL THIS OUT)'!I84) ->  | K81: =IF('Caregiver Tab (FILL THIS OUT)'!J84="","",'Caregiver Tab (FILL THIS OUT)'!J84) ->  | L81: =IF('Caregiver Tab (FILL THIS OUT)'!K84="","",'Caregiver Tab (FILL THIS OUT)'!K84) ->  | M81: =IF('Caregiver Tab (FILL THIS OUT)'!M84="","",'Caregiver Tab (FILL THIS OUT)'!M84) ->  | N81: =IF('Caregiver Tab (FILL THIS OUT)'!M84="","",'Caregiver Tab (FILL THIS OUT)'!M84) ->  | O81: =IF('Caregiver Tab (FILL THIS OUT)'!N84="","",'Caregiver Tab (FILL THIS OUT)'!N84) ->  | P81: =IF('Caregiver Tab (FILL THIS OUT)'!O84="","",'Caregiver Tab (FILL THIS OUT)'!O84) ->  | Q81: =IF('Caregiver Tab (FILL THIS OUT)'!P84="","",'Caregiver Tab (FILL THIS OUT)'!P84) ->  | R81: =IF('Caregiver Tab (FILL THIS OUT)'!Q84="","",'Caregiver Tab (FILL THIS OUT)'!Q84) ->  | S81: =IF('Caregiver Tab (FILL THIS OUT)'!R84="","",'Caregiver Tab (FILL THIS OUT)'!R84) ->  | T81: =IF('Caregiver Tab (FILL THIS OUT)'!S84="","",'Caregiver Tab (FILL THIS OUT)'!S84) ->  | U81: =IF('Caregiver Tab (FILL THIS OUT)'!T84="","",'Caregiver Tab (FILL THIS OUT)'!T84) ->  | V81: =IF('Caregiver Tab (FILL THIS OUT)'!U84="","",'Caregiver Tab (FILL THIS OUT)'!U84) -> caregiver | W81: =IF('Caregiver Tab (FILL THIS OUT)'!V84="","",'Caregiver Tab (FILL THIS OUT)'!V84) ->  | X81: =IF('Caregiver Tab (FILL THIS OUT)'!W84="","",'Caregiver Tab (FILL THIS OUT)'!W84) ->  | Y81: =IF('Caregiver Tab (FILL THIS OUT)'!X84="","",'Caregiver Tab (FILL THIS OUT)'!X84) ->  | Z81: ='Caregiver Tab (FILL THIS OUT)'!#REF!&IF('Caregiver Tab (FILL THIS OUT)'!#REF!="","","#"&'Caregiver Tab (FILL THIS OUT)'!#REF!)&";"&'Caregiver Tab (FILL THIS OUT)'!#REF!&IF('Caregiver Tab (FILL THIS OUT)'!#REF!="","","#"&'Caregiver Tab (FILL THIS OUT)'!#REF!)&";"&'Caregiver Tab (FILL THIS OUT)'!#REF!&IF('Caregiver Tab (FILL THIS OUT)'!#REF!="","","#"&'Caregiver Tab (FILL THIS OUT)'!#REF!)&";" -> 
B82: =IF('Caregiver Tab (FILL THIS OUT)'!B85="","",'Caregiver Tab (FILL THIS OUT)'!B85) ->  | C82: =IF('Caregiver Tab (FILL THIS OUT)'!C85="","",'Caregiver Tab (FILL THIS OUT)'!C85) ->  | D82: 3 | E82: 1 | F82: =IF('Caregiver Tab (FILL THIS OUT)'!E85="","",'Caregiver Tab (FILL THIS OUT)'!E85) ->  | G82: =IF('Caregiver Tab (FILL THIS OUT)'!F85="","",'Caregiver Tab (FILL THIS OUT)'!F85) -> TRUE | H82: =IF('Caregiver Tab (FILL THIS OUT)'!G85="","",'Caregiver Tab (FILL THIS OUT)'!G85) ->  | I82: =IF('Caregiver Tab (FILL THIS OUT)'!H85="","",'Caregiver Tab (FILL THIS OUT)'!H85) ->  | J82: =IF('Caregiver Tab (FILL THIS OUT)'!I85="","",'Caregiver Tab (FILL THIS OUT)'!I85) ->  | K82: =IF('Caregiver Tab (FILL THIS OUT)'!J85="","",'Caregiver Tab (FILL THIS OUT)'!J85) ->  | L82: =IF('Caregiver Tab (FILL THIS OUT)'!K85="","",'Caregiver Tab (FILL THIS OUT)'!K85) ->  | M82: =IF('Caregiver Tab (FILL THIS OUT)'!M85="","",'Caregiver Tab (FILL THIS OUT)'!M85) ->  | N82: =IF('Caregiver Tab (FILL THIS OUT)'!M85="","",'Caregiver Tab (FILL THIS OUT)'!M85) ->  | O82: =IF('Caregiver Tab (FILL THIS OUT)'!N85="","",'Caregiver Tab (FILL THIS OUT)'!N85) ->  | P82: =IF('Caregiver Tab (FILL THIS OUT)'!O85="","",'Caregiver Tab (FILL THIS OUT)'!O85) ->  | Q82: =IF('Caregiver Tab (FILL THIS OUT)'!P85="","",'Caregiver Tab (FILL THIS OUT)'!P85) ->  | R82: =IF('Caregiver Tab (FILL THIS OUT)'!Q85="","",'Caregiver Tab (FILL THIS OUT)'!Q85) ->  | S82: =IF('Caregiver Tab (FILL THIS OUT)'!R85="","",'Caregiver Tab (FILL THIS OUT)'!R85) ->  | T82: =IF('Caregiver Tab (FILL THIS OUT)'!S85="","",'Caregiver Tab (FILL THIS OUT)'!S85) ->  | U82: =IF('Caregiver Tab (FILL THIS OUT)'!T85="","",'Caregiver Tab (FILL THIS OUT)'!T85) ->  | V82: =IF('Caregiver Tab (FILL THIS OUT)'!U85="","",'Caregiver Tab (FILL THIS OUT)'!U85) -> caregiver | W82: =IF('Caregiver Tab (FILL THIS OUT)'!V85="","",'Caregiver Tab (FILL THIS OUT)'!V85) ->  | X82: =IF('Caregiver Tab (FILL THIS OUT)'!W85="","",'Caregiver Tab (FILL THIS OUT)'!W85) ->  | Y82: =IF('Caregiver Tab (FILL THIS OUT)'!X85="","",'Caregiver Tab (FILL THIS OUT)'!X85) ->  | Z82: ='Caregiver Tab (FILL THIS OUT)'!#REF!&IF('Caregiver Tab (FILL THIS OUT)'!#REF!="","","#"&'Caregiver Tab (FILL THIS OUT)'!#REF!)&";"&'Caregiver Tab (FILL THIS OUT)'!#REF!&IF('Caregiver Tab (FILL THIS OUT)'!#REF!="","","#"&'Caregiver Tab (FILL THIS OUT)'!#REF!)&";"&'Caregiver Tab (FILL THIS OUT)'!#REF!&IF('Caregiver Tab (FILL THIS OUT)'!#REF!="","","#"&'Caregiver Tab (FILL THIS OUT)'!#REF!)&";" -> 
B83: =IF('Caregiver Tab (FILL THIS OUT)'!B86="","",'Caregiver Tab (FILL THIS OUT)'!B86) ->  | C83: =IF('Caregiver Tab (FILL THIS OUT)'!C86="","",'Caregiver Tab (FILL THIS OUT)'!C86) ->  | D83: 3 | E83: 1 | F83: =IF('Caregiver Tab (FILL THIS OUT)'!E86="","",'Caregiver Tab (FILL THIS OUT)'!E86) ->  | G83: =IF('Caregiver Tab (FILL THIS OUT)'!F86="","",'Caregiver Tab (FILL THIS OUT)'!F86) -> TRUE | H83: =IF('Caregiver Tab (FILL THIS OUT)'!G86="","",'Caregiver Tab (FILL THIS OUT)'!G86) ->  | I83: =IF('Caregiver Tab (FILL THIS OUT)'!H86="","",'Caregiver Tab (FILL THIS OUT)'!H86) ->  | J83: =IF('Caregiver Tab (FILL THIS OUT)'!I86="","",'Caregiver Tab (FILL THIS OUT)'!I86) ->  | K83: =IF('Caregiver Tab (FILL THIS OUT)'!J86="","",'Caregiver Tab (FILL THIS OUT)'!J86) ->  | L83: =IF('Caregiver Tab (FILL THIS OUT)'!K86="","",'Caregiver Tab (FILL THIS OUT)'!K86) ->  | M83: =IF('Caregiver Tab (FILL THIS OUT)'!M86="","",'Caregiver Tab (FILL THIS OUT)'!M86) ->  | N83: =IF('Caregiver Tab (FILL THIS OUT)'!M86="","",'Caregiver Tab (FILL THIS OUT)'!M86) ->  | O83: =IF('Caregiver Tab (FILL THIS OUT)'!N86="","",'Caregiver Tab (FILL THIS OUT)'!N86) ->  | P83: =IF('Caregiver Tab (FILL THIS OUT)'!O86="","",'Caregiver Tab (FILL THIS OUT)'!O86) ->  | Q83: =IF('Caregiver Tab (FILL THIS OUT)'!P86="","",'Caregiver Tab (FILL THIS OUT)'!P86) ->  | R83: =IF('Caregiver Tab (FILL THIS OUT)'!Q86="","",'Caregiver Tab (FILL THIS OUT)'!Q86) ->  | S83: =IF('Caregiver Tab (FILL THIS OUT)'!R86="","",'Caregiver Tab (FILL THIS OUT)'!R86) ->  | T83: =IF('Caregiver Tab (FILL THIS OUT)'!S86="","",'Caregiver Tab (FILL THIS OUT)'!S86) ->  | U83: =IF('Caregiver Tab (FILL THIS OUT)'!T86="","",'Caregiver Tab (FILL THIS OUT)'!T86) ->  | V83: =IF('Caregiver Tab (FILL THIS OUT)'!U86="","",'Caregiver Tab (FILL THIS OUT)'!U86) -> caregiver | W83: =IF('Caregiver Tab (FILL THIS OUT)'!V86="","",'Caregiver Tab (FILL THIS OUT)'!V86) ->  | X83: =IF('Caregiver Tab (FILL THIS OUT)'!W86="","",'Caregiver Tab (FILL THIS OUT)'!W86) ->  | Y83: =IF('Caregiver Tab (FILL THIS OUT)'!X86="","",'Caregiver Tab (FILL THIS OUT)'!X86) ->  | Z83: ='Caregiver Tab (FILL THIS OUT)'!#REF!&IF('Caregiver Tab (FILL THIS OUT)'!#REF!="","","#"&'Caregiver Tab (FILL THIS OUT)'!#REF!)&";"&'Caregiver Tab (FILL THIS OUT)'!#REF!&IF('Caregiver Tab (FILL THIS OUT)'!#REF!="","","#"&'Caregiver Tab (FILL THIS OUT)'!#REF!)&";"&'Caregiver Tab (FILL THIS OUT)'!#REF!&IF('Caregiver Tab (FILL THIS OUT)'!#REF!="","","#"&'Caregiver Tab (FILL THIS OUT)'!#REF!)&";" -> 
B84: =IF('Caregiver Tab (FILL THIS OUT)'!B87="","",'Caregiver Tab (FILL THIS OUT)'!B87) ->  | C84: =IF('Caregiver Tab (FILL THIS OUT)'!C87="","",'Caregiver Tab (FILL THIS OUT)'!C87) ->  | D84: 3 | E84: 1 | F84: =IF('Caregiver Tab (FILL THIS OUT)'!E87="","",'Caregiver Tab (FILL THIS OUT)'!E87) ->  | G84: =IF('Caregiver Tab (FILL THIS OUT)'!F87="","",'Caregiver Tab (FILL THIS OUT)'!F87) -> TRUE | H84: =IF('Caregiver Tab (FILL THIS OUT)'!G87="","",'Caregiver Tab (FILL THIS OUT)'!G87) ->  | I84: =IF('Caregiver Tab (FILL THIS OUT)'!H87="","",'Caregiver Tab (FILL THIS OUT)'!H87) ->  | J84: =IF('Caregiver Tab (FILL THIS OUT)'!I87="","",'Caregiver Tab (FILL THIS OUT)'!I87) ->  | K84: =IF('Caregiver Tab (FILL THIS OUT)'!J87="","",'Caregiver Tab (FILL THIS OUT)'!J87) ->  | L84: =IF('Caregiver Tab (FILL THIS OUT)'!K87="","",'Caregiver Tab (FILL THIS OUT)'!K87) ->  | M84: =IF('Caregiver Tab (FILL THIS OUT)'!M87="","",'Caregiver Tab (FILL THIS OUT)'!M87) ->  | N84: =IF('Caregiver Tab (FILL THIS OUT)'!M87="","",'Caregiver Tab (FILL THIS OUT)'!M87) ->  | O84: =IF('Caregiver Tab (FILL THIS OUT)'!N87="","",'Caregiver Tab (FILL THIS OUT)'!N87) ->  | P84: =IF('Caregiver Tab (FILL THIS OUT)'!O87="","",'Caregiver Tab (FILL THIS OUT)'!O87) ->  | Q84: =IF('Caregiver Tab (FILL THIS OUT)'!P87="","",'Caregiver Tab (FILL THIS OUT)'!P87) ->  | R84: =IF('Caregiver Tab (FILL THIS OUT)'!Q87="","",'Caregiver Tab (FILL THIS OUT)'!Q87) ->  | S84: =IF('Caregiver Tab (FILL THIS OUT)'!R87="","",'Caregiver Tab (FILL THIS OUT)'!R87) ->  | T84: =IF('Caregiver Tab (FILL THIS OUT)'!S87="","",'Caregiver Tab (FILL THIS OUT)'!S87) ->  | U84: =IF('Caregiver Tab (FILL THIS OUT)'!T87="","",'Caregiver Tab (FILL THIS OUT)'!T87) ->  | V84: =IF('Caregiver Tab (FILL THIS OUT)'!U87="","",'Caregiver Tab (FILL THIS OUT)'!U87) -> caregiver | W84: =IF('Caregiver Tab (FILL THIS OUT)'!V87="","",'Caregiver Tab (FILL THIS OUT)'!V87) ->  | X84: =IF('Caregiver Tab (FILL THIS OUT)'!W87="","",'Caregiver Tab (FILL THIS OUT)'!W87) ->  | Y84: =IF('Caregiver Tab (FILL THIS OUT)'!X87="","",'Caregiver Tab (FILL THIS OUT)'!X87) ->  | Z84: ='Caregiver Tab (FILL THIS OUT)'!#REF!&IF('Caregiver Tab (FILL THIS OUT)'!#REF!="","","#"&'Caregiver Tab (FILL THIS OUT)'!#REF!)&";"&'Caregiver Tab (FILL THIS OUT)'!#REF!&IF('Caregiver Tab (FILL THIS OUT)'!#REF!="","","#"&'Caregiver Tab (FILL THIS OUT)'!#REF!)&";"&'Caregiver Tab (FILL THIS OUT)'!#REF!&IF('Caregiver Tab (FILL THIS OUT)'!#REF!="","","#"&'Caregiver Tab (FILL THIS OUT)'!#REF!)&";" -> 
B85: =IF('Caregiver Tab (FILL THIS OUT)'!B88="","",'Caregiver Tab (FILL THIS OUT)'!B88) ->  | C85: =IF('Caregiver Tab (FILL THIS OUT)'!C88="","",'Caregiver Tab (FILL THIS OUT)'!C88) ->  | D85: 3 | E85: 1 | F85: =IF('Caregiver Tab (FILL THIS OUT)'!E88="","",'Caregiver Tab (FILL THIS OUT)'!E88) ->  | G85: =IF('Caregiver Tab (FILL THIS OUT)'!F88="","",'Caregiver Tab (FILL THIS OUT)'!F88) -> TRUE | H85: =IF('Caregiver Tab (FILL THIS OUT)'!G88="","",'Caregiver Tab (FILL THIS OUT)'!G88) ->  | I85: =IF('Caregiver Tab (FILL THIS OUT)'!H88="","",'Caregiver Tab (FILL THIS OUT)'!H88) ->  | J85: =IF('Caregiver Tab (FILL THIS OUT)'!I88="","",'Caregiver Tab (FILL THIS OUT)'!I88) ->  | K85: =IF('Caregiver Tab (FILL THIS OUT)'!J88="","",'Caregiver Tab (FILL THIS OUT)'!J88) ->  | L85: =IF('Caregiver Tab (FILL THIS OUT)'!K88="","",'Caregiver Tab (FILL THIS OUT)'!K88) ->  | M85: =IF('Caregiver Tab (FILL THIS OUT)'!M88="","",'Caregiver Tab (FILL THIS OUT)'!M88) ->  | N85: =IF('Caregiver Tab (FILL THIS OUT)'!M88="","",'Caregiver Tab (FILL THIS OUT)'!M88) ->  | O85: =IF('Caregiver Tab (FILL THIS OUT)'!N88="","",'Caregiver Tab (FILL THIS OUT)'!N88) ->  | P85: =IF('Caregiver Tab (FILL THIS OUT)'!O88="","",'Caregiver Tab (FILL THIS OUT)'!O88) ->  | Q85: =IF('Caregiver Tab (FILL THIS OUT)'!P88="","",'Caregiver Tab (FILL THIS OUT)'!P88) ->  | R85: =IF('Caregiver Tab (FILL THIS OUT)'!Q88="","",'Caregiver Tab (FILL THIS OUT)'!Q88) ->  | S85: =IF('Caregiver Tab (FILL THIS OUT)'!R88="","",'Caregiver Tab (FILL THIS OUT)'!R88) ->  | T85: =IF('Caregiver Tab (FILL THIS OUT)'!S88="","",'Caregiver Tab (FILL THIS OUT)'!S88) ->  | U85: =IF('Caregiver Tab (FILL THIS OUT)'!T88="","",'Caregiver Tab (FILL THIS OUT)'!T88) ->  | V85: =IF('Caregiver Tab (FILL THIS OUT)'!U88="","",'Caregiver Tab (FILL THIS OUT)'!U88) -> caregiver | W85: =IF('Caregiver Tab (FILL THIS OUT)'!V88="","",'Caregiver Tab (FILL THIS OUT)'!V88) ->  | X85: =IF('Caregiver Tab (FILL THIS OUT)'!W88="","",'Caregiver Tab (FILL THIS OUT)'!W88) ->  | Y85: =IF('Caregiver Tab (FILL THIS OUT)'!X88="","",'Caregiver Tab (FILL THIS OUT)'!X88) ->  | Z85: ='Caregiver Tab (FILL THIS OUT)'!#REF!&IF('Caregiver Tab (FILL THIS OUT)'!#REF!="","","#"&'Caregiver Tab (FILL THIS OUT)'!#REF!)&";"&'Caregiver Tab (FILL THIS OUT)'!#REF!&IF('Caregiver Tab (FILL THIS OUT)'!#REF!="","","#"&'Caregiver Tab (FILL THIS OUT)'!#REF!)&";"&'Caregiver Tab (FILL THIS OUT)'!#REF!&IF('Caregiver Tab (FILL THIS OUT)'!#REF!="","","#"&'Caregiver Tab (FILL THIS OUT)'!#REF!)&";" -> 
B86: =IF('Caregiver Tab (FILL THIS OUT)'!B89="","",'Caregiver Tab (FILL THIS OUT)'!B89) ->  | C86: =IF('Caregiver Tab (FILL THIS OUT)'!C89="","",'Caregiver Tab (FILL THIS OUT)'!C89) ->  | D86: 3 | E86: 1 | F86: =IF('Caregiver Tab (FILL THIS OUT)'!E89="","",'Caregiver Tab (FILL THIS OUT)'!E89) ->  | G86: =IF('Caregiver Tab (FILL THIS OUT)'!F89="","",'Caregiver Tab (FILL THIS OUT)'!F89) -> TRUE | H86: =IF('Caregiver Tab (FILL THIS OUT)'!G89="","",'Caregiver Tab (FILL THIS OUT)'!G89) ->  | I86: =IF('Caregiver Tab (FILL THIS OUT)'!H89="","",'Caregiver Tab (FILL THIS OUT)'!H89) ->  | J86: =IF('Caregiver Tab (FILL THIS OUT)'!I89="","",'Caregiver Tab (FILL THIS OUT)'!I89) ->  | K86: =IF('Caregiver Tab (FILL THIS OUT)'!J89="","",'Caregiver Tab (FILL THIS OUT)'!J89) ->  | L86: =IF('Caregiver Tab (FILL THIS OUT)'!K89="","",'Caregiver Tab (FILL THIS OUT)'!K89) ->  | M86: =IF('Caregiver Tab (FILL THIS OUT)'!M89="","",'Caregiver Tab (FILL THIS OUT)'!M89) ->  | N86: =IF('Caregiver Tab (FILL THIS OUT)'!M89="","",'Caregiver Tab (FILL THIS OUT)'!M89) ->  | O86: =IF('Caregiver Tab (FILL THIS OUT)'!N89="","",'Caregiver Tab (FILL THIS OUT)'!N89) ->  | P86: =IF('Caregiver Tab (FILL THIS OUT)'!O89="","",'Caregiver Tab (FILL THIS OUT)'!O89) ->  | Q86: =IF('Caregiver Tab (FILL THIS OUT)'!P89="","",'Caregiver Tab (FILL THIS OUT)'!P89) ->  | R86: =IF('Caregiver Tab (FILL THIS OUT)'!Q89="","",'Caregiver Tab (FILL THIS OUT)'!Q89) ->  | S86: =IF('Caregiver Tab (FILL THIS OUT)'!R89="","",'Caregiver Tab (FILL THIS OUT)'!R89) ->  | T86: =IF('Caregiver Tab (FILL THIS OUT)'!S89="","",'Caregiver Tab (FILL THIS OUT)'!S89) ->  | U86: =IF('Caregiver Tab (FILL THIS OUT)'!T89="","",'Caregiver Tab (FILL THIS OUT)'!T89) ->  | V86: =IF('Caregiver Tab (FILL THIS OUT)'!U89="","",'Caregiver Tab (FILL THIS OUT)'!U89) -> caregiver | W86: =IF('Caregiver Tab (FILL THIS OUT)'!V89="","",'Caregiver Tab (FILL THIS OUT)'!V89) ->  | X86: =IF('Caregiver Tab (FILL THIS OUT)'!W89="","",'Caregiver Tab (FILL THIS OUT)'!W89) ->  | Y86: =IF('Caregiver Tab (FILL THIS OUT)'!X89="","",'Caregiver Tab (FILL THIS OUT)'!X89) ->  | Z86: ='Caregiver Tab (FILL THIS OUT)'!#REF!&IF('Caregiver Tab (FILL THIS OUT)'!#REF!="","","#"&'Caregiver Tab (FILL THIS OUT)'!#REF!)&";"&'Caregiver Tab (FILL THIS OUT)'!#REF!&IF('Caregiver Tab (FILL THIS OUT)'!#REF!="","","#"&'Caregiver Tab (FILL THIS OUT)'!#REF!)&";"&'Caregiver Tab (FILL THIS OUT)'!#REF!&IF('Caregiver Tab (FILL THIS OUT)'!#REF!="","","#"&'Caregiver Tab (FILL THIS OUT)'!#REF!)&";" -> 
B87: =IF('Caregiver Tab (FILL THIS OUT)'!B90="","",'Caregiver Tab (FILL THIS OUT)'!B90) ->  | C87: =IF('Caregiver Tab (FILL THIS OUT)'!C90="","",'Caregiver Tab (FILL THIS OUT)'!C90) ->  | D87: 3 | E87: 1 | F87: =IF('Caregiver Tab (FILL THIS OUT)'!E90="","",'Caregiver Tab (FILL THIS OUT)'!E90) ->  | G87: =IF('Caregiver Tab (FILL THIS OUT)'!F90="","",'Caregiver Tab (FILL THIS OUT)'!F90) -> TRUE | H87: =IF('Caregiver Tab (FILL THIS OUT)'!G90="","",'Caregiver Tab (FILL THIS OUT)'!G90) ->  | I87: =IF('Caregiver Tab (FILL THIS OUT)'!H90="","",'Caregiver Tab (FILL THIS OUT)'!H90) ->  | J87: =IF('Caregiver Tab (FILL THIS OUT)'!I90="","",'Caregiver Tab (FILL THIS OUT)'!I90) ->  | K87: =IF('Caregiver Tab (FILL THIS OUT)'!J90="","",'Caregiver Tab (FILL THIS OUT)'!J90) ->  | L87: =IF('Caregiver Tab (FILL THIS OUT)'!K90="","",'Caregiver Tab (FILL THIS OUT)'!K90) ->  | M87: =IF('Caregiver Tab (FILL THIS OUT)'!M90="","",'Caregiver Tab (FILL THIS OUT)'!M90) ->  | N87: =IF('Caregiver Tab (FILL THIS OUT)'!M90="","",'Caregiver Tab (FILL THIS OUT)'!M90) ->  | O87: =IF('Caregiver Tab (FILL THIS OUT)'!N90="","",'Caregiver Tab (FILL THIS OUT)'!N90) ->  | P87: =IF('Caregiver Tab (FILL THIS OUT)'!O90="","",'Caregiver Tab (FILL THIS OUT)'!O90) ->  | Q87: =IF('Caregiver Tab (FILL THIS OUT)'!P90="","",'Caregiver Tab (FILL THIS OUT)'!P90) ->  | R87: =IF('Caregiver Tab (FILL THIS OUT)'!Q90="","",'Caregiver Tab (FILL THIS OUT)'!Q90) ->  | S87: =IF('Caregiver Tab (FILL THIS OUT)'!R90="","",'Caregiver Tab (FILL THIS OUT)'!R90) ->  | T87: =IF('Caregiver Tab (FILL THIS OUT)'!S90="","",'Caregiver Tab (FILL THIS OUT)'!S90) ->  | U87: =IF('Caregiver Tab (FILL THIS OUT)'!T90="","",'Caregiver Tab (FILL THIS OUT)'!T90) ->  | V87: =IF('Caregiver Tab (FILL THIS OUT)'!U90="","",'Caregiver Tab (FILL THIS OUT)'!U90) -> caregiver | W87: =IF('Caregiver Tab (FILL THIS OUT)'!V90="","",'Caregiver Tab (FILL THIS OUT)'!V90) ->  | X87: =IF('Caregiver Tab (FILL THIS OUT)'!W90="","",'Caregiver Tab (FILL THIS OUT)'!W90) ->  | Y87: =IF('Caregiver Tab (FILL THIS OUT)'!X90="","",'Caregiver Tab (FILL THIS OUT)'!X90) ->  | Z87: ='Caregiver Tab (FILL THIS OUT)'!#REF!&IF('Caregiver Tab (FILL THIS OUT)'!#REF!="","","#"&'Caregiver Tab (FILL THIS OUT)'!#REF!)&";"&'Caregiver Tab (FILL THIS OUT)'!#REF!&IF('Caregiver Tab (FILL THIS OUT)'!#REF!="","","#"&'Caregiver Tab (FILL THIS OUT)'!#REF!)&";"&'Caregiver Tab (FILL THIS OUT)'!#REF!&IF('Caregiver Tab (FILL THIS OUT)'!#REF!="","","#"&'Caregiver Tab (FILL THIS OUT)'!#REF!)&";" -> 
B88: =IF('Caregiver Tab (FILL THIS OUT)'!B91="","",'Caregiver Tab (FILL THIS OUT)'!B91) ->  | C88: =IF('Caregiver Tab (FILL THIS OUT)'!C91="","",'Caregiver Tab (FILL THIS OUT)'!C91) ->  | D88: 3 | E88: 1 | F88: =IF('Caregiver Tab (FILL THIS OUT)'!E91="","",'Caregiver Tab (FILL THIS OUT)'!E91) ->  | G88: =IF('Caregiver Tab (FILL THIS OUT)'!F91="","",'Caregiver Tab (FILL THIS OUT)'!F91) -> TRUE | H88: =IF('Caregiver Tab (FILL THIS OUT)'!G91="","",'Caregiver Tab (FILL THIS OUT)'!G91) ->  | I88: =IF('Caregiver Tab (FILL THIS OUT)'!H91="","",'Caregiver Tab (FILL THIS OUT)'!H91) ->  | J88: =IF('Caregiver Tab (FILL THIS OUT)'!I91="","",'Caregiver Tab (FILL THIS OUT)'!I91) ->  | K88: =IF('Caregiver Tab (FILL THIS OUT)'!J91="","",'Caregiver Tab (FILL THIS OUT)'!J91) ->  | L88: =IF('Caregiver Tab (FILL THIS OUT)'!K91="","",'Caregiver Tab (FILL THIS OUT)'!K91) ->  | M88: =IF('Caregiver Tab (FILL THIS OUT)'!M91="","",'Caregiver Tab (FILL THIS OUT)'!M91) ->  | N88: =IF('Caregiver Tab (FILL THIS OUT)'!M91="","",'Caregiver Tab (FILL THIS OUT)'!M91) ->  | O88: =IF('Caregiver Tab (FILL THIS OUT)'!N91="","",'Caregiver Tab (FILL THIS OUT)'!N91) ->  | P88: =IF('Caregiver Tab (FILL THIS OUT)'!O91="","",'Caregiver Tab (FILL THIS OUT)'!O91) ->  | Q88: =IF('Caregiver Tab (FILL THIS OUT)'!P91="","",'Caregiver Tab (FILL THIS OUT)'!P91) ->  | R88: =IF('Caregiver Tab (FILL THIS OUT)'!Q91="","",'Caregiver Tab (FILL THIS OUT)'!Q91) ->  | S88: =IF('Caregiver Tab (FILL THIS OUT)'!R91="","",'Caregiver Tab (FILL THIS OUT)'!R91) ->  | T88: =IF('Caregiver Tab (FILL THIS OUT)'!S91="","",'Caregiver Tab (FILL THIS OUT)'!S91) ->  | U88: =IF('Caregiver Tab (FILL THIS OUT)'!T91="","",'Caregiver Tab (FILL THIS OUT)'!T91) ->  | V88: =IF('Caregiver Tab (FILL THIS OUT)'!U91="","",'Caregiver Tab (FILL THIS OUT)'!U91) -> caregiver | W88: =IF('Caregiver Tab (FILL THIS OUT)'!V91="","",'Caregiver Tab (FILL THIS OUT)'!V91) ->  | X88: =IF('Caregiver Tab (FILL THIS OUT)'!W91="","",'Caregiver Tab (FILL THIS OUT)'!W91) ->  | Y88: =IF('Caregiver Tab (FILL THIS OUT)'!X91="","",'Caregiver Tab (FILL THIS OUT)'!X91) ->  | Z88: ='Caregiver Tab (FILL THIS OUT)'!#REF!&IF('Caregiver Tab (FILL THIS OUT)'!#REF!="","","#"&'Caregiver Tab (FILL THIS OUT)'!#REF!)&";"&'Caregiver Tab (FILL THIS OUT)'!#REF!&IF('Caregiver Tab (FILL THIS OUT)'!#REF!="","","#"&'Caregiver Tab (FILL THIS OUT)'!#REF!)&";"&'Caregiver Tab (FILL THIS OUT)'!#REF!&IF('Caregiver Tab (FILL THIS OUT)'!#REF!="","","#"&'Caregiver Tab (FILL THIS OUT)'!#REF!)&";" -> 
B89: =IF('Caregiver Tab (FILL THIS OUT)'!B92="","",'Caregiver Tab (FILL THIS OUT)'!B92) ->  | C89: =IF('Caregiver Tab (FILL THIS OUT)'!C92="","",'Caregiver Tab (FILL THIS OUT)'!C92) ->  | D89: 3 | E89: 1 | F89: =IF('Caregiver Tab (FILL THIS OUT)'!E92="","",'Caregiver Tab (FILL THIS OUT)'!E92) ->  | G89: =IF('Caregiver Tab (FILL THIS OUT)'!F92="","",'Caregiver Tab (FILL THIS OUT)'!F92) -> TRUE | H89: =IF('Caregiver Tab (FILL THIS OUT)'!G92="","",'Caregiver Tab (FILL THIS OUT)'!G92) ->  | I89: =IF('Caregiver Tab (FILL THIS OUT)'!H92="","",'Caregiver Tab (FILL THIS OUT)'!H92) ->  | J89: =IF('Caregiver Tab (FILL THIS OUT)'!I92="","",'Caregiver Tab (FILL THIS OUT)'!I92) ->  | K89: =IF('Caregiver Tab (FILL THIS OUT)'!J92="","",'Caregiver Tab (FILL THIS OUT)'!J92) ->  | L89: =IF('Caregiver Tab (FILL THIS OUT)'!K92="","",'Caregiver Tab (FILL THIS OUT)'!K92) ->  | M89: =IF('Caregiver Tab (FILL THIS OUT)'!M92="","",'Caregiver Tab (FILL THIS OUT)'!M92) ->  | N89: =IF('Caregiver Tab (FILL THIS OUT)'!M92="","",'Caregiver Tab (FILL THIS OUT)'!M92) ->  | O89: =IF('Caregiver Tab (FILL THIS OUT)'!N92="","",'Caregiver Tab (FILL THIS OUT)'!N92) ->  | P89: =IF('Caregiver Tab (FILL THIS OUT)'!O92="","",'Caregiver Tab (FILL THIS OUT)'!O92) ->  | Q89: =IF('Caregiver Tab (FILL THIS OUT)'!P92="","",'Caregiver Tab (FILL THIS OUT)'!P92) ->  | R89: =IF('Caregiver Tab (FILL THIS OUT)'!Q92="","",'Caregiver Tab (FILL THIS OUT)'!Q92) ->  | S89: =IF('Caregiver Tab (FILL THIS OUT)'!R92="","",'Caregiver Tab (FILL THIS OUT)'!R92) ->  | T89: =IF('Caregiver Tab (FILL THIS OUT)'!S92="","",'Caregiver Tab (FILL THIS OUT)'!S92) ->  | U89: =IF('Caregiver Tab (FILL THIS OUT)'!T92="","",'Caregiver Tab (FILL THIS OUT)'!T92) ->  | V89: =IF('Caregiver Tab (FILL THIS OUT)'!U92="","",'Caregiver Tab (FILL THIS OUT)'!U92) -> caregiver | W89: =IF('Caregiver Tab (FILL THIS OUT)'!V92="","",'Caregiver Tab (FILL THIS OUT)'!V92) ->  | X89: =IF('Caregiver Tab (FILL THIS OUT)'!W92="","",'Caregiver Tab (FILL THIS OUT)'!W92) ->  | Y89: =IF('Caregiver Tab (FILL THIS OUT)'!X92="","",'Caregiver Tab (FILL THIS OUT)'!X92) ->  | Z89: ='Caregiver Tab (FILL THIS OUT)'!#REF!&IF('Caregiver Tab (FILL THIS OUT)'!#REF!="","","#"&'Caregiver Tab (FILL THIS OUT)'!#REF!)&";"&'Caregiver Tab (FILL THIS OUT)'!#REF!&IF('Caregiver Tab (FILL THIS OUT)'!#REF!="","","#"&'Caregiver Tab (FILL THIS OUT)'!#REF!)&";"&'Caregiver Tab (FILL THIS OUT)'!#REF!&IF('Caregiver Tab (FILL THIS OUT)'!#REF!="","","#"&'Caregiver Tab (FILL THIS OUT)'!#REF!)&";" -> 
B90: =IF('Caregiver Tab (FILL THIS OUT)'!B93="","",'Caregiver Tab (FILL THIS OUT)'!B93) ->  | C90: =IF('Caregiver Tab (FILL THIS OUT)'!C93="","",'Caregiver Tab (FILL THIS OUT)'!C93) ->  | D90: 3 | E90: 1 | F90: =IF('Caregiver Tab (FILL THIS OUT)'!E93="","",'Caregiver Tab (FILL THIS OUT)'!E93) ->  | G90: =IF('Caregiver Tab (FILL THIS OUT)'!F93="","",'Caregiver Tab (FILL THIS OUT)'!F93) -> TRUE | H90: =IF('Caregiver Tab (FILL THIS OUT)'!G93="","",'Caregiver Tab (FILL THIS OUT)'!G93) ->  | I90: =IF('Caregiver Tab (FILL THIS OUT)'!H93="","",'Caregiver Tab (FILL THIS OUT)'!H93) ->  | J90: =IF('Caregiver Tab (FILL THIS OUT)'!I93="","",'Caregiver Tab (FILL THIS OUT)'!I93) ->  | K90: =IF('Caregiver Tab (FILL THIS OUT)'!J93="","",'Caregiver Tab (FILL THIS OUT)'!J93) ->  | L90: =IF('Caregiver Tab (FILL THIS OUT)'!K93="","",'Caregiver Tab (FILL THIS OUT)'!K93) ->  | M90: =IF('Caregiver Tab (FILL THIS OUT)'!M93="","",'Caregiver Tab (FILL THIS OUT)'!M93) ->  | N90: =IF('Caregiver Tab (FILL THIS OUT)'!M93="","",'Caregiver Tab (FILL THIS OUT)'!M93) ->  | O90: =IF('Caregiver Tab (FILL THIS OUT)'!N93="","",'Caregiver Tab (FILL THIS OUT)'!N93) ->  | P90: =IF('Caregiver Tab (FILL THIS OUT)'!O93="","",'Caregiver Tab (FILL THIS OUT)'!O93) ->  | Q90: =IF('Caregiver Tab (FILL THIS OUT)'!P93="","",'Caregiver Tab (FILL THIS OUT)'!P93) ->  | R90: =IF('Caregiver Tab (FILL THIS OUT)'!Q93="","",'Caregiver Tab (FILL THIS OUT)'!Q93) ->  | S90: =IF('Caregiver Tab (FILL THIS OUT)'!R93="","",'Caregiver Tab (FILL THIS OUT)'!R93) ->  | T90: =IF('Caregiver Tab (FILL THIS OUT)'!S93="","",'Caregiver Tab (FILL THIS OUT)'!S93) ->  | U90: =IF('Caregiver Tab (FILL THIS OUT)'!T93="","",'Caregiver Tab (FILL THIS OUT)'!T93) ->  | V90: =IF('Caregiver Tab (FILL THIS OUT)'!U93="","",'Caregiver Tab (FILL THIS OUT)'!U93) -> caregiver | W90: =IF('Caregiver Tab (FILL THIS OUT)'!V93="","",'Caregiver Tab (FILL THIS OUT)'!V93) ->  | X90: =IF('Caregiver Tab (FILL THIS OUT)'!W93="","",'Caregiver Tab (FILL THIS OUT)'!W93) ->  | Y90: =IF('Caregiver Tab (FILL THIS OUT)'!X93="","",'Caregiver Tab (FILL THIS OUT)'!X93) ->  | Z90: ='Caregiver Tab (FILL THIS OUT)'!#REF!&IF('Caregiver Tab (FILL THIS OUT)'!#REF!="","","#"&'Caregiver Tab (FILL THIS OUT)'!#REF!)&";"&'Caregiver Tab (FILL THIS OUT)'!#REF!&IF('Caregiver Tab (FILL THIS OUT)'!#REF!="","","#"&'Caregiver Tab (FILL THIS OUT)'!#REF!)&";"&'Caregiver Tab (FILL THIS OUT)'!#REF!&IF('Caregiver Tab (FILL THIS OUT)'!#REF!="","","#"&'Caregiver Tab (FILL THIS OUT)'!#REF!)&";" -> 
B91: =IF('Caregiver Tab (FILL THIS OUT)'!B94="","",'Caregiver Tab (FILL THIS OUT)'!B94) ->  | C91: =IF('Caregiver Tab (FILL THIS OUT)'!C94="","",'Caregiver Tab (FILL THIS OUT)'!C94) ->  | D91: 3 | E91: 1 | F91: =IF('Caregiver Tab (FILL THIS OUT)'!E94="","",'Caregiver Tab (FILL THIS OUT)'!E94) ->  | G91: =IF('Caregiver Tab (FILL THIS OUT)'!F94="","",'Caregiver Tab (FILL THIS OUT)'!F94) -> TRUE | H91: =IF('Caregiver Tab (FILL THIS OUT)'!G94="","",'Caregiver Tab (FILL THIS OUT)'!G94) ->  | I91: =IF('Caregiver Tab (FILL THIS OUT)'!H94="","",'Caregiver Tab (FILL THIS OUT)'!H94) ->  | J91: =IF('Caregiver Tab (FILL THIS OUT)'!I94="","",'Caregiver Tab (FILL THIS OUT)'!I94) ->  | K91: =IF('Caregiver Tab (FILL THIS OUT)'!J94="","",'Caregiver Tab (FILL THIS OUT)'!J94) ->  | L91: =IF('Caregiver Tab (FILL THIS OUT)'!K94="","",'Caregiver Tab (FILL THIS OUT)'!K94) ->  | M91: =IF('Caregiver Tab (FILL THIS OUT)'!M94="","",'Caregiver Tab (FILL THIS OUT)'!M94) ->  | N91: =IF('Caregiver Tab (FILL THIS OUT)'!M94="","",'Caregiver Tab (FILL THIS OUT)'!M94) ->  | O91: =IF('Caregiver Tab (FILL THIS OUT)'!N94="","",'Caregiver Tab (FILL THIS OUT)'!N94) ->  | P91: =IF('Caregiver Tab (FILL THIS OUT)'!O94="","",'Caregiver Tab (FILL THIS OUT)'!O94) ->  | Q91: =IF('Caregiver Tab (FILL THIS OUT)'!P94="","",'Caregiver Tab (FILL THIS OUT)'!P94) ->  | R91: =IF('Caregiver Tab (FILL THIS OUT)'!Q94="","",'Caregiver Tab (FILL THIS OUT)'!Q94) ->  | S91: =IF('Caregiver Tab (FILL THIS OUT)'!R94="","",'Caregiver Tab (FILL THIS OUT)'!R94) ->  | T91: =IF('Caregiver Tab (FILL THIS OUT)'!S94="","",'Caregiver Tab (FILL THIS OUT)'!S94) ->  | U91: =IF('Caregiver Tab (FILL THIS OUT)'!T94="","",'Caregiver Tab (FILL THIS OUT)'!T94) ->  | V91: =IF('Caregiver Tab (FILL THIS OUT)'!U94="","",'Caregiver Tab (FILL THIS OUT)'!U94) -> caregiver | W91: =IF('Caregiver Tab (FILL THIS OUT)'!V94="","",'Caregiver Tab (FILL THIS OUT)'!V94) ->  | X91: =IF('Caregiver Tab (FILL THIS OUT)'!W94="","",'Caregiver Tab (FILL THIS OUT)'!W94) ->  | Y91: =IF('Caregiver Tab (FILL THIS OUT)'!X94="","",'Caregiver Tab (FILL THIS OUT)'!X94) ->  | Z91: ='Caregiver Tab (FILL THIS OUT)'!#REF!&IF('Caregiver Tab (FILL THIS OUT)'!#REF!="","","#"&'Caregiver Tab (FILL THIS OUT)'!#REF!)&";"&'Caregiver Tab (FILL THIS OUT)'!#REF!&IF('Caregiver Tab (FILL THIS OUT)'!#REF!="","","#"&'Caregiver Tab (FILL THIS OUT)'!#REF!)&";"&'Caregiver Tab (FILL THIS OUT)'!#REF!&IF('Caregiver Tab (FILL THIS OUT)'!#REF!="","","#"&'Caregiver Tab (FILL THIS OUT)'!#REF!)&";" -> 
B92: =IF('Caregiver Tab (FILL THIS OUT)'!B95="","",'Caregiver Tab (FILL THIS OUT)'!B95) ->  | C92: =IF('Caregiver Tab (FILL THIS OUT)'!C95="","",'Caregiver Tab (FILL THIS OUT)'!C95) ->  | D92: 3 | E92: 1 | F92: =IF('Caregiver Tab (FILL THIS OUT)'!E95="","",'Caregiver Tab (FILL THIS OUT)'!E95) ->  | G92: =IF('Caregiver Tab (FILL THIS OUT)'!F95="","",'Caregiver Tab (FILL THIS OUT)'!F95) -> TRUE | H92: =IF('Caregiver Tab (FILL THIS OUT)'!G95="","",'Caregiver Tab (FILL THIS OUT)'!G95) ->  | I92: =IF('Caregiver Tab (FILL THIS OUT)'!H95="","",'Caregiver Tab (FILL THIS OUT)'!H95) ->  | J92: =IF('Caregiver Tab (FILL THIS OUT)'!I95="","",'Caregiver Tab (FILL THIS OUT)'!I95) ->  | K92: =IF('Caregiver Tab (FILL THIS OUT)'!J95="","",'Caregiver Tab (FILL THIS OUT)'!J95) ->  | L92: =IF('Caregiver Tab (FILL THIS OUT)'!K95="","",'Caregiver Tab (FILL THIS OUT)'!K95) ->  | M92: =IF('Caregiver Tab (FILL THIS OUT)'!M95="","",'Caregiver Tab (FILL THIS OUT)'!M95) ->  | N92: =IF('Caregiver Tab (FILL THIS OUT)'!M95="","",'Caregiver Tab (FILL THIS OUT)'!M95) ->  | O92: =IF('Caregiver Tab (FILL THIS OUT)'!N95="","",'Caregiver Tab (FILL THIS OUT)'!N95) ->  | P92: =IF('Caregiver Tab (FILL THIS OUT)'!O95="","",'Caregiver Tab (FILL THIS OUT)'!O95) ->  | Q92: =IF('Caregiver Tab (FILL THIS OUT)'!P95="","",'Caregiver Tab (FILL THIS OUT)'!P95) ->  | R92: =IF('Caregiver Tab (FILL THIS OUT)'!Q95="","",'Caregiver Tab (FILL THIS OUT)'!Q95) ->  | S92: =IF('Caregiver Tab (FILL THIS OUT)'!R95="","",'Caregiver Tab (FILL THIS OUT)'!R95) ->  | T92: =IF('Caregiver Tab (FILL THIS OUT)'!S95="","",'Caregiver Tab (FILL THIS OUT)'!S95) ->  | U92: =IF('Caregiver Tab (FILL THIS OUT)'!T95="","",'Caregiver Tab (FILL THIS OUT)'!T95) ->  | V92: =IF('Caregiver Tab (FILL THIS OUT)'!U95="","",'Caregiver Tab (FILL THIS OUT)'!U95) -> caregiver | W92: =IF('Caregiver Tab (FILL THIS OUT)'!V95="","",'Caregiver Tab (FILL THIS OUT)'!V95) ->  | X92: =IF('Caregiver Tab (FILL THIS OUT)'!W95="","",'Caregiver Tab (FILL THIS OUT)'!W95) ->  | Y92: =IF('Caregiver Tab (FILL THIS OUT)'!X95="","",'Caregiver Tab (FILL THIS OUT)'!X95) ->  | Z92: ='Caregiver Tab (FILL THIS OUT)'!#REF!&IF('Caregiver Tab (FILL THIS OUT)'!#REF!="","","#"&'Caregiver Tab (FILL THIS OUT)'!#REF!)&";"&'Caregiver Tab (FILL THIS OUT)'!#REF!&IF('Caregiver Tab (FILL THIS OUT)'!#REF!="","","#"&'Caregiver Tab (FILL THIS OUT)'!#REF!)&";"&'Caregiver Tab (FILL THIS OUT)'!#REF!&IF('Caregiver Tab (FILL THIS OUT)'!#REF!="","","#"&'Caregiver Tab (FILL THIS OUT)'!#REF!)&";" -> 
B93: =IF('Caregiver Tab (FILL THIS OUT)'!B96="","",'Caregiver Tab (FILL THIS OUT)'!B96) ->  | C93: =IF('Caregiver Tab (FILL THIS OUT)'!C96="","",'Caregiver Tab (FILL THIS OUT)'!C96) ->  | D93: 3 | E93: 1 | F93: =IF('Caregiver Tab (FILL THIS OUT)'!E96="","",'Caregiver Tab (FILL THIS OUT)'!E96) ->  | G93: =IF('Caregiver Tab (FILL THIS OUT)'!F96="","",'Caregiver Tab (FILL THIS OUT)'!F96) -> TRUE | H93: =IF('Caregiver Tab (FILL THIS OUT)'!G96="","",'Caregiver Tab (FILL THIS OUT)'!G96) ->  | I93: =IF('Caregiver Tab (FILL THIS OUT)'!H96="","",'Caregiver Tab (FILL THIS OUT)'!H96) ->  | J93: =IF('Caregiver Tab (FILL THIS OUT)'!I96="","",'Caregiver Tab (FILL THIS OUT)'!I96) ->  | K93: =IF('Caregiver Tab (FILL THIS OUT)'!J96="","",'Caregiver Tab (FILL THIS OUT)'!J96) ->  | L93: =IF('Caregiver Tab (FILL THIS OUT)'!K96="","",'Caregiver Tab (FILL THIS OUT)'!K96) ->  | M93: =IF('Caregiver Tab (FILL THIS OUT)'!M96="","",'Caregiver Tab (FILL THIS OUT)'!M96) ->  | N93: =IF('Caregiver Tab (FILL THIS OUT)'!M96="","",'Caregiver Tab (FILL THIS OUT)'!M96) ->  | O93: =IF('Caregiver Tab (FILL THIS OUT)'!N96="","",'Caregiver Tab (FILL THIS OUT)'!N96) ->  | P93: =IF('Caregiver Tab (FILL THIS OUT)'!O96="","",'Caregiver Tab (FILL THIS OUT)'!O96) ->  | Q93: =IF('Caregiver Tab (FILL THIS OUT)'!P96="","",'Caregiver Tab (FILL THIS OUT)'!P96) ->  | R93: =IF('Caregiver Tab (FILL THIS OUT)'!Q96="","",'Caregiver Tab (FILL THIS OUT)'!Q96) ->  | S93: =IF('Caregiver Tab (FILL THIS OUT)'!R96="","",'Caregiver Tab (FILL THIS OUT)'!R96) ->  | T93: =IF('Caregiver Tab (FILL THIS OUT)'!S96="","",'Caregiver Tab (FILL THIS OUT)'!S96) ->  | U93: =IF('Caregiver Tab (FILL THIS OUT)'!T96="","",'Caregiver Tab (FILL THIS OUT)'!T96) ->  | V93: =IF('Caregiver Tab (FILL THIS OUT)'!U96="","",'Caregiver Tab (FILL THIS OUT)'!U96) -> caregiver | W93: =IF('Caregiver Tab (FILL THIS OUT)'!V96="","",'Caregiver Tab (FILL THIS OUT)'!V96) ->  | X93: =IF('Caregiver Tab (FILL THIS OUT)'!W96="","",'Caregiver Tab (FILL THIS OUT)'!W96) ->  | Y93: =IF('Caregiver Tab (FILL THIS OUT)'!X96="","",'Caregiver Tab (FILL THIS OUT)'!X96) ->  | Z93: ='Caregiver Tab (FILL THIS OUT)'!#REF!&IF('Caregiver Tab (FILL THIS OUT)'!#REF!="","","#"&'Caregiver Tab (FILL THIS OUT)'!#REF!)&";"&'Caregiver Tab (FILL THIS OUT)'!#REF!&IF('Caregiver Tab (FILL THIS OUT)'!#REF!="","","#"&'Caregiver Tab (FILL THIS OUT)'!#REF!)&";"&'Caregiver Tab (FILL THIS OUT)'!#REF!&IF('Caregiver Tab (FILL THIS OUT)'!#REF!="","","#"&'Caregiver Tab (FILL THIS OUT)'!#REF!)&";" -> 
B94: =IF('Caregiver Tab (FILL THIS OUT)'!B97="","",'Caregiver Tab (FILL THIS OUT)'!B97) ->  | C94: =IF('Caregiver Tab (FILL THIS OUT)'!C97="","",'Caregiver Tab (FILL THIS OUT)'!C97) ->  | D94: 3 | E94: 1 | F94: =IF('Caregiver Tab (FILL THIS OUT)'!E97="","",'Caregiver Tab (FILL THIS OUT)'!E97) ->  | G94: =IF('Caregiver Tab (FILL THIS OUT)'!F97="","",'Caregiver Tab (FILL THIS OUT)'!F97) -> TRUE | H94: =IF('Caregiver Tab (FILL THIS OUT)'!G97="","",'Caregiver Tab (FILL THIS OUT)'!G97) ->  | I94: =IF('Caregiver Tab (FILL THIS OUT)'!H97="","",'Caregiver Tab (FILL THIS OUT)'!H97) ->  | J94: =IF('Caregiver Tab (FILL THIS OUT)'!I97="","",'Caregiver Tab (FILL THIS OUT)'!I97) ->  | K94: =IF('Caregiver Tab (FILL THIS OUT)'!J97="","",'Caregiver Tab (FILL THIS OUT)'!J97) ->  | L94: =IF('Caregiver Tab (FILL THIS OUT)'!K97="","",'Caregiver Tab (FILL THIS OUT)'!K97) ->  | M94: =IF('Caregiver Tab (FILL THIS OUT)'!M97="","",'Caregiver Tab (FILL THIS OUT)'!M97) ->  | N94: =IF('Caregiver Tab (FILL THIS OUT)'!M97="","",'Caregiver Tab (FILL THIS OUT)'!M97) ->  | O94: =IF('Caregiver Tab (FILL THIS OUT)'!N97="","",'Caregiver Tab (FILL THIS OUT)'!N97) ->  | P94: =IF('Caregiver Tab (FILL THIS OUT)'!O97="","",'Caregiver Tab (FILL THIS OUT)'!O97) ->  | Q94: =IF('Caregiver Tab (FILL THIS OUT)'!P97="","",'Caregiver Tab (FILL THIS OUT)'!P97) ->  | R94: =IF('Caregiver Tab (FILL THIS OUT)'!Q97="","",'Caregiver Tab (FILL THIS OUT)'!Q97) ->  | S94: =IF('Caregiver Tab (FILL THIS OUT)'!R97="","",'Caregiver Tab (FILL THIS OUT)'!R97) ->  | T94: =IF('Caregiver Tab (FILL THIS OUT)'!S97="","",'Caregiver Tab (FILL THIS OUT)'!S97) ->  | U94: =IF('Caregiver Tab (FILL THIS OUT)'!T97="","",'Caregiver Tab (FILL THIS OUT)'!T97) ->  | V94: =IF('Caregiver Tab (FILL THIS OUT)'!U97="","",'Caregiver Tab (FILL THIS OUT)'!U97) -> caregiver | W94: =IF('Caregiver Tab (FILL THIS OUT)'!V97="","",'Caregiver Tab (FILL THIS OUT)'!V97) ->  | X94: =IF('Caregiver Tab (FILL THIS OUT)'!W97="","",'Caregiver Tab (FILL THIS OUT)'!W97) ->  | Y94: =IF('Caregiver Tab (FILL THIS OUT)'!X97="","",'Caregiver Tab (FILL THIS OUT)'!X97) ->  | Z94: ='Caregiver Tab (FILL THIS OUT)'!#REF!&IF('Caregiver Tab (FILL THIS OUT)'!#REF!="","","#"&'Caregiver Tab (FILL THIS OUT)'!#REF!)&";"&'Caregiver Tab (FILL THIS OUT)'!#REF!&IF('Caregiver Tab (FILL THIS OUT)'!#REF!="","","#"&'Caregiver Tab (FILL THIS OUT)'!#REF!)&";"&'Caregiver Tab (FILL THIS OUT)'!#REF!&IF('Caregiver Tab (FILL THIS OUT)'!#REF!="","","#"&'Caregiver Tab (FILL THIS OUT)'!#REF!)&";" -> 
B95: =IF('Caregiver Tab (FILL THIS OUT)'!B98="","",'Caregiver Tab (FILL THIS OUT)'!B98) ->  | C95: =IF('Caregiver Tab (FILL THIS OUT)'!C98="","",'Caregiver Tab (FILL THIS OUT)'!C98) ->  | D95: 3 | E95: 1 | F95: =IF('Caregiver Tab (FILL THIS OUT)'!E98="","",'Caregiver Tab (FILL THIS OUT)'!E98) ->  | G95: =IF('Caregiver Tab (FILL THIS OUT)'!F98="","",'Caregiver Tab (FILL THIS OUT)'!F98) -> TRUE | H95: =IF('Caregiver Tab (FILL THIS OUT)'!G98="","",'Caregiver Tab (FILL THIS OUT)'!G98) ->  | I95: =IF('Caregiver Tab (FILL THIS OUT)'!H98="","",'Caregiver Tab (FILL THIS OUT)'!H98) ->  | J95: =IF('Caregiver Tab (FILL THIS OUT)'!I98="","",'Caregiver Tab (FILL THIS OUT)'!I98) ->  | K95: =IF('Caregiver Tab (FILL THIS OUT)'!J98="","",'Caregiver Tab (FILL THIS OUT)'!J98) ->  | L95: =IF('Caregiver Tab (FILL THIS OUT)'!K98="","",'Caregiver Tab (FILL THIS OUT)'!K98) ->  | M95: =IF('Caregiver Tab (FILL THIS OUT)'!M98="","",'Caregiver Tab (FILL THIS OUT)'!M98) ->  | N95: =IF('Caregiver Tab (FILL THIS OUT)'!M98="","",'Caregiver Tab (FILL THIS OUT)'!M98) ->  | O95: =IF('Caregiver Tab (FILL THIS OUT)'!N98="","",'Caregiver Tab (FILL THIS OUT)'!N98) ->  | P95: =IF('Caregiver Tab (FILL THIS OUT)'!O98="","",'Caregiver Tab (FILL THIS OUT)'!O98) ->  | Q95: =IF('Caregiver Tab (FILL THIS OUT)'!P98="","",'Caregiver Tab (FILL THIS OUT)'!P98) ->  | R95: =IF('Caregiver Tab (FILL THIS OUT)'!Q98="","",'Caregiver Tab (FILL THIS OUT)'!Q98) ->  | S95: =IF('Caregiver Tab (FILL THIS OUT)'!R98="","",'Caregiver Tab (FILL THIS OUT)'!R98) ->  | T95: =IF('Caregiver Tab (FILL THIS OUT)'!S98="","",'Caregiver Tab (FILL THIS OUT)'!S98) ->  | U95: =IF('Caregiver Tab (FILL THIS OUT)'!T98="","",'Caregiver Tab (FILL THIS OUT)'!T98) ->  | V95: =IF('Caregiver Tab (FILL THIS OUT)'!U98="","",'Caregiver Tab (FILL THIS OUT)'!U98) -> caregiver | W95: =IF('Caregiver Tab (FILL THIS OUT)'!V98="","",'Caregiver Tab (FILL THIS OUT)'!V98) ->  | X95: =IF('Caregiver Tab (FILL THIS OUT)'!W98="","",'Caregiver Tab (FILL THIS OUT)'!W98) ->  | Y95: =IF('Caregiver Tab (FILL THIS OUT)'!X98="","",'Caregiver Tab (FILL THIS OUT)'!X98) ->  | Z95: ='Caregiver Tab (FILL THIS OUT)'!#REF!&IF('Caregiver Tab (FILL THIS OUT)'!#REF!="","","#"&'Caregiver Tab (FILL THIS OUT)'!#REF!)&";"&'Caregiver Tab (FILL THIS OUT)'!#REF!&IF('Caregiver Tab (FILL THIS OUT)'!#REF!="","","#"&'Caregiver Tab (FILL THIS OUT)'!#REF!)&";"&'Caregiver Tab (FILL THIS OUT)'!#REF!&IF('Caregiver Tab (FILL THIS OUT)'!#REF!="","","#"&'Caregiver Tab (FILL THIS OUT)'!#REF!)&";" -> 
B96: =IF('Caregiver Tab (FILL THIS OUT)'!B99="","",'Caregiver Tab (FILL THIS OUT)'!B99) ->  | C96: =IF('Caregiver Tab (FILL THIS OUT)'!C99="","",'Caregiver Tab (FILL THIS OUT)'!C99) ->  | D96: 3 | E96: 1 | F96: =IF('Caregiver Tab (FILL THIS OUT)'!E99="","",'Caregiver Tab (FILL THIS OUT)'!E99) ->  | G96: =IF('Caregiver Tab (FILL THIS OUT)'!F99="","",'Caregiver Tab (FILL THIS OUT)'!F99) -> TRUE | H96: =IF('Caregiver Tab (FILL THIS OUT)'!G99="","",'Caregiver Tab (FILL THIS OUT)'!G99) ->  | I96: =IF('Caregiver Tab (FILL THIS OUT)'!H99="","",'Caregiver Tab (FILL THIS OUT)'!H99) ->  | J96: =IF('Caregiver Tab (FILL THIS OUT)'!I99="","",'Caregiver Tab (FILL THIS OUT)'!I99) ->  | K96: =IF('Caregiver Tab (FILL THIS OUT)'!J99="","",'Caregiver Tab (FILL THIS OUT)'!J99) ->  | L96: =IF('Caregiver Tab (FILL THIS OUT)'!K99="","",'Caregiver Tab (FILL THIS OUT)'!K99) ->  | M96: =IF('Caregiver Tab (FILL THIS OUT)'!M99="","",'Caregiver Tab (FILL THIS OUT)'!M99) ->  | N96: =IF('Caregiver Tab (FILL THIS OUT)'!M99="","",'Caregiver Tab (FILL THIS OUT)'!M99) ->  | O96: =IF('Caregiver Tab (FILL THIS OUT)'!N99="","",'Caregiver Tab (FILL THIS OUT)'!N99) ->  | P96: =IF('Caregiver Tab (FILL THIS OUT)'!O99="","",'Caregiver Tab (FILL THIS OUT)'!O99) ->  | Q96: =IF('Caregiver Tab (FILL THIS OUT)'!P99="","",'Caregiver Tab (FILL THIS OUT)'!P99) ->  | R96: =IF('Caregiver Tab (FILL THIS OUT)'!Q99="","",'Caregiver Tab (FILL THIS OUT)'!Q99) ->  | S96: =IF('Caregiver Tab (FILL THIS OUT)'!R99="","",'Caregiver Tab (FILL THIS OUT)'!R99) ->  | T96: =IF('Caregiver Tab (FILL THIS OUT)'!S99="","",'Caregiver Tab (FILL THIS OUT)'!S99) ->  | U96: =IF('Caregiver Tab (FILL THIS OUT)'!T99="","",'Caregiver Tab (FILL THIS OUT)'!T99) ->  | V96: =IF('Caregiver Tab (FILL THIS OUT)'!U99="","",'Caregiver Tab (FILL THIS OUT)'!U99) -> caregiver | W96: =IF('Caregiver Tab (FILL THIS OUT)'!V99="","",'Caregiver Tab (FILL THIS OUT)'!V99) ->  | X96: =IF('Caregiver Tab (FILL THIS OUT)'!W99="","",'Caregiver Tab (FILL THIS OUT)'!W99) ->  | Y96: =IF('Caregiver Tab (FILL THIS OUT)'!X99="","",'Caregiver Tab (FILL THIS OUT)'!X99) ->  | Z96: ='Caregiver Tab (FILL THIS OUT)'!#REF!&IF('Caregiver Tab (FILL THIS OUT)'!#REF!="","","#"&'Caregiver Tab (FILL THIS OUT)'!#REF!)&";"&'Caregiver Tab (FILL THIS OUT)'!#REF!&IF('Caregiver Tab (FILL THIS OUT)'!#REF!="","","#"&'Caregiver Tab (FILL THIS OUT)'!#REF!)&";"&'Caregiver Tab (FILL THIS OUT)'!#REF!&IF('Caregiver Tab (FILL THIS OUT)'!#REF!="","","#"&'Caregiver Tab (FILL THIS OUT)'!#REF!)&";" -> 
B97: =IF('Caregiver Tab (FILL THIS OUT)'!B100="","",'Caregiver Tab (FILL THIS OUT)'!B100) ->  | C97: =IF('Caregiver Tab (FILL THIS OUT)'!C100="","",'Caregiver Tab (FILL THIS OUT)'!C100) ->  | D97: 3 | E97: 1 | F97: =IF('Caregiver Tab (FILL THIS OUT)'!E100="","",'Caregiver Tab (FILL THIS OUT)'!E100) ->  | G97: =IF('Caregiver Tab (FILL THIS OUT)'!F100="","",'Caregiver Tab (FILL THIS OUT)'!F100) -> TRUE | H97: =IF('Caregiver Tab (FILL THIS OUT)'!G100="","",'Caregiver Tab (FILL THIS OUT)'!G100) ->  | I97: =IF('Caregiver Tab (FILL THIS OUT)'!H100="","",'Caregiver Tab (FILL THIS OUT)'!H100) ->  | J97: =IF('Caregiver Tab (FILL THIS OUT)'!I100="","",'Caregiver Tab (FILL THIS OUT)'!I100) ->  | K97: =IF('Caregiver Tab (FILL THIS OUT)'!J100="","",'Caregiver Tab (FILL THIS OUT)'!J100) ->  | L97: =IF('Caregiver Tab (FILL THIS OUT)'!K100="","",'Caregiver Tab (FILL THIS OUT)'!K100) ->  | M97: =IF('Caregiver Tab (FILL THIS OUT)'!M100="","",'Caregiver Tab (FILL THIS OUT)'!M100) ->  | N97: =IF('Caregiver Tab (FILL THIS OUT)'!M100="","",'Caregiver Tab (FILL THIS OUT)'!M100) ->  | O97: =IF('Caregiver Tab (FILL THIS OUT)'!N100="","",'Caregiver Tab (FILL THIS OUT)'!N100) ->  | P97: =IF('Caregiver Tab (FILL THIS OUT)'!O100="","",'Caregiver Tab (FILL THIS OUT)'!O100) ->  | Q97: =IF('Caregiver Tab (FILL THIS OUT)'!P100="","",'Caregiver Tab (FILL THIS OUT)'!P100) ->  | R97: =IF('Caregiver Tab (FILL THIS OUT)'!Q100="","",'Caregiver Tab (FILL THIS OUT)'!Q100) ->  | S97: =IF('Caregiver Tab (FILL THIS OUT)'!R100="","",'Caregiver Tab (FILL THIS OUT)'!R100) ->  | T97: =IF('Caregiver Tab (FILL THIS OUT)'!S100="","",'Caregiver Tab (FILL THIS OUT)'!S100) ->  | U97: =IF('Caregiver Tab (FILL THIS OUT)'!T100="","",'Caregiver Tab (FILL THIS OUT)'!T100) ->  | V97: =IF('Caregiver Tab (FILL THIS OUT)'!U100="","",'Caregiver Tab (FILL THIS OUT)'!U100) -> caregiver | W97: =IF('Caregiver Tab (FILL THIS OUT)'!V100="","",'Caregiver Tab (FILL THIS OUT)'!V100) ->  | X97: =IF('Caregiver Tab (FILL THIS OUT)'!W100="","",'Caregiver Tab (FILL THIS OUT)'!W100) ->  | Y97: =IF('Caregiver Tab (FILL THIS OUT)'!X100="","",'Caregiver Tab (FILL THIS OUT)'!X100) ->  | Z97: ='Caregiver Tab (FILL THIS OUT)'!#REF!&IF('Caregiver Tab (FILL THIS OUT)'!#REF!="","","#"&'Caregiver Tab (FILL THIS OUT)'!#REF!)&";"&'Caregiver Tab (FILL THIS OUT)'!#REF!&IF('Caregiver Tab (FILL THIS OUT)'!#REF!="","","#"&'Caregiver Tab (FILL THIS OUT)'!#REF!)&";"&'Caregiver Tab (FILL THIS OUT)'!#REF!&IF('Caregiver Tab (FILL THIS OUT)'!#REF!="","","#"&'Caregiver Tab (FILL THIS OUT)'!#REF!)&";" -> 
B98: =IF('Caregiver Tab (FILL THIS OUT)'!B101="","",'Caregiver Tab (FILL THIS OUT)'!B101) ->  | C98: =IF('Caregiver Tab (FILL THIS OUT)'!C101="","",'Caregiver Tab (FILL THIS OUT)'!C101) ->  | D98: 3 | E98: 1 | F98: =IF('Caregiver Tab (FILL THIS OUT)'!E101="","",'Caregiver Tab (FILL THIS OUT)'!E101) ->  | G98: =IF('Caregiver Tab (FILL THIS OUT)'!F101="","",'Caregiver Tab (FILL THIS OUT)'!F101) -> TRUE | H98: =IF('Caregiver Tab (FILL THIS OUT)'!G101="","",'Caregiver Tab (FILL THIS OUT)'!G101) ->  | I98: =IF('Caregiver Tab (FILL THIS OUT)'!H101="","",'Caregiver Tab (FILL THIS OUT)'!H101) ->  | J98: =IF('Caregiver Tab (FILL THIS OUT)'!I101="","",'Caregiver Tab (FILL THIS OUT)'!I101) ->  | K98: =IF('Caregiver Tab (FILL THIS OUT)'!J101="","",'Caregiver Tab (FILL THIS OUT)'!J101) ->  | L98: =IF('Caregiver Tab (FILL THIS OUT)'!K101="","",'Caregiver Tab (FILL THIS OUT)'!K101) ->  | M98: =IF('Caregiver Tab (FILL THIS OUT)'!M101="","",'Caregiver Tab (FILL THIS OUT)'!M101) ->  | N98: =IF('Caregiver Tab (FILL THIS OUT)'!M101="","",'Caregiver Tab (FILL THIS OUT)'!M101) ->  | O98: =IF('Caregiver Tab (FILL THIS OUT)'!N101="","",'Caregiver Tab (FILL THIS OUT)'!N101) ->  | P98: =IF('Caregiver Tab (FILL THIS OUT)'!O101="","",'Caregiver Tab (FILL THIS OUT)'!O101) ->  | Q98: =IF('Caregiver Tab (FILL THIS OUT)'!P101="","",'Caregiver Tab (FILL THIS OUT)'!P101) ->  | R98: =IF('Caregiver Tab (FILL THIS OUT)'!Q101="","",'Caregiver Tab (FILL THIS OUT)'!Q101) ->  | S98: =IF('Caregiver Tab (FILL THIS OUT)'!R101="","",'Caregiver Tab (FILL THIS OUT)'!R101) ->  | T98: =IF('Caregiver Tab (FILL THIS OUT)'!S101="","",'Caregiver Tab (FILL THIS OUT)'!S101) ->  | U98: =IF('Caregiver Tab (FILL THIS OUT)'!T101="","",'Caregiver Tab (FILL THIS OUT)'!T101) ->  | V98: =IF('Caregiver Tab (FILL THIS OUT)'!U101="","",'Caregiver Tab (FILL THIS OUT)'!U101) -> caregiver | W98: =IF('Caregiver Tab (FILL THIS OUT)'!V101="","",'Caregiver Tab (FILL THIS OUT)'!V101) ->  | X98: =IF('Caregiver Tab (FILL THIS OUT)'!W101="","",'Caregiver Tab (FILL THIS OUT)'!W101) ->  | Y98: =IF('Caregiver Tab (FILL THIS OUT)'!X101="","",'Caregiver Tab (FILL THIS OUT)'!X101) ->  | Z98: ='Caregiver Tab (FILL THIS OUT)'!#REF!&IF('Caregiver Tab (FILL THIS OUT)'!#REF!="","","#"&'Caregiver Tab (FILL THIS OUT)'!#REF!)&";"&'Caregiver Tab (FILL THIS OUT)'!#REF!&IF('Caregiver Tab (FILL THIS OUT)'!#REF!="","","#"&'Caregiver Tab (FILL THIS OUT)'!#REF!)&";"&'Caregiver Tab (FILL THIS OUT)'!#REF!&IF('Caregiver Tab (FILL THIS OUT)'!#REF!="","","#"&'Caregiver Tab (FILL THIS OUT)'!#REF!)&";" -> 
B99: =IF('Caregiver Tab (FILL THIS OUT)'!B102="","",'Caregiver Tab (FILL THIS OUT)'!B102) ->  | C99: =IF('Caregiver Tab (FILL THIS OUT)'!C102="","",'Caregiver Tab (FILL THIS OUT)'!C102) ->  | D99: 3 | E99: 1 | F99: =IF('Caregiver Tab (FILL THIS OUT)'!E102="","",'Caregiver Tab (FILL THIS OUT)'!E102) ->  | G99: =IF('Caregiver Tab (FILL THIS OUT)'!F102="","",'Caregiver Tab (FILL THIS OUT)'!F102) -> TRUE | H99: =IF('Caregiver Tab (FILL THIS OUT)'!G102="","",'Caregiver Tab (FILL THIS OUT)'!G102) ->  | I99: =IF('Caregiver Tab (FILL THIS OUT)'!H102="","",'Caregiver Tab (FILL THIS OUT)'!H102) ->  | J99: =IF('Caregiver Tab (FILL THIS OUT)'!I102="","",'Caregiver Tab (FILL THIS OUT)'!I102) ->  | K99: =IF('Caregiver Tab (FILL THIS OUT)'!J102="","",'Caregiver Tab (FILL THIS OUT)'!J102) ->  | L99: =IF('Caregiver Tab (FILL THIS OUT)'!K102="","",'Caregiver Tab (FILL THIS OUT)'!K102) ->  | M99: =IF('Caregiver Tab (FILL THIS OUT)'!M102="","",'Caregiver Tab (FILL THIS OUT)'!M102) ->  | N99: =IF('Caregiver Tab (FILL THIS OUT)'!M102="","",'Caregiver Tab (FILL THIS OUT)'!M102) ->  | O99: =IF('Caregiver Tab (FILL THIS OUT)'!N102="","",'Caregiver Tab (FILL THIS OUT)'!N102) ->  | P99: =IF('Caregiver Tab (FILL THIS OUT)'!O102="","",'Caregiver Tab (FILL THIS OUT)'!O102) ->  | Q99: =IF('Caregiver Tab (FILL THIS OUT)'!P102="","",'Caregiver Tab (FILL THIS OUT)'!P102) ->  | R99: =IF('Caregiver Tab (FILL THIS OUT)'!Q102="","",'Caregiver Tab (FILL THIS OUT)'!Q102) ->  | S99: =IF('Caregiver Tab (FILL THIS OUT)'!R102="","",'Caregiver Tab (FILL THIS OUT)'!R102) ->  | T99: =IF('Caregiver Tab (FILL THIS OUT)'!S102="","",'Caregiver Tab (FILL THIS OUT)'!S102) ->  | U99: =IF('Caregiver Tab (FILL THIS OUT)'!T102="","",'Caregiver Tab (FILL THIS OUT)'!T102) ->  | V99: =IF('Caregiver Tab (FILL THIS OUT)'!U102="","",'Caregiver Tab (FILL THIS OUT)'!U102) -> caregiver | W99: =IF('Caregiver Tab (FILL THIS OUT)'!V102="","",'Caregiver Tab (FILL THIS OUT)'!V102) ->  | X99: =IF('Caregiver Tab (FILL THIS OUT)'!W102="","",'Caregiver Tab (FILL THIS OUT)'!W102) ->  | Y99: =IF('Caregiver Tab (FILL THIS OUT)'!X102="","",'Caregiver Tab (FILL THIS OUT)'!X102) ->  | Z99: ='Caregiver Tab (FILL THIS OUT)'!#REF!&IF('Caregiver Tab (FILL THIS OUT)'!#REF!="","","#"&'Caregiver Tab (FILL THIS OUT)'!#REF!)&";"&'Caregiver Tab (FILL THIS OUT)'!#REF!&IF('Caregiver Tab (FILL THIS OUT)'!#REF!="","","#"&'Caregiver Tab (FILL THIS OUT)'!#REF!)&";"&'Caregiver Tab (FILL THIS OUT)'!#REF!&IF('Caregiver Tab (FILL THIS OUT)'!#REF!="","","#"&'Caregiver Tab (FILL THIS OUT)'!#REF!)&";" -> 
B100: =IF('Caregiver Tab (FILL THIS OUT)'!B103="","",'Caregiver Tab (FILL THIS OUT)'!B103) ->  | C100: =IF('Caregiver Tab (FILL THIS OUT)'!C103="","",'Caregiver Tab (FILL THIS OUT)'!C103) ->  | D100: 3 | E100: 1 | F100: =IF('Caregiver Tab (FILL THIS OUT)'!E103="","",'Caregiver Tab (FILL THIS OUT)'!E103) ->  | G100: =IF('Caregiver Tab (FILL THIS OUT)'!F103="","",'Caregiver Tab (FILL THIS OUT)'!F103) -> TRUE | H100: =IF('Caregiver Tab (FILL THIS OUT)'!G103="","",'Caregiver Tab (FILL THIS OUT)'!G103) ->  | I100: =IF('Caregiver Tab (FILL THIS OUT)'!H103="","",'Caregiver Tab (FILL THIS OUT)'!H103) ->  | J100: =IF('Caregiver Tab (FILL THIS OUT)'!I103="","",'Caregiver Tab (FILL THIS OUT)'!I103) ->  | K100: =IF('Caregiver Tab (FILL THIS OUT)'!J103="","",'Caregiver Tab (FILL THIS OUT)'!J103) ->  | L100: =IF('Caregiver Tab (FILL THIS OUT)'!K103="","",'Caregiver Tab (FILL THIS OUT)'!K103) ->  | M100: =IF('Caregiver Tab (FILL THIS OUT)'!M103="","",'Caregiver Tab (FILL THIS OUT)'!M103) ->  | N100: =IF('Caregiver Tab (FILL THIS OUT)'!M103="","",'Caregiver Tab (FILL THIS OUT)'!M103) ->  | O100: =IF('Caregiver Tab (FILL THIS OUT)'!N103="","",'Caregiver Tab (FILL THIS OUT)'!N103) ->  | P100: =IF('Caregiver Tab (FILL THIS OUT)'!O103="","",'Caregiver Tab (FILL THIS OUT)'!O103) ->  | Q100: =IF('Caregiver Tab (FILL THIS OUT)'!P103="","",'Caregiver Tab (FILL THIS OUT)'!P103) ->  | R100: =IF('Caregiver Tab (FILL THIS OUT)'!Q103="","",'Caregiver Tab (FILL THIS OUT)'!Q103) ->  | S100: =IF('Caregiver Tab (FILL THIS OUT)'!R103="","",'Caregiver Tab (FILL THIS OUT)'!R103) ->  | T100: =IF('Caregiver Tab (FILL THIS OUT)'!S103="","",'Caregiver Tab (FILL THIS OUT)'!S103) ->  | U100: =IF('Caregiver Tab (FILL THIS OUT)'!T103="","",'Caregiver Tab (FILL THIS OUT)'!T103) ->  | V100: =IF('Caregiver Tab (FILL THIS OUT)'!U103="","",'Caregiver Tab (FILL THIS OUT)'!U103) -> caregiver | W100: =IF('Caregiver Tab (FILL THIS OUT)'!V103="","",'Caregiver Tab (FILL THIS OUT)'!V103) ->  | X100: =IF('Caregiver Tab (FILL THIS OUT)'!W103="","",'Caregiver Tab (FILL THIS OUT)'!W103) ->  | Y100: =IF('Caregiver Tab (FILL THIS OUT)'!X103="","",'Caregiver Tab (FILL THIS OUT)'!X103) ->  | Z100: ='Caregiver Tab (FILL THIS OUT)'!#REF!&IF('Caregiver Tab (FILL THIS OUT)'!#REF!="","","#"&'Caregiver Tab (FILL THIS OUT)'!#REF!)&";"&'Caregiver Tab (FILL THIS OUT)'!#REF!&IF('Caregiver Tab (FILL THIS OUT)'!#REF!="","","#"&'Caregiver Tab (FILL THIS OUT)'!#REF!)&";"&'Caregiver Tab (FILL THIS OUT)'!#REF!&IF('Caregiver Tab (FILL THIS OUT)'!#REF!="","","#"&'Caregiver Tab (FILL THIS OUT)'!#REF!)&";" -> 
B101: =IF('Caregiver Tab (FILL THIS OUT)'!B104="","",'Caregiver Tab (FILL THIS OUT)'!B104) ->  | C101: =IF('Caregiver Tab (FILL THIS OUT)'!C104="","",'Caregiver Tab (FILL THIS OUT)'!C104) ->  | D101: 3 | E101: 1 | F101: =IF('Caregiver Tab (FILL THIS OUT)'!E104="","",'Caregiver Tab (FILL THIS OUT)'!E104) ->  | G101: =IF('Caregiver Tab (FILL THIS OUT)'!F104="","",'Caregiver Tab (FILL THIS OUT)'!F104) -> TRUE | H101: =IF('Caregiver Tab (FILL THIS OUT)'!G104="","",'Caregiver Tab (FILL THIS OUT)'!G104) ->  | I101: =IF('Caregiver Tab (FILL THIS OUT)'!H104="","",'Caregiver Tab (FILL THIS OUT)'!H104) ->  | J101: =IF('Caregiver Tab (FILL THIS OUT)'!I104="","",'Caregiver Tab (FILL THIS OUT)'!I104) ->  | K101: =IF('Caregiver Tab (FILL THIS OUT)'!J104="","",'Caregiver Tab (FILL THIS OUT)'!J104) ->  | L101: =IF('Caregiver Tab (FILL THIS OUT)'!K104="","",'Caregiver Tab (FILL THIS OUT)'!K104) ->  | M101: =IF('Caregiver Tab (FILL THIS OUT)'!M104="","",'Caregiver Tab (FILL THIS OUT)'!M104) ->  | N101: =IF('Caregiver Tab (FILL THIS OUT)'!M104="","",'Caregiver Tab (FILL THIS OUT)'!M104) ->  | O101: =IF('Caregiver Tab (FILL THIS OUT)'!N104="","",'Caregiver Tab (FILL THIS OUT)'!N104) ->  | P101: =IF('Caregiver Tab (FILL THIS OUT)'!O104="","",'Caregiver Tab (FILL THIS OUT)'!O104) ->  | Q101: =IF('Caregiver Tab (FILL THIS OUT)'!P104="","",'Caregiver Tab (FILL THIS OUT)'!P104) ->  | R101: =IF('Caregiver Tab (FILL THIS OUT)'!Q104="","",'Caregiver Tab (FILL THIS OUT)'!Q104) ->  | S101: =IF('Caregiver Tab (FILL THIS OUT)'!R104="","",'Caregiver Tab (FILL THIS OUT)'!R104) ->  | T101: =IF('Caregiver Tab (FILL THIS OUT)'!S104="","",'Caregiver Tab (FILL THIS OUT)'!S104) ->  | U101: =IF('Caregiver Tab (FILL THIS OUT)'!T104="","",'Caregiver Tab (FILL THIS OUT)'!T104) ->  | V101: =IF('Caregiver Tab (FILL THIS OUT)'!U104="","",'Caregiver Tab (FILL THIS OUT)'!U104) -> caregiver | W101: =IF('Caregiver Tab (FILL THIS OUT)'!V104="","",'Caregiver Tab (FILL THIS OUT)'!V104) ->  | X101: =IF('Caregiver Tab (FILL THIS OUT)'!W104="","",'Caregiver Tab (FILL THIS OUT)'!W104) ->  | Y101: =IF('Caregiver Tab (FILL THIS OUT)'!X104="","",'Caregiver Tab (FILL THIS OUT)'!X104) ->  | Z101: ='Caregiver Tab (FILL THIS OUT)'!#REF!&IF('Caregiver Tab (FILL THIS OUT)'!#REF!="","","#"&'Caregiver Tab (FILL THIS OUT)'!#REF!)&";"&'Caregiver Tab (FILL THIS OUT)'!#REF!&IF('Caregiver Tab (FILL THIS OUT)'!#REF!="","","#"&'Caregiver Tab (FILL THIS OUT)'!#REF!)&";"&'Caregiver Tab (FILL THIS OUT)'!#REF!&IF('Caregiver Tab (FILL THIS OUT)'!#REF!="","","#"&'Caregiver Tab (FILL THIS OUT)'!#REF!)&";" -> 
B102: =IF('Caregiver Tab (FILL THIS OUT)'!B105="","",'Caregiver Tab (FILL THIS OUT)'!B105) ->  | C102: =IF('Caregiver Tab (FILL THIS OUT)'!C105="","",'Caregiver Tab (FILL THIS OUT)'!C105) ->  | D102: 3 | E102: 1 | F102: =IF('Caregiver Tab (FILL THIS OUT)'!E105="","",'Caregiver Tab (FILL THIS OUT)'!E105) ->  | G102: =IF('Caregiver Tab (FILL THIS OUT)'!F105="","",'Caregiver Tab (FILL THIS OUT)'!F105) -> TRUE | H102: =IF('Caregiver Tab (FILL THIS OUT)'!G105="","",'Caregiver Tab (FILL THIS OUT)'!G105) ->  | I102: =IF('Caregiver Tab (FILL THIS OUT)'!H105="","",'Caregiver Tab (FILL THIS OUT)'!H105) ->  | J102: =IF('Caregiver Tab (FILL THIS OUT)'!I105="","",'Caregiver Tab (FILL THIS OUT)'!I105) ->  | K102: =IF('Caregiver Tab (FILL THIS OUT)'!J105="","",'Caregiver Tab (FILL THIS OUT)'!J105) ->  | L102: =IF('Caregiver Tab (FILL THIS OUT)'!K105="","",'Caregiver Tab (FILL THIS OUT)'!K105) ->  | M102: =IF('Caregiver Tab (FILL THIS OUT)'!M105="","",'Caregiver Tab (FILL THIS OUT)'!M105) ->  | N102: =IF('Caregiver Tab (FILL THIS OUT)'!M105="","",'Caregiver Tab (FILL THIS OUT)'!M105) ->  | O102: =IF('Caregiver Tab (FILL THIS OUT)'!N105="","",'Caregiver Tab (FILL THIS OUT)'!N105) ->  | P102: =IF('Caregiver Tab (FILL THIS OUT)'!O105="","",'Caregiver Tab (FILL THIS OUT)'!O105) ->  | Q102: =IF('Caregiver Tab (FILL THIS OUT)'!P105="","",'Caregiver Tab (FILL THIS OUT)'!P105) ->  | R102: =IF('Caregiver Tab (FILL THIS OUT)'!Q105="","",'Caregiver Tab (FILL THIS OUT)'!Q105) ->  | S102: =IF('Caregiver Tab (FILL THIS OUT)'!R105="","",'Caregiver Tab (FILL THIS OUT)'!R105) ->  | T102: =IF('Caregiver Tab (FILL THIS OUT)'!S105="","",'Caregiver Tab (FILL THIS OUT)'!S105) ->  | U102: =IF('Caregiver Tab (FILL THIS OUT)'!T105="","",'Caregiver Tab (FILL THIS OUT)'!T105) ->  | V102: =IF('Caregiver Tab (FILL THIS OUT)'!U105="","",'Caregiver Tab (FILL THIS OUT)'!U105) -> caregiver | W102: =IF('Caregiver Tab (FILL THIS OUT)'!V105="","",'Caregiver Tab (FILL THIS OUT)'!V105) ->  | X102: =IF('Caregiver Tab (FILL THIS OUT)'!W105="","",'Caregiver Tab (FILL THIS OUT)'!W105) ->  | Y102: =IF('Caregiver Tab (FILL THIS OUT)'!X105="","",'Caregiver Tab (FILL THIS OUT)'!X105) ->  | Z102: ='Caregiver Tab (FILL THIS OUT)'!#REF!&IF('Caregiver Tab (FILL THIS OUT)'!#REF!="","","#"&'Caregiver Tab (FILL THIS OUT)'!#REF!)&";"&'Caregiver Tab (FILL THIS OUT)'!#REF!&IF('Caregiver Tab (FILL THIS OUT)'!#REF!="","","#"&'Caregiver Tab (FILL THIS OUT)'!#REF!)&";"&'Caregiver Tab (FILL THIS OUT)'!#REF!&IF('Caregiver Tab (FILL THIS OUT)'!#REF!="","","#"&'Caregiver Tab (FILL THIS OUT)'!#REF!)&";" -> 
B103: =IF('Caregiver Tab (FILL THIS OUT)'!B106="","",'Caregiver Tab (FILL THIS OUT)'!B106) ->  | C103: =IF('Caregiver Tab (FILL THIS OUT)'!C106="","",'Caregiver Tab (FILL THIS OUT)'!C106) ->  | D103: 3 | E103: 1 | F103: =IF('Caregiver Tab (FILL THIS OUT)'!E106="","",'Caregiver Tab (FILL THIS OUT)'!E106) ->  | G103: =IF('Caregiver Tab (FILL THIS OUT)'!F106="","",'Caregiver Tab (FILL THIS OUT)'!F106) -> TRUE | H103: =IF('Caregiver Tab (FILL THIS OUT)'!G106="","",'Caregiver Tab (FILL THIS OUT)'!G106) ->  | I103: =IF('Caregiver Tab (FILL THIS OUT)'!H106="","",'Caregiver Tab (FILL THIS OUT)'!H106) ->  | J103: =IF('Caregiver Tab (FILL THIS OUT)'!I106="","",'Caregiver Tab (FILL THIS OUT)'!I106) ->  | K103: =IF('Caregiver Tab (FILL THIS OUT)'!J106="","",'Caregiver Tab (FILL THIS OUT)'!J106) ->  | L103: =IF('Caregiver Tab (FILL THIS OUT)'!K106="","",'Caregiver Tab (FILL THIS OUT)'!K106) ->  | M103: =IF('Caregiver Tab (FILL THIS OUT)'!M106="","",'Caregiver Tab (FILL THIS OUT)'!M106) ->  | N103: =IF('Caregiver Tab (FILL THIS OUT)'!M106="","",'Caregiver Tab (FILL THIS OUT)'!M106) ->  | O103: =IF('Caregiver Tab (FILL THIS OUT)'!N106="","",'Caregiver Tab (FILL THIS OUT)'!N106) ->  | P103: =IF('Caregiver Tab (FILL THIS OUT)'!O106="","",'Caregiver Tab (FILL THIS OUT)'!O106) ->  | Q103: =IF('Caregiver Tab (FILL THIS OUT)'!P106="","",'Caregiver Tab (FILL THIS OUT)'!P106) ->  | R103: =IF('Caregiver Tab (FILL THIS OUT)'!Q106="","",'Caregiver Tab (FILL THIS OUT)'!Q106) ->  | S103: =IF('Caregiver Tab (FILL THIS OUT)'!R106="","",'Caregiver Tab (FILL THIS OUT)'!R106) ->  | T103: =IF('Caregiver Tab (FILL THIS OUT)'!S106="","",'Caregiver Tab (FILL THIS OUT)'!S106) ->  | U103: =IF('Caregiver Tab (FILL THIS OUT)'!T106="","",'Caregiver Tab (FILL THIS OUT)'!T106) ->  | V103: =IF('Caregiver Tab (FILL THIS OUT)'!U106="","",'Caregiver Tab (FILL THIS OUT)'!U106) -> caregiver | W103: =IF('Caregiver Tab (FILL THIS OUT)'!V106="","",'Caregiver Tab (FILL THIS OUT)'!V106) ->  | X103: =IF('Caregiver Tab (FILL THIS OUT)'!W106="","",'Caregiver Tab (FILL THIS OUT)'!W106) ->  | Y103: =IF('Caregiver Tab (FILL THIS OUT)'!X106="","",'Caregiver Tab (FILL THIS OUT)'!X106) ->  | Z103: ='Caregiver Tab (FILL THIS OUT)'!#REF!&IF('Caregiver Tab (FILL THIS OUT)'!#REF!="","","#"&'Caregiver Tab (FILL THIS OUT)'!#REF!)&";"&'Caregiver Tab (FILL THIS OUT)'!#REF!&IF('Caregiver Tab (FILL THIS OUT)'!#REF!="","","#"&'Caregiver Tab (FILL THIS OUT)'!#REF!)&";"&'Caregiver Tab (FILL THIS OUT)'!#REF!&IF('Caregiver Tab (FILL THIS OUT)'!#REF!="","","#"&'Caregiver Tab (FILL THIS OUT)'!#REF!)&";" -> 
B104: =IF('Caregiver Tab (FILL THIS OUT)'!B107="","",'Caregiver Tab (FILL THIS OUT)'!B107) ->  | C104: =IF('Caregiver Tab (FILL THIS OUT)'!C107="","",'Caregiver Tab (FILL THIS OUT)'!C107) ->  | D104: 3 | E104: 1 | F104: =IF('Caregiver Tab (FILL THIS OUT)'!E107="","",'Caregiver Tab (FILL THIS OUT)'!E107) ->  | G104: =IF('Caregiver Tab (FILL THIS OUT)'!F107="","",'Caregiver Tab (FILL THIS OUT)'!F107) -> TRUE | H104: =IF('Caregiver Tab (FILL THIS OUT)'!G107="","",'Caregiver Tab (FILL THIS OUT)'!G107) ->  | I104: =IF('Caregiver Tab (FILL THIS OUT)'!H107="","",'Caregiver Tab (FILL THIS OUT)'!H107) ->  | J104: =IF('Caregiver Tab (FILL THIS OUT)'!I107="","",'Caregiver Tab (FILL THIS OUT)'!I107) ->  | K104: =IF('Caregiver Tab (FILL THIS OUT)'!J107="","",'Caregiver Tab (FILL THIS OUT)'!J107) ->  | L104: =IF('Caregiver Tab (FILL THIS OUT)'!K107="","",'Caregiver Tab (FILL THIS OUT)'!K107) ->  | M104: =IF('Caregiver Tab (FILL THIS OUT)'!M107="","",'Caregiver Tab (FILL THIS OUT)'!M107) ->  | N104: =IF('Caregiver Tab (FILL THIS OUT)'!M107="","",'Caregiver Tab (FILL THIS OUT)'!M107) ->  | O104: =IF('Caregiver Tab (FILL THIS OUT)'!N107="","",'Caregiver Tab (FILL THIS OUT)'!N107) ->  | P104: =IF('Caregiver Tab (FILL THIS OUT)'!O107="","",'Caregiver Tab (FILL THIS OUT)'!O107) ->  | Q104: =IF('Caregiver Tab (FILL THIS OUT)'!P107="","",'Caregiver Tab (FILL THIS OUT)'!P107) ->  | R104: =IF('Caregiver Tab (FILL THIS OUT)'!Q107="","",'Caregiver Tab (FILL THIS OUT)'!Q107) ->  | S104: =IF('Caregiver Tab (FILL THIS OUT)'!R107="","",'Caregiver Tab (FILL THIS OUT)'!R107) ->  | T104: =IF('Caregiver Tab (FILL THIS OUT)'!S107="","",'Caregiver Tab (FILL THIS OUT)'!S107) ->  | U104: =IF('Caregiver Tab (FILL THIS OUT)'!T107="","",'Caregiver Tab (FILL THIS OUT)'!T107) ->  | V104: =IF('Caregiver Tab (FILL THIS OUT)'!U107="","",'Caregiver Tab (FILL THIS OUT)'!U107) -> caregiver | W104: =IF('Caregiver Tab (FILL THIS OUT)'!V107="","",'Caregiver Tab (FILL THIS OUT)'!V107) ->  | X104: =IF('Caregiver Tab (FILL THIS OUT)'!W107="","",'Caregiver Tab (FILL THIS OUT)'!W107) ->  | Y104: =IF('Caregiver Tab (FILL THIS OUT)'!X107="","",'Caregiver Tab (FILL THIS OUT)'!X107) ->  | Z104: ='Caregiver Tab (FILL THIS OUT)'!#REF!&IF('Caregiver Tab (FILL THIS OUT)'!#REF!="","","#"&'Caregiver Tab (FILL THIS OUT)'!#REF!)&";"&'Caregiver Tab (FILL THIS OUT)'!#REF!&IF('Caregiver Tab (FILL THIS OUT)'!#REF!="","","#"&'Caregiver Tab (FILL THIS OUT)'!#REF!)&";"&'Caregiver Tab (FILL THIS OUT)'!#REF!&IF('Caregiver Tab (FILL THIS OUT)'!#REF!="","","#"&'Caregiver Tab (FILL THIS OUT)'!#REF!)&";" -> 
B105: =IF('Caregiver Tab (FILL THIS OUT)'!B108="","",'Caregiver Tab (FILL THIS OUT)'!B108) ->  | C105: =IF('Caregiver Tab (FILL THIS OUT)'!C108="","",'Caregiver Tab (FILL THIS OUT)'!C108) ->  | D105: 3 | E105: 1 | F105: =IF('Caregiver Tab (FILL THIS OUT)'!E108="","",'Caregiver Tab (FILL THIS OUT)'!E108) ->  | G105: =IF('Caregiver Tab (FILL THIS OUT)'!F108="","",'Caregiver Tab (FILL THIS OUT)'!F108) -> TRUE | H105: =IF('Caregiver Tab (FILL THIS OUT)'!G108="","",'Caregiver Tab (FILL THIS OUT)'!G108) ->  | I105: =IF('Caregiver Tab (FILL THIS OUT)'!H108="","",'Caregiver Tab (FILL THIS OUT)'!H108) ->  | J105: =IF('Caregiver Tab (FILL THIS OUT)'!I108="","",'Caregiver Tab (FILL THIS OUT)'!I108) ->  | K105: =IF('Caregiver Tab (FILL THIS OUT)'!J108="","",'Caregiver Tab (FILL THIS OUT)'!J108) ->  | L105: =IF('Caregiver Tab (FILL THIS OUT)'!K108="","",'Caregiver Tab (FILL THIS OUT)'!K108) ->  | M105: =IF('Caregiver Tab (FILL THIS OUT)'!M108="","",'Caregiver Tab (FILL THIS OUT)'!M108) ->  | N105: =IF('Caregiver Tab (FILL THIS OUT)'!M108="","",'Caregiver Tab (FILL THIS OUT)'!M108) ->  | O105: =IF('Caregiver Tab (FILL THIS OUT)'!N108="","",'Caregiver Tab (FILL THIS OUT)'!N108) ->  | P105: =IF('Caregiver Tab (FILL THIS OUT)'!O108="","",'Caregiver Tab (FILL THIS OUT)'!O108) ->  | Q105: =IF('Caregiver Tab (FILL THIS OUT)'!P108="","",'Caregiver Tab (FILL THIS OUT)'!P108) ->  | R105: =IF('Caregiver Tab (FILL THIS OUT)'!Q108="","",'Caregiver Tab (FILL THIS OUT)'!Q108) ->  | S105: =IF('Caregiver Tab (FILL THIS OUT)'!R108="","",'Caregiver Tab (FILL THIS OUT)'!R108) ->  | T105: =IF('Caregiver Tab (FILL THIS OUT)'!S108="","",'Caregiver Tab (FILL THIS OUT)'!S108) ->  | U105: =IF('Caregiver Tab (FILL THIS OUT)'!T108="","",'Caregiver Tab (FILL THIS OUT)'!T108) ->  | V105: =IF('Caregiver Tab (FILL THIS OUT)'!U108="","",'Caregiver Tab (FILL THIS OUT)'!U108) -> caregiver | W105: =IF('Caregiver Tab (FILL THIS OUT)'!V108="","",'Caregiver Tab (FILL THIS OUT)'!V108) ->  | X105: =IF('Caregiver Tab (FILL THIS OUT)'!W108="","",'Caregiver Tab (FILL THIS OUT)'!W108) ->  | Y105: =IF('Caregiver Tab (FILL THIS OUT)'!X108="","",'Caregiver Tab (FILL THIS OUT)'!X108) ->  | Z105: ='Caregiver Tab (FILL THIS OUT)'!#REF!&IF('Caregiver Tab (FILL THIS OUT)'!#REF!="","","#"&'Caregiver Tab (FILL THIS OUT)'!#REF!)&";"&'Caregiver Tab (FILL THIS OUT)'!#REF!&IF('Caregiver Tab (FILL THIS OUT)'!#REF!="","","#"&'Caregiver Tab (FILL THIS OUT)'!#REF!)&";"&'Caregiver Tab (FILL THIS OUT)'!#REF!&IF('Caregiver Tab (FILL THIS OUT)'!#REF!="","","#"&'Caregiver Tab (FILL THIS OUT)'!#REF!)&";" -> 
B106: =IF('Caregiver Tab (FILL THIS OUT)'!B109="","",'Caregiver Tab (FILL THIS OUT)'!B109) ->  | C106: =IF('Caregiver Tab (FILL THIS OUT)'!C109="","",'Caregiver Tab (FILL THIS OUT)'!C109) ->  | D106: 3 | E106: 1 | F106: =IF('Caregiver Tab (FILL THIS OUT)'!E109="","",'Caregiver Tab (FILL THIS OUT)'!E109) ->  | G106: =IF('Caregiver Tab (FILL THIS OUT)'!F109="","",'Caregiver Tab (FILL THIS OUT)'!F109) -> TRUE | H106: =IF('Caregiver Tab (FILL THIS OUT)'!G109="","",'Caregiver Tab (FILL THIS OUT)'!G109) ->  | I106: =IF('Caregiver Tab (FILL THIS OUT)'!H109="","",'Caregiver Tab (FILL THIS OUT)'!H109) ->  | J106: =IF('Caregiver Tab (FILL THIS OUT)'!I109="","",'Caregiver Tab (FILL THIS OUT)'!I109) ->  | K106: =IF('Caregiver Tab (FILL THIS OUT)'!J109="","",'Caregiver Tab (FILL THIS OUT)'!J109) ->  | L106: =IF('Caregiver Tab (FILL THIS OUT)'!K109="","",'Caregiver Tab (FILL THIS OUT)'!K109) ->  | M106: =IF('Caregiver Tab (FILL THIS OUT)'!M109="","",'Caregiver Tab (FILL THIS OUT)'!M109) ->  | N106: =IF('Caregiver Tab (FILL THIS OUT)'!M109="","",'Caregiver Tab (FILL THIS OUT)'!M109) ->  | O106: =IF('Caregiver Tab (FILL THIS OUT)'!N109="","",'Caregiver Tab (FILL THIS OUT)'!N109) ->  | P106: =IF('Caregiver Tab (FILL THIS OUT)'!O109="","",'Caregiver Tab (FILL THIS OUT)'!O109) ->  | Q106: =IF('Caregiver Tab (FILL THIS OUT)'!P109="","",'Caregiver Tab (FILL THIS OUT)'!P109) ->  | R106: =IF('Caregiver Tab (FILL THIS OUT)'!Q109="","",'Caregiver Tab (FILL THIS OUT)'!Q109) ->  | S106: =IF('Caregiver Tab (FILL THIS OUT)'!R109="","",'Caregiver Tab (FILL THIS OUT)'!R109) ->  | T106: =IF('Caregiver Tab (FILL THIS OUT)'!S109="","",'Caregiver Tab (FILL THIS OUT)'!S109) ->  | U106: =IF('Caregiver Tab (FILL THIS OUT)'!T109="","",'Caregiver Tab (FILL THIS OUT)'!T109) ->  | V106: =IF('Caregiver Tab (FILL THIS OUT)'!U109="","",'Caregiver Tab (FILL THIS OUT)'!U109) -> caregiver | W106: =IF('Caregiver Tab (FILL THIS OUT)'!V109="","",'Caregiver Tab (FILL THIS OUT)'!V109) ->  | X106: =IF('Caregiver Tab (FILL THIS OUT)'!W109="","",'Caregiver Tab (FILL THIS OUT)'!W109) ->  | Y106: =IF('Caregiver Tab (FILL THIS OUT)'!X109="","",'Caregiver Tab (FILL THIS OUT)'!X109) ->  | Z106: ='Caregiver Tab (FILL THIS OUT)'!#REF!&IF('Caregiver Tab (FILL THIS OUT)'!#REF!="","","#"&'Caregiver Tab (FILL THIS OUT)'!#REF!)&";"&'Caregiver Tab (FILL THIS OUT)'!#REF!&IF('Caregiver Tab (FILL THIS OUT)'!#REF!="","","#"&'Caregiver Tab (FILL THIS OUT)'!#REF!)&";"&'Caregiver Tab (FILL THIS OUT)'!#REF!&IF('Caregiver Tab (FILL THIS OUT)'!#REF!="","","#"&'Caregiver Tab (FILL THIS OUT)'!#REF!)&";" -> 
B107: =IF('Caregiver Tab (FILL THIS OUT)'!B110="","",'Caregiver Tab (FILL THIS OUT)'!B110) ->  | C107: =IF('Caregiver Tab (FILL THIS OUT)'!C110="","",'Caregiver Tab (FILL THIS OUT)'!C110) ->  | D107: 3 | E107: 1 | F107: =IF('Caregiver Tab (FILL THIS OUT)'!E110="","",'Caregiver Tab (FILL THIS OUT)'!E110) ->  | G107: =IF('Caregiver Tab (FILL THIS OUT)'!F110="","",'Caregiver Tab (FILL THIS OUT)'!F110) -> TRUE | H107: =IF('Caregiver Tab (FILL THIS OUT)'!G110="","",'Caregiver Tab (FILL THIS OUT)'!G110) ->  | I107: =IF('Caregiver Tab (FILL THIS OUT)'!H110="","",'Caregiver Tab (FILL THIS OUT)'!H110) ->  | J107: =IF('Caregiver Tab (FILL THIS OUT)'!I110="","",'Caregiver Tab (FILL THIS OUT)'!I110) ->  | K107: =IF('Caregiver Tab (FILL THIS OUT)'!J110="","",'Caregiver Tab (FILL THIS OUT)'!J110) ->  | L107: =IF('Caregiver Tab (FILL THIS OUT)'!K110="","",'Caregiver Tab (FILL THIS OUT)'!K110) ->  | M107: =IF('Caregiver Tab (FILL THIS OUT)'!M110="","",'Caregiver Tab (FILL THIS OUT)'!M110) ->  | N107: =IF('Caregiver Tab (FILL THIS OUT)'!M110="","",'Caregiver Tab (FILL THIS OUT)'!M110) ->  | O107: =IF('Caregiver Tab (FILL THIS OUT)'!N110="","",'Caregiver Tab (FILL THIS OUT)'!N110) ->  | P107: =IF('Caregiver Tab (FILL THIS OUT)'!O110="","",'Caregiver Tab (FILL THIS OUT)'!O110) ->  | Q107: =IF('Caregiver Tab (FILL THIS OUT)'!P110="","",'Caregiver Tab (FILL THIS OUT)'!P110) ->  | R107: =IF('Caregiver Tab (FILL THIS OUT)'!Q110="","",'Caregiver Tab (FILL THIS OUT)'!Q110) ->  | S107: =IF('Caregiver Tab (FILL THIS OUT)'!R110="","",'Caregiver Tab (FILL THIS OUT)'!R110) ->  | T107: =IF('Caregiver Tab (FILL THIS OUT)'!S110="","",'Caregiver Tab (FILL THIS OUT)'!S110) ->  | U107: =IF('Caregiver Tab (FILL THIS OUT)'!T110="","",'Caregiver Tab (FILL THIS OUT)'!T110) ->  | V107: =IF('Caregiver Tab (FILL THIS OUT)'!U110="","",'Caregiver Tab (FILL THIS OUT)'!U110) -> caregiver | W107: =IF('Caregiver Tab (FILL THIS OUT)'!V110="","",'Caregiver Tab (FILL THIS OUT)'!V110) ->  | X107: =IF('Caregiver Tab (FILL THIS OUT)'!W110="","",'Caregiver Tab (FILL THIS OUT)'!W110) ->  | Y107: =IF('Caregiver Tab (FILL THIS OUT)'!X110="","",'Caregiver Tab (FILL THIS OUT)'!X110) ->  | Z107: ='Caregiver Tab (FILL THIS OUT)'!#REF!&IF('Caregiver Tab (FILL THIS OUT)'!#REF!="","","#"&'Caregiver Tab (FILL THIS OUT)'!#REF!)&";"&'Caregiver Tab (FILL THIS OUT)'!#REF!&IF('Caregiver Tab (FILL THIS OUT)'!#REF!="","","#"&'Caregiver Tab (FILL THIS OUT)'!#REF!)&";"&'Caregiver Tab (FILL THIS OUT)'!#REF!&IF('Caregiver Tab (FILL THIS OUT)'!#REF!="","","#"&'Caregiver Tab (FILL THIS OUT)'!#REF!)&";" -> 
B108: =IF('Caregiver Tab (FILL THIS OUT)'!B111="","",'Caregiver Tab (FILL THIS OUT)'!B111) ->  | C108: =IF('Caregiver Tab (FILL THIS OUT)'!C111="","",'Caregiver Tab (FILL THIS OUT)'!C111) ->  | D108: 3 | E108: 1 | F108: =IF('Caregiver Tab (FILL THIS OUT)'!E111="","",'Caregiver Tab (FILL THIS OUT)'!E111) ->  | G108: =IF('Caregiver Tab (FILL THIS OUT)'!F111="","",'Caregiver Tab (FILL THIS OUT)'!F111) -> TRUE | H108: =IF('Caregiver Tab (FILL THIS OUT)'!G111="","",'Caregiver Tab (FILL THIS OUT)'!G111) ->  | I108: =IF('Caregiver Tab (FILL THIS OUT)'!H111="","",'Caregiver Tab (FILL THIS OUT)'!H111) ->  | J108: =IF('Caregiver Tab (FILL THIS OUT)'!I111="","",'Caregiver Tab (FILL THIS OUT)'!I111) ->  | K108: =IF('Caregiver Tab (FILL THIS OUT)'!J111="","",'Caregiver Tab (FILL THIS OUT)'!J111) ->  | L108: =IF('Caregiver Tab (FILL THIS OUT)'!K111="","",'Caregiver Tab (FILL THIS OUT)'!K111) ->  | M108: =IF('Caregiver Tab (FILL THIS OUT)'!M111="","",'Caregiver Tab (FILL THIS OUT)'!M111) ->  | N108: =IF('Caregiver Tab (FILL THIS OUT)'!M111="","",'Caregiver Tab (FILL THIS OUT)'!M111) ->  | O108: =IF('Caregiver Tab (FILL THIS OUT)'!N111="","",'Caregiver Tab (FILL THIS OUT)'!N111) ->  | P108: =IF('Caregiver Tab (FILL THIS OUT)'!O111="","",'Caregiver Tab (FILL THIS OUT)'!O111) ->  | Q108: =IF('Caregiver Tab (FILL THIS OUT)'!P111="","",'Caregiver Tab (FILL THIS OUT)'!P111) ->  | R108: =IF('Caregiver Tab (FILL THIS OUT)'!Q111="","",'Caregiver Tab (FILL THIS OUT)'!Q111) ->  | S108: =IF('Caregiver Tab (FILL THIS OUT)'!R111="","",'Caregiver Tab (FILL THIS OUT)'!R111) ->  | T108: =IF('Caregiver Tab (FILL THIS OUT)'!S111="","",'Caregiver Tab (FILL THIS OUT)'!S111) ->  | U108: =IF('Caregiver Tab (FILL THIS OUT)'!T111="","",'Caregiver Tab (FILL THIS OUT)'!T111) ->  | V108: =IF('Caregiver Tab (FILL THIS OUT)'!U111="","",'Caregiver Tab (FILL THIS OUT)'!U111) -> caregiver | W108: =IF('Caregiver Tab (FILL THIS OUT)'!V111="","",'Caregiver Tab (FILL THIS OUT)'!V111) ->  | X108: =IF('Caregiver Tab (FILL THIS OUT)'!W111="","",'Caregiver Tab (FILL THIS OUT)'!W111) ->  | Y108: =IF('Caregiver Tab (FILL THIS OUT)'!X111="","",'Caregiver Tab (FILL THIS OUT)'!X111) ->  | Z108: ='Caregiver Tab (FILL THIS OUT)'!#REF!&IF('Caregiver Tab (FILL THIS OUT)'!#REF!="","","#"&'Caregiver Tab (FILL THIS OUT)'!#REF!)&";"&'Caregiver Tab (FILL THIS OUT)'!#REF!&IF('Caregiver Tab (FILL THIS OUT)'!#REF!="","","#"&'Caregiver Tab (FILL THIS OUT)'!#REF!)&";"&'Caregiver Tab (FILL THIS OUT)'!#REF!&IF('Caregiver Tab (FILL THIS OUT)'!#REF!="","","#"&'Caregiver Tab (FILL THIS OUT)'!#REF!)&";" -> 
B109: =IF('Caregiver Tab (FILL THIS OUT)'!B112="","",'Caregiver Tab (FILL THIS OUT)'!B112) ->  | C109: =IF('Caregiver Tab (FILL THIS OUT)'!C112="","",'Caregiver Tab (FILL THIS OUT)'!C112) ->  | D109: 3 | E109: 1 | F109: =IF('Caregiver Tab (FILL THIS OUT)'!E112="","",'Caregiver Tab (FILL THIS OUT)'!E112) ->  | G109: =IF('Caregiver Tab (FILL THIS OUT)'!F112="","",'Caregiver Tab (FILL THIS OUT)'!F112) -> TRUE | H109: =IF('Caregiver Tab (FILL THIS OUT)'!G112="","",'Caregiver Tab (FILL THIS OUT)'!G112) ->  | I109: =IF('Caregiver Tab (FILL THIS OUT)'!H112="","",'Caregiver Tab (FILL THIS OUT)'!H112) ->  | J109: =IF('Caregiver Tab (FILL THIS OUT)'!I112="","",'Caregiver Tab (FILL THIS OUT)'!I112) ->  | K109: =IF('Caregiver Tab (FILL THIS OUT)'!J112="","",'Caregiver Tab (FILL THIS OUT)'!J112) ->  | L109: =IF('Caregiver Tab (FILL THIS OUT)'!K112="","",'Caregiver Tab (FILL THIS OUT)'!K112) ->  | M109: =IF('Caregiver Tab (FILL THIS OUT)'!M112="","",'Caregiver Tab (FILL THIS OUT)'!M112) ->  | N109: =IF('Caregiver Tab (FILL THIS OUT)'!M112="","",'Caregiver Tab (FILL THIS OUT)'!M112) ->  | O109: =IF('Caregiver Tab (FILL THIS OUT)'!N112="","",'Caregiver Tab (FILL THIS OUT)'!N112) ->  | P109: =IF('Caregiver Tab (FILL THIS OUT)'!O112="","",'Caregiver Tab (FILL THIS OUT)'!O112) ->  | Q109: =IF('Caregiver Tab (FILL THIS OUT)'!P112="","",'Caregiver Tab (FILL THIS OUT)'!P112) ->  | R109: =IF('Caregiver Tab (FILL THIS OUT)'!Q112="","",'Caregiver Tab (FILL THIS OUT)'!Q112) ->  | S109: =IF('Caregiver Tab (FILL THIS OUT)'!R112="","",'Caregiver Tab (FILL THIS OUT)'!R112) ->  | T109: =IF('Caregiver Tab (FILL THIS OUT)'!S112="","",'Caregiver Tab (FILL THIS OUT)'!S112) ->  | U109: =IF('Caregiver Tab (FILL THIS OUT)'!T112="","",'Caregiver Tab (FILL THIS OUT)'!T112) ->  | V109: =IF('Caregiver Tab (FILL THIS OUT)'!U112="","",'Caregiver Tab (FILL THIS OUT)'!U112) -> caregiver | W109: =IF('Caregiver Tab (FILL THIS OUT)'!V112="","",'Caregiver Tab (FILL THIS OUT)'!V112) ->  | X109: =IF('Caregiver Tab (FILL THIS OUT)'!W112="","",'Caregiver Tab (FILL THIS OUT)'!W112) ->  | Y109: =IF('Caregiver Tab (FILL THIS OUT)'!X112="","",'Caregiver Tab (FILL THIS OUT)'!X112) ->  | Z109: ='Caregiver Tab (FILL THIS OUT)'!#REF!&IF('Caregiver Tab (FILL THIS OUT)'!#REF!="","","#"&'Caregiver Tab (FILL THIS OUT)'!#REF!)&";"&'Caregiver Tab (FILL THIS OUT)'!#REF!&IF('Caregiver Tab (FILL THIS OUT)'!#REF!="","","#"&'Caregiver Tab (FILL THIS OUT)'!#REF!)&";"&'Caregiver Tab (FILL THIS OUT)'!#REF!&IF('Caregiver Tab (FILL THIS OUT)'!#REF!="","","#"&'Caregiver Tab (FILL THIS OUT)'!#REF!)&";" -> 
B110: =IF('Caregiver Tab (FILL THIS OUT)'!B113="","",'Caregiver Tab (FILL THIS OUT)'!B113) ->  | C110: =IF('Caregiver Tab (FILL THIS OUT)'!C113="","",'Caregiver Tab (FILL THIS OUT)'!C113) ->  | D110: 3 | E110: 1 | F110: =IF('Caregiver Tab (FILL THIS OUT)'!E113="","",'Caregiver Tab (FILL THIS OUT)'!E113) ->  | G110: =IF('Caregiver Tab (FILL THIS OUT)'!F113="","",'Caregiver Tab (FILL THIS OUT)'!F113) -> TRUE | H110: =IF('Caregiver Tab (FILL THIS OUT)'!G113="","",'Caregiver Tab (FILL THIS OUT)'!G113) ->  | I110: =IF('Caregiver Tab (FILL THIS OUT)'!H113="","",'Caregiver Tab (FILL THIS OUT)'!H113) ->  | J110: =IF('Caregiver Tab (FILL THIS OUT)'!I113="","",'Caregiver Tab (FILL THIS OUT)'!I113) ->  | K110: =IF('Caregiver Tab (FILL THIS OUT)'!J113="","",'Caregiver Tab (FILL THIS OUT)'!J113) ->  | L110: =IF('Caregiver Tab (FILL THIS OUT)'!K113="","",'Caregiver Tab (FILL THIS OUT)'!K113) ->  | M110: =IF('Caregiver Tab (FILL THIS OUT)'!M113="","",'Caregiver Tab (FILL THIS OUT)'!M113) ->  | N110: =IF('Caregiver Tab (FILL THIS OUT)'!M113="","",'Caregiver Tab (FILL THIS OUT)'!M113) ->  | O110: =IF('Caregiver Tab (FILL THIS OUT)'!N113="","",'Caregiver Tab (FILL THIS OUT)'!N113) ->  | P110: =IF('Caregiver Tab (FILL THIS OUT)'!O113="","",'Caregiver Tab (FILL THIS OUT)'!O113) ->  | Q110: =IF('Caregiver Tab (FILL THIS OUT)'!P113="","",'Caregiver Tab (FILL THIS OUT)'!P113) ->  | R110: =IF('Caregiver Tab (FILL THIS OUT)'!Q113="","",'Caregiver Tab (FILL THIS OUT)'!Q113) ->  | S110: =IF('Caregiver Tab (FILL THIS OUT)'!R113="","",'Caregiver Tab (FILL THIS OUT)'!R113) ->  | T110: =IF('Caregiver Tab (FILL THIS OUT)'!S113="","",'Caregiver Tab (FILL THIS OUT)'!S113) ->  | U110: =IF('Caregiver Tab (FILL THIS OUT)'!T113="","",'Caregiver Tab (FILL THIS OUT)'!T113) ->  | V110: =IF('Caregiver Tab (FILL THIS OUT)'!U113="","",'Caregiver Tab (FILL THIS OUT)'!U113) -> caregiver | W110: =IF('Caregiver Tab (FILL THIS OUT)'!V113="","",'Caregiver Tab (FILL THIS OUT)'!V113) ->  | X110: =IF('Caregiver Tab (FILL THIS OUT)'!W113="","",'Caregiver Tab (FILL THIS OUT)'!W113) ->  | Y110: =IF('Caregiver Tab (FILL THIS OUT)'!X113="","",'Caregiver Tab (FILL THIS OUT)'!X113) ->  | Z110: ='Caregiver Tab (FILL THIS OUT)'!#REF!&IF('Caregiver Tab (FILL THIS OUT)'!#REF!="","","#"&'Caregiver Tab (FILL THIS OUT)'!#REF!)&";"&'Caregiver Tab (FILL THIS OUT)'!#REF!&IF('Caregiver Tab (FILL THIS OUT)'!#REF!="","","#"&'Caregiver Tab (FILL THIS OUT)'!#REF!)&";"&'Caregiver Tab (FILL THIS OUT)'!#REF!&IF('Caregiver Tab (FILL THIS OUT)'!#REF!="","","#"&'Caregiver Tab (FILL THIS OUT)'!#REF!)&";" -> 
B111: =IF('Caregiver Tab (FILL THIS OUT)'!B114="","",'Caregiver Tab (FILL THIS OUT)'!B114) ->  | C111: =IF('Caregiver Tab (FILL THIS OUT)'!C114="","",'Caregiver Tab (FILL THIS OUT)'!C114) ->  | D111: 3 | E111: 1 | F111: =IF('Caregiver Tab (FILL THIS OUT)'!E114="","",'Caregiver Tab (FILL THIS OUT)'!E114) ->  | G111: =IF('Caregiver Tab (FILL THIS OUT)'!F114="","",'Caregiver Tab (FILL THIS OUT)'!F114) -> TRUE | H111: =IF('Caregiver Tab (FILL THIS OUT)'!G114="","",'Caregiver Tab (FILL THIS OUT)'!G114) ->  | I111: =IF('Caregiver Tab (FILL THIS OUT)'!H114="","",'Caregiver Tab (FILL THIS OUT)'!H114) ->  | J111: =IF('Caregiver Tab (FILL THIS OUT)'!I114="","",'Caregiver Tab (FILL THIS OUT)'!I114) ->  | K111: =IF('Caregiver Tab (FILL THIS OUT)'!J114="","",'Caregiver Tab (FILL THIS OUT)'!J114) ->  | L111: =IF('Caregiver Tab (FILL THIS OUT)'!K114="","",'Caregiver Tab (FILL THIS OUT)'!K114) ->  | M111: =IF('Caregiver Tab (FILL THIS OUT)'!M114="","",'Caregiver Tab (FILL THIS OUT)'!M114) ->  | N111: =IF('Caregiver Tab (FILL THIS OUT)'!M114="","",'Caregiver Tab (FILL THIS OUT)'!M114) ->  | O111: =IF('Caregiver Tab (FILL THIS OUT)'!N114="","",'Caregiver Tab (FILL THIS OUT)'!N114) ->  | P111: =IF('Caregiver Tab (FILL THIS OUT)'!O114="","",'Caregiver Tab (FILL THIS OUT)'!O114) ->  | Q111: =IF('Caregiver Tab (FILL THIS OUT)'!P114="","",'Caregiver Tab (FILL THIS OUT)'!P114) ->  | R111: =IF('Caregiver Tab (FILL THIS OUT)'!Q114="","",'Caregiver Tab (FILL THIS OUT)'!Q114) ->  | S111: =IF('Caregiver Tab (FILL THIS OUT)'!R114="","",'Caregiver Tab (FILL THIS OUT)'!R114) ->  | T111: =IF('Caregiver Tab (FILL THIS OUT)'!S114="","",'Caregiver Tab (FILL THIS OUT)'!S114) ->  | U111: =IF('Caregiver Tab (FILL THIS OUT)'!T114="","",'Caregiver Tab (FILL THIS OUT)'!T114) ->  | V111: =IF('Caregiver Tab (FILL THIS OUT)'!U114="","",'Caregiver Tab (FILL THIS OUT)'!U114) -> caregiver | W111: =IF('Caregiver Tab (FILL THIS OUT)'!V114="","",'Caregiver Tab (FILL THIS OUT)'!V114) ->  | X111: =IF('Caregiver Tab (FILL THIS OUT)'!W114="","",'Caregiver Tab (FILL THIS OUT)'!W114) ->  | Y111: =IF('Caregiver Tab (FILL THIS OUT)'!X114="","",'Caregiver Tab (FILL THIS OUT)'!X114) ->  | Z111: ='Caregiver Tab (FILL THIS OUT)'!#REF!&IF('Caregiver Tab (FILL THIS OUT)'!#REF!="","","#"&'Caregiver Tab (FILL THIS OUT)'!#REF!)&";"&'Caregiver Tab (FILL THIS OUT)'!#REF!&IF('Caregiver Tab (FILL THIS OUT)'!#REF!="","","#"&'Caregiver Tab (FILL THIS OUT)'!#REF!)&";"&'Caregiver Tab (FILL THIS OUT)'!#REF!&IF('Caregiver Tab (FILL THIS OUT)'!#REF!="","","#"&'Caregiver Tab (FILL THIS OUT)'!#REF!)&";" -> 
B112: =IF('Caregiver Tab (FILL THIS OUT)'!B115="","",'Caregiver Tab (FILL THIS OUT)'!B115) ->  | C112: =IF('Caregiver Tab (FILL THIS OUT)'!C115="","",'Caregiver Tab (FILL THIS OUT)'!C115) ->  | D112: 3 | E112: 1 | F112: =IF('Caregiver Tab (FILL THIS OUT)'!E115="","",'Caregiver Tab (FILL THIS OUT)'!E115) ->  | G112: =IF('Caregiver Tab (FILL THIS OUT)'!F115="","",'Caregiver Tab (FILL THIS OUT)'!F115) -> TRUE | H112: =IF('Caregiver Tab (FILL THIS OUT)'!G115="","",'Caregiver Tab (FILL THIS OUT)'!G115) ->  | I112: =IF('Caregiver Tab (FILL THIS OUT)'!H115="","",'Caregiver Tab (FILL THIS OUT)'!H115) ->  | J112: =IF('Caregiver Tab (FILL THIS OUT)'!I115="","",'Caregiver Tab (FILL THIS OUT)'!I115) ->  | K112: =IF('Caregiver Tab (FILL THIS OUT)'!J115="","",'Caregiver Tab (FILL THIS OUT)'!J115) ->  | L112: =IF('Caregiver Tab (FILL THIS OUT)'!K115="","",'Caregiver Tab (FILL THIS OUT)'!K115) ->  | M112: =IF('Caregiver Tab (FILL THIS OUT)'!M115="","",'Caregiver Tab (FILL THIS OUT)'!M115) ->  | N112: =IF('Caregiver Tab (FILL THIS OUT)'!M115="","",'Caregiver Tab (FILL THIS OUT)'!M115) ->  | O112: =IF('Caregiver Tab (FILL THIS OUT)'!N115="","",'Caregiver Tab (FILL THIS OUT)'!N115) ->  | P112: =IF('Caregiver Tab (FILL THIS OUT)'!O115="","",'Caregiver Tab (FILL THIS OUT)'!O115) ->  | Q112: =IF('Caregiver Tab (FILL THIS OUT)'!P115="","",'Caregiver Tab (FILL THIS OUT)'!P115) ->  | R112: =IF('Caregiver Tab (FILL THIS OUT)'!Q115="","",'Caregiver Tab (FILL THIS OUT)'!Q115) ->  | S112: =IF('Caregiver Tab (FILL THIS OUT)'!R115="","",'Caregiver Tab (FILL THIS OUT)'!R115) ->  | T112: =IF('Caregiver Tab (FILL THIS OUT)'!S115="","",'Caregiver Tab (FILL THIS OUT)'!S115) ->  | U112: =IF('Caregiver Tab (FILL THIS OUT)'!T115="","",'Caregiver Tab (FILL THIS OUT)'!T115) ->  | V112: =IF('Caregiver Tab (FILL THIS OUT)'!U115="","",'Caregiver Tab (FILL THIS OUT)'!U115) -> caregiver | W112: =IF('Caregiver Tab (FILL THIS OUT)'!V115="","",'Caregiver Tab (FILL THIS OUT)'!V115) ->  | X112: =IF('Caregiver Tab (FILL THIS OUT)'!W115="","",'Caregiver Tab (FILL THIS OUT)'!W115) ->  | Y112: =IF('Caregiver Tab (FILL THIS OUT)'!X115="","",'Caregiver Tab (FILL THIS OUT)'!X115) ->  | Z112: ='Caregiver Tab (FILL THIS OUT)'!#REF!&IF('Caregiver Tab (FILL THIS OUT)'!#REF!="","","#"&'Caregiver Tab (FILL THIS OUT)'!#REF!)&";"&'Caregiver Tab (FILL THIS OUT)'!#REF!&IF('Caregiver Tab (FILL THIS OUT)'!#REF!="","","#"&'Caregiver Tab (FILL THIS OUT)'!#REF!)&";"&'Caregiver Tab (FILL THIS OUT)'!#REF!&IF('Caregiver Tab (FILL THIS OUT)'!#REF!="","","#"&'Caregiver Tab (FILL THIS OUT)'!#REF!)&";" -> 
B113: =IF('Caregiver Tab (FILL THIS OUT)'!B116="","",'Caregiver Tab (FILL THIS OUT)'!B116) ->  | C113: =IF('Caregiver Tab (FILL THIS OUT)'!C116="","",'Caregiver Tab (FILL THIS OUT)'!C116) ->  | D113: 3 | E113: 1 | F113: =IF('Caregiver Tab (FILL THIS OUT)'!E116="","",'Caregiver Tab (FILL THIS OUT)'!E116) ->  | G113: =IF('Caregiver Tab (FILL THIS OUT)'!F116="","",'Caregiver Tab (FILL THIS OUT)'!F116) -> TRUE | H113: =IF('Caregiver Tab (FILL THIS OUT)'!G116="","",'Caregiver Tab (FILL THIS OUT)'!G116) ->  | I113: =IF('Caregiver Tab (FILL THIS OUT)'!H116="","",'Caregiver Tab (FILL THIS OUT)'!H116) ->  | J113: =IF('Caregiver Tab (FILL THIS OUT)'!I116="","",'Caregiver Tab (FILL THIS OUT)'!I116) ->  | K113: =IF('Caregiver Tab (FILL THIS OUT)'!J116="","",'Caregiver Tab (FILL THIS OUT)'!J116) ->  | L113: =IF('Caregiver Tab (FILL THIS OUT)'!K116="","",'Caregiver Tab (FILL THIS OUT)'!K116) ->  | M113: =IF('Caregiver Tab (FILL THIS OUT)'!M116="","",'Caregiver Tab (FILL THIS OUT)'!M116) ->  | N113: =IF('Caregiver Tab (FILL THIS OUT)'!M116="","",'Caregiver Tab (FILL THIS OUT)'!M116) ->  | O113: =IF('Caregiver Tab (FILL THIS OUT)'!N116="","",'Caregiver Tab (FILL THIS OUT)'!N116) ->  | P113: =IF('Caregiver Tab (FILL THIS OUT)'!O116="","",'Caregiver Tab (FILL THIS OUT)'!O116) ->  | Q113: =IF('Caregiver Tab (FILL THIS OUT)'!P116="","",'Caregiver Tab (FILL THIS OUT)'!P116) ->  | R113: =IF('Caregiver Tab (FILL THIS OUT)'!Q116="","",'Caregiver Tab (FILL THIS OUT)'!Q116) ->  | S113: =IF('Caregiver Tab (FILL THIS OUT)'!R116="","",'Caregiver Tab (FILL THIS OUT)'!R116) ->  | T113: =IF('Caregiver Tab (FILL THIS OUT)'!S116="","",'Caregiver Tab (FILL THIS OUT)'!S116) ->  | U113: =IF('Caregiver Tab (FILL THIS OUT)'!T116="","",'Caregiver Tab (FILL THIS OUT)'!T116) ->  | V113: =IF('Caregiver Tab (FILL THIS OUT)'!U116="","",'Caregiver Tab (FILL THIS OUT)'!U116) -> caregiver | W113: =IF('Caregiver Tab (FILL THIS OUT)'!V116="","",'Caregiver Tab (FILL THIS OUT)'!V116) ->  | X113: =IF('Caregiver Tab (FILL THIS OUT)'!W116="","",'Caregiver Tab (FILL THIS OUT)'!W116) ->  | Y113: =IF('Caregiver Tab (FILL THIS OUT)'!X116="","",'Caregiver Tab (FILL THIS OUT)'!X116) ->  | Z113: ='Caregiver Tab (FILL THIS OUT)'!#REF!&IF('Caregiver Tab (FILL THIS OUT)'!#REF!="","","#"&'Caregiver Tab (FILL THIS OUT)'!#REF!)&";"&'Caregiver Tab (FILL THIS OUT)'!#REF!&IF('Caregiver Tab (FILL THIS OUT)'!#REF!="","","#"&'Caregiver Tab (FILL THIS OUT)'!#REF!)&";"&'Caregiver Tab (FILL THIS OUT)'!#REF!&IF('Caregiver Tab (FILL THIS OUT)'!#REF!="","","#"&'Caregiver Tab (FILL THIS OUT)'!#REF!)&";" -> 
B114: =IF('Caregiver Tab (FILL THIS OUT)'!B117="","",'Caregiver Tab (FILL THIS OUT)'!B117) ->  | C114: =IF('Caregiver Tab (FILL THIS OUT)'!C117="","",'Caregiver Tab (FILL THIS OUT)'!C117) ->  | D114: 3 | E114: 1 | F114: =IF('Caregiver Tab (FILL THIS OUT)'!E117="","",'Caregiver Tab (FILL THIS OUT)'!E117) ->  | G114: =IF('Caregiver Tab (FILL THIS OUT)'!F117="","",'Caregiver Tab (FILL THIS OUT)'!F117) -> TRUE | H114: =IF('Caregiver Tab (FILL THIS OUT)'!G117="","",'Caregiver Tab (FILL THIS OUT)'!G117) ->  | I114: =IF('Caregiver Tab (FILL THIS OUT)'!H117="","",'Caregiver Tab (FILL THIS OUT)'!H117) ->  | J114: =IF('Caregiver Tab (FILL THIS OUT)'!I117="","",'Caregiver Tab (FILL THIS OUT)'!I117) ->  | K114: =IF('Caregiver Tab (FILL THIS OUT)'!J117="","",'Caregiver Tab (FILL THIS OUT)'!J117) ->  | L114: =IF('Caregiver Tab (FILL THIS OUT)'!K117="","",'Caregiver Tab (FILL THIS OUT)'!K117) ->  | M114: =IF('Caregiver Tab (FILL THIS OUT)'!M117="","",'Caregiver Tab (FILL THIS OUT)'!M117) ->  | N114: =IF('Caregiver Tab (FILL THIS OUT)'!M117="","",'Caregiver Tab (FILL THIS OUT)'!M117) ->  | O114: =IF('Caregiver Tab (FILL THIS OUT)'!N117="","",'Caregiver Tab (FILL THIS OUT)'!N117) ->  | P114: =IF('Caregiver Tab (FILL THIS OUT)'!O117="","",'Caregiver Tab (FILL THIS OUT)'!O117) ->  | Q114: =IF('Caregiver Tab (FILL THIS OUT)'!P117="","",'Caregiver Tab (FILL THIS OUT)'!P117) ->  | R114: =IF('Caregiver Tab (FILL THIS OUT)'!Q117="","",'Caregiver Tab (FILL THIS OUT)'!Q117) ->  | S114: =IF('Caregiver Tab (FILL THIS OUT)'!R117="","",'Caregiver Tab (FILL THIS OUT)'!R117) ->  | T114: =IF('Caregiver Tab (FILL THIS OUT)'!S117="","",'Caregiver Tab (FILL THIS OUT)'!S117) ->  | U114: =IF('Caregiver Tab (FILL THIS OUT)'!T117="","",'Caregiver Tab (FILL THIS OUT)'!T117) ->  | V114: =IF('Caregiver Tab (FILL THIS OUT)'!U117="","",'Caregiver Tab (FILL THIS OUT)'!U117) -> caregiver | W114: =IF('Caregiver Tab (FILL THIS OUT)'!V117="","",'Caregiver Tab (FILL THIS OUT)'!V117) ->  | X114: =IF('Caregiver Tab (FILL THIS OUT)'!W117="","",'Caregiver Tab (FILL THIS OUT)'!W117) ->  | Y114: =IF('Caregiver Tab (FILL THIS OUT)'!X117="","",'Caregiver Tab (FILL THIS OUT)'!X117) ->  | Z114: ='Caregiver Tab (FILL THIS OUT)'!#REF!&IF('Caregiver Tab (FILL THIS OUT)'!#REF!="","","#"&'Caregiver Tab (FILL THIS OUT)'!#REF!)&";"&'Caregiver Tab (FILL THIS OUT)'!#REF!&IF('Caregiver Tab (FILL THIS OUT)'!#REF!="","","#"&'Caregiver Tab (FILL THIS OUT)'!#REF!)&";"&'Caregiver Tab (FILL THIS OUT)'!#REF!&IF('Caregiver Tab (FILL THIS OUT)'!#REF!="","","#"&'Caregiver Tab (FILL THIS OUT)'!#REF!)&";" -> 
B115: =IF('Caregiver Tab (FILL THIS OUT)'!B118="","",'Caregiver Tab (FILL THIS OUT)'!B118) ->  | C115: =IF('Caregiver Tab (FILL THIS OUT)'!C118="","",'Caregiver Tab (FILL THIS OUT)'!C118) ->  | D115: 3 | E115: 1 | F115: =IF('Caregiver Tab (FILL THIS OUT)'!E118="","",'Caregiver Tab (FILL THIS OUT)'!E118) ->  | G115: =IF('Caregiver Tab (FILL THIS OUT)'!F118="","",'Caregiver Tab (FILL THIS OUT)'!F118) -> TRUE | H115: =IF('Caregiver Tab (FILL THIS OUT)'!G118="","",'Caregiver Tab (FILL THIS OUT)'!G118) ->  | I115: =IF('Caregiver Tab (FILL THIS OUT)'!H118="","",'Caregiver Tab (FILL THIS OUT)'!H118) ->  | J115: =IF('Caregiver Tab (FILL THIS OUT)'!I118="","",'Caregiver Tab (FILL THIS OUT)'!I118) ->  | K115: =IF('Caregiver Tab (FILL THIS OUT)'!J118="","",'Caregiver Tab (FILL THIS OUT)'!J118) ->  | L115: =IF('Caregiver Tab (FILL THIS OUT)'!K118="","",'Caregiver Tab (FILL THIS OUT)'!K118) ->  | M115: =IF('Caregiver Tab (FILL THIS OUT)'!M118="","",'Caregiver Tab (FILL THIS OUT)'!M118) ->  | N115: =IF('Caregiver Tab (FILL THIS OUT)'!M118="","",'Caregiver Tab (FILL THIS OUT)'!M118) ->  | O115: =IF('Caregiver Tab (FILL THIS OUT)'!N118="","",'Caregiver Tab (FILL THIS OUT)'!N118) ->  | P115: =IF('Caregiver Tab (FILL THIS OUT)'!O118="","",'Caregiver Tab (FILL THIS OUT)'!O118) ->  | Q115: =IF('Caregiver Tab (FILL THIS OUT)'!P118="","",'Caregiver Tab (FILL THIS OUT)'!P118) ->  | R115: =IF('Caregiver Tab (FILL THIS OUT)'!Q118="","",'Caregiver Tab (FILL THIS OUT)'!Q118) ->  | S115: =IF('Caregiver Tab (FILL THIS OUT)'!R118="","",'Caregiver Tab (FILL THIS OUT)'!R118) ->  | T115: =IF('Caregiver Tab (FILL THIS OUT)'!S118="","",'Caregiver Tab (FILL THIS OUT)'!S118) ->  | U115: =IF('Caregiver Tab (FILL THIS OUT)'!T118="","",'Caregiver Tab (FILL THIS OUT)'!T118) ->  | V115: =IF('Caregiver Tab (FILL THIS OUT)'!U118="","",'Caregiver Tab (FILL THIS OUT)'!U118) -> caregiver | W115: =IF('Caregiver Tab (FILL THIS OUT)'!V118="","",'Caregiver Tab (FILL THIS OUT)'!V118) ->  | X115: =IF('Caregiver Tab (FILL THIS OUT)'!W118="","",'Caregiver Tab (FILL THIS OUT)'!W118) ->  | Y115: =IF('Caregiver Tab (FILL THIS OUT)'!X118="","",'Caregiver Tab (FILL THIS OUT)'!X118) ->  | Z115: ='Caregiver Tab (FILL THIS OUT)'!#REF!&IF('Caregiver Tab (FILL THIS OUT)'!#REF!="","","#"&'Caregiver Tab (FILL THIS OUT)'!#REF!)&";"&'Caregiver Tab (FILL THIS OUT)'!#REF!&IF('Caregiver Tab (FILL THIS OUT)'!#REF!="","","#"&'Caregiver Tab (FILL THIS OUT)'!#REF!)&";"&'Caregiver Tab (FILL THIS OUT)'!#REF!&IF('Caregiver Tab (FILL THIS OUT)'!#REF!="","","#"&'Caregiver Tab (FILL THIS OUT)'!#REF!)&";" -> 
B116: =IF('Caregiver Tab (FILL THIS OUT)'!B119="","",'Caregiver Tab (FILL THIS OUT)'!B119) ->  | C116: =IF('Caregiver Tab (FILL THIS OUT)'!C119="","",'Caregiver Tab (FILL THIS OUT)'!C119) ->  | D116: 3 | E116: 1 | F116: =IF('Caregiver Tab (FILL THIS OUT)'!E119="","",'Caregiver Tab (FILL THIS OUT)'!E119) ->  | G116: =IF('Caregiver Tab (FILL THIS OUT)'!F119="","",'Caregiver Tab (FILL THIS OUT)'!F119) -> TRUE | H116: =IF('Caregiver Tab (FILL THIS OUT)'!G119="","",'Caregiver Tab (FILL THIS OUT)'!G119) ->  | I116: =IF('Caregiver Tab (FILL THIS OUT)'!H119="","",'Caregiver Tab (FILL THIS OUT)'!H119) ->  | J116: =IF('Caregiver Tab (FILL THIS OUT)'!I119="","",'Caregiver Tab (FILL THIS OUT)'!I119) ->  | K116: =IF('Caregiver Tab (FILL THIS OUT)'!J119="","",'Caregiver Tab (FILL THIS OUT)'!J119) ->  | L116: =IF('Caregiver Tab (FILL THIS OUT)'!K119="","",'Caregiver Tab (FILL THIS OUT)'!K119) ->  | M116: =IF('Caregiver Tab (FILL THIS OUT)'!M119="","",'Caregiver Tab (FILL THIS OUT)'!M119) ->  | N116: =IF('Caregiver Tab (FILL THIS OUT)'!M119="","",'Caregiver Tab (FILL THIS OUT)'!M119) ->  | O116: =IF('Caregiver Tab (FILL THIS OUT)'!N119="","",'Caregiver Tab (FILL THIS OUT)'!N119) ->  | P116: =IF('Caregiver Tab (FILL THIS OUT)'!O119="","",'Caregiver Tab (FILL THIS OUT)'!O119) ->  | Q116: =IF('Caregiver Tab (FILL THIS OUT)'!P119="","",'Caregiver Tab (FILL THIS OUT)'!P119) ->  | R116: =IF('Caregiver Tab (FILL THIS OUT)'!Q119="","",'Caregiver Tab (FILL THIS OUT)'!Q119) ->  | S116: =IF('Caregiver Tab (FILL THIS OUT)'!R119="","",'Caregiver Tab (FILL THIS OUT)'!R119) ->  | T116: =IF('Caregiver Tab (FILL THIS OUT)'!S119="","",'Caregiver Tab (FILL THIS OUT)'!S119) ->  | U116: =IF('Caregiver Tab (FILL THIS OUT)'!T119="","",'Caregiver Tab (FILL THIS OUT)'!T119) ->  | V116: =IF('Caregiver Tab (FILL THIS OUT)'!U119="","",'Caregiver Tab (FILL THIS OUT)'!U119) -> caregiver | W116: =IF('Caregiver Tab (FILL THIS OUT)'!V119="","",'Caregiver Tab (FILL THIS OUT)'!V119) ->  | X116: =IF('Caregiver Tab (FILL THIS OUT)'!W119="","",'Caregiver Tab (FILL THIS OUT)'!W119) ->  | Y116: =IF('Caregiver Tab (FILL THIS OUT)'!X119="","",'Caregiver Tab (FILL THIS OUT)'!X119) ->  | Z116: ='Caregiver Tab (FILL THIS OUT)'!#REF!&IF('Caregiver Tab (FILL THIS OUT)'!#REF!="","","#"&'Caregiver Tab (FILL THIS OUT)'!#REF!)&";"&'Caregiver Tab (FILL THIS OUT)'!#REF!&IF('Caregiver Tab (FILL THIS OUT)'!#REF!="","","#"&'Caregiver Tab (FILL THIS OUT)'!#REF!)&";"&'Caregiver Tab (FILL THIS OUT)'!#REF!&IF('Caregiver Tab (FILL THIS OUT)'!#REF!="","","#"&'Caregiver Tab (FILL THIS OUT)'!#REF!)&";" -> 
